Workbook

Sheet Design Regulator
A1: LM70XX0/-Q1 65V/80V 4A/6A/8A/10A Synchronous Buck Converter Design Tool
N2: http://www.ti.com/product/lm5175
A3: About | C3: xx | F3: = Input Box | N3: TERMS OF USE
A5: Step 1: Operating Specifications
D6: Input Voltage – Min, VIN(min) | E6: 33 | F6: V
D7: Input Voltage – Nom, VIN(nom) | E7: 33 | F7: V
D8: Input Voltage – Max, VIN(max) | E8: 51 | F8: V
D9: Output Voltage, VOUT | E9: 20 | F9: V
D10: Full-Load Output Current, IOUT | E10: 0.4 | F10: A
D11: Switching Frequency, FSW | E11: 433 | F11: kHz
D12: Frequency Set Resistor, RT | E12: ='Variable Management'!C446 -> 49.9 | F12: kΩ
D13: Ambient Temperature, TA | E13: 50 | F13: °C
D14: Junction Temperature (estimate), TJ | E14: ='Variable Management'!B366 -> 60.02209838 | F14: °C
A16: Step 2: Current Sense Resistor
D17: Required IOCP Setpoint at VIN(nom) | E17: 1.2 | F17: A
D18: Recommended Sense Resistance | E18: =Rs_ideal*1000 -> 40.1716214 | F18: mΩ
D19: Sense Resistance, RS | E19: 39 | F19: mΩ
D20: Min Inductor Sat Current, ILO(SAT) | E20: ='Variable Management'!B95 -> 1.58974359 | F20: A
D21: Max Power Loss in Shunt | E21: ='Variable Management'!B105 -> 0.06063759175 | F21: W
D22: VIN(min) | E22: ='Variable Management'!B97 -> 1.241878523 | F22: A
C23: IOUT(typ) at OCP Inception: | D23: VIN(nom) | E23: ='Variable Management'!B98 -> 1.241878523 | F23: A
D24: VIN(max) | E24: ='Variable Management'!B99 -> 1.136478954 | F24: A
A26: Step 3: Buck Inductance
D27: Recommended Starting Inductance | E27: =Lopt*1000000 -> 129.9701069 | F27: µH
D28: Inductance, LO | E28: 47 | F28: µH
D29: Inductor DCR | E29: 100 | F29: mΩ
D30: DIL as a % at VIN(nom) | E30: ='Variable Management'!B68*100 -> 97.00945656 | F30: %
D31: Estimated Inductor Core Loss at VIN(nom) | E31: 0.12 | F31: W
A33: Step 4: Output Capacitors
D34: Output Voltage Ripple Spec | E34: 10 | F34: mVPK-PK
D35: Maximum Load Step | E35: 100 | F35: %
D36: Minimum Output Capacitance | E36: =Total_COUT_with_stead_state_load_step -> 29.99731694 | F36: µF
D37: Output Capacitance (derated), COUT | E37: 50 | F37: µF | K37: =CHOOSE(SCH_MODE, "", "** For Single-Output Operation in 2-Phase Mode, tie MODE to VDDA and use FB1 to set VOUT **", "** For Single-Output Operation in 3-Phase Mode, tie both MODE pins to VDDA. Use FB1 of master IC to set VOUT. Connect FB2 of master IC to AGND. Connect FB2 of slave IC to VDDA to configure it as a slave **", "** For Single-Output Operation in 4-Phase Mode, tie both MODE pins to VDDA. Use FB1 of master IC to set VOUT. Connect FB2 of master IC to AGND. Connect FB2 of slave IC to VDDA to configure it as a slave **") -> 
D38: Maximum Permitted ESR | E38: ='Variable Management'!B128 -> 25.11558955 | F38: mΩ
D39: Output Capacitor ESR | E39: 2 | F39: mΩ | K39: =CHOOSE(SCH_MODE, "", "** Tie VCCX to GND if not used **", "** Slave controller (CNTRL2) not shown **","** Slave controller (CNTRL2) not shown **") ->  | P39: =IF(SCH_MODE=1, "** Tie VCCX to GND if not used **", "") -> ** Tie VCCX to GND if not used **
D40: Resulting Output Voltage Ripple (max) | E40: ='Variable Management'!B130*1000 -> 2.371012381 | F40: mVPK-PK | K40: =IF(OR(SCH_MODE=3, SCH_MODE=4),"** Tie VCCX to GND if not used **", "") -> 
D41: Output Capacitor RMS Current (max) | E41: ='Variable Management'!B114 -> 0.1728693412 | F41: ARMS
A43: Step 5: Input Capacitors
D44: Input Voltage Ripple Spec | E44: 5 | F44: mVPK-PK
D45: Minimum Input Capacitance | E45: ='Variable Management'!B151 -> 46.18937644 | F45: µF
D46: Input Capacitance (derated), CIN | E46: 50 | F46: µF
D47: Maximum Permitted ESR | E47: ='Variable Management'!B157 -> 0.5448274037 | F47: mΩ
D48: Input Capacitor ESR | E48: 1 | F48: mΩ
D49: Resulting Input Voltage Ripple (max) | E49: ='Variable Management'!B164*1000 -> 5.318356126 | F49: mVPK-PK
D50: Input Capacitor RMS Current (max) | E50: ='Variable Management'!B141 -> 0.2 | F50: ARMS
A52: Step 6: Enable, CNFG, FPWM/PFM
D55: Input Voltage UVLO Turn-ON | E55: 13 | F55: V
D56: Input Voltage UVLO Turn-OFF | E56: =0.9*E55 -> 11.7 | F56: V
D57: Upper Enable Resistor RUV1 | E57: 237 | F57: kΩ
D58: Lower Enable Resistor RUV2 | E58: ='Variable Management'!B191 -> 19.6 | F58: kΩ
D59: Configuration Resistor, RCNFG | E59: =IF(DITHER=1,"41.2","29.4") -> 29.4 | F59: kΩ
E60: =IF(DEMB=1, "* Tie PFM/SYNCIN to GND", "* Tie PFM/SYNCIN to VDDA") -> * Tie PFM/SYNCIN to GND
A62: Step 7: Compensation Design
D63: Load Pole Frequency | E63: =Fp_dominant -> 145.4342391 | F63: Hz
D64: ESR Zero Frequency | E64: =Fesr/1000 -> 1591.549433 | F64: kHz
D65: Desired Crossover Frequency | E65: 10 | F65: =" kHz " -> kHz
D66: Error Amp Pole Frequency | E66: =Fp1_u -> 0.5288311983 | F66: Hz
D67: =CHOOSE(VOUT_setting, "Upper Feedback Resistor","","","") -> Upper Feedback Resistor | E67: 274 | F67: kΩ
D68: =CHOOSE(VOUT_setting, "Lower Feedback Resistor", "Pullup FB to VDDA with "&'Variable Management'!D421,"Tie FB to VDDA","Pullup FB to VDDA with "&'Variable Management'!D421) -> Lower Feedback Resistor | E68: =IF(Vout=Vref,"OPEN",Rfb2_u/1000) -> 11.5 | F68: =IF(Vout=Vref,"","kΩ") -> kΩ
A70: Compensation Components
B71: Calculated / | C71: Std Values | D71: Std Values | F71: Actual P/Z Frequencies
A72: RC1 | B72: =Rcea1/1000 -> 25.52544028 | C72: ='Standard Value Calculator'!S32 -> 25.5 | D72: 33.2 | E72: kΩ | F72: =Fp1_u -> 0.5288311983 | G72: Hz (FPEA)
A73: CC1 | B73: =Cc1ea*1000000000 -> 6.235149777 | C73: ='Standard Value Calculator'!S33 -> 6.8 | D73: 4.7 | E73: nF | F73: =Fz1_u/1000 -> 1.019962467 | G73: kHz (FZCOMP)
A74: CC2 | B74: =IF(Cc2ea<0, "N/A", Cc2ea*1000000000000) -> N/A | C74: ='Standard Value Calculator'!S34 -> 0 | D74: 0 | E74: pF | F74: =Fp2_u/1000 -> 150.6024096 | G74: kHz (FPCOMP)
A77: Efficiency / Power Loss Analyzer
A79: Step 8: IC Power Loss
F80: Ext. Power Supply Voltage | G80: 8 | H80: V
F81: System-Level Thermal RθJA | G81: 18.6 | H81: °C/W
F82: IC Power Dissipation | G82: ='Variable Management'!B364 -> 0.5388224935 | H82: W
F83: Junction Temperature (estimate) | G83: ='Variable Management'!B366 -> 60.02209838 | H83: °C
H84: =CHOOSE(Ext_VCC, "* Tie BIAS to Ext. Power Supply", "* Tie BIAS to VOUT except for Fixed-VOUT = 3.3V", "* Tie BIAS to PGND") -> * Tie BIAS to VOUT except for Fixed-VOUT = 3.3V
F85: Power MOSFETs | G85: (Q1, Q2)
E86: Internal NEXFETs
F87: Low-side
D88: On-State Resistance, RDS(on) | E88: 24 | F88: 18 | G88: mΩ
D89: Total Gate Charge, QG | E89: 3 | F89: 4.1 | G89: nC
D90: Gate-Drain Charge, QGD | E90: 0.7 | F90: 1 | G90: nC
D91: Gate-Source Charge, QGS | E91: 0.7 | F91: 0.9 | G91: nC
D92: Output Charge, QOSS | F92: 3 | G92: nC
D97: Output Capacitance, COSS | E97: 250 | F97: 350 | G97: pF
D99: Gate Resistance, RG | E99: 3.5 | F99: 3 | G99: Ω
D100: Transconductance, gFS | E100: 71 | F100: 90 | G100: S
D101: Gate-Source Threshold Voltage, VTH | E101: 1.8 | F101: 1.8 | G101: V
D102: Body Diode Forward Voltage, VBD | E102: 0.8 | F102: 0.8 | G102: V
D103: Body Diode Rev Recovery Charge, QRR | F103: 30 | G103: nC
D104: Thermal Resistance, θJA | E104: 15 | F104: 15 | G104: °C/W
A106: External Schottky Diode (if applicable)
D107: Schottky Fwd Voltage, VFWDsch | F107: 0 | G107: V
D108: Schottky Rev Recovery Charge, QRRsch | F108: 0 | G108: nC

Sheet Input Filters (hidden)
A1: LM(2)5149-Q1 Synchronous Buck Controller Design Tool
O2: http://www.ti.com/product/lm5175
A3: About | C3: xx | F3: = Input Box | O3: TERMS OF USE
E7: AEF | M7: Passive
B9: Design tab - LAEF | C9: ='Design Regulator'!E51 & " µH" -> µH | F9: LAEF | G9: 1 | H9: µH | J9: Suggested LIN Inductor | K9: 0.1-10 | L9: µH | N9: Chosen LIN | O9: 0.68 | P9: µH
B10: Design tab - CINJ | C10: ='Design Regulator'!#REF! & " µF" ->  | F10: CINJ | G10: 1 | H10: µF | J10: Suggested CF | K10: 0.1-10 | L10: µF | N10: Chosen CF | O10: 0.47 | P10: µF
B11: Design tab - CDAMP | C11: ='Design Regulator'!#REF! & " µF" ->  | F11: CDAMP | G11: 1 | H11: µF | J11: Suggested CDAMP | K11: 1-10 | L11: µF | N11: Chosen CDAMP | O11: 1 | P11: µF
B12: Design tab - RDAMP | C12: ='Design Regulator'!#REF! & " Ω" ->  | F12: RDAMP | G12: 10 | H12: Ω | J12: Suggested RDAMP | K12: =Rdamp_PassiveStd ->  | L12: Ω | N12: Chosen RDAMP | O12: 0.35 | P12: Ω
C14: VIN Ripple at Fsw | F14: =VinRipple_dBuV -> 74.5155483 | G14: dBµV | H14: VIN Ripple | I14: =VinRipple_dBuV -> 74.5155483 | J14: dBµV
D16: AEF Attenuation at Fsw | E16: =-#REF! ->  | F16: dB | L16: Passive Attenuation at Fsw | M16: =-#REF! ->  | N16: dB
D17: AEF EMI at Fsw | E17: =VinRipple_dBuV-E16 ->  | F17: dB-µV | L17: Passive EMI at Fsw | M17: =VinRipple_dBuV-M16 ->  | N17: dB-µV

Sheet BOM & Schematic (hidden)
A36: ** Tie DEMB to VDDA for FPWM, AGND for DEM **
A37: ** Tie VCCX to GND if not used ** | I37: =IF(OR(SCH_MODE=3, SCH_MODE=4),"** Tie VCCX to GND if not used **", "") -> 
A38: ** Tie DITH to VDDA to disable spread spectrum **
A39: ** Tie OSC to VDDA for 2.2MHz, AGND for 440kHz **
A40: ="VIN = "&VIN_min&" V to "&VIN_max&" V, VOUT = "& Vout &" V, IOUT = " &Iout & " A, Fsw = " & Fsw/1000 &" kHz, Current Limit = "&ROUNDUP(Ilimit_DC,0)&" A" -> VIN = 33 V to 51 V, VOUT = 20 V, IOUT = 0,4 A, Fsw = 433 kHz, Current Limit = 2 A
A41: High Efficiency Synchronous Buck Regulator BOM
A42: Count | B42: Ref Des | C42: Value | D42: Description | H42: Size | I42: Part Number | J42: MFR
A43: 1 | B43: CBOOT | C43: 0.1 | D43: =C43 -> 0.1 | H43: 0603 | I43: Std | J43: Std
A44: 1 | B44: CC1 | C44: ='Design Regulator'!D73 -> 4.7 | D44: 4.7 | H44: 0603 | I44: Std | J44: Std
A45: 1 | B45: CC2 | C45: ='Design Regulator'!D74 -> 0 | D45: 0 | H45: 0603 | I45: Std | J45: Std
A46: 1 | B46: CRES | C46: =Cres_u*1000000000 -> 180 | D46: =C46 -> 180 | H46: 0603 | I46: Std | J46: Std
A47: 1 | B47: CDITH | C47: =Cdither*1000000000 -> 2.7 | D47: =C47 -> 2.7 | H47: 0603 | I47: Std | J47: Std
A48: =ROUNDUP('Design Regulator'!E46/10,0) -> 5 | B48: CIN | C48: 10 | D48: =C48 -> 10 | H48: 1210 | I48: Std | J48: Std
A49: =ROUNDUP('Design Regulator'!E37/47,0) -> 2 | B49: COUT | C49: 47 | D49: =C49 -> 47 | H49: 1210 | I49: Std | J49: Std
A50: 1 | B50: CSS | C50: ='Design Regulator'!#REF! ->  | D50: =C50 ->  | H50: 0603 | I50: Std | J50: Std
A51: 2 | B51: CVCC, CVCCX | C51: 2.2 | D51: 2.2 | H51: 0603 | I51: Std | J51: Std
A52: 1 | B52: CVDDA | C52: 0.47 | D52: 0.47 | H52: 0603 | I52: Std | J52: Std
A53: 1 | B53: DBOOT | C53: See description | D53: Schottky Diode, 60V, 200mA | H53: - | I53: - | J53: Various
A54: 1 | B54: LO | C54: ='Design Regulator'!E28 -> 47 | D54: ="Inductor, "&Lf*1000000&"µH, "&Rdcr*1000&"mΩ, >"&ROUNDUP(Ilimit_DC*1.1,0)&"A" -> Inductor, 47µH, 100mΩ, >2A | H54: - | I54: - | J54: Various
A55: 2 | B55: Q1, Q2 | C55: See description | D55: ='Design Regulator'!E88 -> 24 | H55: Std | I55: ='Design Regulator'!E86 -> Internal NEXFETs | J55: -
A56: 1 | B56: RC1 | C56: ='Design Regulator'!D72 -> 33.2 | D56: =C56 -> 33.2 | H56: 0603 | I56: Std | J56: Std
A57: 1 | B57: RS | C57: =Rs*1000 -> 39 | D57: 39 | H57: 0508 | I57: Std | J57: Std
A58: 1 | B58: RT | C58: ='Design Regulator'!E12 -> 49.9 | D58: 49.9 | H58: 0603 | I58: Std | J58: Std
A59: 1 | B59: RFB1 | C59: ='Design Regulator'!E67 -> 274 | D59: 274 | H59: 0603 | I59: Std | J59: Std
A60: 1 | B60: RFB2 | C60: ='Design Regulator'!E68 -> 11.5 | D60: 11.5 | H60: 0603 | I60: Std | J60: Std
A61: 1 | B61: RPGOOD | C61: 100 | D61: 100 | H61: 0603 | I61: Std | J61: Std
A62: 1 | B62: RCS | C62: 100 | D62: 100 | H62: 0603 | I62: Std | J62: Std
A63: 1 | B63: RDEMB | C63: 100 | D63: 100 | H63: 0603 | I63: Std | J63: Std
A64: 1 | B64: RVIN | C64: 2.2 | D64: 2.2 | H64: 0603 | I64: Std | J64: Std
A65: 1 | B65: U1 | C65: LM5141-Q1 | D65: IC, LM5141-Q1, Synchronous Buck PWM Controller, 3.8V–65V Input | H65: VQFN-24 | I65: LM5141QRGEQ1 | J65: TI
A68: NOTES:
A69: ** For information on TI NexFETTM MOSFETs, see ** | D69: http://www.ti.com/nexfet | E69: **
A70: ** Inductor saturation current should be higher than the peak inductor current at the OCP setpoint for all input voltages and operating temperatures **
A71: ** Effective input and output capacitances should be appropriately derated for applied voltage and temperature, particularly with ceramics **

Sheet EVM
A1: LM70XX0-Q1 Quickstart Design Tool
B6: LM706A0QEVM PCB Layout

Sheet Efficiency Calculations (hidden)
A1: BUCK CONTROLLER POWER DESIGN TOOL
H2: =AW19 -> 0.7616921435 | I2: 10% load
H3: =AW59 -> 0.9015338129 | I3: 50% load | AP3: =IF(MODE=1, (Qg_Q1+Qg_Q2)*Fsw*Vin, (Qg_Q1+Qg_Q2+Qg_Q3+Qg_Q4)*Fsw*Vin) -> 0.1014519
H4: =AW109 -> 0.9211519791 | I4: 100% load | AO4: I_VCC | AP4: =(Qg_Q1+Qg_Q2)*Fsw*1000 -> 3.0743 | AQ4: mA | AR4: =AP4*5/1000 -> 0.0153715
A6: Enter the values of your design and MOSFET datasheet specifications below. Note that thermal resistance (θJA) will change when components are placed on the PCB
G7: Operating Point Condtions | R7: Filter Inductor | V7: Cout | Y7: Cin | AB7: High-side BUCK "Control" MOSFET Losses | AH7: Low-side BUCK "Sync" MOSFET Losses | AL7: External Diode | AM7: Diode/FET | AN7: Sense Rs | AO7: Controller IC Losses | AT7: RESULTS | BA7: Consolidated Buck/Boost Efficiency & Losses
A8: Input Parameters | G8: Step | H8: Vin | I8: Mode | J8: Iout | K8: Iout/ phase | L8: Iin | M8: Duty Cycle BUCK Leg | N8: Ripple Current pk-pk | O8: Peak Inductor Current | P8: Valley Inductor Current | Q8: SW node voltage at Q1 turn-on | R8: Irms Lf | S8: DCR Loss | T8: Core Loss | U8: Total Inductor Loss | V8: Irms Cout | W8: Cout ESR Loss | X8: Total Cout Loss | Y8: Irms Cin | Z8: Cin ESR Loss | AA8: Total Cin Loss | AB8: Irms | AC8: RDS(on) Loss | AD8: Transition Loss (not including capacitive loss) | AE8: MOSFET Output Capacitance Loss | AF8: Dead Time Loss | AG8: Total Control MOSFET Loss | AH8: Irms | AI8: RDS(on) Loss | AJ8: Deadtime Loss | AK8: Total Sync MOSFET Loss | AL8: Deadtime Loss | AM8: Reverse Recovery Loss | AN8: Isense Shunt Loss | AO8: IQ Loss | AP8: Switching Current Loss | AQ8: Switching Current Diss | AR8: LDO Loss Saved from Gate Drive Current (ext VCC) | AS8: Total IC Bias Power | AT8: Total Loss | AU8: Total IC Loss | AV8: Pout | AW8: EFF, h | AX8: =IF(Vin>Vout, "High-side MOSFET Temp Rise", "Boost ''CONTROL'' MOSFET Temp Rise") -> High-side MOSFET Temp Rise | AY8: =IF(Vin>Vout, "Low-side MOSFET Temp Rise", "Boost ''SYNC'' MOSFET Temp Rise") -> Low-side MOSFET Temp Rise | BA8: h | BB8: Inductor Cu & Core Loss | BC8: Total MOSFET Loss | BD8: Control MOSFET Loss | BE8: SYNC MOSFET Loss | BF8: Shunt Loss | BG8: FETs+IC Losses | BH8: Temp rise
A9: Design | B9: Input Value | C9: Units | D9: Description | G9: 0 | H9: =Vin -> 33 | I9: =MODE -> 1 | J9: 0 | K9: =Iout*G9/100/Number_of_Phases -> 0 | L9: =Vout*K9/(Vin*Efficiency) -> 0 | M9: =(Vout+(Rdson2+Rs+Rdcr)*K9)/(Vin+(Rs+Rdson2-Rdson1)*K9) -> 0.6060606061 | N9: =(Vin-(Rdson1+Rdcr)*K9-Vout)*M9/(Fsw*Lf) -> 0.3871449992 | O9: =K9+N9/2 -> 0.1935724996 | P9: =K9-N9/2 -> -0.1935724996 | Q9: =IF(MIN(Vin, -P9/(Coss_Q1+Coss_Q2)*0.00000002)<0, 0, MIN(Vin, -P9/(Coss_Q1+Coss_Q2)*0.00000002)) -> 6.452416653 | R9: =SQRT(K9^2+(N9^2)/12) -> 0.1117591348 | S9: =R9^2*Rdcr -> 0.00124901042 | T9: =Core_Loss_Ch1 -> 0.12 | U9: =(T9+S9*(1+Ltc*(Ta-25)))/(1-S9*Ltc*ThetaCa) -> 0.1213860405 | V9: =N9/SQRT(12) -> 0.1117591348 | W9: =RCoutEsr*V9^2 -> 2.49802084e-05 | X9: =W9 -> 2.49802084e-05 | Y9: =SQRT(M9*(1-M9))*SQRT(K9^2+(N9^2)/12) -> 0.05460793637 | Z9: =RCinEsr*Y9^2 -> 2.982026715e-06 | AA9: =Z9 -> 2.982026715e-06 | AB9: =SQRT(M9)*SQRT(K9^2+(N9^2)/12) -> 0.08700436841 | AC9: =Rdson1*AB9^2 -> 0.0001816742429 | AD9: =(Vin*K9/2)*Fsw*(Tr_buck+Tf_buck) -> 0 | AE9: =(0.5*Coss_Q1*(Vin-Q9)^2-0.5*Coss_Q2*(Vin-Q9)^2+(Qoss_Q2*(Vin-Q9)/Vin)*Vin)*Fsw -> 0.01922694974 | AF9: =IF(K9>N9/2,0,ABS(K9-N9/2)*Vsd_Q1*Deadtime*Fsw) -> 0.0009387491941 | AG9: =(AF9+AE9+AD9+AC9*(1+RdsonTopTc*Ta-RdsonTopTc*25))/(1-AC9*RdsonTopTc*ThetaJA_Q1) -> 0.02037955492 | AH9: =SQRT((1-M9))*SQRT(K9^2+(N9^2)/12) -> 0.07014516433 | AI9: =Rdson2*AH9^2 -> 8.856619342e-05 | AJ9: =IF(K9<N9/2,Deadtime*Fsw*IF(VfdSky_Q2>0,0,Vsd_Q2)*(K9+N9/2),2*Deadtime*Fsw*IF(VfdSky_Q2>0,0,Vsd_Q2)*K9) -> 0.0009387491941 | AK9: =(AJ9+AI9*(1+RdsonBotTc*Ta-RdsonBotTc*25))/(1-AI9*RdsonBotTc*ThetaJA_Q2) -> 0.001042824169 | AL9: =2*Deadtime*Fsw*IF(VfdSky_Q2>0,VfdSky_Q2,Vsd_Q2)*K9 -> 0 | AM9: =IF(QrrSky_Q2>0,QrrSky_Q2,Qrr_Q2*K9/(Iout/Number_of_Phases))*Fsw*Vin -> 0 | AN9: =Rs*R9^2 -> 0.0004871140638 | AO9: =Iq*Vin -> 7.26e-05 | AP9: =CHOOSE(Ext_VCC, (Qg_Q1+Qg_Q2)*Fsw*'Design Regulator'!$G$80, (Qg_Q1+Qg_Q2)*Fsw*Vout, (Qg_Q1+Qg_Q2)*Fsw*Vin) -> 0.061486 | AQ9: =(Vin-VCC)*Fsw*(Qg_Q1+Qg_Q2)+(RdsonDRT+RdsonDRT2)*Fsw*Qg_Q1*VCC/(RdsonDRT+2*Rgate1+RdsonDRT2)+(RdsonDRB+RdsonDRB2)*Fsw*Qg_Q2*VCC/(RdsonDRB+2*Rgate2+RdsonDRB2) -> 0.08631736909 | AR9: =(Qg_Q1+Qg_Q2)*Fsw*(Vin-VCC) -> 0.0768575 | AS9: =SUM(AO9:AP9) -> 0.0615586 | AT9: =SUM(U9,X9,AA9,AG9,AK9,AL9,AM9,AS9,AN9) -> 0.2048820958 | AU9: =SUM(AG9,AK9,AL9,AM9,AS9) -> 0.08298097909 | AV9: =Vout*K9 -> 0 | AW9: =AV9/(AV9+AT9) -> 0 | AX9: =ThetaJA_Q1*BD9 -> 0.3056933238 | AY9: =ThetaJA_Q2*BE9 -> 0.01564236254 | BA9: =AW9*100 -> 0 | BB9: =U9 -> 0.1213860405 | BC9: =AG9+AK9+AM9 -> 0.02142237909 | BD9: =AG9+AM9*0.66 -> 0.02037955492 | BE9: =AK9+AM9*0.33 -> 0.001042824169 | BF9: =AN9 -> 0.0004871140638 | BG9: =BC9+AS9 -> 0.08298097909 | BH9: =BG9*$B$63 -> 1.62642719
G10: 1 | H10: 33 | I10: 1 | J10: =Iout*G10/100 -> 0.004 | K10: 0.004 | L10: 0.002693602694 | M10: 0.6060772121 | N10: 0.3871408355 | O10: =K10+N10/2 -> 0.1975704177 | P10: =K10-N10/2 -> -0.1895704177 | Q10: 6.319013924 | R10: =SQRT(K10^2+(N10^2)/12) -> 0.1118294932 | S10: 0.001250583554 | T10: 0.12 | U10: 0.1213877864 | V10: =N10/SQRT(12) -> 0.1117579328 | W10: 2.497967108e-05 | X10: =W10 -> 2.497967108e-05 | Y10: =SQRT(M10*(1-M10))*SQRT(K10^2+(N10^2)/12) -> 0.05464191189 | Z10: 2.985738535e-06 | AA10: =Z10 -> 2.985738535e-06 | AB10: =SQRT(M10)*SQRT(K10^2+(N10^2)/12) -> 0.08706033505 | AC10: 0.0001819080465 | AD10: 0.000171468 | AE10: 0.01924650677 | AF10: 0.0009193406978 | AG10: 0.02055144997 | AH10: 0.07018784511 | AI10: 8.867400483e-05 | AJ10: 0.0009581374978 | AK10: 0.001062339345 | AL10: 3.87968e-05 | AM10: 0.0042867 | AN10: 0.0004877275861 | AO10: 7.26e-05 | AP10: =CHOOSE(Ext_VCC, (Qg_Q1+Qg_Q2)*Fsw*'Design Regulator'!$G$80, (Qg_Q1+Qg_Q2)*Fsw*Vout, (Qg_Q1+Qg_Q2)*Fsw*Vin) -> 0.061486 | AQ10: 0.08631736909 | AR10: 0.0768575 | AS10: 0.0615586 | AT10: 0.2094013655 | AU10: =SUM(AG10,AK10,AL10,AM10,AS10) -> 0.08749788611 | AV10: 0.08 | AW10: =AV10/(AV10+AT10) -> 0.2764326971 | AX10: 0.3507100795 | AY10: 0.03715425517 | BA10: =AW10*100 -> 27.64326971 | BB10: 0.1213877864 | BC10: 0.02590048931 | BD10: 0.02338067197 | BE10: 0.002476950345 | BF10: 0.0004877275861 | BG10: =BC10+AS10 -> 0.08745908931 | BH10: =BG10*$B$63 -> 1.71419815
A11: Vin | B11: =Vin -> 33 | C11: V | D11: Vin | G11: 2 | H11: 33 | I11: 1 | J11: 0.008 | K11: 0.008 | L11: 0.005387205387 | M11: 0.6060938179 | N11: 0.3871366708 | O11: 0.2015683354 | P11: -0.1855683354 | Q11: 6.18561118 | R11: 0.1120427009 | S11: 0.001255356682 | T11: 0.12 | U11: 0.1213930837 | V11: 0.1117567306 | W11: 2.497913365e-05 | X11: 2.497913365e-05 | Y11: 0.05474568509 | Z11: 2.997090036e-06 | AA11: 2.997090036e-06 | AB11: 0.08722751427 | AC11: 0.0001826073419 | AD11: 0.000342936 | AE11: 0.01926529323 | AF11: 0.0008999321994 | AG11: 0.0207231224 | AH11: 0.07032017903 | AI11: 8.900869643e-05 | AJ11: 0.0009775257994 | AK11: 0.001082121131 | AL11: 7.75936e-05 | AM11: 0.0085734 | AN11: 0.0004895891062 | AO11: 7.26e-05 | AP11: =CHOOSE(Ext_VCC, (Qg_Q1+Qg_Q2)*Fsw*'Design Regulator'!$G$80, (Qg_Q1+Qg_Q2)*Fsw*Vout, (Qg_Q1+Qg_Q2)*Fsw*Vin) -> 0.061486 | AQ11: 0.08631736909 | AR11: 0.0768575 | AS11: 0.0615586 | AT11: 0.2139254861 | AU11: 0.09201483713 | AV11: 0.16 | AW11: 0.4278927378 | AX11: 0.395723496 | AY11: 0.05867014697 | BA11: 42.78927378 | BB11: 0.1213930837 | BC11: 0.03037864353 | BD11: 0.0263815664 | BE11: 0.003911343131 | BF11: 0.0004895891062 | BG11: 0.09193724353 | BH11: =BG11*$B$63 -> 1.801969973
A12: Vout | B12: =Vout -> 20 | C12: V | D12: Vout | G12: 3 | H12: 33 | I12: 1 | J12: 0.012 | K12: 0.012 | L12: 0.008080808081 | M12: 0.6061104236 | N12: 0.3871325053 | O12: 0.2055662526 | P12: -0.1815662526 | Q12: 6.052208421 | R12: 0.1123979451 | S12: 0.001263329805 | T12: 0.12 | U12: 0.1214019324 | V12: 0.1117555281 | W12: 2.497859611e-05 | X12: 2.497859611e-05 | Y12: 0.05491885723 | Z12: 3.016080879e-06 | AA12: 3.016080879e-06 | AB12: 0.08750527776 | AC12: 0.0001837721673 | AD12: 0.000514404 | AE12: 0.01928330911 | AF12: 0.0008805236988 | AG12: 0.02089457229 | AH12: 0.07054165024 | AI12: 8.957023953e-05 | AJ12: 0.0009969140988 | AK12: 0.001102169496 | AL12: 0.0001163904 | AM12: 0.0128601 | AN12: 0.0004926986241 | AO12: 7.26e-05 | AP12: =CHOOSE(Ext_VCC, (Qg_Q1+Qg_Q2)*Fsw*'Design Regulator'!$G$80, (Qg_Q1+Qg_Q2)*Fsw*Vout, (Qg_Q1+Qg_Q2)*Fsw*Vin) -> 0.061486 | AQ12: 0.08631736909 | AR12: 0.0768575 | AS12: 0.0615586 | AT12: 0.2184544579 | AU12: 0.09653183219 | AV12: 0.24 | AW12: 0.5234980178 | AX12: 0.4407335744 | AY12: 0.08019003744 | BA12: 52.34980178 | BB12: 0.1214019324 | BC12: 0.03485684179 | BD12: 0.02938223829 | BE12: 0.005346002496 | BF12: 0.0004926986241 | BG12: 0.09641544179 | BH12: 1.889742659
A13: Fsw | B13: =Fsw/1000 -> 433 | C13: kHz | D13: Switching Frequency | G13: 4 | H13: 33 | I13: 1 | J13: 0.016 | K13: 0.016 | L13: 0.01077441077 | M13: 0.6061270292 | N13: 0.3871283389 | O13: 0.2095641694 | P13: -0.1775641694 | Q13: 5.918805648 | R13: 0.1128938848 | S13: 0.001274502923 | T13: 0.12 | U13: 0.1214143326 | V13: 0.1117543253 | W13: 2.497805846e-05 | X13: 2.497805846e-05 | Y13: 0.05516077163 | Z13: 3.042710727e-06 | AA13: 3.042710727e-06 | AB13: 0.08789258617 | AC13: 0.0001854025609 | AD13: 0.000685872 | AE13: 0.01930055442 | AF13: 0.0008611151961 | AG13: 0.02106579972 | AH13: 0.07085141159 | AI13: 9.035860545e-05 | AJ13: 0.001016302396 | AK13: 0.001122484407 | AL13: 0.0001551872 | AM13: 0.0171468 | AN13: 0.0004970561399 | AO13: 7.26e-05 | AP13: =CHOOSE(Ext_VCC, (Qg_Q1+Qg_Q2)*Fsw*'Design Regulator'!$G$80, (Qg_Q1+Qg_Q2)*Fsw*Vout, (Qg_Q1+Qg_Q2)*Fsw*Vin) -> 0.061486 | AQ13: 0.08631736909 | AR13: 0.0768575 | AS13: 0.0615586 | AT13: 0.2229882809 | AU13: 0.1010488713 | AV13: 0.32 | AW13: 0.5893313194 | AX13: 0.4857403158 | AY13: 0.1017139261 | BA13: 58.93313194 | BB13: 0.1214143326 | BC13: 0.03933508412 | BD13: 0.03238268772 | BE13: 0.006780928407 | BF13: 0.0004970561399 | BG13: 0.1008936841 | BH13: 1.977516209
A14: Iout | B14: =Iout -> 0.4 | C14: A | D14: Max Output Current | G14: 5 | H14: 33 | I14: 1 | J14: 0.02 | K14: 0.02 | L14: 0.01346801347 | M14: 0.6061436347 | N14: 0.3871241715 | O14: 0.2135620858 | P14: -0.1735620858 | Q14: 5.785402859 | R14: 0.1135286763 | S14: 0.001288876035 | T14: 0.12 | U14: 0.1214302843 | V14: 0.1117531223 | W14: 2.49775207e-05 | X14: 2.49775207e-05 | Y14: 0.05547052587 | Z14: 3.07697924e-06 | AA14: 3.07697924e-06 | AB14: 0.08838800849 | AC14: 0.0001874985611 | AD14: 0.00085734 | AE14: 0.01931702914 | AF14: 0.0008417066911 | AG14: 0.02123680474 | AH14: 0.07124830036 | AI14: 9.137376548e-05 | AJ14: 0.001035690691 | AK14: 0.001143065832 | AL14: 0.000193984 | AM14: 0.0214335 | AN14: 0.0005026616536 | AO14: 7.26e-05 | AP14: =CHOOSE(Ext_VCC, (Qg_Q1+Qg_Q2)*Fsw*'Design Regulator'!$G$80, (Qg_Q1+Qg_Q2)*Fsw*Vout, (Qg_Q1+Qg_Q2)*Fsw*Vin) -> 0.061486 | AQ14: 0.08631736909 | AR14: 0.0768575 | AS14: 0.0615586 | AT14: 0.2275269551 | AU14: 0.1055659546 | AV14: 0.4 | AW14: 0.6374228179 | AX14: 0.5307437211 | AY14: 0.1232418125 | BA14: 63.74228179 | BB14: 0.1214302843 | BC14: 0.04381337057 | BD14: 0.03538291474 | BE14: 0.008216120832 | BF14: 0.0005026616536 | BG14: 0.1053719706 | BH14: 2.065290623
A15: Ta | B15: =Ta -> 50 | C15: °C | D15: Ambient Temperature | G15: 6 | H15: 33 | I15: 1 | J15: 0.024 | K15: 0.024 | L15: 0.01616161616 | M15: 0.60616024 | N15: 0.3871200033 | O15: 0.2175600017 | P15: -0.1695600017 | Q15: 5.652000055 | R15: 0.1143000062 | S15: 0.001306449141 | T15: 0.12 | U15: 0.1214497875 | V15: 0.1117519191 | W15: 2.497698283e-05 | X15: 2.497698283e-05 | Y15: 0.0558469881 | Z15: 3.11888608e-06 | AA15: 3.11888608e-06 | AB15: 0.08898974801 | AC15: 0.000190060206 | AD15: 0.001028808 | AE15: 0.01933273329 | AF15: 0.000822298184 | AG15: 0.02140758743 | AH15: 0.07173085921 | AI15: 9.261569093e-05 | AJ15: 0.001055078984 | AK15: 0.00116391374 | AL15: 0.0002327808 | AM15: 0.0257202 | AN15: 0.0005095151652 | AO15: 7.26e-05 | AP15: =CHOOSE(Ext_VCC, (Qg_Q1+Qg_Q2)*Fsw*'Design Regulator'!$G$80, (Qg_Q1+Qg_Q2)*Fsw*Vout, (Qg_Q1+Qg_Q2)*Fsw*Vin) -> 0.061486 | AQ15: 0.08631736909 | AR15: 0.0768575 | AS15: 0.0615586 | AT15: 0.2320704805 | AU15: 0.110083082 | AV15: 0.48 | AW15: 0.6740905755 | AX15: 0.5757437915 | AY15: 0.1447736961 | BA15: 67.40905755 | BB15: 0.1214497875 | BC15: 0.04829170117 | BD15: 0.03838291943 | BE15: 0.00965157974 | BF15: 0.0005095151652 | BG15: 0.1098503012 | BH15: 2.153065903
A16: Vcc | B16: =VCC -> 8 | C16: V | D16: Subregulated VCC Voltage | G16: 7 | H16: 33 | I16: 1 | J16: 0.028 | K16: 0.028 | L16: 0.01885521886 | M16: 0.6061768452 | N16: 0.3871158342 | O16: 0.2215579171 | P16: -0.1655579171 | Q16: 5.518597237 | R16: 0.1152051319 | S16: 0.001327222242 | T16: 0.12 | U16: 0.1214728422 | V16: 0.1117507155 | W16: 2.497644485e-05 | X16: 2.497644485e-05 | Y16: 0.0562888169 | Z16: 3.168430909e-06 | AA16: 3.168430909e-06 | AB16: 0.08969567391 | AC16: 0.000193087534 | AD16: 0.001200276 | AE16: 0.01934766686 | AF16: 0.0008028896748 | AG16: 0.02157814787 | AH16: 0.07229736168 | AI16: 9.408435311e-05 | AJ16: 0.001074467275 | AK16: 0.001185028096 | AL16: 0.0002715776 | AM16: 0.0300069 | AN16: 0.0005176166746 | AO16: 7.26e-05 | AP16: =CHOOSE(Ext_VCC, (Qg_Q1+Qg_Q2)*Fsw*'Design Regulator'!$G$80, (Qg_Q1+Qg_Q2)*Fsw*Vout, (Qg_Q1+Qg_Q2)*Fsw*Vin) -> 0.061486 | AQ16: 0.08631736909 | AR16: 0.0768575 | AS16: 0.0615586 | AT16: 0.2366188573 | AU16: 0.1146002536 | AV16: 0.56 | AW16: 0.7029710568 | AX16: 0.620740528 | AY16: 0.1663095764 | BA16: 70.29710568 | BB16: 0.1214728422 | BC16: 0.05277007596 | BD16: 0.04138270187 | BE16: 0.0110873051 | BF16: 0.0005176166746 | BG16: 0.114328676 | BH16: 2.240842049
A17: Components | B17: Input Value | C17: Units | D17: Description | G17: 8 | H17: 33 | I17: 1 | J17: 0.032 | K17: 0.032 | L17: 0.02154882155 | M17: 0.6061934503 | N17: 0.3871116642 | O17: 0.2255558321 | P17: -0.1615558321 | Q17: 5.385194403 | R17: 0.1162409282 | S17: 0.001351195338 | T17: 0.12 | U17: 0.1214994484 | V17: 0.1117495118 | W17: 2.497590676e-05 | X17: 2.497590676e-05 | Y17: 0.05679448377 | Z17: 3.225613386e-06 | AA17: 3.225613386e-06 | AB17: 0.09050335706 | AC17: 0.0001965805834 | AD17: 0.001371744 | AE17: 0.01936182985 | AF17: 0.0007834811634 | AG17: 0.02174848611 | AH17: 0.07294584115 | AI17: 9.577972333e-05 | AJ17: 0.001093855563 | AK17: 0.001206408871 | AL17: 0.0003103744 | AM17: 0.0342936 | AN17: 0.0005269661818 | AO17: 7.26e-05 | AP17: =CHOOSE(Ext_VCC, (Qg_Q1+Qg_Q2)*Fsw*'Design Regulator'!$G$80, (Qg_Q1+Qg_Q2)*Fsw*Vout, (Qg_Q1+Qg_Q2)*Fsw*Vin) -> 0.061486 | AQ17: 0.08631736909 | AR17: 0.0768575 | AS17: 0.0615586 | AT17: 0.2411720855 | AU17: 0.1191174694 | AV17: 0.64 | AW17: 0.72630535 | AX17: 0.6657339317 | AY17: 0.1878494531 | BA17: 72.630535 | BB17: 0.1214994484 | BC17: 0.05724849498 | BD17: 0.04438226211 | BE17: 0.01252329687 | BF17: 0.0005269661818 | BG17: 0.118807095 | BH17: 2.328619062
A18: L | B18: =Lf*1000000 -> 47 | C18: uH | D18: Filter Inductance | G18: 9 | H18: 33 | I18: 1 | J18: 0.036 | K18: 0.036 | L18: 0.02424242424 | M18: 0.6062100552 | N18: 0.3871074933 | O18: 0.2295537467 | P18: -0.1575537467 | Q18: 5.251791555 | R18: 0.1174039364 | S18: 0.001378368428 | T18: 0.12 | U18: 0.1215296063 | V18: 0.1117483077 | W18: 2.497536856e-05 | X18: 2.497536856e-05 | Y18: 0.0573622975 | Z18: 3.290433175e-06 | AA18: 3.290433175e-06 | AB18: 0.0914101089 | AC18: 0.0002005393922 | AD18: 0.001543212 | AE18: 0.01937522226 | AF18: 0.0007640726498 | AG18: 0.02191860223 | AH18: 0.07367412213 | AI18: 9.770177289e-05 | AJ18: 0.00111324385 | AK18: 0.001228056031 | AL18: 0.0003491712 | AM18: 0.0385803 | AN18: 0.000537563687 | AO18: 7.26e-05 | AP18: =CHOOSE(Ext_VCC, (Qg_Q1+Qg_Q2)*Fsw*'Design Regulator'!$G$80, (Qg_Q1+Qg_Q2)*Fsw*Vout, (Qg_Q1+Qg_Q2)*Fsw*Vin) -> 0.061486 | AQ18: 0.08631736909 | AR18: 0.0768575 | AS18: 0.0615586 | AT18: 0.2457301652 | AU18: 0.1236347295 | AV18: 0.72 | AW18: 0.7455498709 | AX18: 0.7107240035 | AY18: 0.2093933255 | BA18: 74.55498709 | BB18: 0.1215296063 | BC18: 0.06172695826 | BD18: 0.04738160023 | BE18: 0.01395955503 | BF18: 0.000537563687 | BG18: 0.1232855583 | BH18: 2.416396942
A19: Rdcr | B19: =Rdcr*1000 -> 100 | C19: mW | D19: Inductor DCR at 25°C | G19: 10 | H19: 33 | I19: 1 | J19: 0.04 | K19: 0.04 | L19: 0.02693602694 | M19: 0.60622666 | N19: 0.3871033215 | O19: 0.2335516608 | P19: -0.1535516608 | Q19: 5.118388692 | R19: 0.1186904172 | S19: 0.001408741513 | T19: 0.12 | U19: 0.1215633158 | V19: 0.1117471034 | W19: 2.497483025e-05 | X19: 2.497483025e-05 | Y19: 0.05799042968 | Z19: 3.362889934e-06 | AA19: 3.362889934e-06 | AB19: 0.09241302192 | AC19: 0.0002049639989 | AD19: 0.00171468 | AE19: 0.0193878441 | AF19: 0.000744664134 | AG19: 0.0220884963 | AH19: 0.07447985302 | AI19: 9.985047311e-05 | AJ19: 0.001132632134 | AK19: 0.001249969545 | AL19: 0.000387968 | AM19: 0.042867 | AN19: 0.00054940919 | AO19: 7.26e-05 | AP19: =CHOOSE(Ext_VCC, (Qg_Q1+Qg_Q2)*Fsw*'Design Regulator'!$G$80, (Qg_Q1+Qg_Q2)*Fsw*Vout, (Qg_Q1+Qg_Q2)*Fsw*Vin) -> 0.061486 | AQ19: 0.08631736909 | AR19: 0.0768575 | AS19: 0.0615586 | AT19: 0.2502930965 | AU19: 0.1281520338 | AV19: 0.8 | AW19: 0.7616921435 | AX19: 0.7557107445 | AY19: 0.2309411932 | BA19: 76.16921435 | BB19: 0.1215633158 | BC19: 0.06620546584 | BD19: 0.0503807163 | BE19: 0.01539607954 | BF19: 0.00054940919 | BG19: 0.1277640658 | BH19: 2.504175691
A20: LTc | B20: =Ltc*1000000 -> 4000 | C20: ppm | D20: Inductor Series Resistance Temp Co | G20: 11 | H20: 33 | I20: 1 | J20: 0.044 | K20: 0.044 | L20: 0.02962962963 | M20: 0.6062432647 | N20: 0.3870991488 | O20: 0.2375495744 | P20: -0.1495495744 | Q20: 4.984985814 | R20: 0.1200964026 | S20: 0.001442314592 | T20: 0.12 | U20: 0.121600577 | V20: 0.1117458989 | W20: 2.497429184e-05 | X20: 2.497429184e-05 | Y20: 0.05867694033 | Z20: 3.442983326e-06 | AA20: 3.442983326e-06 | AB20: 0.09350901063 | AC20: 0.0002098544416 | AD20: 0.001886148 | AE20: 0.01939969535 | AF20: 0.0007252556161 | AG20: 0.02225816839 | AH20: 0.07536053908 | AI20: 0.0001022257953 | AJ20: 0.001152020416 | AK20: 0.00127214938 | AL20: 0.0004267648 | AM20: 0.0471537 | AN20: 0.0005625026908 | AO20: 7.26e-05 | AP20: =CHOOSE(Ext_VCC, (Qg_Q1+Qg_Q2)*Fsw*'Design Regulator'!$G$80, (Qg_Q1+Qg_Q2)*Fsw*Vout, (Qg_Q1+Qg_Q2)*Fsw*Vin) -> 0.061486 | AQ20: 0.08631736909 | AR20: 0.0768575 | AS20: 0.0615586 | AT20: 0.2548608795 | AU20: 0.1326693826 | AV20: 0.88 | AW20: 0.7754254428 | AX20: 0.8006941558 | AY20: 0.2524930557 | BA20: 77.54254428 | BB20: 0.121600577 | BC20: 0.07068401777 | BD20: 0.05337961039 | BE20: 0.01683287038 | BF20: 0.0005625026908 | BG20: 0.1322426178 | BH20: 2.591955308
A21: ThetaCa | B21: =ThetaCa -> 20 | C21: °C/W | D21: Core to Ambient Thermal Resistance | G21: 12 | H21: 33 | I21: 1 | J21: 0.048 | K21: 0.048 | L21: 0.03232323232 | M21: 0.6062598692 | N21: 0.3870949752 | O21: 0.2415474876 | P21: -0.1455474876 | Q21: 4.851582921 | R21: 0.1216177481 | S21: 0.001479087665 | T21: 0.12 | U21: 0.1216413899 | V21: 0.1117446941 | W21: 2.497375331e-05 | X21: 2.497375331e-05 | Y21: 0.05941980319 | Z21: 3.530713012e-06 | AA21: 3.530713012e-06 | AB21: 0.09469485174 | AC21: 0.0002152107587 | AD21: 0.002057616 | AE21: 0.01941077602 | AF21: 0.000705847096 | AG21: 0.02242761856 | AH21: 0.07631357486 | AI21: 0.0001048277108 | AJ21: 0.001171408696 | AK21: 0.001294595506 | AL21: 0.0004655616 | AM21: 0.0514404 | AN21: 0.0005768441895 | AO21: 7.26e-05 | AP21: =CHOOSE(Ext_VCC, (Qg_Q1+Qg_Q2)*Fsw*'Design Regulator'!$G$80, (Qg_Q1+Qg_Q2)*Fsw*Vout, (Qg_Q1+Qg_Q2)*Fsw*Vin) -> 0.061486 | AQ21: 0.08631736909 | AR21: 0.0768575 | AS21: 0.0615586 | AT21: 0.2594335142 | AU21: 0.1371867757 | AV21: 0.96 | AW21: 0.7872507921 | AX21: 0.8456742384 | AY21: 0.2740489126 | BA21: 78.72507921 | BB21: 0.1216413899 | BC21: 0.07516261406 | BD21: 0.05637828256 | BE21: 0.01826992751 | BF21: 0.0005768441895 | BG21: 0.1367212141 | BH21: 2.679735796
A22: Cin | B22: =Cin*1000000 -> 50 | C22: μF | D22: Input Capacitance | G22: 13 | H22: 33 | I22: 1 | J22: 0.052 | K22: 0.052 | L22: 0.03501683502 | M22: 0.6062764736 | N22: 0.3870908008 | O22: 0.2455454004 | P22: -0.1415454004 | Q22: 4.718180013 | R22: 0.1232501819 | S22: 0.001519060734 | T22: 0.12 | U22: 0.1216857547 | V22: 0.111743489 | W22: 2.497321467e-05 | X22: 2.497321467e-05 | Y22: 0.06021692994 | Z22: 3.626078651e-06 | AA22: 3.626078651e-06 | AB22: 0.09596722278 | AC22: 0.0002210329884 | AD22: 0.002229084 | AE22: 0.01942108611 | AF22: 0.0006864385737 | AG22: 0.02259684689 | AH22: 0.07733627537 | AI22: 0.0001076561908 | AJ22: 0.001190796974 | AK22: 0.001317307889 | AL22: 0.0005043584 | AM22: 0.0557271 | AN22: 0.0005924336861 | AO22: 7.26e-05 | AP22: =CHOOSE(Ext_VCC, (Qg_Q1+Qg_Q2)*Fsw*'Design Regulator'!$G$80, (Qg_Q1+Qg_Q2)*Fsw*Vout, (Qg_Q1+Qg_Q2)*Fsw*Vin) -> 0.061486 | AQ22: 0.08631736909 | AR22: 0.0768575 | AS22: 0.0615586 | AT22: 0.2640110008 | AU22: 0.1417042132 | AV22: 1.04 | AW22: 0.7975392841 | AX22: 0.8906509933 | AY22: 0.2956087633 | BA22: 79.75392841 | BB22: 0.1216857547 | BC22: 0.07964125478 | BD22: 0.05937673289 | BE22: 0.01970725089 | BF22: 0.0005924336861 | BG22: 0.1411998548 | BH22: 2.767517154
A23: RCinEsr | B23: =RCinEsr*1000 -> 1 | C23: mW | D23: Input Capacitor ESR | G23: 14 | H23: 33 | I23: 1 | J23: 0.056 | K23: 0.056 | L23: 0.03771043771 | M23: 0.6062930779 | N23: 0.3870866254 | O23: 0.2495433127 | P23: -0.1375433127 | Q23: 4.58477709 | R23: 0.1249893514 | S23: 0.001562233796 | T23: 0.12 | U23: 0.1217336713 | V23: 0.1117422837 | W23: 2.497267593e-05 | X23: 2.497267593e-05 | Y23: 0.06106619281 | Z23: 3.729079905e-06 | AA23: 3.729079905e-06 | AB23: 0.09732273818 | AC23: 0.0002273211688 | AD23: 0.002400552 | AE23: 0.01943062563 | AF23: 0.0006670300493 | AG23: 0.02276585344 | AH23: 0.07842590513 | AI23: 0.0001107112067 | AJ23: 0.001210185249 | AK23: 0.001340286498 | AL23: 0.0005431552 | AM23: 0.0600138 | AN23: 0.0006092711806 | AO23: 7.26e-05 | AP23: =CHOOSE(Ext_VCC, (Qg_Q1+Qg_Q2)*Fsw*'Design Regulator'!$G$80, (Qg_Q1+Qg_Q2)*Fsw*Vout, (Qg_Q1+Qg_Q2)*Fsw*Vin) -> 0.061486 | AQ23: 0.08631736909 | AR23: 0.0768575 | AS23: 0.0615586 | AT23: 0.2685933394 | AU23: 0.1462216951 | AV23: 1.12 | AW23: 0.8065716349 | AX23: 0.9356244216 | AY23: 0.3171726075 | BA23: 80.65716349 | BB23: 0.1217336713 | BC23: 0.08411993994 | BD23: 0.06237496144 | BE23: 0.0211448405 | BF23: 0.0006092711806 | BG23: 0.1456785399 | BH23: 2.855299383
A24: Cout | B24: =Cout*1000000 -> 50 | C24: μF | D24: Output Capcitance | G24: 15 | H24: 33 | I24: 1 | J24: 0.06 | K24: 0.06 | L24: 0.0404040404 | M24: 0.606309682 | N24: 0.3870824491 | O24: 0.2535412246 | P24: -0.1335412246 | Q24: 4.451374152 | R24: 0.1268308659 | S24: 0.001608606854 | T24: 0.12 | U24: 0.1217851399 | V24: 0.1117410781 | W24: 2.497213707e-05 | X24: 2.497213707e-05 | Y24: 0.06196544548 | Z24: 3.839716433e-06 | AA24: 3.839716433e-06 | AB24: 0.09875798246 | AC24: 0.0002340753384 | AD24: 0.00257202 | AE24: 0.01943939456 | AF24: 0.0006476215227 | AG24: 0.02293463829 | AH24: 0.07957970493 | AI24: 0.0001139927299 | AJ24: 0.001229573523 | AK24: 0.001363531301 | AL24: 0.000581952 | AM24: 0.0643005 | AN24: 0.0006273566729 | AO24: 7.26e-05 | AP24: =CHOOSE(Ext_VCC, (Qg_Q1+Qg_Q2)*Fsw*'Design Regulator'!$G$80, (Qg_Q1+Qg_Q2)*Fsw*Vout, (Qg_Q1+Qg_Q2)*Fsw*Vin) -> 0.061486 | AQ24: 0.08631736909 | AR24: 0.0768575 | AS24: 0.0615586 | AT24: 0.27318053 | AU24: 0.1507392216 | AV24: 1.2 | AW24: 0.8145641186 | AX24: 0.9805945243 | AY24: 0.3387404445 | BA24: 81.45641186 | BB24: 0.1217851399 | BC24: 0.08859866959 | BD24: 0.06537296829 | BE24: 0.0225826963 | BF24: 0.0006273566729 | BG24: 0.1501572696 | BH24: 2.943082484
A25: RCoutEsr | B25: =Cout_ESR*1000 -> 2 | C25: mW | D25: Output Capacitor ESR | G25: 16 | H25: 33 | I25: 1 | J25: 0.064 | K25: 0.064 | L25: 0.0430976431 | M25: 0.606326286 | N25: 0.387078272 | O25: 0.257539136 | P25: -0.129539136 | Q25: 4.3179712 | R25: 0.1287703345 | S25: 0.001658179905 | T25: 0.12 | U25: 0.1218401605 | V25: 0.1117398723 | W25: 2.497159811e-05 | X25: 2.497159811e-05 | Y25: 0.06291254165 | Z25: 3.957987897e-06 | AA25: 3.957987897e-06 | AB25: 0.1002695399 | AC25: 0.0002412955352 | AD25: 0.002743488 | AE25: 0.01944739291 | AF25: 0.0006282129939 | AG25: 0.0231032015 | AH25: 0.08079491579 | AI25: 0.0001175007315 | AJ25: 0.001248961794 | AK25: 0.001387042266 | AL25: 0.0006207488 | AM25: 0.0685872 | AN25: 0.0006466901631 | AO25: 7.26e-05 | AP25: =CHOOSE(Ext_VCC, (Qg_Q1+Qg_Q2)*Fsw*'Design Regulator'!$G$80, (Qg_Q1+Qg_Q2)*Fsw*Vout, (Qg_Q1+Qg_Q2)*Fsw*Vin) -> 0.061486 | AQ25: 0.08631736909 | AR25: 0.0768575 | AS25: 0.0615586 | AT25: 0.2777725728 | AU25: 0.1552567926 | AV25: 1.28 | AW25: 0.821686055 | AX25: 1.025561303 | AY25: 0.360312274 | BA25: 82.1686055 | BB25: 0.1218401605 | BC25: 0.09307744377 | BD25: 0.0683707535 | BE25: 0.02402081827 | BF25: 0.0006466901631 | BG25: 0.1546360438 | BH25: 3.030866458
A26: Top Driver | B26: Input Value | C26: Units | D26: Description | G26: 17 | H26: 33 | I26: 1 | J26: 0.068 | K26: 0.068 | L26: 0.04579124579 | M26: 0.6063428899 | N26: 0.3870740939 | O26: 0.261537047 | P26: -0.125537047 | Q26: 4.184568232 | R26: 0.1308034002 | S26: 0.001710952952 | T26: 0.12 | U26: 0.1218987333 | V26: 0.1117386662 | W26: 2.497105903e-05 | X26: 2.497105903e-05 | Y26: 0.06390535155 | Z26: 4.083893956e-06 | AA26: 4.083893956e-06 | AB26: 0.1018540209 | AC26: 0.0002489817977 | AD26: 0.002914956 | AE26: 0.01945462068 | AF26: 0.0006088044629 | AG26: 0.02327154314 | AH26: 0.08206880007 | AI26: 0.000121235183 | AJ26: 0.001268350063 | AK26: 0.001410819362 | AL26: 0.0006595456 | AM26: 0.0728739 | AN26: 0.0006672716511 | AO26: 7.26e-05 | AP26: =CHOOSE(Ext_VCC, (Qg_Q1+Qg_Q2)*Fsw*'Design Regulator'!$G$80, (Qg_Q1+Qg_Q2)*Fsw*Vout, (Qg_Q1+Qg_Q2)*Fsw*Vin) -> 0.061486 | AQ26: 0.08631736909 | AR26: 0.0768575 | AS26: 0.0615586 | AT26: 0.282369468 | AU26: 0.1597744081 | AV26: 1.36 | AW26: 0.8280718964 | AX26: 1.070524757 | AY26: 0.3818880954 | BA26: 82.80718964 | BB26: 0.1218987333 | BC26: 0.09755626251 | BD26: 0.07136831714 | BE26: 0.02545920636 | BF26: 0.0006672716511 | BG26: 0.1591148625 | BH26: 3.118651305
A27: RdsonDRT | B27: 0.7 | C27: W | D27: Drain to Source Resistance of pullup Top FET Driver | G27: 18 | H27: 33 | I27: 1 | J27: 0.072 | K27: 0.072 | L27: 0.04848484848 | M27: 0.6063594936 | N27: 0.387069915 | O27: 0.2655349575 | P27: -0.1215349575 | Q27: 4.05116525 | R27: 0.1329257685 | S27: 0.001766925992 | T27: 0.12 | U27: 0.1219608583 | V27: 0.1117374598 | W27: 2.497051985e-05 | X27: 2.497051985e-05 | Y27: 0.06494177601 | Z27: 4.217434272e-06 | AA27: 4.217434272e-06 | AB27: 0.1035080842 | AC27: 0.000257134164 | AD27: 0.003086424 | AE27: 0.01946107787 | AF27: 0.0005893959298 | AG27: 0.02343966329 | AH27: 0.0833986596 | AI27: 0.0001251960556 | AJ27: 0.00128773833 | AK27: 0.001434862557 | AL27: 0.0006983424 | AM27: 0.0771606 | AN27: 0.000689101137 | AO27: 7.26e-05 | AP27: =CHOOSE(Ext_VCC, (Qg_Q1+Qg_Q2)*Fsw*'Design Regulator'!$G$80, (Qg_Q1+Qg_Q2)*Fsw*Vout, (Qg_Q1+Qg_Q2)*Fsw*Vin) -> 0.061486 | AQ27: 0.08631736909 | AR27: 0.0768575 | AS27: 0.0615586 | AT27: 0.2869712156 | AU27: 0.1642920682 | AV27: 1.44 | AW27: 0.8338297633 | AX27: 1.115484889 | AY27: 0.4034679084 | BA27: 83.38297633 | BB27: 0.1219608583 | BC27: 0.1020351258 | BD27: 0.07436565929 | BE27: 0.02689786056 | BF27: 0.000689101137 | BG27: 0.1635937258 | BH27: 3.206437027
A28: RdsonDRT2 | B28: =RdsonDRT2 -> 1 | C28: W | D28: Drain to Source Resistance of pulldown Top FET Driver | G28: 19 | H28: 33 | I28: 1 | J28: 0.076 | K28: 0.076 | L28: 0.05117845118 | M28: 0.6063760972 | N28: 0.3870657351 | O28: 0.2695328676 | P28: -0.1175328676 | Q28: 3.917762252 | R28: 0.1351332316 | S28: 0.001826099028 | T28: 0.12 | U28: 0.1220265355 | V28: 0.1117362532 | W28: 2.496998055e-05 | X28: 2.496998055e-05 | Y28: 0.06601975843 | Z28: 4.358608503e-06 | AA28: 4.358608503e-06 | AB28: 0.1052284563 | AC28: 0.0002657526724 | AD28: 0.003257892 | AE28: 0.01946676447 | AF28: 0.0005699873946 | AG28: 0.02360756201 | AH28: 0.08478185101 | AI28: 0.0001293833207 | AJ28: 0.001307126595 | AK28: 0.00145917182 | AL28: 0.0007371392 | AM28: 0.0814473 | AN28: 0.0007121786208 | AO28: 7.26e-05 | AP28: =CHOOSE(Ext_VCC, (Qg_Q1+Qg_Q2)*Fsw*'Design Regulator'!$G$80, (Qg_Q1+Qg_Q2)*Fsw*Vout, (Qg_Q1+Qg_Q2)*Fsw*Vin) -> 0.061486 | AQ28: 0.08631736909 | AR28: 0.0768575 | AS28: 0.0615586 | AT28: 0.2915778158 | AU28: 0.168809773 | AV28: 1.52 | AW28: 0.8390475898 | AX28: 1.1604417 | AY28: 0.4250517123 | BA28: 83.90475898 | BB28: 0.1220265355 | BC28: 0.1065140338 | BD28: 0.07736278001 | BE28: 0.02833678082 | BF28: 0.0007121786208 | BG28: 0.1680726338 | BH28: 3.294223623
A29: Bottom Driver | B29: Input Value | C29: Units | D29: Description | G29: 20 | H29: 33 | I29: 1 | J29: 0.08 | K29: 0.08 | L29: 0.05387205387 | M29: 0.6063927007 | N29: 0.3870615544 | O29: 0.2735307772 | P29: -0.1135307772 | Q29: 3.78435924 | R29: 0.1374216889 | S29: 0.001888472057 | T29: 0.12 | U29: 0.1220957652 | V29: 0.1117350463 | W29: 2.496944115e-05 | X29: 2.496944115e-05 | Y29: 0.06713729448 | Z29: 4.50741631e-06 | AA29: 4.50741631e-06 | AB29: 0.1070119466 | AC29: 0.0002748373611 | AD29: 0.00342936 | AE29: 0.0194716805 | AF29: 0.0005505788571 | AG29: 0.02377523936 | AH29: 0.08621579822 | AI29: 0.0001337969495 | AJ29: 0.001326514857 | AK29: 0.001483747118 | AL29: 0.000775936 | AM29: 0.085734 | AN29: 0.0007365041024 | AO29: 7.26e-05 | AP29: =CHOOSE(Ext_VCC, (Qg_Q1+Qg_Q2)*Fsw*'Design Regulator'!$G$80, (Qg_Q1+Qg_Q2)*Fsw*Vout, (Qg_Q1+Qg_Q2)*Fsw*Vin) -> 0.061486 | AQ29: 0.08631736909 | AR29: 0.0768575 | AS29: 0.0615586 | AT29: 0.2961892687 | AU29: 0.1733275225 | AV29: 1.6 | AW29: 0.8437976242 | AX29: 1.20539519 | AY29: 0.4466395068 | BA29: 84.37976242 | BB29: 0.1220957652 | BC29: 0.1109929865 | BD29: 0.08035967936 | BE29: 0.02977596712 | BF29: 0.0007365041024 | BG29: 0.1725515865 | BH29: 3.382011095
A30: RdsonDRB | B30: 0.7 | C30: W | D30: Drain to Source Resistance of pullup Bottom FET Driver | G30: 21 | H30: 33 | I30: 1 | J30: 0.084 | K30: 0.084 | L30: 0.05656565657 | M30: 0.606409304 | N30: 0.3870573728 | O30: 0.2775286864 | P30: -0.1095286864 | Q30: 3.650956213 | R30: 0.1397871626 | S30: 0.001954045082 | T30: 0.12 | U30: 0.1221685474 | V30: 0.1117338392 | W30: 2.496890164e-05 | X30: 2.496890164e-05 | Y30: 0.06829243994 | Z30: 4.663857353e-06 | AA30: 4.663857353e-06 | AB30: 0.10885546 | AC30: 0.0002843882683 | AD30: 0.003600828 | AE30: 0.01947582594 | AF30: 0.0005311703175 | AG30: 0.02394269542 | AH30: 0.08769800247 | AI30: 0.0001384369135 | AJ30: 0.001345903117 | AK30: 0.001508588419 | AL30: 0.0008147328 | AM30: 0.0900207 | AN30: 0.0007620775819 | AO30: 7.26e-05 | AP30: =CHOOSE(Ext_VCC, (Qg_Q1+Qg_Q2)*Fsw*'Design Regulator'!$G$80, (Qg_Q1+Qg_Q2)*Fsw*Vout, (Qg_Q1+Qg_Q2)*Fsw*Vin) -> 0.061486 | AQ30: 0.08631736909 | AR30: 0.0768575 | AS30: 0.0615586 | AT30: 0.3008055744 | AU30: 0.1778453166 | AV30: 1.68 | AW30: 0.8481397779 | AX30: 1.250345361 | AY30: 0.4682312913 | BA30: 84.81397779 | BB30: 0.1221685474 | BC30: 0.1154719838 | BD30: 0.08335635742 | BE30: 0.03121541942 | BF30: 0.0007620775819 | BG30: 0.1770305838 | BH30: 3.469799443
A31: RdsonDRB2 | B31: 0.5 | C31: W | D31: Drain to Source Resistance of pulldown Bottom FET Driver | G31: 22 | H31: 33 | I31: 1 | J31: 0.088 | K31: 0.088 | L31: 0.05925925926 | M31: 0.6064259072 | N31: 0.3870531902 | O31: 0.2815265951 | P31: -0.1055265951 | Q31: 3.517553171 | R31: 0.1422258099 | S31: 0.002022818101 | T31: 0.12 | U31: 0.1222448822 | V31: 0.1117326318 | W31: 2.496836201e-05 | X31: 2.496836201e-05 | Y31: 0.06948331664 | Z31: 4.827931291e-06 | AA31: 4.827931291e-06 | AB31: 0.1107560067 | AC31: 0.0002944054325 | AD31: 0.003772296 | AE31: 0.0194792008 | AF31: 0.0005117617757 | AG31: 0.02410993026 | AH31: 0.08922604994 | AI31: 0.0001433031838 | AJ31: 0.001365291376 | AK31: 0.001533695694 | AL31: 0.0008535296 | AM31: 0.0943074 | AN31: 0.0007888990593 | AO31: 7.26e-05 | AP31: =CHOOSE(Ext_VCC, (Qg_Q1+Qg_Q2)*Fsw*'Design Regulator'!$G$80, (Qg_Q1+Qg_Q2)*Fsw*Vout, (Qg_Q1+Qg_Q2)*Fsw*Vin) -> 0.061486 | AQ31: 0.08631736909 | AR31: 0.0768575 | AS31: 0.0615586 | AT31: 0.3054267332 | AU31: 0.1823631556 | AV31: 1.76 | AW31: 0.8521241503 | AX31: 1.295292214 | AY31: 0.4898270654 | BA31: 85.21241503 | BB31: 0.1222448822 | BC31: 0.119951026 | BD31: 0.08635281426 | BE31: 0.03265513769 | BF31: 0.0007888990593 | BG31: 0.181509626 | BH31: 3.557588669
A32: Deadtime | B32: Input Value | C32: Units | D32: Description | G32: 23 | H32: 33 | I32: 1 | J32: 0.092 | K32: 0.092 | L32: 0.06195286195 | M32: 0.6064425103 | N32: 0.3870490068 | O32: 0.2855245034 | P32: -0.1015245034 | Q32: 3.384150114 | R32: 0.1447339322 | S32: 0.002094791114 | T32: 0.12 | U32: 0.1223247698 | V32: 0.1117314241 | W32: 2.496782228e-05 | X32: 2.496782228e-05 | Y32: 0.07070811682 | Z32: 4.999637784e-06 | AA32: 4.999637784e-06 | AB32: 0.1127107085 | AC32: 0.0003048888916 | AD32: 0.003943764 | AE32: 0.01948180508 | AF32: 0.0004923532318 | AG32: 0.02427694395 | AH32: 0.09079761738 | AI32: 0.0001483957318 | AJ32: 0.001384679632 | AK32: 0.001559068909 | AL32: 0.0008923264 | AM32: 0.0985941 | AN32: 0.0008169685345 | AO32: 7.26e-05 | AP32: =CHOOSE(Ext_VCC, (Qg_Q1+Qg_Q2)*Fsw*'Design Regulator'!$G$80, (Qg_Q1+Qg_Q2)*Fsw*Vout, (Qg_Q1+Qg_Q2)*Fsw*Vin) -> 0.061486 | AQ32: 0.08631736909 | AR32: 0.0768575 | AS32: 0.0615586 | AT32: 0.3100527451 | AU32: 0.1868810393 | AV32: 1.84 | AW32: 0.8557929587 | AX32: 1.340235749 | AY32: 0.5114268286 | BA32: 85.57929587 | BB32: 0.1223247698 | BC32: 0.1244301129 | BD32: 0.08934904995 | BE32: 0.03409512191 | BF32: 0.0008169685345 | BG32: 0.1859887129 | BH32: 3.645378772
A33: Deadtime | B33: =Deadtime*1000000000 -> 14 | C33: ns | D33: Total Deadtime | G33: 24 | H33: 33 | I33: 1 | J33: 0.096 | K33: 0.096 | L33: 0.06464646465 | M33: 0.6064591133 | N33: 0.3870448225 | O33: 0.2895224113 | P33: -0.09752241126 | Q33: 3.250747042 | R33: 0.1473079808 | S33: 0.002169964122 | T33: 0.12 | U33: 0.1224082102 | V33: 0.1117302162 | W33: 2.496728244e-05 | X33: 2.496728244e-05 | Y33: 0.07196510608 | Z33: 5.178976493e-06 | AA33: 5.178976493e-06 | AB33: 0.1147168042 | AC33: 0.0003158386841 | AD33: 0.004115232 | AE33: 0.01948363878 | AF33: 0.0004729446856 | AG33: 0.02444373654 | AH33: 0.09241047585 | AI33: 0.0001537145289 | AJ33: 0.001404067886 | AK33: 0.001584708034 | AL33: 0.0009311232 | AM33: 0.1028808 | AN33: 0.0008462860076 | AO33: 7.26e-05 | AP33: =CHOOSE(Ext_VCC, (Qg_Q1+Qg_Q2)*Fsw*'Design Regulator'!$G$80, (Qg_Q1+Qg_Q2)*Fsw*Vout, (Qg_Q1+Qg_Q2)*Fsw*Vin) -> 0.061486 | AQ33: 0.08631736909 | AR33: 0.0768575 | AS33: 0.0615586 | AT33: 0.3146836103 | AU33: 0.1913989678 | AV33: 1.92 | AW33: 0.8591820297 | AX33: 1.385175968 | AY33: 0.5330305805 | BA33: 85.91820297 | BB33: 0.1224082102 | BC33: 0.1289092446 | BD33: 0.09234506454 | BE33: 0.03553537203 | BF33: 0.0008462860076 | BG33: 0.1904678446 | BH33: 3.733169754
A34: IQ | B34: Input Value | C34: Units | D34: Description | G34: 25 | H34: 33 | I34: 1 | J34: 0.1 | K34: 0.1 | L34: 0.06734006734 | M34: 0.6064757161 | N34: 0.3870406373 | O34: 0.2935203187 | P34: -0.09352031866 | Q34: 3.117343955 | R34: 0.1499445606 | S34: 0.002248337124 | T34: 0.12 | U34: 0.1224952037 | V34: 0.1117290081 | W34: 2.496674249e-05 | X34: 2.496674249e-05 | Y34: 0.07325262504 | Z34: 5.365947075e-06 | AA34: 5.365947075e-06 | AB34: 0.1167716518 | AC34: 0.0003272548482 | AD34: 0.0042867 | AE34: 0.01948470189 | AF34: 0.0004535361374 | AG34: 0.02461030813 | AH34: 0.09406249289 | AI34: 0.0001592595462 | AJ34: 0.001423456137 | AK34: 0.001610613037 | AL34: 0.00096992 | AM34: 0.1071675 | AN34: 0.0008768514785 | AO34: 7.26e-05 | AP34: =CHOOSE(Ext_VCC, (Qg_Q1+Qg_Q2)*Fsw*'Design Regulator'!$G$80, (Qg_Q1+Qg_Q2)*Fsw*Vout, (Qg_Q1+Qg_Q2)*Fsw*Vin) -> 0.061486 | AQ34: 0.08631736909 | AR34: 0.0768575 | AS34: 0.0615586 | AT34: 0.319319329 | AU34: 0.1959169412 | AV34: 2 | AW34: 0.8623219645 | AX34: 1.430112872 | AY34: 0.5546383206 | BA34: 86.23219645 | BB34: 0.1224952037 | BC34: 0.1333884212 | BD34: 0.09534085813 | BE34: 0.03697588804 | BF34: 0.0008768514785 | BG34: 0.1949470212 | BH34: 3.820961615
A35: IQ | B35: =Iq*1000 -> 0.0022 | C35: mA | D35: Quiescent Current Of Controller (Not Switching!) | G35: 26 | H35: 33 | I35: 1 | J35: 0.104 | K35: 0.104 | L35: 0.07003367003 | M35: 0.6064923187 | N35: 0.3870364512 | O35: 0.2975182256 | P35: -0.08951822561 | Q35: 2.983940854 | R35: 0.1526404311 | S35: 0.002329910121 | T35: 0.12 | U35: 0.1225857502 | V35: 0.1117277996 | W35: 2.496620243e-05 | X35: 2.496620243e-05 | Y35: 0.07456909005 | Z35: 5.560549191e-06 | AA35: 5.560549191e-06 | AB35: 0.1188727299 | AC35: 0.0003391374221 | AD35: 0.004458168 | AE35: 0.01948499442 | AF35: 0.0004341275869 | AG35: 0.02477665876 | AH35: 0.09575163338 | AI35: 0.0001650307553 | AJ35: 0.001442844387 | AK35: 0.001636783887 | AL35: 0.0010087168 | AM35: 0.1114542 | AN35: 0.0009086649473 | AO35: 7.26e-05 | AP35: =CHOOSE(Ext_VCC, (Qg_Q1+Qg_Q2)*Fsw*'Design Regulator'!$G$80, (Qg_Q1+Qg_Q2)*Fsw*Vout, (Qg_Q1+Qg_Q2)*Fsw*Vin) -> 0.061486 | AQ35: 0.08631736909 | AR35: 0.0768575 | AS35: 0.0615586 | AT35: 0.3239599014 | AU35: 0.2004349594 | AV35: 2.08 | AW35: 0.8652390578 | AX35: 1.475046461 | AY35: 0.5762500483 | BA35: 86.52390578 | BB35: 0.1225857502 | BC35: 0.1378676426 | BD35: 0.09833643076 | BE35: 0.03841666989 | BF35: 0.0009086649473 | BG35: 0.1994262426 | BH35: 3.908754356
A36: High-side FET | B36: Input Value | C36: Units | D36: Description | G36: 27 | H36: 33 | I36: 1 | J36: 0.108 | K36: 0.108 | L36: 0.07272727273 | M36: 0.6065089213 | N36: 0.3870322642 | O36: 0.3015161321 | P36: -0.08551613211 | Q36: 2.850537737 | R36: 0.1553925067 | S36: 0.002414683113 | T36: 0.12 | U36: 0.1226798501 | V36: 0.111726591 | W36: 2.496566226e-05 | X36: 2.496566226e-05 | Y36: 0.07591299296 | Z36: 5.7627825e-06 | AA36: 5.7627825e-06 | AB36: 0.1210176371 | AC36: 0.000351486444 | AD36: 0.004629636 | AE36: 0.01948451636 | AF36: 0.0004147190343 | AG36: 0.02494278851 | AH36: 0.09747595923 | AI36: 0.0001710281273 | AJ36: 0.001462232634 | AK36: 0.001663220552 | AL36: 0.0010475136 | AM36: 0.1157409 | AN36: 0.000941726414 | AO36: 7.26e-05 | AP36: =CHOOSE(Ext_VCC, (Qg_Q1+Qg_Q2)*Fsw*'Design Regulator'!$G$80, (Qg_Q1+Qg_Q2)*Fsw*Vout, (Qg_Q1+Qg_Q2)*Fsw*Vin) -> 0.061486 | AQ36: 0.08631736909 | AR36: 0.0768575 | AS36: 0.0615586 | AT36: 0.3286053276 | AU36: 0.2049530227 | AV36: 2.16 | AW36: 0.8679560299 | AX36: 1.519976738 | AY36: 0.5978657633 | BA36: 86.79560299 | BB36: 0.1226798501 | BC36: 0.1423469091 | BD36: 0.1013317825 | BE36: 0.03985771755 | BF36: 0.000941726414 | BG36: 0.2039055091 | BH36: 3.996547978
A37: RdsonTop | B37: =Rdson1*1000 -> 24 | C37: mW | D37: Drain-Source Resistance of Top FET | G37: 28 | H37: 33 | I37: 1 | J37: 0.112 | K37: 0.112 | L37: 0.07542087542 | M37: 0.6065255237 | N37: 0.3870280763 | O37: 0.3055140382 | P37: -0.08151403817 | Q37: 2.717134606 | R37: 0.1581978539 | S37: 0.002502656099 | T37: 0.12 | U37: 0.1227775033 | V37: 0.111725382 | W37: 2.496512198e-05 | X37: 2.496512198e-05 | Y37: 0.07728290019 | Z37: 5.972646662e-06 | AA37: 5.972646662e-06 | AB37: 0.1232040909 | AC37: 0.0003643019522 | AD37: 0.004801104 | AE37: 0.01948326772 | AF37: 0.0003953104795 | AG37: 0.02510869745 | AH37: 0.09923362827 | AI37: 0.0001772516336 | AJ37: 0.001481620879 | AK37: 0.001689923001 | AL37: 0.0010863104 | AM37: 0.1200276 | AN37: 0.0009760358786 | AO37: 7.26e-05 | AP37: =CHOOSE(Ext_VCC, (Qg_Q1+Qg_Q2)*Fsw*'Design Regulator'!$G$80, (Qg_Q1+Qg_Q2)*Fsw*Vout, (Qg_Q1+Qg_Q2)*Fsw*Vin) -> 0.061486 | AQ37: 0.08631736909 | AR37: 0.0768575 | AS37: 0.0615586 | AT37: 0.3332556078 | AU37: 0.2094711308 | AV37: 2.24 | AW37: 0.8704926138 | AX37: 1.564903702 | AY37: 0.619485465 | BA37: 87.04926138 | BB37: 0.1227775033 | BC37: 0.1468262204 | BD37: 0.1043269134 | BE37: 0.041299031 | BF37: 0.0009760358786 | BG37: 0.2083848204 | BH37: 4.084342481
A38: RdsonTopTc | B38: =RdsonTopTc*1000000 -> 7000 | C38: ppm | D38: Drain to Source Resistance Temp Co | G38: 29 | H38: 33 | I38: 1 | J38: 0.116 | K38: 0.116 | L38: 0.07811447811 | M38: 0.606542126 | N38: 0.3870238876 | O38: 0.3095119438 | P38: -0.07751194378 | Q38: 2.583731459 | R38: 0.1610536892 | S38: 0.002593829079 | T38: 0.12 | U38: 0.1228787101 | V38: 0.1117241728 | W38: 2.496458159e-05 | X38: 2.496458159e-05 | Y38: 0.07867745124 | Z38: 6.190141334e-06 | AA38: 6.190141334e-06 | AB38: 0.1254299248 | AC38: 0.000377583985 | AD38: 0.004972572 | AE38: 0.0194812485 | AF38: 0.0003759019225 | AG38: 0.02527438564 | AH38: 0.1010228922 | AI38: 0.0001837012455 | AJ38: 0.001501009123 | AK38: 0.001716891203 | AL38: 0.0011251072 | AM38: 0.1243143 | AN38: 0.001011593341 | AO38: 7.26e-05 | AP38: =CHOOSE(Ext_VCC, (Qg_Q1+Qg_Q2)*Fsw*'Design Regulator'!$G$80, (Qg_Q1+Qg_Q2)*Fsw*Vout, (Qg_Q1+Qg_Q2)*Fsw*Vin) -> 0.061486 | AQ38: 0.08631736909 | AR38: 0.0768575 | AS38: 0.0615586 | AT38: 0.3379107422 | AU38: 0.213989284 | AV38: 2.32 | AW38: 0.8728660309 | AX38: 1.609827355 | AY38: 0.641109153 | BA38: 87.28660309 | BB38: 0.1228787101 | BC38: 0.1513055768 | BD38: 0.1073218236 | BE38: 0.0427406102 | BF38: 0.001011593341 | BG38: 0.2128641768 | BH38: 4.172137866
A39: QgTop | B39: =Qg_Q1*1000000000 -> 3 | C39: nC | D39: Gate Charge Of Top FET | G39: 30 | H39: 33 | I39: 1 | J39: 0.12 | K39: 0.12 | L39: 0.08080808081 | M39: 0.6065587281 | N39: 0.3870196979 | O39: 0.3135098489 | P39: -0.07350984894 | Q39: 2.450328298 | R39: 0.1639573742 | S39: 0.002688202055 | T39: 0.12 | U39: 0.1229834706 | V39: 0.1117229634 | W39: 2.496404109e-05 | X39: 2.496404109e-05 | Y39: 0.08009535677 | Z39: 6.415266177e-06 | AA39: 6.415266177e-06 | AB39: 0.1276930859 | AC39: 0.0003913325806 | AD39: 0.00514404 | AE39: 0.01947845869 | AF39: 0.0003564933634 | AG39: 0.02543985316 | AH39: 0.1028420943 | AI39: 0.0001903769344 | AJ39: 0.001520397363 | AK39: 0.001744125126 | AL39: 0.001163904 | AM39: 0.128601 | AN39: 0.001048398801 | AO39: 7.26e-05 | AP39: =CHOOSE(Ext_VCC, (Qg_Q1+Qg_Q2)*Fsw*'Design Regulator'!$G$80, (Qg_Q1+Qg_Q2)*Fsw*Vout, (Qg_Q1+Qg_Q2)*Fsw*Vin) -> 0.061486 | AQ39: 0.08631736909 | AR39: 0.0768575 | AS39: 0.0615586 | AT39: 0.342570731 | AU39: 0.2185074823 | AV39: 2.4 | AW39: 0.8750913779 | AX39: 1.654747697 | AY39: 0.6627368269 | BA39: 87.50913779 | BB39: 0.1229834706 | BC39: 0.1557849783 | BD39: 0.1103165132 | BE39: 0.04418245513 | BF39: 0.001048398801 | BG39: 0.2173435783 | BH39: 4.259934134
A40: QgdTop | B40: =Qgd_Q1*1000000000 -> 0.7 | C40: nC | D40: Gate to Drain Charge | G40: 31 | H40: 33 | I40: 1 | J40: 0.124 | K40: 0.124 | L40: 0.0835016835 | M40: 0.6065753301 | N40: 0.3870155073 | O40: 0.3175077537 | P40: -0.06950775365 | Q40: 2.316925122 | R40: 0.1669064116 | S40: 0.002785775024 | T40: 0.12 | U40: 0.123091785 | V40: 0.1117217537 | W40: 2.496350048e-05 | X40: 2.496350048e-05 | Y40: 0.08153539629 | Z40: 6.648020848e-06 | AA40: 6.648020848e-06 | AB40: 0.1299916307 | AC40: 0.0004055477772 | AD40: 0.005315508 | AE40: 0.0194748983 | AF40: 0.0003370848021 | AG40: 0.02560510007 | AH40: 0.1046896661 | AI40: 0.0001972786715 | AJ40: 0.001539785602 | AK40: 0.001771624739 | AL40: 0.0012027008 | AM40: 0.1328877 | AN40: 0.001086452259 | AO40: 7.26e-05 | AP40: =CHOOSE(Ext_VCC, (Qg_Q1+Qg_Q2)*Fsw*'Design Regulator'!$G$80, (Qg_Q1+Qg_Q2)*Fsw*Vout, (Qg_Q1+Qg_Q2)*Fsw*Vin) -> 0.061486 | AQ40: 0.08631736909 | AR40: 0.0768575 | AS40: 0.0615586 | AT40: 0.3472355744 | AU40: 0.2230257256 | AV40: 2.48 | AW40: 0.877181945 | AX40: 1.699664731 | AY40: 0.6843684861 | BA40: 87.7181945 | BB40: 0.123091785 | BC40: 0.1602644248 | BD40: 0.1133109821 | BE40: 0.04562456574 | BF40: 0.001086452259 | BG40: 0.2218230248 | BH40: 4.347731286
A41: QgsTop | B41: =Qgs_Q1*1000000000 -> 0.7 | C41: nC | G41: 32 | H41: =Vin -> 33 | I41: =MODE -> 1 | J41: 0.128 | K41: =Iout*G41/100/Number_of_Phases -> 0.128 | L41: =Vout*K41/(Vin*Efficiency) -> 0.0861952862 | M41: =(Vout+(Rdson2+Rs+Rdcr)*K41)/(Vin+(Rs+Rdson2-Rdson1)*K41) -> 0.606591932 | N41: =(Vin-(Rdson1+Rdcr)*K41-Vout)*M41/(Fsw*Lf) -> 0.3870113158 | O41: 0.3215056579 | P41: -0.06550565792 | Q41: =IF(MIN(Vin, -P41/(Coss_Q1+Coss_Q2)*0.00000002)<0, 0, MIN(Vin, -P41/(Coss_Q1+Coss_Q2)*0.00000002)) -> 2.183521931 | R41: 0.1698984399 | S41: =R41^2*Rdcr -> 0.002886547988 | T41: =Core_Loss_Ch1 -> 0.12 | U41: =(T41+S41*(1+Ltc*(Ta-25)))/(1-S41*Ltc*ThetaCa) -> 0.1232036534 | V41: 0.1117205437 | W41: 2.496295977e-05 | X41: 2.496295977e-05 | Y41: 0.08299641563 | Z41: 6.888405008e-06 | AA41: 6.888405008e-06 | AB41: 0.1323237213 | AC41: =Rdson1*AB41^2 -> 0.000420229613 | AD41: =(Vin*K41/2)*Fsw*(Tr_buck+Tf_buck) -> 0.005486976 | AE41: =(0.5*Coss_Q1*(Vin-Q41)^2-0.5*Coss_Q2*(Vin-Q41)^2+(Qoss_Q2*(Vin-Q41)/Vin)*Vin)*Fsw -> 0.01947056732 | AF41: =IF(K41>N41/2,0,ABS(K41-N41/2)*Vsd_Q1*Deadtime*Fsw) -> 0.0003176762387 | AG41: =(AF41+AE41+AD41+AC41*(1+RdsonTopTc*Ta-RdsonTopTc*25))/(1-AC41*RdsonTopTc*ThetaJA_Q1) -> 0.02577012644 | AH41: =SQRT((1-M41))*SQRT(K41^2+(N41^2)/12) -> 0.1065641247 | AI41: =Rdson2*AH41^2 -> 0.0002044064281 | AJ41: =IF(K41<N41/2,Deadtime*Fsw*IF(VfdSky_Q2>0,0,Vsd_Q2)*(K41+N41/2),2*Deadtime*Fsw*IF(VfdSky_Q2>0,0,Vsd_Q2)*K41) -> 0.001559173839 | AK41: =(AJ41+AI41*(1+RdsonBotTc*Ta-RdsonBotTc*25))/(1-AI41*RdsonBotTc*ThetaJA_Q2) -> 0.001799390011 | AL41: =2*Deadtime*Fsw*IF(VfdSky_Q2>0,VfdSky_Q2,Vsd_Q2)*K41 -> 0.0012414976 | AM41: =IF(QrrSky_Q2>0,QrrSky_Q2,Qrr_Q2*K41/(Iout/Number_of_Phases))*Fsw*Vin -> 0.1371744 | AN41: =Rs*R41^2 -> 0.001125753715 | AO41: =Iq*Vin -> 7.26e-05 | AP41: =CHOOSE(Ext_VCC, (Qg_Q1+Qg_Q2)*Fsw*'Design Regulator'!$G$80, (Qg_Q1+Qg_Q2)*Fsw*Vout, (Qg_Q1+Qg_Q2)*Fsw*Vin) -> 0.061486 | AQ41: 0.08631736909 | AR41: =(Qg_Q1+Qg_Q2)*Fsw*(Vin-VCC) -> 0.0768575 | AS41: =SUM(AO41:AP41) -> 0.0615586 | AT41: =SUM(U41,X41,AA41,AG41,AK41,AL41,AM41,AS41,AN41) -> 0.3519052726 | AU41: =SUM(AG41,AK41,AL41,AM41,AS41) -> 0.2275440141 | AV41: =Vout*K41 -> 2.56 | AW41: 0.8791494779 | AX41: =ThetaJA_Q1*BD41 -> 1.744578457 | AY41: =ThetaJA_Q2*BE41 -> 0.7060041302 | BA41: 87.91494779 | BB41: =U41 -> 0.1232036534 | BC41: =AG41+AK41+AM41 -> 0.1647439165 | BD41: =AG41+AM41*0.66 -> 0.1163052304 | BE41: =AK41+AM41*0.33 -> 0.04706694201 | BF41: =AN41 -> 0.001125753715 | BG41: 0.2263025165 | BH41: 4.435529322
A42: RGateTop | B42: =Rgate1 -> 3.5 | C42: W | D42: Gate Resistance | G42: 33 | H42: 33 | I42: 1 | J42: =Iout*G42/100 -> 0.132 | K42: 0.132 | L42: 0.08888888889 | M42: 0.6066085337 | N42: 0.3870071235 | O42: 0.3255035617 | P42: -0.06150356174 | Q42: 2.050118725 | R42: 0.1729312276 | S42: 0.002990520947 | T42: 0.12 | U42: 0.1233190761 | V42: 0.1117193335 | W42: 2.496241894e-05 | X42: 2.496241894e-05 | Y42: 0.08447732426 | Z42: 7.136418314e-06 | AA42: 7.136418314e-06 | AB42: 0.1346876211 | AC42: 0.0004353781264 | AD42: 0.005658444 | AE42: 0.01946546576 | AF42: 0.000298267673 | AG42: 0.02593493234 | AH42: 0.1084640687 | AI42: 0.0002117601756 | AJ42: 0.001578562073 | AK42: 0.001827420912 | AL42: 0.0012802944 | AM42: =IF(QrrSky_Q2>0,QrrSky_Q2,Qrr_Q2*K42/(Iout/Number_of_Phases))*Fsw*Vin -> 0.1414611 | AN42: 0.001166303169 | AO42: 7.26e-05 | AP42: =CHOOSE(Ext_VCC, (Qg_Q1+Qg_Q2)*Fsw*'Design Regulator'!$G$80, (Qg_Q1+Qg_Q2)*Fsw*Vout, (Qg_Q1+Qg_Q2)*Fsw*Vin) -> 0.061486 | AQ42: 0.08631736909 | AR42: 0.0768575 | AS42: 0.0615586 | AT42: 0.3565798258 | AU42: 0.2320623476 | AV42: 2.64 | AW42: 0.8810043962 | AX42: 1.789488875 | AY42: 0.7276437587 | BA42: 88.10043962 | BB42: 0.1233190761 | BC42: 0.1692234532 | BD42: 0.1192992583 | BE42: 0.04850958391 | BF42: 0.001166303169 | BG42: 0.2307820532 | BH42: 4.523328244
A43: GfsTop | B43: =Gfs_Q1 -> 71 | C43: S | D43: Transconductance of Top FET | G43: 34 | H43: 33 | I43: 1 | J43: 0.136 | K43: 0.136 | L43: 0.09158249158 | M43: 0.6066251353 | N43: 0.3870029302 | O43: 0.3295014651 | P43: -0.05750146512 | Q43: 1.916715504 | R43: 0.1760026676 | S43: 0.0030976939 | T43: 0.12 | U43: 0.1234380532 | V43: 0.111718123 | W43: 2.4961878e-05 | X43: 2.4961878e-05 | Y43: 0.08597709244 | Z43: 7.392060425e-06 | AA43: 7.392060425e-06 | AB43: 0.1370816903 | AC43: 0.0004509933555 | AD43: 0.005829912 | AE43: 0.01945959361 | AF43: 0.0002788591052 | AG43: 0.02609951783 | AH43: 0.110388175 | AI43: 0.0002193398854 | AJ43: 0.001597950305 | AK43: 0.001855717409 | AL43: 0.0013190912 | AM43: 0.1457478 | AN43: 0.001208100621 | AO43: 7.26e-05 | AP43: =CHOOSE(Ext_VCC, (Qg_Q1+Qg_Q2)*Fsw*'Design Regulator'!$G$80, (Qg_Q1+Qg_Q2)*Fsw*Vout, (Qg_Q1+Qg_Q2)*Fsw*Vin) -> 0.061486 | AQ43: 0.08631736909 | AR43: 0.0768575 | AS43: 0.0615586 | AT43: 0.3612592342 | AU43: 0.2365807264 | AV43: 2.72 | AW43: 0.8827559752 | AX43: 1.834395987 | AY43: 0.7492873711 | BA43: 88.27559752 | BB43: 0.1234380532 | BC43: 0.1737030352 | BD43: 0.1222930658 | BE43: 0.04995249141 | BF43: 0.001208100621 | BG43: 0.2352616352 | BH43: 4.611128051
A44: VthTop | B44: =Vth_Q1 -> 1.8 | C44: V | D44: Threshold Voltage of Top FET | G44: 35 | H44: 33 | I44: 1 | J44: 0.14 | K44: 0.14 | L44: 0.09427609428 | M44: 0.6066417368 | N44: 0.3869987361 | O44: 0.333499368 | P44: -0.05349936804 | Q44: 1.783312268 | R44: 0.1791107715 | S44: 0.003208066848 | T44: 0.12 | U44: 0.1235605848 | V44: 0.1117169122 | W44: 2.496133696e-05 | X44: 2.496133696e-05 | Y44: 0.08749474841 | Z44: 7.655330999e-06 | AA44: 7.655330999e-06 | AB44: 0.1395043815 | AC44: 0.0004670753387 | AD44: 0.00600138 | AE44: 0.01945295088 | AF44: 0.0002594505353 | AG44: 0.02626388299 | AH44: 0.112335195 | AI44: 0.0002271455286 | AJ44: 0.001617338535 | AK44: 0.001884279472 | AL44: 0.001357888 | AM44: 0.1500345 | AN44: 0.001251146071 | AO44: 7.26e-05 | AP44: =CHOOSE(Ext_VCC, (Qg_Q1+Qg_Q2)*Fsw*'Design Regulator'!$G$80, (Qg_Q1+Qg_Q2)*Fsw*Vout, (Qg_Q1+Qg_Q2)*Fsw*Vin) -> 0.061486 | AQ44: 0.08631736909 | AR44: 0.0768575 | AS44: 0.0615586 | AT44: 0.365943498 | AU44: 0.2410991505 | AV44: 2.8 | AW44: 0.8844124988 | AX44: 1.879299795 | AY44: 0.7709349671 | BA44: 88.44124988 | BB44: 0.1235605848 | BC44: 0.1781826625 | BD44: 0.125286653 | BE44: 0.05139566447 | BF44: 0.001251146071 | BG44: 0.2397412625 | BH44: 4.698928744
A45: VspTop | B45: =Vsp_Q1 -> 1.805633803 | C45: V | G45: 36 | H45: 33 | I45: 1 | J45: 0.144 | K45: 0.144 | L45: 0.09696969697 | M45: 0.6066583382 | N45: 0.3869945411 | O45: 0.3374972705 | P45: -0.04949727053 | Q45: 1.649909018 | R45: 0.1822536636 | S45: 0.00332163979 | T45: 0.12 | U45: 0.1236866712 | V45: 0.1117157012 | W45: 2.49607958e-05 | X45: 2.49607958e-05 | Y45: 0.08902937547 | Z45: 7.926229696e-06 | AA45: 7.926229696e-06 | AB45: 0.1419542347 | AC45: 0.000483624114 | AD45: 0.006172848 | AE45: 0.01944553756 | AF45: 0.0002400419631 | AG45: 0.02642802788 | AH45: 0.1143039507 | AI45: 0.0002351770767 | AJ45: 0.001636726763 | AK45: 0.00191310707 | AL45: 0.0013966848 | AM45: 0.1543212 | AN45: 0.001295439518 | AO45: 7.26e-05 | AP45: =CHOOSE(Ext_VCC, (Qg_Q1+Qg_Q2)*Fsw*'Design Regulator'!$G$80, (Qg_Q1+Qg_Q2)*Fsw*Vout, (Qg_Q1+Qg_Q2)*Fsw*Vin) -> 0.061486 | AQ45: 0.08631736909 | AR45: 0.0768575 | AS45: 0.0615586 | AT45: 0.3706326175 | AU45: 0.2456176198 | AV45: 2.88 | AW45: 0.8859813885 | AX45: 1.924200298 | AY45: 0.792586546 | BA45: 88.59813885 | BB45: 0.1236866712 | BC45: 0.182662335 | BD45: 0.1282800199 | BE45: 0.05283910307 | BF45: 0.001295439518 | BG45: 0.244220935 | BH45: 4.786730325
A46: VsdTop | B46: =Vsd_Q1 -> 0.8 | C46: V | G46: 37 | H46: 33 | I46: 1 | J46: 0.148 | K46: 0.148 | L46: 0.09966329966 | M46: 0.6066749394 | N46: 0.3869903451 | O46: 0.3414951726 | P46: -0.04549517256 | Q46: 1.516505752 | R46: 0.185429575 | S46: 0.003438412727 | T46: 0.12 | U46: 0.1238163125 | V46: 0.11171449 | W46: 2.496025454e-05 | X46: 2.496025454e-05 | Y46: 0.09058010915 | Z46: 8.204756173e-06 | AA46: 8.204756173e-06 | AB46: 0.1444298734 | AC46: 0.0005006397198 | AD46: 0.006344316 | AE46: 0.01943735365 | AF46: 0.0002206333888 | AG46: 0.02659195257 | AH46: 0.1162933315 | AI46: 0.000243434501 | AJ46: 0.001656114989 | AK46: 0.001942200171 | AL46: 0.0014354816 | AM46: 0.1586079 | AN46: 0.001340980963 | AO46: 7.26e-05 | AP46: =CHOOSE(Ext_VCC, (Qg_Q1+Qg_Q2)*Fsw*'Design Regulator'!$G$80, (Qg_Q1+Qg_Q2)*Fsw*Vout, (Qg_Q1+Qg_Q2)*Fsw*Vin) -> 0.061486 | AQ46: 0.08631736909 | AR46: 0.0768575 | AS46: 0.0615586 | AT46: 0.3753265928 | AU46: 0.2501361343 | AV46: 2.96 | AW46: 0.887469313 | AX46: 1.969097499 | AY46: 0.8142421076 | BA46: 88.7469313 | BB46: 0.1238163125 | BC46: 0.1871420527 | BD46: 0.1312731666 | BE46: 0.05428280717 | BF46: 0.001340980963 | BG46: 0.2487006527 | BH46: 4.874532794
A47: θJATop | B47: =ThetaJA_Q1 -> 15 | C47: °C/W | D47: Junction to Ambient Resistance | G47: 38 | H47: 33 | I47: 1 | J47: 0.152 | K47: 0.152 | L47: 0.1023569024 | M47: 0.6066915405 | N47: 0.3869861483 | O47: 0.3454930741 | P47: -0.04149307414 | Q47: 1.383102471 | R47: 0.1886368378 | S47: 0.003558385658 | T47: 0.12 | U47: 0.123949509 | V47: 0.1117132784 | W47: 2.495971316e-05 | X47: 2.495971316e-05 | Y47: 0.09214613442 | Z47: 8.490910088e-06 | AA47: 8.490910088e-06 | AB47: 0.1469299995 | AC47: 0.0005181221943 | AD47: 0.006515784 | AE47: 0.01942839916 | AF47: 0.0002012248124 | AG47: 0.02675565713 | AH47: 0.11830229 | AI47: 0.0002519177727 | AJ47: 0.001675503212 | AK47: 0.001971558746 | AL47: 0.0014742784 | AM47: 0.1628946 | AN47: 0.001387770407 | AO47: 7.26e-05 | AP47: =CHOOSE(Ext_VCC, (Qg_Q1+Qg_Q2)*Fsw*'Design Regulator'!$G$80, (Qg_Q1+Qg_Q2)*Fsw*Vout, (Qg_Q1+Qg_Q2)*Fsw*Vin) -> 0.061486 | AQ47: 0.08631736909 | AR47: 0.0768575 | AS47: 0.0615586 | AT47: 0.3800254243 | AU47: 0.2546546943 | AV47: 3.04 | AW47: 0.8888822809 | AX47: 2.013991397 | AY47: 0.8359016512 | BA47: 88.88822809 | BB47: 0.123949509 | BC47: 0.1916218159 | BD47: 0.1342660931 | BE47: 0.05572677675 | BF47: 0.001387770407 | BG47: 0.2531804159 | BH47: 4.962336151
A48: Low-side FET | B48: Input Value | C48: Units | D48: Description | G48: 39 | H48: 33 | I48: 1 | J48: 0.156 | K48: 0.156 | L48: 0.1050505051 | M48: 0.6067081414 | N48: 0.3869819506 | O48: 0.3494909753 | P48: -0.03749097528 | Q48: 1.249699176 | R48: 0.19187388 | S48: 0.003681558584 | T48: 0.12 | U48: 0.1240862609 | V48: 0.1117120667 | W48: 2.495917168e-05 | X48: 2.495917168e-05 | Y48: 0.09372668297 | Z48: 8.7846911e-06 | AA48: 8.7846911e-06 | AB48: 0.1494533896 | AC48: 0.0005360715758 | AD48: 0.006687252 | AE48: 0.01941867408 | AF48: 0.0001818162337 | AG48: 0.02691914163 | AH48: 0.1203298391 | AI48: 0.0002606268632 | AJ48: 0.001694891434 | AK48: 0.002001182762 | AL48: 0.0015130752 | AM48: 0.1671813 | AN48: 0.001435807848 | AO48: 7.26e-05 | AP48: =CHOOSE(Ext_VCC, (Qg_Q1+Qg_Q2)*Fsw*'Design Regulator'!$G$80, (Qg_Q1+Qg_Q2)*Fsw*Vout, (Qg_Q1+Qg_Q2)*Fsw*Vin) -> 0.061486 | AQ48: 0.08631736909 | AR48: 0.0768575 | AS48: 0.0615586 | AT48: 0.3847291122 | AU48: 0.2591732996 | AV48: 3.12 | AW48: 0.8902257208 | AX48: 2.058881994 | AY48: 0.8575651764 | BA48: 89.02257208 | BB48: 0.1240862609 | BC48: 0.1961016244 | BD48: 0.1372587996 | BE48: 0.05717101176 | BF48: 0.001435807848 | BG48: 0.2576602244 | BH48: 5.050140398
A49: RdsonBot | B49: =Rdson2*1000 -> 18 | C49: mW | D49: Drain-Source Resistance of Low-side FET | G49: 40 | H49: 33 | I49: 1 | J49: 0.16 | K49: 0.16 | L49: 0.1077441077 | M49: 0.6067247422 | N49: 0.386977752 | O49: 0.353488876 | P49: -0.03348887598 | Q49: 1.116295866 | R49: 0.1951392196 | S49: 0.003807931504 | T49: 0.12 | U49: 0.1242265684 | V49: 0.1117108546 | W49: 2.495863008e-05 | X49: 2.495863008e-05 | Y49: 0.09532103055 | Z49: 9.086098866e-06 | AA49: 9.086098866e-06 | AB49: 0.1519988901 | AC49: 0.0005544879025 | AD49: 0.00685872 | AE49: 0.01940817841 | AF49: 0.0001624076529 | AG49: 0.02708240612 | AH49: 0.1223750483 | AI49: 0.0002695617439 | AJ49: 0.001714279653 | AK49: 0.002031072189 | AL49: 0.001551872 | AM49: 0.171468 | AN49: 0.001485093287 | AO49: 7.26e-05 | AP49: =CHOOSE(Ext_VCC, (Qg_Q1+Qg_Q2)*Fsw*'Design Regulator'!$G$80, (Qg_Q1+Qg_Q2)*Fsw*Vout, (Qg_Q1+Qg_Q2)*Fsw*Vin) -> 0.061486 | AQ49: 0.08631736909 | AR49: 0.0768575 | AS49: 0.0615586 | AT49: 0.3894376567 | AU49: 0.2636919503 | AV49: 3.2 | AW49: 0.8915045492 | AX49: 2.103769292 | AY49: 0.8792326828 | BA49: 89.15045492 | BB49: 0.1242265684 | BC49: 0.2005814783 | BD49: 0.1402512861 | BE49: 0.05861551219 | BF49: 0.001485093287 | BG49: 0.2621400783 | BH49: 5.137945535
A50: RdsonBotTc | B50: =RdsonBotTc*1000000 -> 7000 | C50: ppm | D50: Drain To Source Resitance Temp Co | G50: 41 | H50: 33 | I50: 1 | J50: 0.164 | K50: 0.164 | L50: 0.1104377104 | M50: 0.6067413429 | N50: 0.3869735524 | O50: 0.3574867762 | P50: -0.02948677622 | Q50: 0.9828925408 | R50: 0.1984314597 | S50: 0.003937504419 | T50: 0.12 | U50: 0.1243704316 | V50: 0.1117096423 | W50: 2.495808838e-05 | X50: 2.495808838e-05 | Y50: 0.09692849449 | Z50: 9.395133044e-06 | AA50: 9.395133044e-06 | AB50: 0.1545654139 | AC50: 0.0005733712125 | AD50: 0.007030188 | AE50: 0.01939691216 | AF50: 0.00014299907 | AG50: 0.02724545069 | AH50: 0.1244370403 | AI50: 0.000278722386 | AJ50: 0.00173366787 | AK50: 0.002061226997 | AL50: 0.0015906688 | AM50: 0.1757547 | AN50: 0.001535626723 | AO50: 7.26e-05 | AP50: =CHOOSE(Ext_VCC, (Qg_Q1+Qg_Q2)*Fsw*'Design Regulator'!$G$80, (Qg_Q1+Qg_Q2)*Fsw*Vout, (Qg_Q1+Qg_Q2)*Fsw*Vin) -> 0.061486 | AQ50: 0.08631736909 | AR50: 0.0768575 | AS50: 0.0615586 | AT50: 0.394151058 | AU50: 0.2682106465 | AV50: 3.28 | AW50: 0.89272323 | AX50: 2.14865329 | AY50: 0.90090417 | BA50: 89.272323 | BB50: 0.1243704316 | BC50: 0.2050613777 | BD50: 0.1432435527 | BE50: 0.060060278 | BF50: 0.001535626723 | BG50: 0.2666199777 | BH50: 5.225751563
A51: QgBot | B51: =Qg_Q2*1000000000 -> 4.1 | C51: nC | D51: Gate Charge Of Top FET | G51: 42 | H51: 33 | I51: 1 | J51: 0.168 | K51: 0.168 | L51: 0.1131313131 | M51: 0.6067579435 | N51: 0.386969352 | O51: 0.361484676 | P51: -0.02548467602 | Q51: 0.8494892007 | R51: 0.2017492832 | S51: 0.004070277329 | T51: 0.12 | U51: 0.1245178508 | V51: 0.1117084298 | W51: 2.495754657e-05 | X51: 2.495754657e-05 | Y51: 0.0985484312 | Z51: 9.711793293e-06 | AA51: 9.711793293e-06 | AB51: 0.1571519361 | AC51: 0.0005927215443 | AD51: 0.007201656 | AE51: 0.01938487532 | AF51: 0.0001235904848 | AG51: 0.02740827539 | AH51: 0.1265149883 | AI51: 0.0002881087609 | AJ51: 0.001753056085 | AK51: 0.002091647154 | AL51: 0.0016294656 | AM51: 0.1800414 | AN51: 0.001587408158 | AO51: 7.26e-05 | AP51: =CHOOSE(Ext_VCC, (Qg_Q1+Qg_Q2)*Fsw*'Design Regulator'!$G$80, (Qg_Q1+Qg_Q2)*Fsw*Vout, (Qg_Q1+Qg_Q2)*Fsw*Vin) -> 0.061486 | AQ51: 0.08631736909 | AR51: 0.0768575 | AS51: 0.0615586 | AT51: 0.3988693165 | AU51: 0.2727293881 | AV51: 3.36 | AW51: 0.893885825 | AX51: 2.193533991 | AY51: 0.9225796373 | BA51: 89.3885825 | BB51: 0.1245178508 | BC51: 0.2095413225 | BD51: 0.1462355994 | BE51: 0.06150530915 | BF51: 0.001587408158 | BG51: 0.2710999225 | BH51: 5.313558482
A52: RGateBot | B52: =Rgate2 -> 3 | C52: W | D52: Gate Resistance | G52: 43 | H52: 33 | I52: 1 | J52: 0.172 | K52: 0.172 | L52: 0.1158249158 | M52: 0.6067745439 | N52: 0.3869651507 | O52: 0.3654825754 | P52: -0.02148257537 | Q52: 0.7160858458 | R52: 0.2050914487 | S52: 0.004206250232 | T52: 0.12 | U52: 0.1246688263 | V52: 0.111707217 | W52: 2.495700465e-05 | X52: 2.495700465e-05 | Y52: 0.1001802339 | Z52: 1.003607927e-05 | AA52: 1.003607927e-05 | AB52: 0.1597574902 | AC52: 0.0006125389359 | AD52: 0.007373124 | AE52: 0.01937206789 | AF52: 0.0001041818975 | AG52: 0.0275708803 | AH52: 0.1286081127 | AI52: 0.0002977208399 | AJ52: 0.001772444298 | AK52: 0.00212233263 | AL52: 0.0016682624 | AM52: 0.1843281 | AN52: 0.001640437591 | AO52: 7.26e-05 | AP52: =CHOOSE(Ext_VCC, (Qg_Q1+Qg_Q2)*Fsw*'Design Regulator'!$G$80, (Qg_Q1+Qg_Q2)*Fsw*Vout, (Qg_Q1+Qg_Q2)*Fsw*Vin) -> 0.061486 | AQ52: 0.08631736909 | AR52: 0.0768575 | AS52: 0.0615586 | AT52: 0.4035924323 | AU52: 0.2772481753 | AV52: 3.44 | AW52: 0.8949960384 | AX52: 2.238411394 | AY52: 0.9442590845 | BA52: 89.49960384 | BB52: 0.1246688263 | BC52: 0.2140213129 | BD52: 0.1492274263 | BE52: 0.06295060563 | BF52: 0.001640437591 | BG52: 0.2755799129 | BH52: 5.401366293
A53: VsdBot | B53: =Vsd_Q2 -> 0.8 | C53: V | D53: Diode Forward Voltage of Bottom FET Body Diode | G53: 44 | H53: 33 | I53: 1 | J53: 0.176 | K53: 0.176 | L53: 0.1185185185 | M53: 0.6067911442 | N53: 0.3869609486 | O53: 0.3694804743 | P53: -0.01748047428 | Q53: 0.5826824759 | R53: 0.2084567852 | S53: 0.004345423131 | T53: 0.12 | U53: 0.1248233583 | V53: 0.1117060039 | W53: 2.495646262e-05 | X53: 2.495646262e-05 | Y53: 0.1018233305 | Z53: 1.036799063e-05 | AA53: 1.036799063e-05 | AB53: 0.162381165 | AC53: 0.0006328234256 | AD53: 0.007544592 | AE53: 0.01935848987 | AF53: 8.477330806e-05 | AG53: 0.02773326548 | AH53: 0.1307156784 | AI53: 0.0003075585943 | AJ53: 0.001791832508 | AK53: 0.002153283394 | AL53: 0.0017070592 | AM53: 0.1886148 | AN53: 0.001694715021 | AO53: 7.26e-05 | AP53: =CHOOSE(Ext_VCC, (Qg_Q1+Qg_Q2)*Fsw*'Design Regulator'!$G$80, (Qg_Q1+Qg_Q2)*Fsw*Vout, (Qg_Q1+Qg_Q2)*Fsw*Vin) -> 0.061486 | AQ53: 0.08631736909 | AR53: 0.0768575 | AS53: 0.0615586 | AT53: 0.4083204058 | AU53: 0.2817670081 | AV53: 3.52 | AW53: 0.8960572551 | AX53: 2.283285502 | AY53: 0.9659425109 | BA53: 89.60572551 | BB53: 0.1248233583 | BC53: 0.2185013489 | BD53: 0.1522190335 | BE53: 0.06439616739 | BF53: 0.001694715021 | BG53: 0.2800599489 | BH53: 5.489174998
A54: QrrBot | B54: =Qrr_Q2*1000000000 -> 30 | C54: nC | D54: Reverse Recovery Charge of Body Diode | G54: 45 | H54: 33 | I54: 1 | J54: 0.18 | K54: 0.18 | L54: 0.1212121212 | M54: 0.6068077443 | N54: 0.3869567455 | O54: 0.3734783727 | P54: -0.01347837274 | Q54: 0.4492790912 | R54: 0.2118441886 | S54: 0.004487796024 | T54: 0.12 | U54: 0.1249814469 | V54: 0.1117047906 | W54: 2.495592048e-05 | X54: 2.495592048e-05 | Y54: 0.1034771812 | Z54: 1.070752704e-05 | AA54: 1.070752704e-05 | AB54: 0.165022101 | AC54: 0.0006535750517 | AD54: 0.00771606 | AE54: 0.01934414126 | AF54: 6.536471642e-05 | AG54: 0.027895431 | AH54: 0.1328369919 | AI54: 0.0003176219955 | AJ54: 0.001811220716 | AK54: 0.002184499415 | AL54: 0.001745856 | AM54: 0.1929015 | AN54: 0.001750240449 | AO54: 7.26e-05 | AP54: =CHOOSE(Ext_VCC, (Qg_Q1+Qg_Q2)*Fsw*'Design Regulator'!$G$80, (Qg_Q1+Qg_Q2)*Fsw*Vout, (Qg_Q1+Qg_Q2)*Fsw*Vin) -> 0.061486 | AQ54: 0.08631736909 | AR54: 0.0768575 | AS54: 0.0615586 | AT54: 0.4130532372 | AU54: 0.2862858864 | AV54: 3.6 | AW54: 0.8970725747 | AX54: 2.328156315 | AY54: 0.9876299162 | BA54: 89.70725747 | BB54: 0.1249814469 | BC54: 0.2229814304 | BD54: 0.155210421 | BE54: 0.06584199441 | BF54: 0.001750240449 | BG54: 0.2845400304 | BH54: 5.576984596
A55: TrrBot | B55: =Trr_Q2*1000000000 -> 40 | C55: ns | D55: Reverse Recovery Time of Body Diode | G55: 46 | H55: 33 | I55: 1 | J55: 0.184 | K55: 0.184 | L55: 0.1239057239 | M55: 0.6068243443 | N55: 0.3869525415 | O55: 0.3774762707 | P55: -0.009476270747 | Q55: 0.3158756916 | R55: 0.215252617 | S55: 0.004633368911 | T55: 0.12 | U55: 0.1251430925 | V55: 0.111703577 | W55: 2.495537823e-05 | X55: 2.495537823e-05 | Y55: 0.1051412771 | Z55: 1.105468814e-05 | AA55: 1.105468814e-05 | AB55: 0.1676794875 | AC55: 0.0006747938524 | AD55: 0.007887528 | AE55: 0.01932902207 | AF55: 4.595612261e-05 | AG55: 0.02805737693 | AH55: 0.1349713992 | AI55: 0.0003279110148 | AJ55: 0.001830608923 | AK55: 0.002215980663 | AL55: 0.0017846528 | AM55: 0.1971882 | AN55: 0.001807013875 | AO55: 7.26e-05 | AP55: =CHOOSE(Ext_VCC, (Qg_Q1+Qg_Q2)*Fsw*'Design Regulator'!$G$80, (Qg_Q1+Qg_Q2)*Fsw*Vout, (Qg_Q1+Qg_Q2)*Fsw*Vin) -> 0.061486 | AQ55: 0.08631736909 | AR55: 0.0768575 | AS55: 0.0615586 | AT55: 0.4177909269 | AU55: 0.2908048104 | AV55: 3.68 | AW55: 0.8980448407 | AX55: 2.373023834 | AY55: 1.0093213 | BA55: 89.80448407 | BB55: 0.1251430925 | BC55: 0.2274615576 | BD55: 0.1582015889 | BE55: 0.06728808666 | BF55: 0.001807013875 | BG55: 0.2890201576 | BH55: 5.664795089
A56: θJABot | B56: =ThetaJA_Q2 -> 15 | C56: °C/W | D56: Junction to Ambient Resistance | G56: 47 | H56: 33 | I56: 1 | J56: 0.188 | K56: 0.188 | L56: 0.1265993266 | M56: 0.6068409442 | N56: 0.3869483366 | O56: 0.3814741683 | P56: -0.005474168311 | Q56: 0.182472277 | R56: 0.2186810873 | S56: 0.004782141793 | T56: 0.12 | U56: 0.1253082953 | V56: 0.1117023632 | W56: 2.495483587e-05 | X56: 2.495483587e-05 | Y56: 0.1068151375 | Z56: 1.14094736e-05 | AA56: 1.14094736e-05 | AB56: 0.1703525592 | AC56: 0.0006964798659 | AD56: 0.008058996 | AE56: 0.01931313229 | AF56: 2.654752664e-05 | AG56: 0.02821910333 | AH56: 0.137118283 | AI56: 0.0003384256234 | AJ56: 0.001849997127 | AK56: 0.002247727106 | AL56: 0.0018234496 | AM56: 0.2014749 | AN56: 0.001865035299 | AO56: 7.26e-05 | AP56: =CHOOSE(Ext_VCC, (Qg_Q1+Qg_Q2)*Fsw*'Design Regulator'!$G$80, (Qg_Q1+Qg_Q2)*Fsw*Vout, (Qg_Q1+Qg_Q2)*Fsw*Vin) -> 0.061486 | AQ56: 0.08631736909 | AR56: 0.0768575 | AS56: 0.0615586 | AT56: 0.422533475 | AU56: 0.29532378 | AV56: 3.76 | AW56: 0.8989766663 | AX56: 2.41788806 | AY56: 1.031016662 | BA56: 89.89766663 | BB56: 0.1253082953 | BC56: 0.2319417304 | BD56: 0.1611925373 | BE56: 0.06873444411 | BF56: 0.001865035299 | BG56: 0.2935003304 | BH56: 5.752606477
A57: Bottom Schottky | B57: Input Value | C57: Units | D57: Std Units | G57: 48 | H57: 33 | I57: 1 | J57: 0.192 | K57: 0.192 | L57: 0.1292929293 | M57: 0.606857544 | N57: 0.3869441309 | O57: 0.3854720654 | P57: -0.001472065428 | Q57: 0.04906884759 | R57: 0.2221286715 | S57: 0.00493411467 | T57: 0.12 | U57: 0.1254770556 | V57: 0.1117011491 | W57: 2.49542934e-05 | X57: 2.49542934e-05 | Y57: 0.1084983091 | Z57: 1.177188308e-05 | AA57: 1.177188308e-05 | AB57: 0.1730405938 | AC57: 0.0007186331305 | AD57: 0.008230464 | AE57: 0.01929647192 | AF57: 7.138928499e-06 | AG57: 0.02838061027 | AH57: 0.1392770606 | AI57: 0.0003491657928 | AJ57: 0.001869385328 | AK57: 0.002279738716 | AL57: 0.0018622464 | AM57: 0.2057616 | AN57: 0.001924304721 | AO57: 7.26e-05 | AP57: =CHOOSE(Ext_VCC, (Qg_Q1+Qg_Q2)*Fsw*'Design Regulator'!$G$80, (Qg_Q1+Qg_Q2)*Fsw*Vout, (Qg_Q1+Qg_Q2)*Fsw*Vin) -> 0.061486 | AQ57: 0.08631736909 | AR57: 0.0768575 | AS57: 0.0615586 | AT57: 0.4272808819 | AU57: 0.2998427954 | AV57: 3.84 | AW57: 0.8998704576 | AX57: 2.462748994 | AY57: 1.052716001 | BA57: 89.98704576 | BB57: 0.1254770556 | BC57: 0.236421949 | BD57: 0.1641832663 | BE57: 0.07018106672 | BF57: 0.001924304721 | BG57: 0.297980549 | BH57: 5.84041876
A58: VfdSky | B58: =VfdSky_Q2 -> 0 | C58: V | D58: Diode Forward Voltage | G58: 49 | H58: 33 | I58: 1 | J58: 0.196 | K58: 0.196 | L58: 0.131986532 | M58: 0.6068741436 | N58: 0.3869399242 | O58: 0.3894699621 | P58: 0.002530037902 | Q58: 0 | R58: 0.2255944933 | S58: 0.005089287541 | T58: 0.12 | U58: 0.1256493736 | V58: 0.1116999347 | W58: 2.495375082e-05 | X58: 2.495375082e-05 | Y58: 0.1101903636 | Z58: 1.214191623e-05 | AA58: 1.214191623e-05 | AB58: 0.1757429093 | AC58: 0.0007412536843 | AD58: 0.008401932 | AE58: 0.01929015 | AF58: 0 | AG58: 0.02856527836 | AH58: 0.1414471818 | AI58: 0.0003601314942 | AJ58: 0.0019010432 | AK58: 0.002324285596 | AL58: 0.0019010432 | AM58: 0.2100483 | AN58: 0.001984822141 | AO58: 7.26e-05 | AP58: =CHOOSE(Ext_VCC, (Qg_Q1+Qg_Q2)*Fsw*'Design Regulator'!$G$80, (Qg_Q1+Qg_Q2)*Fsw*Vout, (Qg_Q1+Qg_Q2)*Fsw*Vin) -> 0.061486 | AQ58: 0.08631736909 | AR58: 0.0768575 | AS58: 0.0615586 | AT58: 0.4320687985 | AU58: 0.3043975072 | AV58: 3.92 | AW58: 0.9007210551 | AX58: 2.507957345 | AY58: 1.074603369 | BA58: 90.07210551 | BB58: 0.1256493736 | BC58: 0.240937864 | BD58: 0.1671971564 | BE58: 0.0716402246 | BF58: 0.001984822141 | BG58: 0.302496464 | BH58: 5.928930694
A59: QrrSky | B59: =QrrSky_Q2*1000000000 -> 0 | C59: nC | D59: Diode Reverse Recovery Charge | G59: 50 | H59: 33 | I59: 1 | J59: 0.2 | K59: 0.2 | L59: 0.1346801347 | M59: 0.6068907431 | N59: 0.3869357166 | O59: 0.3934678583 | P59: 0.006532141679 | Q59: 0 | R59: 0.2290777249 | S59: 0.005247660407 | T59: 0.12 | U59: 0.1258252495 | V59: 0.1116987201 | W59: 2.495320814e-05 | X59: 2.495320814e-05 | Y59: 0.1118908964 | Z59: 1.251957271e-05 | AA59: 1.251957271e-05 | AB59: 0.1784588615 | AC59: 0.0007643415657 | AD59: 0.0085734 | AE59: 0.01929015 | AF59: 0 | AG59: 0.02876395982 | AH59: 0.1436281269 | AI59: 0.000371322699 | AJ59: 0.00193984 | AK59: 0.002376236818 | AL59: 0.00193984 | AM59: 0.214335 | AN59: 0.002046587559 | AO59: 7.26e-05 | AP59: =CHOOSE(Ext_VCC, (Qg_Q1+Qg_Q2)*Fsw*'Design Regulator'!$G$80, (Qg_Q1+Qg_Q2)*Fsw*Vout, (Qg_Q1+Qg_Q2)*Fsw*Vin) -> 0.061486 | AQ59: 0.08631736909 | AR59: 0.0768575 | AS59: 0.0615586 | AT59: 0.4368829465 | AU59: 0.3089736366 | AV59: 4 | AW59: 0.9015338129 | AX59: 2.553375897 | AY59: 1.096601802 | BA59: 90.15338129 | BB59: 0.1258252495 | BC59: 0.2454751966 | BD59: 0.1702250598 | BE59: 0.07310678682 | BF59: 0.002046587559 | BG59: 0.3070337966 | BH59: 6.017862414
A60: Ireverse | B60: =Ireverse -> 0 | C60: mA | D60: Reverse Leakage Current | G60: 51 | H60: 33 | I60: 1 | J60: 0.204 | K60: 0.204 | L60: 0.1373737374 | M60: 0.6069073424 | N60: 0.3869315082 | O60: 0.3974657541 | P60: 0.0105342459 | Q60: 0 | R60: 0.2325775842 | S60: 0.005409233267 | T60: 0.12 | U60: 0.1260046837 | V60: 0.1116975052 | W60: 2.495266534e-05 | X60: 2.495266534e-05 | Y60: 0.1135995254 | Z60: 1.290485217e-05 | AA60: 1.290485217e-05 | AB60: 0.1811878414 | AC60: 0.0007878968128 | AD60: 0.008744868 | AE60: 0.01929015 | AF60: 0 | AG60: 0.02896319286 | AH60: 0.1458194048 | AI60: 0.0003827393785 | AJ60: 0.0019786368 | AK60: 0.002428453163 | AL60: 0.0019786368 | AM60: 0.2186217 | AN60: 0.002109600974 | AO60: 7.26e-05 | AP60: =CHOOSE(Ext_VCC, (Qg_Q1+Qg_Q2)*Fsw*'Design Regulator'!$G$80, (Qg_Q1+Qg_Q2)*Fsw*Vout, (Qg_Q1+Qg_Q2)*Fsw*Vin) -> 0.061486 | AQ60: 0.08631736909 | AR60: 0.0768575 | AS60: 0.0615586 | AT60: 0.441702725 | AU60: 0.3135505828 | AV60: 4.08 | AW60: 0.902314957 | AX60: 2.598802723 | AY60: 1.118604212 | BA60: 90.2314957 | BB60: 0.1260046837 | BC60: 0.250013346 | BD60: 0.1732535149 | BE60: 0.07457361416 | BF60: 0.002109600974 | BG60: 0.311571946 | BH60: 6.106810142
A61: Controller | B61: Input Value | C61: Units | D61: Std Units | G61: 52 | H61: 33 | I61: 1 | J61: 0.208 | K61: 0.208 | L61: 0.1400673401 | M61: 0.6069239416 | N61: 0.3869272989 | O61: 0.4014636494 | P61: 0.01453635057 | Q61: 0 | R61: 0.2360933316 | S61: 0.005574006122 | T61: 0.12 | U61: 0.1261876764 | V61: 0.1116962901 | W61: 2.495212243e-05 | X61: 2.495212243e-05 | Y61: 0.1153158891 | Z61: 1.329775427e-05 | AA61: 1.329775427e-05 | AB61: 0.1839292735 | AC61: 0.0008119194639 | AD61: 0.008916336 | AE61: 0.01929015 | AF61: 0 | AG61: 0.02916297756 | AH61: 0.1480205511 | AI61: 0.000394381504 | AJ61: 0.0020174336 | AK61: 0.002480934603 | AL61: 0.0020174336 | AM61: 0.2229084 | AN61: 0.002173862387 | AO61: 7.26e-05 | AP61: =CHOOSE(Ext_VCC, (Qg_Q1+Qg_Q2)*Fsw*'Design Regulator'!$G$80, (Qg_Q1+Qg_Q2)*Fsw*Vout, (Qg_Q1+Qg_Q2)*Fsw*Vin) -> 0.061486 | AQ61: 0.08631736909 | AR61: 0.0768575 | AS61: 0.0615586 | AT61: 0.4465281344 | AU61: 0.3181283458 | AV61: 4.16 | AW61: 0.9030662309 | AX61: 2.644237823 | AY61: 1.140610599 | BA61: 90.30662309 | BB61: 0.1261876764 | BC61: 0.2545523122 | BD61: 0.1762825216 | BE61: 0.0760407066 | BF61: 0.002173862387 | BG61: 0.3161109122 | BH61: 6.195773878
A62: θJA | B62: 30 | C62: °C/W | D62: Junction to Ambient Resistance | G62: 53 | H62: 33 | I62: 1 | J62: 0.212 | K62: 0.212 | L62: 0.1427609428 | M62: 0.6069405407 | N62: 0.3869230886 | O62: 0.4054615443 | P62: 0.01853845569 | Q62: 0 | R62: 0.2396242678 | S62: 0.005741978971 | T62: 0.12 | U62: 0.1263742279 | V62: 0.1116950747 | W62: 2.495157942e-05 | X62: 2.495157942e-05 | Y62: 0.1170396458 | Z62: 1.369827868e-05 | AA62: 1.369827868e-05 | AB62: 0.1866826136 | AC62: 0.0008364095571 | AD62: 0.009087804 | AE62: 0.01929015 | AF62: 0 | AG62: 0.029363314 | AH62: 0.1502311269 | AI62: 0.0004062490469 | AJ62: 0.0020562304 | AK62: 0.002533681107 | AL62: 0.0020562304 | AM62: 0.2271951 | AN62: 0.002239371799 | AO62: 7.26e-05 | AP62: =CHOOSE(Ext_VCC, (Qg_Q1+Qg_Q2)*Fsw*'Design Regulator'!$G$80, (Qg_Q1+Qg_Q2)*Fsw*Vout, (Qg_Q1+Qg_Q2)*Fsw*Vin) -> 0.061486 | AQ62: 0.08631736909 | AR62: 0.0768575 | AS62: 0.0615586 | AT62: 0.4513591751 | AU62: 0.3227069255 | AV62: 4.24 | AW62: 0.9037892521 | AX62: 2.6896812 | AY62: 1.162620962 | BA62: 90.37892521 | BB62: 0.1263742279 | BC62: 0.2590920951 | BD62: 0.17931208 | BE62: 0.07750806411 | BF62: 0.002239371799 | BG62: 0.3206506951 | BH62: 6.284753624
A63: Theta Ja | B63: 19.6 | C63: °C/W | D63: Junction to Ambient Resistance | G63: 54 | H63: 33 | I63: 1 | J63: 0.216 | K63: 0.216 | L63: 0.1454545455 | M63: 0.6069571397 | N63: 0.3869188775 | O63: 0.4094594387 | P63: 0.02254056125 | Q63: 0 | R63: 0.2431697311 | S63: 0.005913151815 | T63: 0.12 | U63: 0.1265643385 | V63: 0.111693859 | W63: 2.495103629e-05 | X63: 2.495103629e-05 | Y63: 0.1187704721 | Z63: 1.410642504e-05 | AA63: 1.410642504e-05 | AB63: 0.1894473466 | AC63: 0.0008613671309 | AD63: 0.009259272 | AE63: 0.01929015 | AF63: 0 | AG63: 0.02956420227 | AH63: 0.1524507167 | AI63: 0.0004183419785 | AJ63: 0.0020950272 | AK63: 0.002586692648 | AL63: 0.0020950272 | AM63: 0.2314818 | AN63: 0.002306129208 | AO63: 7.26e-05 | AP63: =CHOOSE(Ext_VCC, (Qg_Q1+Qg_Q2)*Fsw*'Design Regulator'!$G$80, (Qg_Q1+Qg_Q2)*Fsw*Vout, (Qg_Q1+Qg_Q2)*Fsw*Vin) -> 0.061486 | AQ63: 0.08631736909 | AR63: 0.0768575 | AS63: 0.0615586 | AT63: 0.4561958473 | AU63: 0.3272863221 | AV63: 4.32 | AW63: 0.9044855232 | AX63: 2.735132854 | AY63: 1.1846353 | BA63: 90.44855232 | BB63: 0.1265643385 | BC63: 0.2636326949 | BD63: 0.1823421903 | BE63: 0.07897568665 | BF63: 0.002306129208 | BG63: 0.3251912949 | BH63: 6.37374938
G64: 55 | H64: 33 | I64: 1 | J64: 0.22 | K64: 0.22 | L64: 0.1481481481 | M64: 0.6069737385 | N64: 0.3869146655 | O64: 0.4134573327 | P64: 0.02654266727 | Q64: 0 | R64: 0.2467290954 | S64: 0.006087524653 | T64: 0.12 | U64: 0.1267580085 | V64: 0.1116926431 | W64: 2.495049306e-05 | X64: 2.495049306e-05 | Y64: 0.120508062 | Z64: 1.452219301e-05 | AA64: 1.452219301e-05 | AB64: 0.192222985 | AC64: 0.0008867922232 | AD64: 0.00943074 | AE64: 0.01929015 | AF64: 0 | AG64: 0.02976564244 | AH64: 0.1546789273 | AI64: 0.0004306602701 | AJ64: 0.002133824 | AK64: 0.002639969195 | AL64: 0.002133824 | AM64: 0.2357685 | AN64: 0.002374134615 | AO64: 7.26e-05 | AP64: =CHOOSE(Ext_VCC, (Qg_Q1+Qg_Q2)*Fsw*'Design Regulator'!$G$80, (Qg_Q1+Qg_Q2)*Fsw*Vout, (Qg_Q1+Qg_Q2)*Fsw*Vin) -> 0.061486 | AQ64: 0.08631736909 | AR64: 0.0768575 | AS64: 0.0615586 | AT64: 0.4610381515 | AU64: 0.3318665356 | AV64: 4.4 | AW64: 0.9051564425 | AX64: 2.780592787 | AY64: 1.206653613 | BA64: 90.51564425 | BB64: 0.1267580085 | BC64: 0.2681741116 | BD64: 0.1853728524 | BE64: 0.0804435742 | BF64: 0.002374134615 | BG64: 0.3297327116 | BH64: 6.462761148
G65: 56 | H65: 33 | I65: 1 | J65: 0.224 | K65: 0.224 | L65: 0.1508417508 | M65: 0.6069903372 | N65: 0.3869104526 | O65: 0.4174552263 | P65: 0.03054477372 | Q65: 0 | R65: 0.2503017676 | S65: 0.006265097486 | T65: 0.12 | U65: 0.1269552382 | V65: 0.111691427 | W65: 2.494994972e-05 | X65: 2.494994972e-05 | Y65: 0.1222521257 | Z65: 1.494558225e-05 | AA65: 1.494558225e-05 | AB65: 0.1950090674 | AC65: 0.0009126848725 | AD65: 0.009602208 | AE65: 0.01929015 | AF65: 0 | AG65: 0.02996763458 | AH65: 0.1569153864 | AI65: 0.0004432038931 | AJ65: 0.0021726208 | AK65: 0.002693510721 | AL65: 0.0021726208 | AM65: 0.2400552 | AN65: 0.002443388019 | AO65: 7.26e-05 | AP65: =CHOOSE(Ext_VCC, (Qg_Q1+Qg_Q2)*Fsw*'Design Regulator'!$G$80, (Qg_Q1+Qg_Q2)*Fsw*Vout, (Qg_Q1+Qg_Q2)*Fsw*Vin) -> 0.061486 | AQ65: 0.08631736909 | AR65: 0.0768575 | AS65: 0.0615586 | AT65: 0.4658860878 | AU65: 0.3364475661 | AV65: 4.48 | AW65: 0.9058033122 | AX65: 2.826060999 | AY65: 1.228675901 | BA65: 90.58033122 | BB65: 0.1269552382 | BC65: 0.2727163453 | BD65: 0.1884040666 | BE65: 0.08191172672 | BF65: 0.002443388019 | BG65: 0.3342749453 | BH65: 6.551788928
A66: Outputs | G66: 57 | H66: 33 | I66: 1 | J66: 0.228 | K66: 0.228 | L66: 0.1535353535 | M66: 0.6070069358 | N66: 0.3869062387 | O66: 0.4214531194 | P66: 0.03454688063 | Q66: 0 | R66: 0.2538871858 | S66: 0.006445870313 | T66: 0.12 | U66: 0.1271560278 | V66: 0.1116902105 | W66: 2.494940626e-05 | X66: 2.494940626e-05 | Y66: 0.1240023887 | Z66: 1.537659241e-05 | AA66: 1.537659241e-05 | AB66: 0.1978051563 | AC66: 0.0009390451169 | AD66: 0.009773676 | AE66: 0.01929015 | AF66: 0 | AG66: 0.03017017878 | AH66: 0.1591597413 | AI66: 0.0004559728187 | AJ66: 0.0022114176 | AK66: 0.002747317196 | AL66: 0.0022114176 | AM66: 0.2443419 | AN66: 0.002513889422 | AO66: 7.26e-05 | AP66: =CHOOSE(Ext_VCC, (Qg_Q1+Qg_Q2)*Fsw*'Design Regulator'!$G$80, (Qg_Q1+Qg_Q2)*Fsw*Vout, (Qg_Q1+Qg_Q2)*Fsw*Vin) -> 0.061486 | AQ66: 0.08631736909 | AR66: 0.0768575 | AS66: 0.0615586 | AT66: 0.4707396568 | AU66: 0.3410294136 | AV66: 4.56 | AW66: 0.9064273469 | AX66: 2.871537492 | AY66: 1.250702163 | BA66: 90.64273469 | BB66: 0.1271560278 | BC66: 0.277259396 | BD66: 0.1914358328 | BE66: 0.0833801442 | BF66: 0.002513889422 | BG66: 0.338817996 | BH66: 6.640832721
A67: Design | B67: Value | C67: Units | G67: 58 | H67: 33 | I67: 1 | J67: 0.232 | K67: 0.232 | L67: 0.1562289562 | M67: 0.6070235342 | N67: 0.386902024 | O67: 0.425451012 | P67: 0.03854898798 | Q67: 0 | R67: 0.2574848177 | S67: 0.006629843135 | T67: 0.12 | U67: 0.1273603778 | V67: 0.1116889939 | W67: 2.49488627e-05 | X67: 2.49488627e-05 | Y67: 0.1257585908 | Z67: 1.581522316e-05 | AA67: 1.581522316e-05 | AB67: 0.2006108375 | AC67: 0.0009658729946 | AD67: 0.009945144 | AE67: 0.01929015 | AF67: 0 | AG67: 0.03037327512 | AH67: 0.1614116577 | AI67: 0.0004689670184 | AJ67: 0.0022502144 | AK67: 0.002801388591 | AL67: 0.0022502144 | AM67: 0.2486286 | AN67: 0.002585638823 | AO67: 7.26e-05 | AP67: =CHOOSE(Ext_VCC, (Qg_Q1+Qg_Q2)*Fsw*'Design Regulator'!$G$80, (Qg_Q1+Qg_Q2)*Fsw*Vout, (Qg_Q1+Qg_Q2)*Fsw*Vin) -> 0.061486 | AQ67: 0.08631736909 | AR67: 0.0768575 | AS67: 0.0615586 | AT67: 0.4755988588 | AU67: 0.3456120781 | AV67: 4.64 | AW67: 0.9070296808 | AX67: 2.917022267 | AY67: 1.272732399 | BA67: 90.70296808 | BB67: 0.1273603778 | BC67: 0.2818032637 | BD67: 0.1944681511 | BE67: 0.08484882659 | BF67: 0.002585638823 | BG67: 0.3433618637 | BH67: 6.729892529
A68: Dmax | B68: =D1_Vinmin -> 0.6060606061 | C68: index | G68: 59 | H68: 33 | I68: 1 | J68: 0.236 | K68: 0.236 | L68: 0.1589225589 | M68: 0.6070401325 | N68: 0.3868978084 | O68: 0.4294489042 | P68: 0.04255109578 | Q68: 0 | R68: 0.2610941583 | S68: 0.006817015951 | T68: 0.12 | U68: 0.1275682884 | V68: 0.1116877769 | W68: 2.494831903e-05 | X68: 2.494831903e-05 | Y68: 0.1275204852 | Z68: 1.626147414e-05 | AA68: 1.626147414e-05 | AB68: 0.2034257178 | AC68: 0.0009931685439 | AD68: 0.010116612 | AE68: 0.01929015 | AF68: 0 | AG68: 0.03057692368 | AH68: 0.1636708186 | AI68: 0.0004821864633 | AJ68: 0.0022890112 | AK68: 0.002855724879 | AL68: 0.0022890112 | AM68: 0.2529153 | AN68: 0.002658636221 | AO68: 7.26e-05 | AP68: =CHOOSE(Ext_VCC, (Qg_Q1+Qg_Q2)*Fsw*'Design Regulator'!$G$80, (Qg_Q1+Qg_Q2)*Fsw*Vout, (Qg_Q1+Qg_Q2)*Fsw*Vin) -> 0.061486 | AQ68: 0.08631736909 | AR68: 0.0768575 | AS68: 0.0615586 | AT68: 0.4804636941 | AU68: 0.3501955598 | AV68: 4.72 | AW68: 0.9076113742 | AX68: 2.962515325 | AY68: 1.294766608 | BA68: 90.76113742 | BB68: 0.1275682884 | BC68: 0.2863479486 | BD68: 0.1975010217 | BE68: 0.08631777388 | BF68: 0.002658636221 | BG68: 0.3479065486 | BH68: 6.818968352
A69: Dprime | B69: =1-B68 -> 0.3939393939 | C69: index | G69: 60 | H69: 33 | I69: 1 | J69: 0.24 | K69: 0.24 | L69: 0.1616161616 | M69: 0.6070567306 | N69: 0.386893592 | O69: 0.433446796 | P69: 0.04655320402 | Q69: 0 | R69: 0.2647147288 | S69: 0.007007388762 | T69: 0.12 | U69: 0.1277797598 | V69: 0.1116865597 | W69: 2.494777525e-05 | X69: 2.494777525e-05 | Y69: 0.1292878379 | Z69: 1.671534502e-05 | AA69: 1.671534502e-05 | AB69: 0.2062494245 | AC69: 0.001020931803 | AD69: 0.01028808 | AE69: 0.01929015 | AF69: 0 | AG69: 0.03078112454 | AH69: 0.1659369233 | AI69: 0.000495631125 | AJ69: 0.002327808 | AK69: 0.002910326029 | AL69: 0.002327808 | AM69: 0.257202 | AN69: 0.002732881617 | AO69: 7.26e-05 | AP69: =CHOOSE(Ext_VCC, (Qg_Q1+Qg_Q2)*Fsw*'Design Regulator'!$G$80, (Qg_Q1+Qg_Q2)*Fsw*Vout, (Qg_Q1+Qg_Q2)*Fsw*Vin) -> 0.061486 | AQ69: 0.08631736909 | AR69: 0.0768575 | AS69: 0.0615586 | AT69: 0.4853341631 | AU69: 0.3547798586 | AV69: 4.8 | AW69: 0.9081734195 | AX69: 3.008016668 | AY69: 1.31680479 | BA69: 90.81734195 | BB69: 0.1277797598 | BC69: 0.2908934506 | BD69: 0.2005344445 | BE69: 0.08778698603 | BF69: 0.002732881617 | BG69: 0.3524520506 | BH69: 6.908060191
A70: Ipp | B70: =Iripple_Vinnom -> 0.3880378262 | C70: A | G70: 61 | H70: 33 | I70: 1 | J70: 0.244 | K70: 0.244 | L70: 0.1643097643 | M70: 0.6070733287 | N70: 0.3868893746 | O70: 0.4374446873 | P70: 0.05055531272 | Q70: 0 | R70: 0.2683460745 | S70: 0.007200961568 | T70: 0.12 | U70: 0.1279947926 | V70: 0.1116853423 | W70: 2.494723136e-05 | X70: 2.494723136e-05 | Y70: 0.1310604267 | Z70: 1.717683544e-05 | AA70: 1.717683544e-05 | AB70: 0.2090816039 | AC70: 0.00104916281 | AD70: 0.010459548 | AE70: 0.01929015 | AF70: 0 | AG70: 0.03098587777 | AH70: 0.1682096864 | AI70: 0.0005093009747 | AJ70: 0.0023666048 | AK70: 0.002965192014 | AL70: 0.0023666048 | AM70: 0.2614887 | AN70: 0.002808375012 | AO70: 7.26e-05 | AP70: =CHOOSE(Ext_VCC, (Qg_Q1+Qg_Q2)*Fsw*'Design Regulator'!$G$80, (Qg_Q1+Qg_Q2)*Fsw*Vout, (Qg_Q1+Qg_Q2)*Fsw*Vin) -> 0.061486 | AQ70: 0.08631736909 | AR70: 0.0768575 | AS70: 0.0615586 | AT70: 0.4902102662 | AU70: 0.3593649746 | AV70: 4.88 | AW70: 0.9087167463 | AX70: 3.053526297 | AY70: 1.338846945 | BA70: 90.87167463 | BB70: 0.1279947926 | BC70: 0.2954397698 | BD70: 0.2035684198 | BE70: 0.08925646301 | BF70: 0.002808375012 | BG70: 0.3569983698 | BH70: 6.997168048
A71: Top FET | B71: Value | C71: Units | G71: 62 | H71: 33 | I71: 1 | J71: 0.248 | K71: 0.248 | L71: 0.167003367 | M71: 0.6070899265 | N71: 0.3868851563 | O71: 0.4414425781 | P71: 0.05455742185 | Q71: 0 | R71: 0.2719877638 | S71: 0.007397734368 | T71: 0.12 | U71: 0.1282133869 | V71: 0.1116841246 | W71: 2.494668736e-05 | X71: 2.494668736e-05 | Y71: 0.1328380408 | Z71: 1.764594507e-05 | AA71: 1.764594507e-05 | AB71: 0.2119219199 | AC71: 0.001077861603 | AD71: 0.010631016 | AE71: 0.01929015 | AF71: 0 | AG71: 0.03119118346 | AH71: 0.170488837 | AI71: 0.0005231959837 | AJ71: 0.0024054016 | AK71: 0.003020322804 | AL71: 0.0024054016 | AM71: 0.2657754 | AN71: 0.002885116404 | AO71: 7.26e-05 | AP71: =CHOOSE(Ext_VCC, (Qg_Q1+Qg_Q2)*Fsw*'Design Regulator'!$G$80, (Qg_Q1+Qg_Q2)*Fsw*Vout, (Qg_Q1+Qg_Q2)*Fsw*Vin) -> 0.061486 | AQ71: 0.08631736909 | AR71: 0.0768575 | AS71: 0.0615586 | AT71: 0.4950920038 | AU71: 0.3639509079 | AV71: 4.96 | AW71: 0.9092422266 | AX71: 3.099044212 | AY71: 1.360893072 | BA71: 90.92422266 | BB71: 0.1282133869 | BC71: 0.2999869063 | BD71: 0.2066029475 | BE71: 0.0907262048 | BF71: 0.002885116404 | BG71: 0.3615455063 | BH71: 7.086291923
A72: Tr | B72: =(Qgd_Q1+Qgs_Q1/2)*(RdsonDRT+Rgate1)/(VCC-Vsp_Q1)*1000000000 -> 1.10180764 | C72: ns | D72: Turn on of MOSFET -> Rise time of current | G72: 63 | H72: 33 | I72: 1 | J72: 0.252 | K72: 0.252 | L72: 0.1696969697 | M72: 0.6071065243 | N72: 0.3868809371 | O72: 0.4454404686 | P72: 0.05855953144 | Q72: 0 | R72: 0.2756393869 | S72: 0.007597707163 | T72: 0.12 | U72: 0.1284355431 | V72: 0.1116829066 | W72: 2.494614325e-05 | X72: 2.494614325e-05 | Y72: 0.1346204797 | Z72: 1.812267356e-05 | AA72: 1.812267356e-05 | AB72: 0.2147700535 | AC72: 0.001107028221 | AD72: 0.010802484 | AE72: 0.01929015 | AF72: 0 | AG72: 0.03139704169 | AH72: 0.1727741177 | AI72: 0.0005373161234 | AJ72: 0.0024441984 | AK72: 0.003075718371 | AL72: 0.0024441984 | AM72: 0.2700621 | AN72: 0.002963105793 | AO72: 7.26e-05 | AP72: =CHOOSE(Ext_VCC, (Qg_Q1+Qg_Q2)*Fsw*'Design Regulator'!$G$80, (Qg_Q1+Qg_Q2)*Fsw*Vout, (Qg_Q1+Qg_Q2)*Fsw*Vin) -> 0.061486 | AQ72: 0.08631736909 | AR72: 0.0768575 | AS72: 0.0615586 | AT72: 0.4999793762 | AU72: 0.3685376585 | AV72: 5.04 | AW72: 0.9097506792 | AX72: 3.144570415 | AY72: 1.382943171 | BA72: 90.97506792 | BB72: 0.1284355431 | BC72: 0.3045348601 | BD72: 0.2096380277 | BE72: 0.09219621137 | BF72: 0.002963105793 | BG72: 0.3660934601 | BH72: 7.175431817
A73: Tf | B73: =(Qgd_Q1+Qgs_Q1/2)*(RdsonDRT2+Rgate1)/(Vsp_Q1)*1000000000 -> 2.616809672 | C73: ns | D73: Turn off of MOSFET -> Fall time of current | G73: 64 | H73: =Vin -> 33 | I73: =MODE -> 1 | J73: 0.256 | K73: =Iout*G73/100/Number_of_Phases -> 0.256 | L73: =Vout*K73/(Vin*Efficiency) -> 0.1723905724 | M73: =(Vout+(Rdson2+Rs+Rdcr)*K73)/(Vin+(Rs+Rdson2-Rdson1)*K73) -> 0.6071231219 | N73: =(Vin-(Rdson1+Rdcr)*K73-Vout)*M73/(Fsw*Lf) -> 0.3868767171 | O73: 0.4494383585 | P73: 0.06256164147 | Q73: =IF(MIN(Vin, -P73/(Coss_Q1+Coss_Q2)*0.00000002)<0, 0, MIN(Vin, -P73/(Coss_Q1+Coss_Q2)*0.00000002)) -> 0 | R73: 0.2793005541 | S73: =R73^2*Rdcr -> 0.007800879952 | T73: =Core_Loss_Ch1 -> 0.12 | U73: =(T73+S73*(1+Ltc*(Ta-25)))/(1-S73*Ltc*ThetaCa) -> 0.1286612616 | V73: 0.1116816884 | W73: 2.494559903e-05 | X73: 2.494559903e-05 | Y73: 0.1364075532 | Z73: 1.860702057e-05 | AA73: 1.860702057e-05 | AB73: 0.2176257014 | AC73: =Rdson1*AB73^2 -> 0.001136662702 | AD73: =(Vin*K73/2)*Fsw*(Tr_buck+Tf_buck) -> 0.010973952 | AE73: =(0.5*Coss_Q1*(Vin-Q73)^2-0.5*Coss_Q2*(Vin-Q73)^2+(Qoss_Q2*(Vin-Q73)/Vin)*Vin)*Fsw -> 0.01929015 | AF73: =IF(K73>N73/2,0,ABS(K73-N73/2)*Vsd_Q1*Deadtime*Fsw) -> 0 | AG73: =(AF73+AE73+AD73+AC73*(1+RdsonTopTc*Ta-RdsonTopTc*25))/(1-AC73*RdsonTopTc*ThetaJA_Q1) -> 0.03160345253 | AH73: =SQRT((1-M73))*SQRT(K73^2+(N73^2)/12) -> 0.1750652839 | AI73: =Rdson2*AH73^2 -> 0.0005516613651 | AJ73: =IF(K73<N73/2,Deadtime*Fsw*IF(VfdSky_Q2>0,0,Vsd_Q2)*(K73+N73/2),2*Deadtime*Fsw*IF(VfdSky_Q2>0,0,Vsd_Q2)*K73) -> 0.0024829952 | AK73: =(AJ73+AI73*(1+RdsonBotTc*Ta-RdsonBotTc*25))/(1-AI73*RdsonBotTc*ThetaJA_Q2) -> 0.003131378687 | AL73: =2*Deadtime*Fsw*IF(VfdSky_Q2>0,VfdSky_Q2,Vsd_Q2)*K73 -> 0.0024829952 | AM73: =IF(QrrSky_Q2>0,QrrSky_Q2,Qrr_Q2*K73/(Iout/Number_of_Phases))*Fsw*Vin -> 0.2743488 | AN73: =Rs*R73^2 -> 0.003042343181 | AO73: =Iq*Vin -> 7.26e-05 | AP73: =CHOOSE(Ext_VCC, (Qg_Q1+Qg_Q2)*Fsw*'Design Regulator'!$G$80, (Qg_Q1+Qg_Q2)*Fsw*Vout, (Qg_Q1+Qg_Q2)*Fsw*Vin) -> 0.061486 | AQ73: =(Vin-VCC)*Fsw*(Qg_Q1+Qg_Q2)+(RdsonDRT+RdsonDRT2)*Fsw*Qg_Q1*VCC/(RdsonDRT+2*Rgate1+RdsonDRT2)+(RdsonDRB+RdsonDRB2)*Fsw*Qg_Q2*VCC/(RdsonDRB+2*Rgate2+RdsonDRB2) -> 0.08631736909 | AR73: =(Qg_Q1+Qg_Q2)*Fsw*(Vin-VCC) -> 0.0768575 | AS73: =SUM(AO73:AP73) -> 0.0615586 | AT73: =SUM(U73,X73,AA73,AG73,AK73,AL73,AM73,AS73,AN73) -> 0.5048723839 | AU73: =SUM(AG73,AK73,AL73,AM73,AS73) -> 0.3731252264 | AV73: =Vout*K73 -> 5.12 | AW73: 0.9102428732 | AX73: =ThetaJA_Q1*BD73 -> 3.190104908 | AY73: =ThetaJA_Q2*BE73 -> 1.40499724 | BA73: 91.02428732 | BB73: =U73 -> 0.1286612616 | BC73: =AG73+AK73+AM73 -> 0.3090836312 | BD73: =AG73+AM73*0.66 -> 0.2126736605 | BE73: =AK73+AM73*0.33 -> 0.09366648269 | BF73: =AN73 -> 0.003042343181 | BG73: 0.3706422312 | BH73: 7.264587732
A74: Part Power | B74: Value | C74: Units | G74: 65 | H74: 33 | I74: 1 | J74: =Iout*G74/100 -> 0.26 | K74: 0.26 | L74: 0.1750841751 | M74: 0.6071397194 | N74: 0.3868724961 | O74: =K74+N74/2 -> 0.453436248 | P74: =K74-N74/2 -> 0.06656375195 | Q74: 0 | R74: =SQRT(K74^2+(N74^2)/12) -> 0.2829708949 | S74: 0.008007252735 | T74: 0.12 | U74: 0.1288905427 | V74: =N74/SQRT(12) -> 0.1116804699 | W74: =RCoutEsr*V74^2 -> 2.494505471e-05 | X74: =W74 -> 2.494505471e-05 | Y74: =SQRT(M74*(1-M74))*SQRT(K74^2+(N74^2)/12) -> 0.1381990801 | Z74: =RCinEsr*Y74^2 -> 1.909898574e-05 | AA74: =Z74 -> 1.909898574e-05 | AB74: =SQRT(M74)*SQRT(K74^2+(N74^2)/12) -> 0.2204885752 | AC74: 0.001166765083 | AD74: 0.01114542 | AE74: 0.01929015 | AF74: 0 | AG74: 0.03181041608 | AH74: 0.1773621029 | AI74: 0.0005662316801 | AJ74: 0.002521792 | AK74: 0.003187303723 | AL74: 0.002521792 | AM74: 0.2786355 | AN74: 0.003122828567 | AO74: 7.26e-05 | AP74: =CHOOSE(Ext_VCC, (Qg_Q1+Qg_Q2)*Fsw*'Design Regulator'!$G$80, (Qg_Q1+Qg_Q2)*Fsw*Vout, (Qg_Q1+Qg_Q2)*Fsw*Vin) -> 0.061486 | AQ74: 0.08631736909 | AR74: 0.0768575 | AS74: 0.0615586 | AT74: 0.5097710271 | AU74: 0.3777136118 | AV74: 5.2 | AW74: =AV74/(AV74+AT74) -> 0.9107195324 | AX74: 3.235647691 | AY74: 1.427055281 | BA74: =AW74*100 -> 91.07195324 | BB74: 0.1288905427 | BC74: 0.3136332198 | BD74: 0.2157098461 | BE74: 0.09513701872 | BF74: 0.003122828567 | BG74: =BC74+AS74 -> 0.3751918198 | BH74: 7.353759668
A75: Power Dis | B75: =AS9 -> 0.0615586 | C75: W | G75: 66 | H75: 33 | I75: 1 | J75: 0.264 | K75: 0.264 | L75: 0.1777777778 | M75: 0.6071563168 | N75: 0.3868682742 | O75: 0.4574341371 | P75: 0.07056586288 | Q75: 0 | R75: 0.2866500569 | S75: 0.008216825513 | T75: 0.12 | U75: 0.1291233868 | V75: 0.1116792511 | W75: 2.494451027e-05 | X75: 2.494451027e-05 | Y75: 0.1399948883 | Z75: 1.959856875e-05 | AA75: 1.959856875e-05 | AB75: 0.2233584007 | AC75: 0.001197335403 | AD75: 0.011316888 | AE75: 0.01929015 | AF75: 0 | AG75: 0.0320179324 | AH75: 0.1796643537 | AI75: 0.0005810270398 | AJ75: 0.0025605888 | AK75: 0.00324349345 | AL75: 0.0025605888 | AM75: 0.2829222 | AN75: 0.00320456195 | AO75: 7.26e-05 | AP75: =CHOOSE(Ext_VCC, (Qg_Q1+Qg_Q2)*Fsw*'Design Regulator'!$G$80, (Qg_Q1+Qg_Q2)*Fsw*Vout, (Qg_Q1+Qg_Q2)*Fsw*Vin) -> 0.061486 | AQ75: 0.08631736909 | AR75: 0.0768575 | AS75: 0.0615586 | AT75: 0.5146753065 | AU75: 0.3823028147 | AV75: 5.28 | AW75: 0.9111813382 | AX75: 3.281198766 | AY75: 1.449117292 | BA75: 91.11813382 | BB75: 0.1291233868 | BC75: 0.3181836259 | BD75: 0.2187465844 | BE75: 0.09660781945 | BF75: 0.00320456195 | BG75: 0.3797422259 | BH75: =BG75*$B$63 -> 7.442947627
A76: Temp rise | B76: =B75*B62 -> 1.846758 | C76: °C | G76: 67 | H76: 33 | I76: 1 | J76: 0.268 | K76: 0.268 | L76: 0.1804713805 | M76: 0.607172914 | N76: 0.3868640515 | O76: 0.4614320257 | P76: 0.07456797425 | Q76: 0 | R76: 0.2903377049 | S76: 0.008429598286 | T76: 0.12 | U76: 0.1293597942 | V76: 0.1116780321 | W76: 2.494396572e-05 | X76: 2.494396572e-05 | Y76: 0.1417948138 | Z76: 2.010576923e-05 | AA76: 2.010576923e-05 | AB76: 0.2262349167 | AC76: 0.001228373701 | AD76: 0.011488356 | AE76: 0.01929015 | AF76: 0 | AG76: 0.03222600158 | AH76: 0.1819718256 | AI76: 0.0005960474155 | AJ76: 0.0025993856 | AK76: 0.00329994784 | AL76: 0.0025993856 | AM76: 0.2872089 | AN76: 0.003287543332 | AO76: 7.26e-05 | AP76: =CHOOSE(Ext_VCC, (Qg_Q1+Qg_Q2)*Fsw*'Design Regulator'!$G$80, (Qg_Q1+Qg_Q2)*Fsw*Vout, (Qg_Q1+Qg_Q2)*Fsw*Vin) -> 0.061486 | AQ76: 0.08631736909 | AR76: 0.0768575 | AS76: 0.0615586 | AT76: 0.5195852223 | AU76: 0.386892835 | AV76: 5.36 | AW76: 0.9116289325 | AX76: 3.326758134 | AY76: 1.471183273 | BA76: 91.16289325 | BB76: 0.1293597942 | BC76: 0.3227348494 | BD76: 0.2217838756 | BE76: 0.09807888484 | BF76: 0.003287543332 | BG76: 0.3842934494 | BH76: 7.532151609
A77: Current (switching) | B77: =(Qg_Q1+Qg_Q2)*Fsw+Iq -> 0.0030765 | C77: A | G77: 68 | H77: 33 | I77: 1 | J77: 0.272 | K77: 0.272 | L77: 0.1831649832 | M77: 0.6071895111 | N77: 0.3868598279 | O77: 0.4654299139 | P77: 0.07857008607 | Q77: 0 | R77: 0.2940335194 | S77: 0.008645571053 | T77: 0.12 | U77: 0.1295997653 | V77: 0.1116768129 | W77: 2.494342107e-05 | X77: 2.494342107e-05 | Y77: 0.1435987007 | Z77: 2.062058685e-05 | AA77: 2.062058685e-05 | AB77: 0.2291178749 | AC77: 0.001259880015 | AD77: 0.011659824 | AE77: 0.01929015 | AF77: 0 | AG77: 0.03243462371 | AH77: 0.1842843182 | AI77: 0.0006112927786 | AJ77: 0.0026381824 | AK77: 0.003356666865 | AL77: 0.0026381824 | AM77: 0.2914956 | AN77: 0.003371772711 | AO77: 7.26e-05 | AP77: =CHOOSE(Ext_VCC, (Qg_Q1+Qg_Q2)*Fsw*'Design Regulator'!$G$80, (Qg_Q1+Qg_Q2)*Fsw*Vout, (Qg_Q1+Qg_Q2)*Fsw*Vin) -> 0.061486 | AQ77: 0.08631736909 | AR77: 0.0768575 | AS77: 0.0615586 | AT77: 0.524500775 | AU77: 0.391483673 | AV77: 5.44 | AW77: 0.9120629211 | AX77: 3.372325796 | AY77: 1.493253223 | BA77: 91.20629211 | BB77: 0.1295997653 | BC77: 0.3272868906 | BD77: 0.2248217197 | BE77: 0.09955021486 | BF77: 0.003371772711 | BG77: 0.3888454906 | BH77: 7.621371615
A78: Qrr Current | B78: =Qrr_Q2*Fsw -> 0.01299 | C78: A | G78: 69 | H78: 33 | I78: 1 | J78: 0.276 | K78: 0.276 | L78: 0.1858585859 | M78: 0.6072061081 | N78: 0.3868556033 | O78: 0.4694278017 | P78: 0.08257219834 | Q78: 0 | R78: 0.2977371965 | S78: 0.008864743815 | T78: 0.12 | U78: 0.1298433004 | V78: 0.1116755934 | W78: 2.49428763e-05 | X78: 2.49428763e-05 | Y78: 0.1454064004 | Z78: 2.114302127e-05 | AA78: 2.114302127e-05 | AB78: 0.2320070385 | AC78: 0.001291854382 | AD78: 0.011831292 | AE78: 0.01929015 | AF78: 0 | AG78: 0.03264379886 | AH78: 0.1866016405 | AI78: 0.0006267631003 | AJ78: 0.0026769792 | AK78: 0.003413650496 | AL78: 0.0026769792 | AM78: 0.2957823 | AN78: 0.003457250088 | AO78: 7.26e-05 | AP78: =CHOOSE(Ext_VCC, (Qg_Q1+Qg_Q2)*Fsw*'Design Regulator'!$G$80, (Qg_Q1+Qg_Q2)*Fsw*Vout, (Qg_Q1+Qg_Q2)*Fsw*Vin) -> 0.061486 | AQ78: 0.08631736909 | AR78: 0.0768575 | AS78: 0.0615586 | AT78: 0.5294219649 | AU78: 0.3960753286 | AV78: 5.52 | AW78: 0.9124838756 | AX78: 3.417901753 | AY78: 1.515327142 | BA78: 91.24838756 | BB78: 0.1298433004 | BC78: 0.3318397494 | BD78: 0.2278601169 | BE78: 0.1010218095 | BF78: 0.003457250088 | BG78: 0.3933983494 | BH78: 7.710607647
A79: Diode Current | B79: =Deadtime*Fsw*(Iripple_Vinnom/2)*(Vsd_Q2)/Vin -> 2.851254912e-05 | G79: 70 | H79: 33 | I79: 1 | J79: 0.28 | K79: 0.28 | L79: 0.1885521886 | M79: 0.6072227049 | N79: 0.3868513779 | O79: 0.4734256889 | P79: 0.08657431105 | Q79: 0 | R79: 0.3014484462 | S79: 0.009087116572 | T79: 0.12 | U79: 0.1300904 | V79: 0.1116743736 | W79: 2.494233143e-05 | X79: 2.494233143e-05 | Y79: 0.1472177711 | Z79: 2.167307213e-05 | AA79: 2.167307213e-05 | AB79: 0.2349021819 | AC79: 0.001324296841 | AD79: 0.01200276 | AE79: 0.01929015 | AF79: 0 | AG79: 0.03285352711 | AH79: 0.1889236107 | AI79: 0.0006424583521 | AJ79: 0.002715776 | AK79: 0.003470898704 | AL79: 0.002715776 | AM79: 0.300069 | AN79: 0.003543975463 | AO79: 7.26e-05 | AP79: =CHOOSE(Ext_VCC, (Qg_Q1+Qg_Q2)*Fsw*'Design Regulator'!$G$80, (Qg_Q1+Qg_Q2)*Fsw*Vout, (Qg_Q1+Qg_Q2)*Fsw*Vin) -> 0.061486 | AQ79: 0.08631736909 | AR79: 0.0768575 | AS79: 0.0615586 | AT79: 0.5343487926 | AU79: 0.4006678018 | AV79: 5.6 | AW79: 0.9128923361 | AX79: 3.463486007 | AY79: 1.537405031 | BA79: 91.28923361 | BB79: 0.1300904 | BC79: 0.3363934258 | BD79: 0.2308990671 | BE79: 0.1024936687 | BF79: 0.003543975463 | BG79: 0.3979520258 | BH79: 7.799859706
A80: Total | B80: =SUM(B77:B79) -> 0.01609501255 | C80: A | G80: 71 | H80: 33 | I80: 1 | J80: 0.284 | K80: 0.284 | L80: 0.1912457912 | M80: 0.6072393016 | N80: 0.3868471516 | O80: 0.4774235758 | P80: 0.09057642421 | Q80: 0 | R80: 0.3051669924 | S80: 0.009312689322 | T80: 0.12 | U80: 0.1303410643 | V80: 0.1116731535 | W80: 2.494178645e-05 | X80: 2.494178645e-05 | Y80: 0.1490326779 | Z80: 2.221073909e-05 | AA80: 2.221073909e-05 | AB80: 0.23780309 | AC80: 0.00135720743 | AD80: 0.012174228 | AE80: 0.01929015 | AF80: 0 | AG80: 0.03306380855 | AH80: 0.1912500552 | AI80: 0.0006583785052 | AJ80: 0.0027545728 | AK80: 0.003528411462 | AL80: 0.0027545728 | AM80: 0.3043557 | AN80: 0.003631948836 | AO80: 7.26e-05 | AP80: =CHOOSE(Ext_VCC, (Qg_Q1+Qg_Q2)*Fsw*'Design Regulator'!$G$80, (Qg_Q1+Qg_Q2)*Fsw*Vout, (Qg_Q1+Qg_Q2)*Fsw*Vin) -> 0.061486 | AQ80: 0.08631736909 | AR80: 0.0768575 | AS80: 0.0615586 | AT80: 0.5392812585 | AU80: 0.4052610928 | AV80: 5.68 | AW80: 0.9132888133 | AX80: 3.509078558 | AY80: 1.559486887 | BA80: 91.32888133 | BB80: 0.1303410643 | BC80: 0.34094792 | BD80: 0.2339385705 | BE80: 0.1039657925 | BF80: 0.003631948836 | BG80: 0.40250652 | BH80: 7.889127792
G81: 72 | H81: 33 | I81: 1 | J81: 0.288 | K81: 0.288 | L81: 0.1939393939 | M81: 0.6072558982 | N81: 0.3868429244 | O81: 0.4814214622 | P81: 0.09457853782 | Q81: 0 | R81: 0.3088925714 | S81: 0.009541462068 | T81: 0.12 | U81: 0.1305952939 | V81: 0.1116719333 | W81: 2.494124135e-05 | X81: 2.494124135e-05 | Y81: 0.1508509921 | Z81: 2.275602181e-05 | AA81: 2.275602181e-05 | AB81: 0.2407095577 | AC81: 0.001390586188 | AD81: 0.012345696 | AE81: 0.01929015 | AF81: 0 | AG81: 0.03327464325 | AH81: 0.1935808087 | AI81: 0.000674523531 | AJ81: 0.0027933696 | AK81: 0.003586188741 | AL81: 0.0027933696 | AM81: 0.3086424 | AN81: 0.003721170206 | AO81: 7.26e-05 | AP81: =CHOOSE(Ext_VCC, (Qg_Q1+Qg_Q2)*Fsw*'Design Regulator'!$G$80, (Qg_Q1+Qg_Q2)*Fsw*Vout, (Qg_Q1+Qg_Q2)*Fsw*Vin) -> 0.061486 | AQ81: 0.08631736909 | AR81: 0.0768575 | AS81: 0.0615586 | AT81: 0.5442193629 | AU81: 0.4098552016 | AV81: 5.76 | AW81: 0.9136737903 | AX81: 3.554679409 | AY81: 1.581572711 | BA81: 91.36737903 | BB81: 0.1305952939 | BC81: 0.345503232 | BD81: 0.2369786273 | BE81: 0.1054381807 | BF81: 0.003721170206 | BG81: 0.407061832 | BH81: 7.978411907
G82: 73 | H82: 33 | I82: 1 | J82: 0.292 | K82: 0.292 | L82: 0.1966329966 | M82: 0.6072724946 | N82: 0.3868386963 | O82: 0.4854193481 | P82: 0.09858065187 | Q82: 0 | R82: 0.3126249319 | S82: 0.009773434808 | T82: 0.12 | U82: 0.130853089 | V82: 0.1116707127 | W82: 2.494069615e-05 | X82: 2.494069615e-05 | Y82: 0.1526725907 | Z82: 2.330891995e-05 | AA82: 2.330891995e-05 | AB82: 0.2436213894 | AC82: 0.001424433153 | AD82: 0.012517164 | AE82: 0.01929015 | AF82: 0 | AG82: 0.03348603131 | AH82: 0.1959157133 | AI82: 0.0006908934008 | AJ82: 0.0028321664 | AK82: 0.003644230512 | AL82: 0.0028321664 | AM82: 0.3129291 | AN82: 0.003811639575 | AO82: 7.26e-05 | AP82: =CHOOSE(Ext_VCC, (Qg_Q1+Qg_Q2)*Fsw*'Design Regulator'!$G$80, (Qg_Q1+Qg_Q2)*Fsw*Vout, (Qg_Q1+Qg_Q2)*Fsw*Vin) -> 0.061486 | AQ82: 0.08631736909 | AR82: 0.0768575 | AS82: 0.0615586 | AT82: 0.5491631064 | AU82: 0.4144501282 | AV82: 5.84 | AW82: 0.9140477247 | AX82: 3.60028856 | AY82: 1.603662503 | BA82: 91.40477247 | BB82: 0.130853089 | BC82: 0.3500593618 | BD82: 0.2400192373 | BE82: 0.1069108335 | BF82: 0.003811639575 | BG82: 0.4116179618 | BH82: 8.067712052
G83: 74 | H83: 33 | I83: 1 | J83: 0.296 | K83: 0.296 | L83: 0.1993265993 | M83: 0.6072890909 | N83: 0.3868344673 | O83: 0.4894172336 | P83: 0.1025827664 | Q83: 0 | R83: 0.3163638339 | S83: 0.01000860754 | T83: 0.12 | U83: 0.1311144501 | V83: 0.1116694919 | W83: 2.494015084e-05 | X83: 2.494015084e-05 | Y83: 0.1544973564 | Z83: 2.386943314e-05 | AA83: 2.386943314e-05 | AB83: 0.2465383981 | AC83: 0.001458748362 | AD83: 0.012688632 | AE83: 0.01929015 | AF83: 0 | AG83: 0.0336979728 | AH83: 0.1982546183 | AI83: 0.000707488086 | AJ83: 0.0028709632 | AK83: 0.003702536749 | AL83: 0.0028709632 | AM83: 0.3172158 | AN83: 0.003903356941 | AO83: 7.26e-05 | AP83: =CHOOSE(Ext_VCC, (Qg_Q1+Qg_Q2)*Fsw*'Design Regulator'!$G$80, (Qg_Q1+Qg_Q2)*Fsw*Vout, (Qg_Q1+Qg_Q2)*Fsw*Vin) -> 0.061486 | AQ83: 0.08631736909 | AR83: 0.0768575 | AS83: 0.0615586 | AT83: 0.5541124894 | AU83: 0.4190458727 | AV83: 5.92 | AW83: 0.9144110501 | AX83: 3.645906012 | AY83: 1.625756261 | BA83: 91.44110501 | BB83: 0.1311144501 | BC83: 0.3546163095 | BD83: 0.2430604008 | BE83: 0.1083837507 | BF83: 0.003903356941 | BG83: 0.4161749095 | BH83: 8.157028227
G84: 75 | H84: 33 | I84: 1 | J84: 0.3 | K84: 0.3 | L84: 0.202020202 | M84: 0.6073056871 | N84: 0.3868302374 | O84: 0.4934151187 | P84: 0.1065848813 | Q84: 0 | R84: 0.3201090482 | S84: 0.01024698027 | T84: 0.12 | U84: 0.1313793776 | V84: 0.1116682708 | W84: 2.493960542e-05 | X84: 2.493960542e-05 | Y84: 0.1563251773 | Z84: 2.443756106e-05 | AA84: 2.443756106e-05 | AB84: 0.2494604056 | AC84: 0.001493531855 | AD84: 0.0128601 | AE84: 0.01929015 | AF84: 0 | AG84: 0.0339104678 | AH84: 0.2005973798 | AI84: 0.0007243075579 | AJ84: 0.00290976 | AK84: 0.003761107421 | AL84: 0.00290976 | AM84: 0.3215025 | AN84: 0.003996322306 | AO84: 7.26e-05 | AP84: =CHOOSE(Ext_VCC, (Qg_Q1+Qg_Q2)*Fsw*'Design Regulator'!$G$80, (Qg_Q1+Qg_Q2)*Fsw*Vout, (Qg_Q1+Qg_Q2)*Fsw*Vin) -> 0.061486 | AQ84: 0.08631736909 | AR84: 0.0768575 | AS84: 0.0615586 | AT84: 0.5590675123 | AU84: 0.4236424352 | AV84: 6 | AW84: 0.9147641778 | AX84: 3.691531767 | AY84: 1.647853986 | BA84: 91.47641778 | BB84: 0.1313793776 | BC84: 0.3591740752 | BD84: 0.2461021178 | BE84: 0.1098569324 | BF84: 0.003996322306 | BG84: 0.4207326752 | BH84: 8.246360434
G85: 76 | H85: 33 | I85: 1 | J85: 0.304 | K85: 0.304 | L85: 0.2047138047 | M85: 0.6073222831 | N85: 0.3868260066 | O85: 0.4974130033 | P85: 0.1105869967 | Q85: 0 | R85: 0.3238603556 | S85: 0.01048855299 | T85: 0.12 | U85: 0.1316478719 | V85: 0.1116670495 | W85: 2.493905989e-05 | X85: 2.493905989e-05 | Y85: 0.1581559463 | Z85: 2.501330335e-05 | AA85: 2.501330335e-05 | AB85: 0.2523872412 | AC85: 0.001528783668 | AD85: 0.013031568 | AE85: 0.01929015 | AF85: 0 | AG85: 0.0341235164 | AH85: 0.2029438603 | AI85: 0.0007413517878 | AJ85: 0.0029485568 | AK85: 0.003819942502 | AL85: 0.0029485568 | AM85: 0.3257892 | AN85: 0.004090535668 | AO85: 7.26e-05 | AP85: =CHOOSE(Ext_VCC, (Qg_Q1+Qg_Q2)*Fsw*'Design Regulator'!$G$80, (Qg_Q1+Qg_Q2)*Fsw*Vout, (Qg_Q1+Qg_Q2)*Fsw*Vin) -> 0.061486 | AQ85: 0.08631736909 | AR85: 0.0768575 | AS85: 0.0615586 | AT85: 0.5640281757 | AU85: 0.4282398157 | AV85: 6.08 | AW85: 0.9151074979 | AX85: 3.737165826 | AY85: 1.669955678 | BA85: 91.51074979 | BB85: 0.1316478719 | BC85: 0.3637326589 | BD85: 0.2491443884 | BE85: 0.1113303785 | BF85: 0.004090535668 | BG85: 0.4252912589 | BH85: 8.335708674
G86: 77 | H86: 33 | I86: 1 | J86: 0.308 | K86: 0.308 | L86: 0.2074074074 | M86: 0.607338879 | N86: 0.3868217749 | O86: 0.5014108874 | P86: 0.1145891126 | Q86: 0 | R86: 0.327617547 | S86: 0.01073332571 | T86: 0.12 | U86: 0.1319199335 | V86: 0.1116658279 | W86: 2.493851425e-05 | X86: 2.493851425e-05 | Y86: 0.1599895611 | Z86: 2.559665968e-05 | AA86: 2.559665968e-05 | AB86: 0.2553187421 | AC86: 0.001564503842 | AD86: 0.013203036 | AE86: 0.01929015 | AF86: 0 | AG86: 0.03433711867 | AH86: 0.2052939285 | AI86: 0.0007586207471 | AJ86: 0.0029873536 | AK86: 0.003879041964 | AL86: 0.0029873536 | AM86: 0.3300759 | AN86: 0.004185997028 | AO86: 7.26e-05 | AP86: =CHOOSE(Ext_VCC, (Qg_Q1+Qg_Q2)*Fsw*'Design Regulator'!$G$80, (Qg_Q1+Qg_Q2)*Fsw*Vout, (Qg_Q1+Qg_Q2)*Fsw*Vin) -> 0.061486 | AQ86: 0.08631736909 | AR86: 0.0768575 | AS86: 0.0615586 | AT86: 0.5689944799 | AU86: 0.4328380142 | AV86: 6.16 | AW86: 0.9154413811 | AX86: 3.78280819 | AY86: 1.692061334 | BA86: 91.54413811 | BB86: 0.1319199335 | BC86: 0.3682920606 | BD86: 0.2521872127 | BE86: 0.112804089 | BF86: 0.004185997028 | BG86: 0.4298506606 | BH86: 8.425072948
G87: 78 | H87: 33 | I87: 1 | J87: 0.312 | K87: 0.312 | L87: 0.2101010101 | M87: 0.6073554748 | N87: 0.3868175423 | O87: 0.5054087712 | P87: 0.1185912288 | Q87: 0 | R87: 0.3313804223 | S87: 0.01098129843 | T87: 0.12 | U87: 0.1321955626 | V87: 0.1116646061 | W87: 2.493796851e-05 | X87: 2.493796851e-05 | Y87: 0.161825924 | Z87: 2.618762968e-05 | AA87: 2.618762968e-05 | AB87: 0.2582547525 | AC87: 0.001600692413 | AD87: 0.013374504 | AE87: 0.01929015 | AF87: 0 | AG87: 0.03455127471 | AH87: 0.2076474586 | AI87: 0.0007761144072 | AJ87: 0.0030261504 | AK87: 0.003938405777 | AL87: 0.0030261504 | AM87: 0.3343626 | AN87: 0.004282706386 | AO87: 7.26e-05 | AP87: =CHOOSE(Ext_VCC, (Qg_Q1+Qg_Q2)*Fsw*'Design Regulator'!$G$80, (Qg_Q1+Qg_Q2)*Fsw*Vout, (Qg_Q1+Qg_Q2)*Fsw*Vin) -> 0.061486 | AQ87: 0.08631736909 | AR87: 0.0768575 | AS87: 0.0615586 | AT87: 0.5739664255 | AU87: 0.4374370309 | AV87: 6.24 | AW87: 0.9157661794 | AX87: 3.828458861 | AY87: 1.714170957 | BA87: 91.57661794 | BB87: 0.1321955626 | BC87: 0.3728522805 | BD87: 0.2552305907 | BE87: 0.1142780638 | BF87: 0.004282706386 | BG87: 0.4344108805 | BH87: 8.514453258
G88: 79 | H88: 33 | I88: 1 | J88: 0.316 | K88: 0.316 | L88: 0.2127946128 | M88: 0.6073720704 | N88: 0.3868133088 | O88: 0.5094066544 | P88: 0.1225933456 | Q88: 0 | R88: 0.3351487898 | S88: 0.01123247113 | T88: 0.12 | U88: 0.1324747598 | V88: 0.111663384 | W88: 2.493742265e-05 | X88: 2.493742265e-05 | Y88: 0.1636649413 | Z88: 2.678621302e-05 | AA88: 2.678621302e-05 | AB88: 0.2611951234 | AC88: 0.001637349419 | AD88: 0.013545972 | AE88: 0.01929015 | AF88: 0 | AG88: 0.03476598459 | AH88: 0.2100043305 | AI88: 0.0007938327393 | AJ88: 0.0030649472 | AK88: 0.003998033914 | AL88: 0.0030649472 | AM88: 0.3386493 | AN88: 0.004380663742 | AO88: 7.26e-05 | AP88: =CHOOSE(Ext_VCC, (Qg_Q1+Qg_Q2)*Fsw*'Design Regulator'!$G$80, (Qg_Q1+Qg_Q2)*Fsw*Vout, (Qg_Q1+Qg_Q2)*Fsw*Vin) -> 0.061486 | AQ88: 0.08631736909 | AR88: 0.0768575 | AS88: 0.0615586 | AT88: 0.5789440128 | AU88: 0.4420368657 | AV88: 6.32 | AW88: 0.9160822277 | AX88: 3.874117839 | AY88: 1.736284544 | BA88: 91.60822277 | BB88: 0.1324747598 | BC88: 0.3774133185 | BD88: 0.2582745226 | BE88: 0.1157523029 | BF88: 0.004380663742 | BG88: 0.4389719185 | BH88: 8.603849603
G89: 80 | H89: 33 | I89: 1 | J89: 0.32 | K89: 0.32 | L89: 0.2154882155 | M89: 0.6073886659 | N89: 0.3868090745 | O89: 0.5134045372 | P89: 0.1265954628 | Q89: 0 | R89: 0.3389224666 | S89: 0.01148684383 | T89: 0.12 | U89: 0.1327575254 | V89: 0.1116621616 | W89: 2.493687668e-05 | X89: 2.493687668e-05 | Y89: 0.1655065236 | Z89: 2.739240936e-05 | AA89: 2.739240936e-05 | AB89: 0.2641397121 | AC89: 0.001674474901 | AD89: 0.01371744 | AE89: 0.01929015 | AF89: 0 | AG89: 0.03498124841 | AH89: 0.2123644293 | AI89: 0.0008117757148 | AJ89: 0.003103744 | AK89: 0.004057926348 | AL89: 0.003103744 | AM89: 0.342936 | AN89: 0.004479869095 | AO89: 7.26e-05 | AP89: =CHOOSE(Ext_VCC, (Qg_Q1+Qg_Q2)*Fsw*'Design Regulator'!$G$80, (Qg_Q1+Qg_Q2)*Fsw*Vout, (Qg_Q1+Qg_Q2)*Fsw*Vin) -> 0.061486 | AQ89: 0.08631736909 | AR89: 0.0768575 | AS89: 0.0615586 | AT89: 0.5839272426 | AU89: 0.4466375188 | AV89: 6.4 | AW89: 0.9163898445 | AX89: 3.919785126 | AY89: 1.758402095 | BA89: 91.63898445 | BB89: 0.1327575254 | BC89: 0.3819751748 | BD89: 0.2613190084 | BE89: 0.1172268063 | BF89: 0.004479869095 | BG89: 0.4435337748 | BH89: 8.693261985
G90: 81 | H90: 33 | I90: 1 | J90: 0.324 | K90: 0.324 | L90: 0.2181818182 | M90: 0.6074052613 | N90: 0.3868048392 | O90: 0.5174024196 | P90: 0.1305975804 | Q90: 0 | R90: 0.3427012771 | S90: 0.01174441653 | T90: 0.12 | U90: 0.13304386 | V90: 0.111660939 | W90: 2.493633061e-05 | X90: 2.493633061e-05 | Y90: 0.1673505851 | Z90: 2.800621834e-05 | AA90: 2.800621834e-05 | AB90: 0.2670883822 | AC90: 0.001712068894 | AD90: 0.013888908 | AE90: 0.01929015 | AF90: 0 | AG90: 0.03519706623 | AH90: 0.2147276447 | AI90: 0.000829943305 | AJ90: 0.0031425408 | AK90: 0.00411808305 | AL90: 0.0031425408 | AM90: 0.3472227 | AN90: 0.004580322447 | AO90: 7.26e-05 | AP90: =CHOOSE(Ext_VCC, (Qg_Q1+Qg_Q2)*Fsw*'Design Regulator'!$G$80, (Qg_Q1+Qg_Q2)*Fsw*Vout, (Qg_Q1+Qg_Q2)*Fsw*Vin) -> 0.061486 | AQ90: 0.08631736909 | AR90: 0.0768575 | AS90: 0.0615586 | AT90: 0.5889161151 | AU90: 0.4512389901 | AV90: 6.48 | AW90: 0.9166893332 | AX90: 3.965460723 | AY90: 1.780523611 | BA90: 91.66893332 | BB90: 0.13304386 | BC90: 0.3865378493 | BD90: 0.2643640482 | BE90: 0.118701574 | BF90: 0.004580322447 | BG90: 0.4480964493 | BH90: 8.782690406
G91: 82 | H91: 33 | I91: 1 | J91: 0.328 | K91: 0.328 | L91: 0.2208754209 | M91: 0.6074218565 | N91: 0.3868006031 | O91: 0.5214003015 | P91: 0.1345996985 | Q91: 0 | R91: 0.3464850534 | S91: 0.01200518922 | T91: 0.12 | U91: 0.1333337639 | V91: 0.1116597162 | W91: 2.493578442e-05 | X91: 2.493578442e-05 | Y91: 0.1691970437 | Z91: 2.862763961e-05 | AA91: 2.862763961e-05 | AB91: 0.2700410029 | AC91: 0.001750131438 | AD91: 0.014060376 | AE91: 0.01929015 | AF91: 0 | AG91: 0.03541343815 | AH91: 0.2170938713 | AI91: 0.0008483354813 | AJ91: 0.0031813376 | AK91: 0.004178503992 | AL91: 0.0031813376 | AM91: 0.3515094 | AN91: 0.004682023796 | AO91: 7.26e-05 | AP91: =CHOOSE(Ext_VCC, (Qg_Q1+Qg_Q2)*Fsw*'Design Regulator'!$G$80, (Qg_Q1+Qg_Q2)*Fsw*Vout, (Qg_Q1+Qg_Q2)*Fsw*Vin) -> 0.061486 | AQ91: 0.08631736909 | AR91: 0.0768575 | AS91: 0.0615586 | AT91: 0.5939106309 | AU91: 0.4558412797 | AV91: 6.56 | AW91: 0.9169809826 | AX91: 4.011144632 | AY91: 1.80264909 | BA91: 91.69809826 | BB91: 0.1333337639 | BC91: 0.3911013421 | BD91: 0.2674096421 | BE91: 0.120176606 | BF91: 0.004682023796 | BG91: 0.4526599421 | BH91: 8.872134866
G92: 83 | H92: 33 | I92: 1 | J92: 0.332 | K92: 0.332 | L92: 0.2235690236 | M92: 0.6074384516 | N92: 0.386796366 | O92: 0.525398183 | P92: 0.138601817 | Q92: 0 | R92: 0.3502736346 | S92: 0.01226916191 | T92: 0.12 | U92: 0.1336272376 | V92: 0.111658493 | W92: 2.493523813e-05 | X92: 2.493523813e-05 | Y92: 0.1710458209 | Z92: 2.925667284e-05 | AA92: 2.925667284e-05 | AB92: 0.2729974489 | AC92: 0.001788662571 | AD92: 0.014231844 | AE92: 0.01929015 | AF92: 0 | AG92: 0.03563036424 | AH92: 0.2194630082 | AI92: 0.0008669522151 | AJ92: 0.0032201344 | AK92: 0.004239189146 | AL92: 0.0032201344 | AM92: 0.3557961 | AN92: 0.004784973144 | AO92: 7.26e-05 | AP92: =CHOOSE(Ext_VCC, (Qg_Q1+Qg_Q2)*Fsw*'Design Regulator'!$G$80, (Qg_Q1+Qg_Q2)*Fsw*Vout, (Qg_Q1+Qg_Q2)*Fsw*Vin) -> 0.061486 | AQ92: 0.08631736909 | AR92: 0.0768575 | AS92: 0.0615586 | AT92: 0.5989107905 | AU92: 0.4604443878 | AV92: 6.64 | AW92: 0.9172650682 | AX92: 4.056836854 | AY92: 1.824778532 | BA92: 91.72650682 | BB92: 0.1336272376 | BC92: 0.3956656534 | BD92: 0.2704557902 | BE92: 0.1216519021 | BF92: 0.004784973144 | BG92: 0.4572242534 | BH92: 8.961595366
G93: 84 | H93: 33 | I93: 1 | J93: 0.336 | K93: 0.336 | L93: 0.2262626263 | M93: 0.6074550466 | N93: 0.3867921281 | O93: 0.5293960641 | P93: 0.1426039359 | Q93: 0 | R93: 0.3540668664 | S93: 0.01253633459 | T93: 0.12 | U93: 0.1339242816 | V93: 0.1116572696 | W93: 2.493469173e-05 | X93: 2.493469173e-05 | Y93: 0.1728968412 | Z93: 2.989331768e-05 | AA93: 2.989331768e-05 | AB93: 0.2759576002 | AC93: 0.001827662331 | AD93: 0.014403312 | AE93: 0.01929015 | AF93: 0 | AG93: 0.0358478446 | AH93: 0.2218349584 | AI93: 0.0008857934776 | AJ93: 0.0032589312 | AK93: 0.004300138485 | AL93: 0.0032589312 | AM93: 0.3600828 | AN93: 0.004889170489 | AO93: 7.26e-05 | AP93: =CHOOSE(Ext_VCC, (Qg_Q1+Qg_Q2)*Fsw*'Design Regulator'!$G$80, (Qg_Q1+Qg_Q2)*Fsw*Vout, (Qg_Q1+Qg_Q2)*Fsw*Vin) -> 0.061486 | AQ93: 0.08631736909 | AR93: 0.0768575 | AS93: 0.0615586 | AT93: 0.6039165944 | AU93: 0.4650483143 | AV93: 6.72 | AW93: 0.9175418526 | AX93: 4.102537389 | AY93: 1.846911937 | BA93: 91.75418526 | BB93: 0.1339242816 | BC93: 0.4002307831 | BD93: 0.2735024926 | BE93: 0.1231274625 | BF93: 0.004889170489 | BG93: 0.4617893831 | BH93: 9.051071909
G94: 85 | H94: 33 | I94: 1 | J94: 0.34 | K94: 0.34 | L94: 0.228956229 | M94: 0.6074716415 | N94: 0.3867878893 | O94: 0.5333939446 | P94: 0.1466060554 | Q94: 0 | R94: 0.3578646009 | S94: 0.01280670726 | T94: 0.12 | U94: 0.1342248963 | V94: 0.111656046 | W94: 2.493414521e-05 | X94: 2.493414521e-05 | Y94: 0.1747500323 | Z94: 3.053757378e-05 | AA94: 3.053757378e-05 | AB94: 0.2789213416 | AC94: 0.001867130756 | AD94: 0.01457478 | AE94: 0.01929015 | AF94: 0 | AG94: 0.03606587931 | AH94: 0.2242096291 | AI94: 0.0009048592403 | AJ94: 0.003297728 | AK94: 0.00436135198 | AL94: 0.003297728 | AM94: 0.3643695 | AN94: 0.004994615832 | AO94: 7.26e-05 | AP94: =CHOOSE(Ext_VCC, (Qg_Q1+Qg_Q2)*Fsw*'Design Regulator'!$G$80, (Qg_Q1+Qg_Q2)*Fsw*Vout, (Qg_Q1+Qg_Q2)*Fsw*Vin) -> 0.061486 | AQ94: 0.08631736909 | AR94: 0.0768575 | AS94: 0.0615586 | AT94: 0.6089280431 | AU94: 0.4696530593 | AV94: 6.8 | AW94: 0.9178115863 | AX94: 4.14824624 | AY94: 1.869049305 | BA94: 91.78115863 | BB94: 0.1342248963 | BC94: 0.4047967313 | BD94: 0.2765497493 | BE94: 0.124603287 | BF94: 0.004994615832 | BG94: 0.4663553313 | BH94: 9.140564493
G95: 86 | H95: 33 | I95: 1 | J95: 0.344 | K95: 0.344 | L95: 0.2316498316 | M95: 0.6074882362 | N95: 0.3867836495 | O95: 0.5373918248 | P95: 0.1506081752 | Q95: 0 | R95: 0.3616666964 | S95: 0.01308027993 | T95: 0.12 | U95: 0.1345290822 | V95: 0.1116548221 | W95: 2.493359859e-05 | X95: 2.493359859e-05 | Y95: 0.1766053249 | Z95: 3.118944079e-05 | AA95: 3.118944079e-05 | AB95: 0.2818885628 | AC95: 0.001907067884 | AD95: 0.014746248 | AE95: 0.01929015 | AF95: 0 | AG95: 0.03628446844 | AH95: 0.2265869314 | AI95: 0.0009241494744 | AJ95: 0.0033365248 | AK95: 0.004422829605 | AL95: 0.0033365248 | AM95: 0.3686562 | AN95: 0.005101309173 | AO95: 7.26e-05 | AP95: =CHOOSE(Ext_VCC, (Qg_Q1+Qg_Q2)*Fsw*'Design Regulator'!$G$80, (Qg_Q1+Qg_Q2)*Fsw*Vout, (Qg_Q1+Qg_Q2)*Fsw*Vin) -> 0.061486 | AQ95: 0.08631736909 | AR95: 0.0768575 | AS95: 0.0615586 | AT95: 0.6139451372 | AU95: 0.4742586228 | AV95: 6.88 | AW95: 0.9180745087 | AX95: 4.193963407 | AY95: 1.891190634 | BA95: 91.80745087 | BB95: 0.1345290822 | BC95: 0.409363498 | BD95: 0.2795975604 | BE95: 0.1260793756 | BF95: 0.005101309173 | BG95: 0.470922098 | BH95: 9.230073122
G96: 87 | H96: 33 | I96: 1 | J96: 0.348 | K96: 0.348 | L96: 0.2343434343 | M96: 0.6075048307 | N96: 0.3867794089 | O96: 0.5413897045 | P96: 0.1546102955 | Q96: 0 | R96: 0.3654730167 | S96: 0.01335705259 | T96: 0.12 | U96: 0.1348368397 | V96: 0.1116535979 | W96: 2.493305186e-05 | X96: 2.493305186e-05 | Y96: 0.1784626526 | Z96: 3.184891836e-05 | AA96: 3.184891836e-05 | AB96: 0.2848591577 | AC96: 0.001947473754 | AD96: 0.014917716 | AE96: 0.01929015 | AF96: 0 | AG96: 0.03650361209 | AH96: 0.2289667796 | AI96: 0.0009436641513 | AJ96: 0.0033753216 | AK96: 0.00448457133 | AL96: 0.0033753216 | AM96: 0.3729429 | AN96: 0.005209250511 | AO96: 7.26e-05 | AP96: =CHOOSE(Ext_VCC, (Qg_Q1+Qg_Q2)*Fsw*'Design Regulator'!$G$80, (Qg_Q1+Qg_Q2)*Fsw*Vout, (Qg_Q1+Qg_Q2)*Fsw*Vin) -> 0.061486 | AQ96: 0.08631736909 | AR96: 0.0768575 | AS96: 0.0615586 | AT96: 0.6189678772 | AU96: 0.478865005 | AV96: 6.96 | AW96: 0.9183308483 | AX96: 4.239688891 | AY96: 1.913335925 | BA96: 91.83308483 | BB96: 0.1348368397 | BC96: 0.4139310834 | BD96: 0.2826459261 | BE96: 0.1275557283 | BF96: 0.005209250511 | BG96: 0.4754896834 | BH96: 9.319597795
G97: 88 | H97: 33 | I97: 1 | J97: 0.352 | K97: 0.352 | L97: 0.237037037 | M97: 0.6075214252 | N97: 0.3867751674 | O97: 0.5453875837 | P97: 0.1586124163 | Q97: 0 | R97: 0.3692834311 | S97: 0.01363702525 | T97: 0.12 | U97: 0.1351481693 | V97: 0.1116523735 | W97: 2.493250502e-05 | X97: 2.493250502e-05 | Y97: 0.1803219514 | Z97: 3.251600616e-05 | AA97: 3.251600616e-05 | AB97: 0.2878330248 | AC97: 0.001988348404 | AD97: 0.015089184 | AE97: 0.01929015 | AF97: 0 | AG97: 0.03672331034 | AH97: 0.231349092 | AI97: 0.0009634032423 | AJ97: 0.0034141184 | AK97: 0.004546577129 | AL97: 0.0034141184 | AM97: 0.3772296 | AN97: 0.005318439848 | AO97: 7.26e-05 | AP97: =CHOOSE(Ext_VCC, (Qg_Q1+Qg_Q2)*Fsw*'Design Regulator'!$G$80, (Qg_Q1+Qg_Q2)*Fsw*Vout, (Qg_Q1+Qg_Q2)*Fsw*Vin) -> 0.061486 | AQ97: 0.08631736909 | AR97: 0.0768575 | AS97: 0.0615586 | AT97: 0.6239962635 | AU97: 0.4834722059 | AV97: 7.04 | AW97: 0.9185808236 | AX97: 4.285422695 | AY97: 1.935485177 | BA97: 91.85808236 | BB97: 0.1351481693 | BC97: 0.4184994875 | BD97: 0.2856948463 | BE97: 0.1290323451 | BF97: 0.005318439848 | BG97: 0.4800580875 | BH97: 9.409138514
G98: 89 | H98: 33 | I98: 1 | J98: 0.356 | K98: 0.356 | L98: 0.2397306397 | M98: 0.6075380195 | N98: 0.386770925 | O98: 0.5493854625 | P98: 0.1626145375 | Q98: 0 | R98: 0.3730978143 | S98: 0.0139201979 | T98: 0.12 | U98: 0.1354630715 | V98: 0.1116511488 | W98: 2.493195807e-05 | X98: 2.493195807e-05 | Y98: 0.1821831601 | Z98: 3.319070382e-05 | AA98: 3.319070382e-05 | AB98: 0.2908100663 | AC98: 0.002029691872 | AD98: 0.015260652 | AE98: 0.01929015 | AF98: 0 | AG98: 0.03694356327 | AH98: 0.2337337896 | AI98: 0.0009833667189 | AJ98: 0.0034529152 | AK98: 0.004608846974 | AL98: 0.0034529152 | AM98: 0.3815163 | AN98: 0.005428877182 | AO98: 7.26e-05 | AP98: =CHOOSE(Ext_VCC, (Qg_Q1+Qg_Q2)*Fsw*'Design Regulator'!$G$80, (Qg_Q1+Qg_Q2)*Fsw*Vout, (Qg_Q1+Qg_Q2)*Fsw*Vin) -> 0.061486 | AQ98: 0.08631736909 | AR98: 0.0768575 | AS98: 0.0615586 | AT98: 0.6290302968 | AU98: 0.4880802254 | AV98: 7.12 | AW98: 0.9188246435 | AX98: 4.331164819 | AY98: 1.95763839 | BA98: 91.88246435 | BB98: 0.1354630715 | BC98: 0.4230687102 | BD98: 0.2887443213 | BE98: 0.130509226 | BF98: 0.005428877182 | BG98: 0.4846273102 | BH98: 9.498695281
G99: 90 | H99: 33 | I99: 1 | J99: 0.36 | K99: 0.36 | L99: 0.2424242424 | M99: 0.6075546137 | N99: 0.3867666817 | O99: 0.5533833409 | P99: 0.1666166591 | Q99: 0 | R99: 0.3769160457 | S99: 0.01420657055 | T99: 0.12 | U99: 0.1357815468 | V99: 0.1116499239 | W99: 2.493141102e-05 | X99: 2.493141102e-05 | Y99: 0.1840462198 | Z99: 3.387301102e-05 | AA99: 3.387301102e-05 | AB99: 0.2937901884 | AC99: 0.002071504196 | AD99: 0.01543212 | AE99: 0.01929015 | AF99: 0 | AG99: 0.03716437098 | AH99: 0.2361207968 | AI99: 0.001003554552 | AJ99: 0.003491712 | AK99: 0.004671380837 | AL99: 0.003491712 | AM99: 0.385803 | AN99: 0.005540562515 | AO99: 7.26e-05 | AP99: =CHOOSE(Ext_VCC, (Qg_Q1+Qg_Q2)*Fsw*'Design Regulator'!$G$80, (Qg_Q1+Qg_Q2)*Fsw*Vout, (Qg_Q1+Qg_Q2)*Fsw*Vin) -> 0.061486 | AQ99: 0.08631736909 | AR99: 0.0768575 | AS99: 0.0615586 | AT99: 0.6340699776 | AU99: 0.4926890638 | AV99: 7.2 | AW99: 0.9190625078 | AX99: 4.376915265 | AY99: 1.979795563 | BA99: 91.90625078 | BB99: 0.1357815468 | BC99: 0.4276387518 | BD99: 0.291794351 | BE99: 0.1319863708 | BF99: 0.005540562515 | BG99: 0.4891973518 | BH99: 9.588268096
G100: 91 | H100: 33 | I100: 1 | J100: 0.364 | K100: 0.364 | L100: 0.2451178451 | M100: 0.6075712077 | N100: 0.3867624375 | O100: 0.5573812188 | P100: 0.1706187812 | Q100: 0 | R100: 0.3807380096 | S100: 0.01449614319 | T100: 0.12 | U100: 0.1361035957 | V100: 0.1116486987 | W100: 2.493086385e-05 | X100: 2.493086385e-05 | Y100: 0.1859110739 | Z100: 3.456292739e-05 | AA100: 3.456292739e-05 | AB100: 0.2967733011 | AC100: 0.002113785414 | AD100: 0.015603588 | AE100: 0.01929015 | AF100: 0 | AG100: 0.03738573353 | AH100: 0.238510041 | AI100: 0.001023966714 | AJ100: 0.0035305088 | AK100: 0.004734178691 | AL100: 0.0035305088 | AM100: 0.3900897 | AN100: 0.005653495845 | AO100: 7.26e-05 | AP100: =CHOOSE(Ext_VCC, (Qg_Q1+Qg_Q2)*Fsw*'Design Regulator'!$G$80, (Qg_Q1+Qg_Q2)*Fsw*Vout, (Qg_Q1+Qg_Q2)*Fsw*Vin) -> 0.061486 | AQ100: 0.08631736909 | AR100: 0.0768575 | AS100: 0.0615586 | AT100: 0.6391153063 | AU100: 0.497298721 | AV100: 7.28 | AW100: 0.9192946078 | AX100: 4.422674033 | AY100: 2.001956695 | BA100: 91.92946078 | BB100: 0.1361035957 | BC100: 0.4322096122 | BD100: 0.2948449355 | BE100: 0.1334637797 | BF100: 0.005653495845 | BG100: 0.4937682122 | BH100: 9.67785696
G101: 92 | H101: 33 | I101: 1 | J101: 0.368 | K101: 0.368 | L101: 0.2478114478 | M101: 0.6075878016 | N101: 0.3867581925 | O101: 0.5613790962 | P101: 0.1746209038 | Q101: 0 | R101: 0.3845635946 | S101: 0.01478891583 | T101: 0.12 | U101: 0.1364292186 | V101: 0.1116474733 | W101: 2.493031657e-05 | X101: 2.493031657e-05 | Y101: 0.187777668 | Z101: 3.526045259e-05 | AA101: 3.526045259e-05 | AB101: 0.2997593177 | AC101: 0.002156535566 | AD101: 0.015775056 | AE101: 0.01929015 | AF101: 0 | AG101: 0.03760765102 | AH101: 0.2409014523 | AI101: 0.001044603175 | AJ101: 0.0035693056 | AK101: 0.004797240508 | AL101: 0.0035693056 | AM101: 0.3943764 | AN101: 0.005767677173 | AO101: 7.26e-05 | AP101: =CHOOSE(Ext_VCC, (Qg_Q1+Qg_Q2)*Fsw*'Design Regulator'!$G$80, (Qg_Q1+Qg_Q2)*Fsw*Vout, (Qg_Q1+Qg_Q2)*Fsw*Vin) -> 0.061486 | AQ101: 0.08631736909 | AR101: 0.0768575 | AS101: 0.0615586 | AT101: 0.6441662837 | AU101: 0.5019091971 | AV101: 7.36 | AW101: 0.9195211268 | AX101: 4.468441125 | AY101: 2.024121788 | BA101: 91.95211268 | BB101: 0.1364292186 | BC101: 0.4367812915 | BD101: 0.297896075 | BE101: 0.1349414525 | BF101: 0.005767677173 | BG101: 0.4983398915 | BH101: 9.767461874
G102: 93 | H102: 33 | I102: 1 | J102: 0.372 | K102: 0.372 | L102: 0.2505050505 | M102: 0.6076043954 | N102: 0.3867539465 | O102: 0.5653769732 | P102: 0.1786230268 | Q102: 0 | R102: 0.3883926938 | S102: 0.01508488846 | T102: 0.12 | U102: 0.1367584161 | V102: 0.1116462476 | W102: 2.492976919e-05 | X102: 2.492976919e-05 | Y102: 0.1896459498 | Z102: 3.596558628e-05 | AA102: 3.596558628e-05 | AB102: 0.3027481549 | AC102: 0.002199754688 | AD102: 0.015946524 | AE102: 0.01929015 | AF102: 0 | AG102: 0.03783012354 | AH102: 0.2432949635 | AI102: 0.001065463907 | AJ102: 0.0036081024 | AK102: 0.00486056626 | AL102: 0.0036081024 | AM102: 0.3986631 | AN102: 0.005883106499 | AO102: 7.26e-05 | AP102: =CHOOSE(Ext_VCC, (Qg_Q1+Qg_Q2)*Fsw*'Design Regulator'!$G$80, (Qg_Q1+Qg_Q2)*Fsw*Vout, (Qg_Q1+Qg_Q2)*Fsw*Vin) -> 0.061486 | AQ102: 0.08631736909 | AR102: 0.0768575 | AS102: 0.0615586 | AT102: 0.6492229102 | AU102: 0.5065204922 | AV102: 7.44 | AW102: 0.9197422401 | AX102: 4.514216543 | AY102: 2.046290839 | BA102: 91.97422401 | BB102: 0.1367584161 | BC102: 0.4413537898 | BD102: 0.3009477695 | BE102: 0.1364193893 | BF102: 0.005883106499 | BG102: 0.5029123898 | BH102: 9.85708284
G103: 94 | H103: 33 | I103: 1 | J103: 0.376 | K103: 0.376 | L103: 0.2531986532 | M103: 0.6076209891 | N103: 0.3867496996 | O103: 0.5693748498 | P103: 0.1826251502 | Q103: 0 | R103: 0.3922252042 | S103: 0.01538406108 | T103: 0.12 | U103: 0.1370911887 | V103: 0.1116450216 | W103: 2.492922169e-05 | X103: 2.492922169e-05 | Y103: 0.1915158691 | Z103: 3.66783281e-05 | AA103: 3.66783281e-05 | AB103: 0.3057397326 | AC103: 0.002243442819 | AD103: 0.016117992 | AE103: 0.01929015 | AF103: 0 | AG103: 0.03805315117 | AH103: 0.24569051 | AI103: 0.001086548881 | AJ103: 0.0036468992 | AK103: 0.004924155921 | AL103: 0.0036468992 | AM103: 0.4029498 | AN103: 0.005999783823 | AO103: 7.26e-05 | AP103: =CHOOSE(Ext_VCC, (Qg_Q1+Qg_Q2)*Fsw*'Design Regulator'!$G$80, (Qg_Q1+Qg_Q2)*Fsw*Vout, (Qg_Q1+Qg_Q2)*Fsw*Vin) -> 0.061486 | AQ103: 0.08631736909 | AR103: 0.0768575 | AS103: 0.0615586 | AT103: 0.6542851864 | AU103: 0.5111326063 | AV103: 7.52 | AW103: 0.919958116 | AX103: 4.560000288 | AY103: 2.068463849 | BA103: 91.9958116 | BB103: 0.1370911887 | BC103: 0.4459271071 | BD103: 0.3040000192 | BE103: 0.1378975899 | BF103: 0.005999783823 | BG103: 0.5074857071 | BH103: 9.946719859
G104: 95 | H104: 33 | I104: 1 | J104: 0.38 | K104: 0.38 | L104: 0.2558922559 | M104: 0.6076375826 | N104: 0.3867454518 | O104: 0.5733727259 | P104: 0.1866272741 | Q104: 0 | R104: 0.3960610269 | S104: 0.0156864337 | T104: 0.12 | U104: 0.1374275369 | V104: 0.1116437954 | W104: 2.492867409e-05 | X104: 2.492867409e-05 | Y104: 0.1933873773 | Z104: 3.739867771e-05 | AA104: 3.739867771e-05 | AB104: 0.3087339738 | AC104: 0.002287599997 | AD104: 0.01628946 | AE104: 0.01929015 | AF104: 0 | AG104: 0.03827673399 | AH104: 0.2480880297 | AI104: 0.001107858069 | AJ104: 0.003685696 | AK104: 0.004988009462 | AL104: 0.003685696 | AM104: 0.4072365 | AN104: 0.006117709145 | AO104: 7.26e-05 | AP104: =CHOOSE(Ext_VCC, (Qg_Q1+Qg_Q2)*Fsw*'Design Regulator'!$G$80, (Qg_Q1+Qg_Q2)*Fsw*Vout, (Qg_Q1+Qg_Q2)*Fsw*Vin) -> 0.061486 | AQ104: 0.08631736909 | AR104: 0.0768575 | AS104: 0.0615586 | AT104: 0.6593531129 | AU104: 0.5157455395 | AV104: 7.6 | AW104: 0.9201689159 | AX104: 4.60579236 | AY104: 2.090640817 | BA104: 92.01689159 | BB104: 0.1374275369 | BC104: 0.4505012435 | BD104: 0.307052824 | BE104: 0.1393760545 | BF104: 0.006117709145 | BG104: 0.5120598435 | BH104: 10.03637293
G105: 96 | H105: 33 | I105: 1 | J105: 0.384 | K105: 0.384 | L105: =Vout*K105/(Vin*Efficiency) -> 0.2585858586 | M105: 0.6076541759 | N105: =(Vin-(Rdson1+Rdcr)*K105-Vout)*M105/(Fsw*Lf) -> 0.3867412032 | O105: 0.5773706016 | P105: 0.1906293984 | Q105: =IF(MIN(Vin, -P105/(Coss_Q1+Coss_Q2)*0.00000002)<0, 0, MIN(Vin, -P105/(Coss_Q1+Coss_Q2)*0.00000002)) -> 0 | R105: 0.3999000665 | S105: =R105^2*Rdcr -> 0.01599200632 | T105: 0.12 | U105: =(T105+S105*(1+Ltc*(Ta-25)))/(1-S105*Ltc*ThetaCa) -> 0.1377674612 | V105: 0.1116425689 | W105: 2.492812637e-05 | X105: 2.492812637e-05 | Y105: 0.1952604281 | Z105: 3.812663476e-05 | AA105: 3.812663476e-05 | AB105: 0.3117308041 | AC105: =Rdson1*AB105^2 -> 0.002332226261 | AD105: 0.016460928 | AE105: 0.01929015 | AF105: 0 | AG105: =(AF105+AE105+AD105+AC105*(1+RdsonTopTc*Ta-RdsonTopTc*25))/(1-AC105*RdsonTopTc*ThetaJA_Q1) -> 0.0385008721 | AH105: 0.2504874627 | AI105: =Rdson2*AH105^2 -> 0.001129391442 | AJ105: 0.0037244928 | AK105: =(AJ105+AI105*(1+RdsonBotTc*Ta-RdsonBotTc*25))/(1-AI105*RdsonBotTc*ThetaJA_Q2) -> 0.005052126856 | AL105: 0.0037244928 | AM105: 0.4115232 | AN105: 0.006236882464 | AO105: 7.26e-05 | AP105: =CHOOSE(Ext_VCC, (Qg_Q1+Qg_Q2)*Fsw*'Design Regulator'!$G$80, (Qg_Q1+Qg_Q2)*Fsw*Vout, (Qg_Q1+Qg_Q2)*Fsw*Vin) -> 0.061486 | AQ105: 0.08631736909 | AR105: 0.0768575 | AS105: 0.0615586 | AT105: =SUM(U105,X105,AA105,AG105,AK105,AL105,AM105,AS105,AN105) -> 0.6644266902 | AU105: 0.5203592918 | AV105: 7.68 | AW105: 0.9203747945 | AX105: 4.651592761 | AY105: 2.112821743 | BA105: 92.03747945 | BB105: 0.1377674612 | BC105: 0.455076199 | BD105: 0.3101061841 | BE105: 0.1408547829 | BF105: 0.006236882464 | BG105: 0.516634799 | BH105: 10.12604206
G106: 97 | H106: 33 | I106: 1 | J106: 0.388 | K106: 0.388 | L106: =Vout*K106/(Vin*Efficiency) -> 0.2612794613 | M106: 0.6076707692 | N106: =(Vin-(Rdson1+Rdcr)*K106-Vout)*M106/(Fsw*Lf) -> 0.3867369536 | O106: 0.5813684768 | P106: 0.1946315232 | Q106: =IF(MIN(Vin, -P106/(Coss_Q1+Coss_Q2)*0.00000002)<0, 0, MIN(Vin, -P106/(Coss_Q1+Coss_Q2)*0.00000002)) -> 0 | R106: 0.4037422312 | S106: =R106^2*Rdcr -> 0.01630077893 | T106: 0.12 | U106: =(T106+S106*(1+Ltc*(Ta-25)))/(1-S106*Ltc*ThetaCa) -> 0.1381109621 | V106: 0.1116413421 | W106: 2.492757855e-05 | X106: 2.492757855e-05 | Y106: 0.1971349764 | Z106: 3.886219891e-05 | AA106: 3.886219891e-05 | AB106: 0.3147301522 | AC106: =Rdson1*AB106^2 -> 0.002377321649 | AD106: 0.016632396 | AE106: 0.01929015 | AF106: 0 | AG106: =(AF106+AE106+AD106+AC106*(1+RdsonTopTc*Ta-RdsonTopTc*25))/(1-AC106*RdsonTopTc*ThetaJA_Q1) -> 0.03872556557 | AH106: 0.2528887514 | AI106: =Rdson2*AH106^2 -> 0.00115114897 | AJ106: 0.0037632896 | AK106: =(AJ106+AI106*(1+RdsonBotTc*Ta-RdsonBotTc*25))/(1-AI106*RdsonBotTc*ThetaJA_Q2) -> 0.005116508076 | AL106: 0.0037632896 | AM106: 0.4158099 | AN106: 0.006357303782 | AO106: 7.26e-05 | AP106: =CHOOSE(Ext_VCC, (Qg_Q1+Qg_Q2)*Fsw*'Design Regulator'!$G$80, (Qg_Q1+Qg_Q2)*Fsw*Vout, (Qg_Q1+Qg_Q2)*Fsw*Vin) -> 0.061486 | AQ106: 0.08631736909 | AR106: 0.0768575 | AS106: 0.0615586 | AT106: 0.6695059189 | AU106: 0.5249738632 | AV106: 7.76 | AW106: 0.9205759003 | AX106: 4.697401493 | AY106: 2.135006626 | BA106: 92.05759003 | BB106: 0.1381109621 | BC106: 0.4596519736 | BD106: 0.3131600996 | BE106: 0.1423337751 | BF106: 0.006357303782 | BG106: 0.5212105736 | BH106: 10.21572724
G107: 98 | H107: 33 | I107: 1 | J107: 0.392 | K107: 0.392 | L107: =Vout*K107/(Vin*Efficiency) -> 0.263973064 | M107: 0.6076873623 | N107: =(Vin-(Rdson1+Rdcr)*K107-Vout)*M107/(Fsw*Lf) -> 0.3867327032 | O107: 0.5853663516 | P107: 0.1986336484 | Q107: =IF(MIN(Vin, -P107/(Coss_Q1+Coss_Q2)*0.00000002)<0, 0, MIN(Vin, -P107/(Coss_Q1+Coss_Q2)*0.00000002)) -> 0 | R107: 0.4075874327 | S107: =R107^2*Rdcr -> 0.01661275153 | T107: 0.12 | U107: =(T107+S107*(1+Ltc*(Ta-25)))/(1-S107*Ltc*ThetaCa) -> 0.1384580402 | V107: 0.1116401151 | W107: 2.492703062e-05 | X107: 2.492703062e-05 | Y107: 0.1990109791 | Z107: 3.96053698e-05 | AA107: 3.96053698e-05 | AB107: 0.3177319493 | AC107: =Rdson1*AB107^2 -> 0.002422886198 | AD107: 0.016803864 | AE107: 0.01929015 | AF107: 0 | AG107: =(AF107+AE107+AD107+AC107*(1+RdsonTopTc*Ta-RdsonTopTc*25))/(1-AC107*RdsonTopTc*ThetaJA_Q1) -> 0.03895081449 | AH107: 0.2552918403 | AI107: =Rdson2*AH107^2 -> 0.001173130627 | AJ107: 0.0038020864 | AK107: =(AJ107+AI107*(1+RdsonBotTc*Ta-RdsonBotTc*25))/(1-AI107*RdsonBotTc*ThetaJA_Q2) -> 0.005181153095 | AL107: 0.0038020864 | AM107: 0.4200966 | AN107: 0.006478973097 | AO107: 7.26e-05 | AP107: =CHOOSE(Ext_VCC, (Qg_Q1+Qg_Q2)*Fsw*'Design Regulator'!$G$80, (Qg_Q1+Qg_Q2)*Fsw*Vout, (Qg_Q1+Qg_Q2)*Fsw*Vin) -> 0.061486 | AQ107: 0.08631736909 | AR107: 0.0768575 | AS107: 0.0615586 | AT107: 0.6745907997 | AU107: 0.529589254 | AV107: 7.84 | AW107: 0.9207723758 | AX107: 4.743218557 | AY107: 2.157195466 | BA107: 92.07723758 | BB107: 0.1384580402 | BC107: 0.4642285676 | BD107: 0.3162145705 | BE107: 0.1438130311 | BF107: 0.006478973097 | BG107: 0.5257871676 | BH107: 10.30542848
G108: 99 | H108: 33 | I108: 1 | J108: 0.396 | K108: 0.396 | L108: =Vout*K108/(Vin*Efficiency) -> 0.2666666667 | M108: 0.6077039553 | N108: =(Vin-(Rdson1+Rdcr)*K108-Vout)*M108/(Fsw*Lf) -> 0.3867284519 | O108: 0.5893642259 | P108: 0.2026357741 | Q108: =IF(MIN(Vin, -P108/(Coss_Q1+Coss_Q2)*0.00000002)<0, 0, MIN(Vin, -P108/(Coss_Q1+Coss_Q2)*0.00000002)) -> 0 | R108: 0.4114355858 | S108: =R108^2*Rdcr -> 0.01692792413 | T108: 0.12 | U108: =(T108+S108*(1+Ltc*(Ta-25)))/(1-S108*Ltc*ThetaCa) -> 0.138808696 | V108: 0.1116388879 | W108: 2.492648258e-05 | X108: 2.492648258e-05 | Y108: 0.2008883946 | Z108: 4.035614709e-05 | AA108: 4.035614709e-05 | AB108: 0.3207361291 | AC108: =Rdson1*AB108^2 -> 0.002468919948 | AD108: 0.016975332 | AE108: 0.01929015 | AF108: 0 | AG108: =(AF108+AE108+AD108+AC108*(1+RdsonTopTc*Ta-RdsonTopTc*25))/(1-AC108*RdsonTopTc*ThetaJA_Q1) -> 0.03917661895 | AH108: 0.257696676 | AI108: =Rdson2*AH108^2 -> 0.001195336383 | AJ108: 0.0038408832 | AK108: =(AJ108+AI108*(1+RdsonBotTc*Ta-RdsonBotTc*25))/(1-AI108*RdsonBotTc*ThetaJA_Q2) -> 0.005246061884 | AL108: 0.0038408832 | AM108: 0.4243833 | AN108: 0.00660189041 | AO108: 7.26e-05 | AP108: =CHOOSE(Ext_VCC, (Qg_Q1+Qg_Q2)*Fsw*'Design Regulator'!$G$80, (Qg_Q1+Qg_Q2)*Fsw*Vout, (Qg_Q1+Qg_Q2)*Fsw*Vin) -> 0.061486 | AQ108: 0.08631736909 | AR108: 0.0768575 | AS108: 0.0615586 | AT108: 0.6796813331 | AU108: 0.534205464 | AV108: 7.92 | AW108: 0.9209643582 | AX108: 4.789043954 | AY108: 2.179388263 | BA108: 92.09643582 | BB108: 0.138808696 | BC108: 0.4688059808 | BD108: 0.319269597 | BE108: 0.1452925509 | BF108: 0.00660189041 | BG108: 0.5303645808 | BH108: 10.39514578
G109: 100 | H109: 33 | I109: 1 | J109: 0.4 | K109: 0.4 | L109: =Vout*K109/(Vin*Efficiency) -> 0.2693602694 | M109: 0.6077205481 | N109: =(Vin-(Rdson1+Rdcr)*K109-Vout)*M109/(Fsw*Lf) -> 0.3867241996 | O109: 0.5933620998 | P109: 0.2066379002 | Q109: =IF(MIN(Vin, -P109/(Coss_Q1+Coss_Q2)*0.00000002)<0, 0, MIN(Vin, -P109/(Coss_Q1+Coss_Q2)*0.00000002)) -> 0 | R109: 0.4152866085 | S109: =R109^2*Rdcr -> 0.01724629672 | T109: 0.12 | U109: =(T109+S109*(1+Ltc*(Ta-25)))/(1-S109*Ltc*ThetaCa) -> 0.13916293 | V109: 0.1116376604 | W109: 2.492593443e-05 | X109: 2.492593443e-05 | Y109: 0.2027671828 | Z109: 4.111453043e-05 | AA109: 4.111453043e-05 | AB109: 0.3237426277 | AC109: =Rdson1*AB109^2 -> 0.002515422935 | AD109: 0.0171468 | AE109: 0.01929015 | AF109: 0 | AG109: =(AF109+AE109+AD109+AC109*(1+RdsonTopTc*Ta-RdsonTopTc*25))/(1-AC109*RdsonTopTc*ThetaJA_Q1) -> 0.03940297904 | AH109: 0.2601032069 | AI109: =Rdson2*AH109^2 -> 0.001217766208 | AJ109: 0.00387968 | AK109: =(AJ109+AI109*(1+RdsonBotTc*Ta-RdsonBotTc*25))/(1-AI109*RdsonBotTc*ThetaJA_Q2) -> 0.005311234418 | AL109: 0.00387968 | AM109: 0.42867 | AN109: 0.006726055721 | AO109: 7.26e-05 | AP109: =CHOOSE(Ext_VCC, (Qg_Q1+Qg_Q2)*Fsw*'Design Regulator'!$G$80, (Qg_Q1+Qg_Q2)*Fsw*Vout, (Qg_Q1+Qg_Q2)*Fsw*Vin) -> 0.061486 | AQ109: 0.08631736909 | AR109: 0.0768575 | AS109: 0.0615586 | AT109: 0.6847775197 | AU109: 0.5388224935 | AV109: 8 | AW109: 0.9211519791 | AX109: 4.834877686 | AY109: 2.201585016 | BA109: 92.11519791 | BB109: 0.13916293 | BC109: 0.4733842135 | BD109: 0.322325179 | BE109: 0.1467723344 | BF109: 0.006726055721 | BG109: 0.5349428135 | BH109: 10.48487914

Sheet Bode Plot Management (hidden)
J1: Single or dual output (MODE) | N1: 3.3V or 5V fixed (FB1/2)
A2: =CHOOSE(BODE_PLOT_TYPE, "BODE_PLOT_Ch1", "BODE_PLOT_Ch2") -> BODE_PLOT_Ch1 | J2: With/without dither (DITH) | N2: With/without VOUT connected to VCCX
J3: FPWM or DEM (DEMB)
J4: Shunt or inductor DCR current sensing
F6: =INDIRECT(A2) -> 0

Sheet Stability Calculations (hidden)
A2: Divider Network & EA Poles/Zeros | E2: Modulator | J2: Power Stage Poles/Zeros | M2: Complex Pole Pair | P2: Feedback natural frequencies | T2: Total System
B3: Afb1 | C3: =Afb -> 0.04 | D3: V/V | E3: Acs | F3: =Acs -> 2.564102564 | G3: A/V | H3: gm | I3: =gm -> 0.0012 | J3: z_ESR | K3: =Fesr -> 1591549.433 | L3: Hz | M3: p3 | N3: =Fsw/2 -> 216500 | O3: Hz | P3: zterm1 | Q3: =((1/wffHz)+(1/wfftHz)) -> 6.779431275e-07 | T3: Adc | U3: =IF(VOUT_setting=1,Am*Afb*AEA,Am*AEA) -> 172401.1145 | V3: V/V
B4: EA zero, z1 | C4: =Fz1_u -> 1019.962467 | D4: Hz | E4: Am | F4: =Am -> 56.12015446 | G4: V/V | J4: p_dom | K4: =Fp_dominant -> 145.4342391 | L4: Hz | M4: pterm1 | N4: =Q*pole3 -> 131815.4728 | P4: pterm3 | Q4: =((1/wfbtHz)+(1/wffHz)+(1/wfftHz)+(Afbr/wffHz)) -> 5.564272526e-06 | T4: Crossover | U4: =AI7 -> 12.95725 | V4: kHz
B5: EA pole, p1 | C5: =Fp1_u -> 0.5288311983 | D5: Hz | E5: Q | F5: =Q -> 0.6088474492 | M5: pterm2 | N5: =pole3^2 -> 46872250000 | P5: pterm4 | Q5: =1/(wffHz*wfbtHz) -> 1.746743112e-13 | T5: Phase Margin | U5: =AI9 -> 76.05946151 | V5: ° | AH5: Gain | AK5: Phase
B6: Aea | C6: =AEA -> 76800 | D6: V/V | E6: mc | F6: =mc -> 2.605601578 | P6: Afbr | Q6: =Rfb1_/Rfb2_u -> 23.82608696 | T6: radconv | U6: =180/Pi -> 57.29577958 | AH6: XOVER SEARCH | AK6: XOVER SEARCH
B7: EA pole, p2 | C7: =Fp2_u -> 150602.4096 | D7: Hz | E7: k | F7: =k -> 1.022807293 | T7: Gain Margin | U7: =AL9 -> -23.31583688 | AH7: xover | AI7: =SUM(AH12:AH613)/1000 -> 12.95725 | AK7: Phase xover | AL7: =SUM(AK12:AK613)/1000 -> 126.03
AH9: phase margin | AI9: =SUM(AI13:AI613) -> 76.05946151 | AK9: gain margin | AL9: =SUM(AL13:AL613) -> -23.31583688
A10: Freq (Hz) | C10: Power Stage | I10: Error Amplifier | O10: Feedback Gain | S10: Sampling Double Pole | U10: System Response | AB10: ERROR AMP Response | AE10: PLANT Response
C11: p_dom | E11: z_ESR | G11: z_RHP | I11: p1 | K11: z1 | M11: p2 | O11: z1 | Q11: p1p2 | S11: p3
C12: Gain(V/V) | D12: Phase(rad) | E12: Gain(V/V) | F12: Phase(rad) | G12: Gain(V/V) | H12: Phase(rad) | I12: Gain(V/V) | J12: Phase(rad) | K12: Gain(V/V) | L12: Phase(rad) | M12: Gain(V/V) | N12: Phase(rad) | O12: Gain(V/V) | P12: Phase(rad) | Q12: Gain(V/V) | R12: Phase(rad) | S12: Gain(V/V) | T12: Phase(rad) | U12: Gain (dB) | V12: Phase (°) | W12: Phase Margin (°) | Z12: Fsquare | AB12: Gain(dB) | AC12: Phase(Deg) | AE12: Gain(dB) | AF12: Phase(Deg)
A13: 1 | B13: =A13/1000 -> 0.001 | C13: =SQRT(1+(A13/pole1)^2) -> 1.000023639 | D13: =ATAN(A13/pole1) -> 0.006875851567 | E13: =SQRT(1+(A13/Zero1)^2) -> 1 | F13: =ATAN(A13/Zero1) -> 6.2831853e-07 | G13: =IF(VIN_nom>Vout, 1, SQRT(1+(A13/z_RHP)^2)) -> 1 | H13: =IF(VIN_nom>Vout, 0, -ATAN(A13/z_RHP)) -> 0 | I13: =SQRT(1+(A13/Pole2)^2) -> 2.139097807 | J13: =ATAN(A13/Pole2) -> 1.084350673 | K13: =SQRT(1+(A13/Zero2)^2) -> 1.000000481 | L13: =ATAN(A13/Zero2) -> 0.0009804279201 | M13: =SQRT(1+(A13/pole4)^2) -> 1 | N13: =ATAN(A13/pole4) -> 6.64e-06 | O13: =IF(VOUT_setting=1,1,SQRT(1+(A13*zterm1)^2)) -> 1 | P13: =IF(VOUT_setting=1,0,ATAN(((A13*zterm1)))) -> 0 | Q13: =IF(VOUT_setting=1,1,SQRT((1+Afbr-pterm4*(A13)^2)^2+(A13*$Q$4)^2)) -> 1 | R13: =IF(VOUT_setting=1,0,ATAN(A13*$Q$4/(1+Afbr-$Q$5*(A13)^2))) -> 0 | S13: =SQRT((1-(Z13/pterm2))^2+(A13/pterm1)^2) -> 1 | T13: =IF((ATAN((A13/pterm1)/(1-A13^2/pterm2))>0),ATAN((A13/pterm1)/(1-A13^2/pterm2)),PI()+ATAN((A13/pterm1)/(1-A13^2/pterm2))) -> 7.586362807e-06 | U13: =20*LOG10(((E13*K13*G13*O13)/(C13*I13*S13*M13*Q13))*Adc) -> 98.12598738 | V13: =((F13+L13+H13+P13)-(D13+J13+T13+N13+R13))*radconv -> -62.46727917 | W13: =IF(V13>0,V13,V13+180) -> 117.5327208 | Y13: =IF(U13<0,A13,1000000000) -> 1000000000 | Z13: =A13^2 -> 1 | AB13: =20*LOG10((K13/(I13*M13))*AEA) -> 91.10261573 | AC13: =(L13-(J13+N13))*radconv -> -62.07292322 | AE13: =20*LOG10((E13*G13/(C13*S13))*Acs*Am) -> 43.16087969 | AF13: =(F13+H13-(D13+T13))*radconv -> -0.3943559423 | AH13: =SUM((U14<0)*(U13>0))*A13 -> 0 | AI13: =IF(AH13>0,W11,0) -> 0 | AK13: =SUM((V14<-182)*(V13>-182))*A13 -> 0 | AL13: =IF(AK13>0,U13,0) -> 0
A14: 1.0965 | B14: =A14/1000 -> 0.0010965 | C14: 1.000028422 | D14: 0.007539347206 | E14: 1 | F14: 6.889512681e-07 | G14: 1 | H14: 0 | I14: 2.301989426 | J14: 1.121416674 | K14: 1.000000578 | L14: 0.001075039145 | M14: 1 | N14: 7.28076e-06 | O14: 1 | P14: 0 | Q14: =IF(VOUT_setting=1,1,SQRT((1+Afbr-pterm4*(A14)^2)^2+(A14*$Q$4)^2)) -> 1 | R14: 0 | S14: 1 | T14: 8.318446818e-06 | U14: 97.48849305 | V14: -64.62367442 | W14: 115.3763256 | Y14: 1000000000 | Z14: 1.20231225 | AB14: 90.46516293 | AC14: -64.19126451 | AE14: 43.16083815 | AF14: -0.4324099136 | AH14: 0 | AI14: 0 | AK14: =SUM((V15<-183)*(V14>-183))*A14 -> 0 | AL14: =IF(AK14>0,U14,0) -> 0
A15: 1.2023 | B15: 0.0012023 | C15: 1.000034171 | D15: 0.008266778298 | E15: 1 | F15: 7.554273686e-07 | G15: 1 | H15: 0 | I15: 2.48371129 | J15: 1.156415448 | K15: 1.000000695 | L15: 0.00117876832 | M15: 1 | N15: 7.983272e-06 | O15: 1 | P15: 0 | Q15: =IF(VOUT_setting=1,1,SQRT((1+Afbr-$Q$5*(A15)^2)^2+(A15*$Q$4)^2)) -> 1 | R15: 0 | S15: 1 | T15: 9.121084003e-06 | U15: 96.82848839 | V15: -66.66477437 | W15: 113.3352256 | Y15: 1000000000 | Z15: 1.44552529 | AB15: 89.8052082 | AC15: -66.19064355 | AE15: 43.16078821 | AF15: -0.474130824 | AH15: 0 | AI15: 0 | AK15: 0 | AL15: 0
A16: 1.3183 | B16: 0.0013183 | C16: 1.000041082 | D16: 0.009064329714 | E16: 1 | F16: 8.283123181e-07 | G16: 1 | H16: 0 | I16: 2.685950631 | J16: 1.189302131 | K16: 1.000000835 | L16: 0.001292497821 | M16: 1 | N16: 8.753512e-06 | O16: 1 | P16: 0 | Q16: 1 | R16: 0 | S16: 1 | T16: 1.000110209e-05 | U16: 96.14849129 | V16: -68.58831299 | W16: 111.411687 | Y16: 1000000000 | Z16: 1.73791489 | AB16: 89.12527114 | AC16: -68.06843959 | AE16: 43.16072818 | AF16: -0.5198733995 | AH16: 0 | AI16: 0 | AK16: 0 | AL16: 0
A17: 1.4454 | B17: 0.0014454 | C17: 1.000049386 | D17: 0.009938185274 | E17: 1 | F17: 9.081716033e-07 | G17: 1 | H17: 0 | I17: 2.910389569 | J17: 1.220052319 | K17: 1.000001004 | L17: 0.001417110021 | M17: 1 | N17: 9.597456e-06 | O17: 1 | P17: 0 | Q17: 1 | R17: 0 | S17: 1 | T17: 1.09653288e-05 | U17: 95.45135865 | V17: -70.3931965 | W17: 109.6068035 | Y17: 1000000000 | Z17: 2.08918116 | AB17: 88.42821062 | AC17: -69.82320419 | AE17: 43.16065606 | AF17: -0.5699923055 | AH17: 0 | AI17: 0 | AK17: 0 | AL17: 0
A18: 1.5849 | B18: 0.0015849 | C18: 1.000059378 | D18: 0.01089727751 | E18: 1 | F18: 9.958220382e-07 | G18: 1 | H18: 0 | I18: 3.159419015 | J18: 1.248744157 | K18: 1.000001207 | L18: 0.001553879458 | M18: 1 | N18: 1.0523736e-05 | O18: 1 | P18: 0 | Q18: 1 | R18: 0 | S18: 1 | T18: 1.202362641e-05 | U18: 94.73815158 | V18: -72.08434205 | W18: 107.9156579 | Y18: 1000000000 | Z18: 2.51190801 | AB18: 87.71509033 | AC18: -71.45934219 | AE18: 43.16056927 | AF18: -0.6249998571 | AH18: 0 | AI18: 0 | AK18: 0 | AL18: 0
A19: 1.7378 | B19: 0.0017378 | C19: 1.000071387 | D19: 0.01194847451 | E19: 1 | F19: 1.091891941e-06 | G19: 1 | H19: 0 | I19: 3.434901765 | J19: 1.275389435 | K19: 1.000001451 | L19: 0.001703786537 | M19: 1 | N19: 1.1538992e-05 | O19: 1 | P19: 0 | Q19: 1 | R19: 0 | S19: 1 | T19: 1.318358129e-05 | U19: 94.01190752 | V19: -73.66276327 | W19: 106.3372367 | Y19: 1000000000 | Z19: 3.01994884 | AB19: 86.98895058 | AC19: -72.97747331 | AE19: 43.16046497 | AF19: -0.6852899649 | AH19: 0 | AI19: 0 | AK19: 0 | AL19: 0
A20: 1.9055 | B20: 0.0019055 | C20: 1.000085829 | D20: 0.01310139198 | E20: 1 | F20: 1.197260959e-06 | G20: 1 | H20: 0 | I20: 3.739419802 | J20: 1.3000806 | K20: 1.000001745 | L20: 0.001868203827 | M20: 1 | N20: 1.265252e-05 | O20: 1 | P20: 0 | Q20: 1 | R20: 0 | S20: 1 | T20: 1.445581433e-05 | U20: 93.2739866 | V20: -75.13423036 | W20: 104.8657696 | Y20: 1000000000 | Z20: 3.63093025 | AB20: 86.25115509 | AC20: -74.38281623 | AE20: 43.16033954 | AF20: -0.7514141265 | AH20: 0 | AI20: 0 | AK20: 0 | AL20: 0
A21: 2.0893 | B21: 0.0020893 | C21: 1.000103185 | D21: 0.01436495491 | E21: 1 | F21: 1.312745905e-06 | G21: 1 | H21: 0 | I21: 4.075380538 | J21: 1.322888941 | K21: 1.000002098 | L21: 0.002048405845 | M21: 1 | N21: 1.3872952e-05 | O21: 1 | P21: 0 | Q21: 1 | R21: 0 | S21: 1 | T21: 1.585018781e-05 | U21: 92.52656005 | V21: -76.50326726 | W21: 103.4967327 | Y21: 1000000000 | Z21: 4.36517449 | AB21: 85.50387928 | AC21: -75.67938304 | AE21: 43.16018881 | AF21: -0.8238842244 | AH21: 0 | AI21: 0 | AK21: 0 | AL21: 0
A22: 2.2909 | B22: 0.0022909 | C22: 1.000124057 | D22: 0.01575083393 | E22: 1 | F22: 1.43941492e-06 | G22: 1 | H22: 0 | I22: 4.445928163 | J22: 1.343930354 | K22: 1.000002522 | L22: 0.002246059265 | M22: 1 | N22: 1.5211576e-05 | O22: 1 | P22: 0 | Q22: 1 | R22: 0 | S22: 1 | T22: 1.737959856e-05 | U22: 91.77049699 | V22: -77.7770888 | W22: 102.2229112 | Y22: 1000000000 | Z22: 5.24822281 | AB22: 84.74799749 | AC22: -76.87371918 | AE22: 43.16000753 | AF22: -0.9033696143 | AH22: 0 | AI22: 0 | AK22: 0 | AL22: 0
A23: 2.5119 | B23: 0.0025119 | C23: 1.000149145 | D23: 0.01727000659 | E23: 1 | F23: 1.578273316e-06 | G23: 1 | H23: 0 | I23: 4.854032785 | J23: 1.363296233 | K23: 1.000003033 | L23: 0.002462732703 | M23: 1 | N23: 1.6679016e-05 | O23: 1 | P23: 0 | Q23: 1 | R23: 0 | S23: 1 | T23: 1.905618474e-05 | U23: 91.00747825 | V23: -78.9614718 | W23: 101.0385282 | Y23: 1000000000 | Z23: 6.30964161 | AB23: 83.98519663 | AC23: -77.9709719 | AE23: 43.15978965 | AF23: -0.9904999014 | AH23: 0 | AI23: 0 | AK23: 0 | AL23: 0
A24: 2.7542 | B24: 0.0027542 | C24: 1.000179303 | D24: 0.01893550537 | E24: 1 | F24: 1.730514895e-06 | G24: 1 | H24: 0 | I24: 5.303224687 | J24: 1.381096091 | K24: 1.000003646 | L24: 0.00270028888 | M24: 1 | N24: 1.8287888e-05 | O24: 1 | P24: 0 | Q24: 1 | R24: 0 | S24: 1 | T24: 2.089436044e-05 | U24: 90.23847522 | V24: -80.06333242 | W24: 99.93666758 | Y24: 1000000000 | Z24: 7.58561764 | AB24: 83.21645551 | AC24: -78.97730987 | AE24: 43.15952774 | AF24: -1.08602255 | AH24: 0 | AI24: 0 | AK24: 0 | AL24: 0
A25: 3.02 | B25: 0.00302 | C25: 1.000215578 | D25: 0.02076241506 | E25: 1 | F25: 1.897521961e-06 | G25: 1 | H25: 0 | I25: 5.7976007 | J25: 1.397444253 | K25: 1.000004383 | L25: 0.002960884615 | M25: 1 | N25: 2.00528e-05 | O25: 1 | P25: 0 | Q25: 1 | R25: 0 | S25: 1 | T25: 2.291081568e-05 | U25: 89.46400116 | V25: -81.08996336 | W25: 98.91003664 | Y25: 1000000000 | Z25: 9.1204 | AB25: 82.44229646 | AC25: -79.89916063 | AE25: 43.15921273 | AF25: -1.19080273 | AH25: 0 | AI25: 0 | AK25: 0 | AL25: 0
A26: 3.3113 | B26: 0.0033113 | C26: 1.000259166 | D26: 0.02276443296 | E26: 1 | F26: 2.080551148e-06 | G26: 1 | H26: 0 | I26: 6.34089407 | J26: 1.412428705 | K26: 1.00000527 | L26: 0.003246480606 | M26: 1 | N26: 2.1987032e-05 | O26: 1 | P26: 0 | Q26: 1 | R26: 0 | S26: 1 | T26: 2.512072316e-05 | U26: 88.6855864 | V26: -82.04707992 | W26: 97.95292008 | Y26: 1000000000 | Z26: 10.96470769 | AB26: 81.66426021 | AC26: -80.74145388 | AE26: 43.15883422 | AF26: -1.305626038 | AH26: 0 | AI26: 0 | AK26: 0 | AL26: 0
A27: 3.6308 | B27: 0.0036308 | C27: 1.000311583 | D27: 0.0249600506 | E27: 1 | F27: 2.281298919e-06 | G27: 1 | H27: 0 | I27: 6.938150405 | J27: 1.426161952 | K27: 1.000006336 | L27: 0.003559723797 | M27: 1 | N27: 2.4108512e-05 | O27: 1 | P27: 0 | Q27: 1 | R27: 0 | S27: 1 | T27: 2.754456608e-05 | U27: 87.90327625 | V27: -82.94203806 | W27: 97.05796194 | Y27: 1000000000 | Z27: 13.18270864 | AB27: 80.88240523 | AC27: -81.51048502 | AE27: 43.15837906 | AF27: -1.431553036 | AH27: 0 | AI27: 0 | AK27: 0 | AL27: 0
A28: 3.9811 | B28: 0.0039811 | C28: 1.000374595 | D28: 0.02736704978 | E28: 1 | F28: 2.5013989e-06 | G28: 1 | H28: 0 | I28: 7.594238364 | J28: 1.438734016 | K28: 1.000007617 | L28: 0.003903163022 | M28: 1 | N28: 2.643450399e-05 | O28: 1 | P28: 0 | Q28: 1 | R28: 0 | S28: 1 | T28: 3.020206897e-05 | U28: 87.11792997 | V28: -83.78087045 | W28: 96.21912955 | Y28: 1000000000 | Z28: 15.84915721 | AB28: 80.09760607 | AC28: -82.21126687 | AE28: 43.15783193 | AF28: -1.569603583 | AH28: 0 | AI28: 0 | AK28: 0 | AL28: 0
A29: 4.3652 | B29: 0.0043652 | C29: 1.000450347 | D29: 0.03000593168 | E29: 1 | F29: 2.742736047e-06 | G29: 1 | H29: 0 | I29: 8.314782694 | J29: 1.450236766 | K29: 1.000009158 | L29: 0.004279739198 | M29: 1 | N29: 2.898492799e-05 | O29: 1 | P29: 0 | Q29: 1 | R29: 0 | S29: 1 | T29: 3.311599093e-05 | U29: 86.32995207 | V29: -84.56984932 | W29: 95.43015068 | Y29: 1000000000 | Z29: 19.05497104 | AB29: 79.31028587 | AC29: -82.84889581 | AE29: 43.15717423 | AF29: -1.720953507 | AH29: 0 | AI29: 0 | AK29: 0 | AL29: 0
A30: 4.7863 | B30: 0.0047863 | C30: 1.000541401 | D30: 0.03289853301 | E30: 1 | F30: 3.00732098e-06 | G30: 1 | H30: 0 | I30: 9.105790811 | J30: 1.460754147 | K30: 1.00001101 | L30: 0.004692589213 | M30: 1.000000001 | N30: 3.178103199e-05 | O30: 1 | P30: 0 | Q30: 1 | R30: 0 | S30: 1 | T30: 3.631060831e-05 | U30: 85.53984235 | V30: -85.31485823 | W30: 94.68514177 | Y30: 1000000000 | Z30: 22.90866769 | AB30: 78.52096665 | AC30: -83.42800299 | AE30: 43.15638374 | AF30: -1.886855234 | AH30: 0 | AI30: 0 | AK30: 0 | AL30: 0
A31: 5.2481 | B31: 0.0052481 | C31: 1.000650878 | D31: 0.03607007415 | E31: 1 | F31: 3.297478477e-06 | G31: 1 | H31: 0 | I31: 9.974216505 | J31: 1.470369098 | K31: 1.000013237 | L31: 0.005145340009 | M31: 1.000000001 | N31: 3.484738399e-05 | O31: 1 | P31: 0 | Q31: 1 | R31: 0 | S31: 1 | T31: 3.981399065e-05 | U31: 84.74768892 | V31: -86.02188937 | W31: 93.97811063 | Y31: 1000000000 | Z31: 27.54255361 | AB31: 77.72976355 | AC31: -83.95313411 | AE31: 43.1554334 | AF31: -2.06875526 | AH31: 0 | AI31: 0 | AK31: 0 | AL31: 0
A32: 5.7544 | B32: 0.0057544 | C32: 1.000782469 | D32: 0.03954639513 | E32: 1 | F32: 3.615596149e-06 | G32: 1 | H32: 0 | I32: 10.92720854 | J32: 1.479153424 | K32: 1.000015915 | L32: 0.005641716374 | M32: 1.000000001 | N32: 3.820921598e-05 | O32: 1 | P32: 0 | Q32: 1 | R32: 0 | S32: 1 | T32: 4.365496614e-05 | U32: 83.9539612 | V32: -86.69632686 | W32: 93.30367314 | Y32: 1000000000 | Z32: 33.11311936 | AB32: 76.937178 | AC32: -84.42819124 | AE32: 43.15429123 | AF32: -2.268135625 | AH32: 0 | AI32: 0 | AK32: 0 | AL32: 0
A33: 6.3096 | B33: 0.0063096 | C33: 1.000940667 | D33: 0.04335736769 | E33: 1 | F33: 3.964438597e-06 | G33: 1 | H33: 0 | I33: 11.97305094 | J33: 1.487178017 | K33: 1.000019134 | L33: 0.006186031078 | M33: 1.000000001 | N33: 4.189574398e-05 | O33: 1 | P33: 0 | Q33: 1 | R33: 0 | S33: 1 | T33: 4.786691477e-05 | U33: 83.15870426 | V33: -87.34370042 | W33: 92.65629958 | Y33: 1000000000 | Z33: 39.81105216 | AB33: 76.14329398 | AC33: -84.85699081 | AE33: 43.15291832 | AF33: -2.486709609 | AH33: 0 | AI33: 0 | AK33: 0 | AL33: 0
A34: 6.9183 | B34: 0.0069183 | C34: 1.001130811 | D34: 0.04753412017 | E34: 1 | F34: 4.346896086e-06 | G34: 1 | H34: 0 | I34: 13.12041039 | J34: 1.494505214 | K34: 1.000023004 | L34: 0.006782792634 | M34: 1.000000001 | N34: 4.593751197e-05 | O34: 1 | P34: 0 | Q34: 1 | R34: 0 | S34: 1 | T34: 5.248473382e-05 | U34: 82.36223623 | V34: -87.9691105 | W34: 92.0308895 | Y34: 1000000000 | Z34: 47.86287489 | AB34: 75.34847581 | AC34: -85.24284793 | AE34: 43.15126846 | AF34: -2.726262567 | AH34: 0 | AI34: 0 | AK34: 0 | AL34: 0
A35: 7.5858 | B35: 0.0075858 | C35: 1.001359391 | D35: 0.0521124315 | E35: 1 | F35: 4.766298705e-06 | G35: 1 | H35: 0 | I35: 14.37927824 | J35: 1.501195627 | K35: 1.000027657 | L35: 0.007437195374 | M35: 1.000000001 | N35: 5.036971196e-05 | O35: 1 | P35: 0 | Q35: 1 | R35: 0 | S35: 1 | T35: 5.754863099e-05 | U35: 81.56450033 | V35: -88.57778639 | W35: 91.42221361 | Y35: 1000000000 | Z35: 57.54436164 | AB35: 74.55272286 | AC35: -85.5889398 | AE35: 43.14928551 | AF35: -2.988846593 | AH35: 0 | AI35: 0 | AK35: 0 | AL35: 0
A36: 8.3176 | B36: 0.0083176 | C36: 1.001634098 | D36: 0.05712925114 | E36: 1 | F36: 5.226102205e-06 | G36: 1 | H36: 0 | I36: 15.76002807 | J36: 1.507302009 | K36: 1.00003325 | L36: 0.008154629121 | M36: 1.000000002 | N36: 5.522886394e-05 | O36: 1 | P36: 0 | Q36: 1 | R36: 0 | S36: 1.000000001 | T36: 6.31003313e-05 | U36: 80.76576842 | V36: -89.17456312 | W36: 90.82543688 | Y36: 1000000000 | Z36: 69.18246976 | AB36: 73.75637345 | AC36: -85.89798219 | AE36: 43.146903 | AF36: -3.27658093 | AH36: 0 | AI36: 0 | AK36: 0 | AL36: 0
A37: 9.1201 | B37: 0.0091201 | C37: 1.001964308 | D37: 0.06262743444 | E37: 1 | F37: 5.730327825e-06 | G37: 1 | H37: 0 | I37: 17.27473599 | J37: 1.512875942 | K37: 1.000039975 | L37: 0.00894136525 | M37: 1.000000002 | N37: 6.055746393e-05 | O37: 1 | P37: 0 | Q37: 1 | R37: 0 | S37: 1.000000001 | T37: 6.918838745e-05 | U37: 79.96587517 | V37: -89.76449728 | W37: 90.23550272 | Y37: 1000000000 | Z37: 83.17622401 | AB37: 72.95934322 | AC37: -86.17257373 | AE37: 43.14403998 | AF37: -3.591923558 | AH37: 0 | AI37: 0 | AK37: 0 | AL37: 0
A38: 10 | B38: 0.01 | C38: 1.002361154 | D38: 0.06865154319 | E38: 1 | F38: 6.2831853e-06 | G38: 1 | H38: 0 | I38: 18.93604876 | J38: 1.517962422 | K38: 1.000048061 | L38: 0.009803968218 | M38: 1.000000002 | N38: 6.63999999e-05 | O38: 1 | P38: 0 | Q38: 1 | R38: 0 | S38: 1.000000001 | T38: 7.586362809e-05 | U38: 79.16494698 | V38: -90.35234916 | W38: 89.64765084 | Y38: 1000000000 | Z38: 100 | AB38: 72.16185456 | AC38: -86.4149188 | AE38: 43.14060046 | AF38: -3.937430352 | AH38: 0 | AI38: 0 | AK38: 0 | AL38: 0
A39: 10.965 | B39: 0.010965 | C39: 1.002838168 | D39: 0.07525252782 | E39: 1 | F39: 6.889512681e-06 | G39: 1 | H39: 0 | I39: 20.75850504 | J39: 1.522604649 | K39: 1.000057784 | L39: 0.01074998147 | M39: 1.000000003 | N39: 7.280759987e-05 | O39: 1 | P39: 0 | Q39: 1 | R39: 0 | S39: 1.000000001 | T39: 8.318446821e-05 | U39: 78.36276466 | V39: -90.943087 | W39: 89.056913 | Y39: 1000000000 | Z39: 120.231225 | AB39: 71.36380479 | AC39: -86.62706338 | AE39: 43.13646791 | AF39: -4.316023626 | AH39: 0 | AI39: 0 | AK39: 0 | AL39: 0
A40: 12.023 | B40: 0.012023 | C40: 1.003411318 | D40: 0.08248210565 | E40: 1 | F40: 7.554273686e-06 | G40: 1 | H40: 0 | I40: 22.75702479 | J40: 1.526839697 | K40: 1.000069472 | L40: 0.01178714274 | M40: 1.000000003 | N40: 7.983271983e-05 | O40: 1 | P40: 0 | Q40: 1 | R40: 0 | S40: 1.000000001 | T40: 9.121084006e-05 | U40: 77.55951519 | V40: -91.54136102 | W40: 88.45863898 | Y40: 1000000000 | Z40: 144.552529 | AB40: 70.56551813 | AC40: -86.8106913 | AE40: 43.13150509 | AF40: -4.730669713 | AH40: 0 | AI40: 0 | AK40: 0 | AL40: 0
A41: 13.183 | B41: 0.013183 | C41: 1.004099924 | D41: 0.09039872809 | E41: 1 | F41: 8.283123181e-06 | G41: 1 | H41: 0 | I41: 24.94860877 | J41: 1.530703191 | K41: 1.000083524 | L41: 0.01292426575 | M41: 1.000000004 | N41: 8.753511978e-05 | O41: 1 | P41: 0 | Q41: 1 | R41: 0 | S41: 1.000000001 | T41: 0.0001000110209 | U41: 76.75506145 | V41: -92.15206336 | W41: 87.84793664 | Y41: 1000000000 | Z41: 173.791489 | AB41: 69.76702317 | AC41: -86.96734214 | AE41: 43.12554632 | AF41: -5.18472122 | AH41: 0 | AI41: 0 | AK41: 0 | AL41: 0
A42: 14.454 | B42: 0.014454 | C42: 1.004926566 | D42: 0.09905982815 | E42: 1 | F42: 9.081716032e-06 | G42: 1 | H42: 0 | I42: 27.35026041 | J42: 1.534225452 | K42: 1.000100405 | L42: 0.0141701612 | M42: 1.000000005 | N42: 9.597455971e-05 | O42: 1 | P42: 0 | Q42: 1 | R42: 0 | S42: 1.000000002 | T42: 0.0001096532881 | U42: 75.94975753 | V42: -92.77972425 | W42: 87.22027575 | Y42: 1000000000 | Z42: 208.918116 | AB42: 68.96886711 | AC42: -87.09825185 | AE42: 43.11839845 | AF42: -5.681472405 | AH42: 0 | AI42: 0 | AK42: 0 | AL42: 0
A43: 15.849 | B43: 0.015849 | C43: 1.005920477 | D43: 0.1085487329 | E43: 1 | F43: 9.958220382e-06 | G43: 1 | H43: 0 | I43: 29.9865445 | J43: 1.537441852 | K43: 1.00012072 | L43: 0.01553755663 | M43: 1.000000006 | N43: 0.0001052373596 | O43: 1 | P43: 0 | Q43: 1 | R43: 0 | S43: 1.000000002 | T43: 0.0001202362642 | U43: 75.14204838 | V43: -93.43042544 | W43: 86.56957456 | Y43: 1000000000 | Z43: 251.190801 | AB43: 68.1697444 | AC43: -87.2047227 | AE43: 43.10981202 | AF43: -6.225702738 | AH43: 0 | AI43: 0 | AK43: 0 | AL43: 0
A44: 17.378 | B44: 0.017378 | C44: 1.007113679 | D44: 0.118926561 | E44: 1 | F44: 1.091891941e-05 | G44: 1 | H44: 0 | I44: 32.8763595 | J44: 1.540374641 | K44: 1.000145134 | L44: 0.0170362335 | M44: 1.000000007 | N44: 0.0001153899195 | O44: 1 | P44: 0 | Q44: 1 | R44: 0 | S44: 1.000000002 | T44: 0.000131835813 | U44: 74.33281752 | V44: -94.10839105 | W44: 85.89160895 | Y44: 1000000000 | Z44: 301.994884 | AB44: 67.37081046 | AC44: -87.287473 | AE44: 43.0995151 | AF44: -6.820918052 | AH44: 0 | AI44: 0 | AK44: 0 | AL44: 0
A45: 19.055 | B45: 0.019055 | C45: 1.008546782 | D45: 0.1302793139 | E45: 1 | F45: 1.197260959e-05 | G45: 1 | H45: 0 | I45: 36.04616548 | J45: 1.543050565 | K45: 1.000174494 | L45: 0.01867988699 | M45: 1.000000008 | N45: 0.0001265251993 | O45: 1 | P45: 0 | Q45: 1 | R45: 0 | S45: 1.000000003 | T45: 0.0001445581434 | U45: 73.52121439 | V45: -94.81930718 | W45: 85.18069282 | Y45: 1000000000 | Z45: 363.093025 | AB45: 66.5715584 | AC45: -87.34725573 | AE45: 43.08716403 | AF45: -7.472051444 | AH45: 0 | AI45: =IF(AH45>0,W43,0) -> 0 | AK45: 0 | AL45: 0
A46: 20.893 | B46: 0.020893 | C46: 1.010266317 | D46: 0.1426832083 | E46: 1 | F46: 1.312745905e-05 | G46: 1 | H46: 0 | I46: 39.52053458 | J46: 1.545490324 | K46: 1.000209777 | L46: 0.02048122279 | M46: 1.00000001 | N46: 0.0001387295191 | O46: 1 | P46: 0 | Q46: 1 | R46: 0 | S46: 1.000000003 | T46: 0.0001585018783 | U46: 72.70744949 | V46: -95.56800895 | W46: 84.43199105 | Y46: 1000000000 | Z46: 436.517449 | AB46: 65.77259002 | AC46: -87.38453396 | AE46: 43.07236751 | AF46: -8.183474991 | AH46: 0 | AI46: 0 | AK46: 0 | AL46: 0
A47: 22.909 | B47: 0.022909 | C47: 1.01233047 | D47: 0.1562375671 | E47: 1 | F47: 1.43941492e-05 | G47: 1 | H47: 0 | I47: 43.33160189 | J47: 1.547716433 | K47: 1.000252208 | L47: 0.02245685458 | M47: 1.000000012 | N47: 0.0001521157588 | O47: 1 | P47: 0 | Q47: 1 | R47: 0 | S47: 1.000000004 | T47: 0.0001737959858 | U47: 71.89045056 | V47: -96.36053844 | W47: 83.63946156 | Y47: 1000000000 | Z47: 524.822281 | AB47: 64.97331979 | AC47: -87.39965217 | AE47: 43.0546388 | AF47: -8.960886261 | AH47: 0 | AI47: 0 | AK47: 0 | AL47: 0
A48: 25.119 | B48: 0.025119 | C48: 1.014806013 | D48: 0.1710298808 | E48: 1 | F48: 1.578273315e-05 | G48: 1 | H48: 0 | I48: 47.50961406 | J48: 1.549746401 | K48: 1.000303208 | L48: 0.02462239973 | M48: 1.000000014 | N48: 0.0001667901585 | O48: 1 | P48: 0 | Q48: 1 | R48: 0 | S48: 1.000000005 | T48: 0.0001905618476 | U48: 71.07014376 | V48: -97.20202943 | W48: 82.79797057 | Y48: 1000000000 | Z48: 630.964161 | AB48: 64.17422746 | AC48: -87.39272498 | AE48: 43.03342434 | AF48: -9.809304459 | AH48: 0 | AI48: 0 | AK48: 0 | AL48: 0
A49: 27.542 | B49: 0.027542 | C49: 1.017773997 | D49: 0.187161249 | E49: 1 | F49: 1.730514895e-05 | G49: 1 | H49: 0 | I49: 52.09049057 | J49: 1.551597786 | K49: 1.000364513 | L49: 0.02699639414 | M49: 1.000000017 | N49: 0.000182878878 | O49: 1 | P49: 0 | Q49: 1 | R49: 0 | S49: 1.000000006 | T49: 0.0002089436048 | U49: 70.24577077 | V49: -98.0982332 | W49: 81.9017668 | Y49: 1000000000 | Z49: 758.561764 | AB49: 63.37522085 | AC49: -87.36370345 | AE49: 43.00805795 | AF49: -10.73452974 | AH49: 0 | AI49: 0 | AK49: 0 | AL49: 0
A50: 30.2 | B50: 0.0302 | C50: 1.021332551 | D50: 0.2047442163 | E50: 1 | F50: 1.89752196e-05 | G50: 1 | H50: 0 | I50: 57.11582432 | J50: 1.553287149 | K50: 1.000438248 | L50: 0.02960028461 | M50: 1.00000002 | N50: 0.0002005279973 | O50: 1 | P50: 0 | Q50: 1 | R50: 0 | S50: 1.000000007 | T50: 0.0002291081572 | U50: 69.41613444 | V50: -99.05533538 | W50: 80.94466462 | Y50: 1000000000 | Z50: 912.04 | AB50: 62.57590099 | AC50: -87.31231616 | AE50: 42.97774149 | AF50: -11.74301922 | AH50: 0 | AI50: 0 | AK50: 0 | AL50: 0
A51: 33.113 | B51: 0.033113 | C51: 1.025592438 | D51: 0.2238673168 | E51: 1 | F51: 2.080551148e-05 | G51: 1 | H51: 0 | I51: 62.62342821 | J51: 1.554827183 | K51: 1.000526847 | L51: 0.03245352163 | M51: 1.000000024 | N51: 0.0002198703165 | O51: 1 | P51: 0 | Q51: 1 | R51: 0 | S51: 1.000000008 | T51: 0.0002512072322 | U51: 68.58114305 | V51: -100.0780369 | W51: 79.92196311 | Y51: 1000000000 | Z51: 1096.470769 | AB51: 61.77706235 | AC51: -87.2381834 | AE51: 42.94158874 | AF51: -12.83985348 | AH51: 0 | AI51: 0 | AK51: 0 | AL51: 0
A52: 36.308 | B52: 0.036308 | C52: 1.030692145 | D52: 0.2446514392 | E52: 1 | F52: 2.281298918e-05 | G52: 1 | H52: 0 | I52: 68.66435105 | J52: 1.556232214 | K52: 1.000633386 | L52: 0.03558236372 | M52: 1.000000029 | N52: 0.0002410851153 | O52: 1 | P52: 0 | Q52: 1 | R52: 0 | S52: 1.00000001 | T52: 0.0002754456616 | U52: 67.73909511 | V52: -101.1726015 | W52: 78.82739848 | Y52: 1000000000 | Z52: 1318.270864 | AB52: 60.97809753 | AC52: -87.1406318 | AE52: 42.89850561 | AF52: -14.03196972 | AH52: 0 | AI52: 0 | AK52: 0 | AL52: 0
A53: 39.811 | B53: 0.039811 | C53: 1.036789734 | D53: 0.2671933434 | E53: 1 | F53: 2.501398899e-05 | G53: 1 | H53: 0 | I53: 75.28775221 | J53: 1.557513563 | K53: 1.000761452 | L53: 0.03901202508 | M53: 1.000000035 | N53: 0.0002643450338 | O53: 1 | P53: 0 | Q53: 1 | R53: 0 | S53: 1.000000012 | T53: 0.0003020206908 | U53: 66.88911196 | V53: -102.3437975 | W53: 77.6562025 | Y53: 1000000000 | Z53: 1584.915721 | AB53: 60.17934885 | AC53: -87.01887528 | AE53: 42.84727115 | AF53: -15.32492222 | AH53: 0 | AI53: 0 | AK53: 0 | AL53: 0
A54: 43.652 | B54: 0.043652 | C54: 1.044073591 | D54: 0.2915938555 | E54: 1 | F54: 2.742736046e-05 | G54: 1 | H54: 0 | I54: 82.55035508 | J54: 1.558682212 | K54: 1.000915401 | L54: 0.04277155201 | M54: 1.000000042 | N54: 0.0002898492719 | O54: 1 | P54: 0 | Q54: 1 | R54: 0 | S54: 1.000000014 | T54: 0.0003311599106 | U54: 66.0297472 | V54: -103.5963901 | W54: 76.40360995 | Y54: 1000000000 | Z54: 1905.497104 | AB54: 59.38079255 | AC54: -86.87189019 | AE54: 42.78646268 | AF54: -16.72449987 | AH54: 0 | AI54: 0 | AK54: 0 | AL54: 0
A55: 47.863 | B55: 0.047863 | C55: 1.052762788 | D55: 0.3179394003 | E55: 1 | F55: 3.007320979e-05 | G55: 1 | H55: 0 | I55: 90.51266558 | J55: 1.559747924 | K55: 1.00110043 | L55: 0.04689183703 | M55: 1.000000051 | N55: 0.0003178103093 | O55: 1 | P55: 0 | Q55: 1 | R55: 0 | S55: 1.000000017 | T55: 0.0003631060848 | U55: 65.15955615 | V55: -104.9341453 | W55: 75.06585472 | Y55: 1000000000 | Z55: 2290.866769 | AB55: 58.58258982 | AC55: -86.69847811 | AE55: 42.71447435 | AF55: -18.23566717 | AH55: 0 | AI55: 0 | AK55: 0 | AL55: 0
A56: 52.481 | B56: 0.052481 | C56: 1.063117095 | D56: 0.3463142727 | E56: 1.000000001 | F56: 3.297478476e-05 | G56: 1 | H56: 0 | I56: 99.24464463 | J56: 1.560720046 | K56: 1.001322875 | L56: 0.05140851814 | M56: 1.000000061 | N56: 0.0003484738259 | O56: 1 | P56: 0 | Q56: 1 | R56: 0 | S56: 1.00000002 | T56: 0.0003981399089 | U56: 64.27651978 | V56: -106.3604153 | W56: 73.63958466 | Y56: 1000000000 | Z56: 2754.255361 | AB56: 57.784565 | AC56: -86.49714669 | AE56: 42.62946281 | AF56: -19.86326865 | AH56: 0 | AI56: 0 | AK56: 0 | AL56: 0
A57: 57.544 | B57: 0.057544 | C57: 1.075432442 | D57: 0.3767682599 | E57: 1.000000001 | F57: 3.615596147e-05 | G57: 1 | H57: 0 | I57: 108.8181448 | J57: 1.561606554 | K57: 1.001590218 | L57: 0.0563580178 | M57: 1.000000073 | N57: 0.0003820921414 | O57: 1 | P57: 0 | Q57: 1 | R57: 0 | S57: 1.000000025 | T57: 0.0004365496645 | U57: 63.378913 | V57: -107.8764526 | W57: 72.12354737 | Y57: 1000000000 | Z57: 3311.311936 | AB57: 56.9869989 | AC57: -86.26628058 | AE57: 42.52942214 | AF57: -21.61017204 | AH57: 0 | AI57: 0 | AK57: 0 | AL57: 0
A58: 63.096 | B58: 0.063096 | C58: 1.090055951 | D58: 0.4093390025 | E58: 1.000000001 | F58: 3.964438595e-05 | G58: 1 | H58: 0 | I58: 119.3163647 | J58: 1.562415149 | K58: 1.001911571 | L58: 0.06178237063 | M58: 1.000000088 | N58: 0.0004189574155 | O58: 1 | P58: 0 | Q58: 1 | R58: 0 | S58: 1.00000003 | T58: 0.0004786691518 | U58: 62.46441215 | V58: -109.4824809 | W58: 70.5175191 | Y58: 1000000000 | Z58: 3981.105216 | AB58: 56.18981122 | AC58: -86.00392937 | AE58: 42.41210896 | AF58: -23.47855153 | AH58: 0 | AI58: 0 | AK58: 0 | AL58: 0
A59: 69.183 | B59: 0.069183 | C59: 1.107379812 | D59: 0.4440189399 | E59: 1.000000001 | F59: 4.346896083e-05 | G59: 1 | H59: 0 | I59: 130.8262852 | J59: 1.563152528 | K59: 1.002297745 | L59: 0.06772523094 | M59: 1.000000106 | N59: 0.0004593750877 | O59: 1 | P59: 0 | Q59: 1 | R59: 0 | S59: 1.000000036 | T59: 0.0005248473435 | U59: 61.53090299 | V59: -111.1759853 | W59: 68.82401467 | Y59: 1000000000 | Z59: 4786.287489 | AB59: 55.39325835 | AC59: -85.70799307 | AE59: 42.27515267 | AF59: -25.46799226 | AH59: 0 | AI59: 0 | AK59: 0 | AL59: 0
A60: 75.858 | B60: 0.075858 | C60: 1.127857695 | D60: 0.480775215 | E60: 1.000000001 | F60: 4.766298701e-05 | G60: 1 | H60: 0 | I60: 143.448124 | J60: 1.563825109 | K60: 1.002761882 | L60: 0.07423664898 | M60: 1.000000127 | N60: 0.0005036970774 | O60: 1 | P60: 0 | Q60: 1 | R60: 0 | S60: 1.000000043 | T60: 0.000575486317 | U60: 60.57577265 | V60: -112.9526246 | W60: 67.04737542 | Y60: 1000000000 | Z60: 5754.436164 | AB60: 54.59728217 | AC60: -85.37599179 | AE60: 42.11599851 | AF60: -27.57663279 | AH60: 0 | AI60: 0 | AK60: 0 | AL60: 0
A61: 83.176 | B61: 0.083176 | C61: 1.151992442 | D61: 0.5195126113 | E61: 1.000000001 | F61: 5.2261022e-05 | G61: 1 | H61: 0 | I61: 157.2858814 | J61: 1.564438434 | K61: 1.003319537 | L61: 0.08136804921 | M61: 1.000000153 | N61: 0.0005522885838 | O61: 1 | P61: 0 | Q61: 1 | R61: 0 | S61: 1.000000051 | T61: 0.0006310033223 | U61: 59.59679759 | V61: -114.8043572 | W61: 65.19564276 | Y61: 1000000000 | Z61: 6918.246976 | AB61: 53.80221365 | AC61: -85.00531768 | AE61: 41.93209198 | AF61: -29.79903955 | AH61: 0 | AI61: 0 | AK61: 0 | AL61: 0
A62: 91.201 | B62: 0.091201 | C62: 1.180359019 | D62: 0.5601039985 | E62: 1.000000002 | F62: 5.730327819e-05 | G62: 1 | H62: 0 | I62: 172.4605763 | J62: 1.564997868 | K62: 1.003989655 | L62: 0.08917887155 | M62: 1.000000183 | N62: 0.000605574566 | O62: 1 | P62: 0 | Q62: 1 | R62: 0 | S62: 1.000000062 | T62: 0.0006918838868 | U62: 58.59130491 | V62: -116.7208508 | W62: 63.27914921 | Y62: 1000000000 | Z62: 8317.622401 | AB62: 53.00801091 | AC62: -84.59289677 | AE62: 41.72080204 | AF62: -32.12795403 | AH62: 0 | AI62: 0 | AK62: 0 | AL62: 0
A63: 100 | B63: 0.1 | C63: 1.213584875 | D63: 0.6023525265 | E63: 1.000000002 | F63: 6.283185292e-05 | G63: 1 | H63: 0 | I63: 189.0989008 | J63: 1.565508064 | K63: 1.004794703 | L63: 0.09773048075 | M63: 1.00000022 | N63: 0.0006639999024 | O63: 1 | P63: 0 | Q63: 1 | R63: 0 | S63: 1.000000074 | T63: 0.0007586362971 | U63: 57.55716238 | V63: -118.6876295 | W63: 61.31237048 | Y63: 1000000000 | Z63: 10000 | AB63: 52.21498914 | AC63: -84.13550528 | AE63: 41.47968128 | AF63: -34.55212425 | AH63: 0 | AI63: 0 | AK63: 0 | AL63: 0
A64: 109.65 | B64: 0.10965 | C64: 1.252373388 | D64: 0.6460236856 | E64: 1.000000002 | F64: 6.889512671e-05 | G64: 1 | H64: 0 | I64: 207.3464569 | J64: 1.565973462 | K64: 1.00576195 | L64: 0.1070926595 | M64: 1.000000265 | N64: 0.0007280758714 | O64: 1 | P64: 0 | Q64: 1 | R64: 0 | S64: 1.000000089 | T64: 0.0008318447033 | U64: 56.49209337 | V64: -120.6875731 | W64: 59.31242694 | Y64: 1000000000 | Z64: 12023.1225 | AB64: 51.42319376 | AC64: -83.62942858 | AE64: 41.20640764 | AF64: -37.05814448 | AH64: 0 | AI64: 0 | AK64: 0 | AL64: 0
A65: 120.23 | B65: 0.12023 | C65: 1.297469603 | D65: 0.6908087465 | E65: 1.000000003 | F65: 7.554273672e-05 | G65: 1 | H65: 0 | I65: 227.3526286 | J65: 1.566397859 | K65: 1.006923513 | L65: 0.1173354287 | M65: 1.000000319 | N65: 0.0007983270304 | O65: 1 | P65: 0 | Q65: 1 | R65: 0 | S65: 1.000000108 | T65: 0.0009121084287 | U65: 55.39478391 | V65: -122.6992597 | W65: 57.30074028 | Y65: 1000000000 | Z65: 14455.2529 | AB65: 50.63315168 | AC65: -83.07090237 | AE65: 40.89914026 | AF65: -39.62835735 | AH65: 0 | AI65: 0 | AK65: 0 | AL65: 0
A66: 131.83 | B66: 0.13183 | C66: 1.349690979 | D66: 0.7363715106 | E66: 1.000000003 | F66: 8.283123162e-05 | G66: 1 | H66: 0 | I66: 249.2876009 | J66: 1.566784885 | K66: 1.008318166 | L66: 0.1285372543 | M66: 1.000000383 | N66: 0.0008753509764 | O66: 1 | P66: 0 | Q66: 1 | R66: 0 | S66: 1.000000129 | T66: 0.001000110246 | U66: 54.26404833 | V66: -124.6992091 | W66: 55.30079088 | Y66: 1000000000 | Z66: 17379.1489 | AB66: 49.84515935 | AC66: -82.45567315 | AE66: 40.55639702 | AF66: -42.24353597 | AH66: 0 | AI66: 0 | AK66: 0 | AL66: 0
A67: 144.54 | B67: 0.14454 | C67: 1.409872442 | D67: 0.7823143161 | E67: 1.000000004 | F67: 9.081716008e-05 | G67: 1 | H67: 0 | I67: 273.3215587 | J67: 1.567137624 | K67: 1.009991106 | L67: 0.1407737499 | M67: 1.000000461 | N67: 0.0009597453053 | O67: 1 | P67: 0 | Q67: 1 | R67: 0 | S67: 1.000000155 | T67: 0.001096532929 | U67: 53.10007285 | V67: -126.6605514 | W67: 53.3394486 | Y67: 1000000000 | Z67: 20891.8116 | AB67: 49.06009362 | AC67: -81.77961951 | AE67: 40.17748726 | AF67: -44.88093188 | AH67: 0 | AI67: 0 | AK67: 0 | AL67: 0
A68: 158.49 | B68: 0.15849 | C68: 1.479053951 | D68: 0.8283290566 | E68: 1.000000005 | F68: 9.958220349e-05 | G68: 1 | H68: 0 | I68: 299.7003255 | J68: 1.567459654 | K68: 1.012000718 | L68: 0.154155244 | M68: 1.000000554 | N68: 0.001052373212 | O68: 1 | P68: 0 | Q68: 1 | R68: 0 | S68: 1.000000187 | T68: 0.001202362706 | U68: 51.90098679 | V68: -128.5596182 | W68: 51.44038178 | Y68: 1000000000 | Z68: 25119.0801 | AB68: 48.27709171 | AC68: -81.03667451 | AE68: 39.76140311 | AF68: -47.52294371 | AH68: 0 | AI68: 0 | AK68: 0 | AL68: 0
A69: 173.78 | B69: 0.17378 | C69: 1.558138737 | D69: 0.8739644117 | E69: 1.000000006 | F69: 0.0001091891937 | G69: 1 | H69: 0 | I69: 328.6129964 | J69: 1.567753229 | K69: 1.014410638 | L69: 0.1687583123 | M69: 1.000000666 | N69: 0.001153898688 | O69: 1 | P69: 0 | Q69: 1 | R69: 0 | S69: 1.000000225 | T69: 0.001318358214 | U69: 50.66925239 | V69: -130.3663705 | W69: 49.63362953 | Y69: 1000000000 | Z69: 30199.4884 | AB69: 47.49779981 | AC69: -80.22261789 | AE69: 39.30896062 | AF69: -50.14375258 | AH69: 0 | AI69: 0 | AK69: 0 | AL69: 0
A70: 190.55 | B70: 0.19055 | C70: 1.648229703 | D70: 0.9188791184 | E70: 1.000000007 | F70: 0.0001197260953 | G70: 1 | H70: 0 | I70: 360.3243047 | J70: 1.568021046 | K70: 1.017301301 | L70: 0.1846915433 | M70: 1.0000008 | N70: 0.001265251325 | O70: 1 | P70: 0 | Q70: 1 | R70: 0 | S70: 1.00000027 | T70: 0.001445581546 | U70: 49.40555827 | V70: -132.0552972 | W70: 47.94470285 | Y70: 1000000000 | Z70: 36309.3025 | AB70: 46.7223383 | AC70: -79.33143581 | AE70: 38.820728 | AF70: -52.72386135 | AH70: 0 | AI70: 0 | AK70: 0 | AL70: 0
A71: 208.93 | B71: 0.20893 | C71: 1.750372304 | D71: 0.9626988456 | E71: 1.000000009 | F71: 0.0001312745897 | G71: 1 | H71: 0 | I71: 395.0800746 | J71: 1.568265192 | K71: 1.020764313 | L71: 0.2020458808 | M71: 1.000000962 | N71: 0.00138729431 | O71: 1 | P71: 0 | Q71: 1 | R71: 0 | S71: 1.000000325 | T71: 0.00158501893 | U71: 48.11298864 | V71: -133.5999609 | W71: 46.40003913 | Y71: 1000000000 | Z71: 43651.7449 | AB71: 45.95202306 | AC71: -78.3580866 | AE71: 38.29847361 | AF71: -55.24187427 | AH71: 0 | AI71: 0 | AK71: 0 | AL71: 0
A72: 229.09 | B72: 0.22909 | C72: 1.865823698 | D72: 1.005156238 | E72: 1.00000001 | F72: 0.000143941491 | G72: 1 | H72: 0 | I72: 433.2017686 | J72: 1.568487932 | K72: 1.024913651 | L72: 0.2209396854 | M72: 1.000001157 | N72: 0.001521156427 | O72: 1 | P72: 0 | Q72: 1 | R72: 0 | S72: 1.000000391 | T72: 0.001737960052 | U72: 46.79331706 | V72: -134.9785239 | W72: 45.02147611 | Y72: 1000000000 | Z72: 52482.2281 | AB72: 45.18715548 | AC72: -77.29598313 | AE72: 37.74366961 | AF72: -57.68254077 | AH72: 0 | AI72: 0 | AK72: 0 | AL72: 0
A73: 251.19 | B73: 0.25119 | C73: 1.995776643 | D73: 1.045975362 | E73: 1.000000012 | F73: 0.0001578273302 | G73: 1 | H73: 0 | I73: 474.9919397 | J73: 1.568691026 | K73: 1.029879007 | L73: 0.2414685583 | M73: 1.000001391 | N73: 0.001667900053 | O73: 1 | P73: 0 | Q73: 1 | R73: 0 | S73: 1.00000047 | T73: 0.001905618732 | U73: 45.45054593 | V73: -136.1699244 | W73: 43.83007555 | Y73: 1000000000 | Z73: 63096.4161 | AB73: 44.42921163 | AC73: -76.13980962 | AE73: 37.15884233 | AF73: -60.03011483 | AH73: 0 | AI73: 0 | AK73: 0 | AL73: 0
A74: 275.42 | B74: 0.27542 | C74: 2.141586067 | D74: 1.08496501 | E74: 1.000000015 | F74: 0.0001730514878 | G74: 1 | H74: 0 | I74: 520.8098701 | J74: 1.568876239 | K74: 1.035816564 | L74: 0.2637393711 | M74: 1.000001672 | N74: 0.001828786761 | O74: 1 | P74: 0 | Q74: 1 | R74: 0 | S74: 1.000000565 | T74: 0.002089436385 | U74: 44.08814434 | V74: -137.1573329 | W74: 42.84266707 | Y74: 1000000000 | Z74: 75856.1764 | AB74: 43.67928279 | AC74: -74.88361607 | AE74: 36.54636959 | AF74: -62.27371685 | AH74: 0 | AI74: 0 | AK74: 0 | AL74: 0
A75: 302 | B75: 0.302 | C75: 2.30478154 | D75: 1.122000859 | E75: 1.000000018 | F75: 0.0001897521938 | G75: 1 | H75: 0 | I75: 571.0715706 | J75: 1.569045232 | K75: 1.042913654 | L75: 0.2878651705 | M75: 1.000002011 | N75: 0.002005277312 | O75: 1 | P75: 0 | Q75: 1 | R75: 0 | S75: 1.000000679 | T75: 0.002291082017 | U75: 42.7093391 | V75: -137.9274156 | W75: 42.07258443 | Y75: 1000000000 | Z75: 91204 | AB75: 42.93836319 | AC75: -73.52110433 | AE75: 35.90848394 | AF75: -64.40631124 | AH75: 0 | AI75: 0 | AK75: 0 | AL75: 0
A76: 331.13 | B76: 0.33113 | C76: 2.486761941 | D76: 1.156954972 | E76: 1.000000022 | F76: 0.0002080551118 | G76: 1 | H76: 0 | I76: 626.1552332 | J76: 1.569199278 | K76: 1.051378668 | L76: 0.3139145809 | M76: 1.000002417 | N76: 0.002198699657 | O76: 1 | P76: 0 | Q76: 1 | R76: 0 | S76: 1.000000816 | T76: 0.002512072909 | U76: 41.31963218 | V76: -138.4691391 | W76: 41.53086092 | Y76: 1000000000 | Z76: 109647.0769 | AB76: 42.20874634 | AC76: -72.04849153 | AE76: 35.24839387 | AF76: -66.42064755 | AH76: 0 | AI76: 0 | AK76: 0 | AL76: 0
A77: 363.08 | B77: 0.36308 | C77: =SQRT(1+(A77/pole1)^2) -> 2.689354892 | D77: =ATAN(A77/pole1) -> 1.189809861 | E77: =SQRT(1+(A77/Zero1)^2) -> 1.000000026 | F77: =ATAN(A77/Zero1) -> 0.0002281298879 | G77: =IF(VIN_nom>Vout, 1, SQRT(1+(A77/z_RHP)^2)) -> 1 | H77: =IF(VIN_nom>Vout, 0, -ATAN(A77/z_RHP)) -> 0 | I77: =SQRT(1+(A77/Pole2)^2) -> 686.5714169 | J77: =ATAN(A77/Pole2) -> 1.569339814 | K77: =SQRT(1+(A77/Zero2)^2) -> 1.061469456 | L77: =ATAN(A77/Zero2) -> 0.3419868198 | M77: =SQRT(1+(A77/pole4)^2) -> 1.000002906 | N77: =ATAN(A77/pole4) -> 0.002410846529 | O77: =IF(VOUT_setting=1,1,SQRT(1+(A77*zterm1)^2)) -> 1 | P77: =IF(VOUT_setting=1,0,ATAN(((A77*zterm1)))) -> 0 | Q77: 1 | R77: =IF(VOUT_setting=1,0,ATAN(A77*$Q$4/(1+Afbr-$Q$5*(A77)^2))) -> 0 | S77: =SQRT((1-(Z77/pterm2))^2+(A77/pterm1)^2) -> 1.000000981 | T77: =IF((ATAN((A77/pterm1)/(1-A77^2/pterm2))>0),ATAN((A77/pterm1)/(1-A77^2/pterm2)),PI()+ATAN((A77/pterm1)/(1-A77^2/pterm2))) -> 0.002754457389 | U77: =20*LOG10(((E77*K77*G77*O77)/(C77*I77*S77*M77*Q77))*Adc) -> 39.92224117 | V77: =((F77+L77+H77+P77)-(D77+J77+T77+N77+R77))*radconv -> -138.7761094 | W77: =IF(V77>0,V77,V77+180) -> 41.22389063 | Y77: =IF(U77<0,A77,1000000000) -> 1000000000 | Z77: =A77^2 -> 131827.0864 | AB77: =20*LOG10((K77/(I77*M77))*AEA) -> 41.49163481 | AC77: =(L77-(J77+N77))*radconv -> -70.46027793 | AE77: =20*LOG10((E77*G77/(C77*S77))*Acs*Am) -> 34.56811439 | AF77: =(F77+H77-(D77+T77))*radconv -> -68.31583144 | AH77: =SUM((U78<0)*(U77>0))*A77 -> 0 | AI77: =IF(AH77>0,W75,0) -> 0 | AK77: 0 | AL77: 0
A78: 398.11 | B78: =A78/1000 -> 0.39811 | C78: 2.914325872 | D78: 1.220546447 | E78: 1.000000031 | F78: 0.0002501398848 | G78: 1 | H78: 0 | I78: 752.8117715 | J78: 1.569467973 | K78: 1.073474901 | L78: 0.3721323086 | M78: 1.000003494 | N78: 0.002643444243 | O78: 1 | P78: 0 | Q78: 1 | R78: 0 | S78: 1.000001179 | T78: 0.003020207927 | U78: 38.52210869 | V78: -138.8446119 | W78: 41.15538807 | Y78: 1000000000 | Z78: 158491.5721 | AB78: 40.78930392 | AC78: -68.75373852 | AE78: 33.87031281 | AF78: -70.09087342 | AH78: 0 | AI78: 0 | AK78: =SUM((V79<-183)*(V78>-183))*A78 -> 0 | AL78: =IF(AK78>0,U78,0) -> 0
A79: 436.52 | B79: 0.43652 | C79: 3.163695054 | D79: 1.249195108 | E79: 1.000000038 | F79: 0.0002742735978 | G79: 1 | H79: 0 | I79: 825.4435853 | J79: 1.569584857 | K79: 1.087733383 | L79: 0.4043890937 | M79: 1.000004201 | N79: 0.002898484683 | O79: 1 | P79: 0 | Q79: =IF(VOUT_setting=1,1,SQRT((1+Afbr-$Q$5*(A79)^2)^2+(A79*$Q$4)^2)) -> 1 | R79: 0 | S79: 1.000001418 | T79: 0.00331160045 | U79: 37.12356181 | V79: -138.6745041 | W79: 41.32549588 | Y79: 1000000000 | Z79: 190549.7104 | AB79: 40.10388913 | AC79: -66.92687054 | AE79: 33.15718071 | AF79: -71.74763358 | AH79: 0 | AI79: 0 | AK79: 0 | AL79: 0
A80: 478.63 | B80: 0.47863 | C80: 3.439614642 | D80: 1.275806368 | E80: 1.000000045 | F80: 0.0003007320889 | G80: 1 | H80: 0 | I80: 905.0719656 | J80: 1.569691442 | K80: 1.104629878 | L80: 0.4387565432 | M80: 1.00000505 | N80: 0.0031780925 | O80: 1 | P80: 0 | Q80: 1 | R80: 0 | S80: 1.000001705 | T80: 0.003631062619 | U80: 35.73122078 | V80: -138.2690223 | W80: 41.73097771 | Y80: 1000000000 | Z80: 229086.6769 | AB80: 39.437854 | AC80: -64.97988797 | AE80: 32.43087482 | AF80: -73.28913432 | AH80: 0 | AI80: 0 | AK80: 0 | AL80: 0
A81: 524.81 | B81: 0.52481 | C81: 3.744568826 | D81: 1.3004622 | E81: 1.000000054 | F81: 0.0003297478358 | G81: 1 | H81: 0 | I81: 992.3965683 | J81: 1.569788665 | K81: 1.124611004 | L81: 0.4752106798 | M81: 1.000006072 | N81: 0.003484724295 | O81: 1 | P81: 0 | Q81: 1 | R81: 0 | S81: 1.00000205 | T81: 0.003981401423 | U81: 34.34903646 | V81: -137.6345789 | W81: 42.36542115 | Y81: 1000000000 | Z81: 275425.5361 | AB81: 38.79351316 | AC81: -62.91435896 | AE81: 31.69303133 | AF81: -74.72021989 | AH81: 0 | AI81: 0 | AK81: 0 | AL81: 0
A82: 575.44 | B82: 0.57544 | C82: 4.081114275 | D82: 1.323244536 | E82: 1.000000065 | F82: 0.0003615595991 | G82: 1 | H82: 0 | I82: 1088.135959 | J82: 1.569877324 | K82: 1.148170889 | L82: 0.5136629429 | M82: 1.0000073 | N82: 0.003820903006 | O82: 1 | P82: 0 | Q82: 1 | R82: 0 | S82: 1.000002464 | T82: 0.004365499722 | U82: 32.98160941 | V82: -136.7812841 | W82: 43.21871588 | Y82: 1000000000 | Z82: 331131.1936 | AB82: 38.17362838 | AC82: -60.73554798 | AE82: 30.94548907 | AF82: -76.04573615 | AH82: 0 | AI82: 0 | AK82: 0 | AL82: 0
A83: 630.96 | B83: 0.63096 | C83: 4.452212668 | D83: 1.344256183 | E83: 1.000000079 | F83: 0.0003964438389 | G83: 1 | H83: 0 | I83: 1193.12216 | J83: 1.56995819 | K83: 1.175873959 | L83: 0.5539917795 | M83: 1.000008776 | N83: 0.004189549888 | O83: 1 | P83: 0 | Q83: 1 | R83: 0 | S83: 1.000002963 | T83: 0.004786695575 | U83: 31.63269929 | V83: -135.7223799 | W83: 44.27762012 | Y83: 1000000000 | Z83: 398110.5216 | AB83: 37.58066538 | AC83: -58.45063102 | AE83: 30.18954194 | AF83: -77.27174886 | AH83: 0 | AI83: 0 | AK83: 0 | AL83: 0
A84: 691.83 | B84: 0.69183 | C84: 4.860967477 | D84: 1.363596567 | E84: 1.000000094 | F84: 0.0004346895812 | G84: 1 | H84: 0 | I84: 1308.225015 | J84: 1.570031932 | K84: 1.208336406 | L84: 0.5960061882 | M84: 1.000010551 | N84: 0.004593718887 | O84: 1 | P84: 0 | Q84: 1 | R84: 0 | S84: 1.000003562 | T84: 0.005248478783 | U84: 30.30633354 | V84: -134.4749032 | W84: 45.5250968 | Y84: 1000000000 | Z84: 478628.7489 | AB84: 37.01724098 | AC84: -56.07076504 | AE84: 29.42660059 | AF84: -78.40413816 | AH84: 0 | AI84: 0 | AK84: 0 | AL84: 0
A85: 758.58 | B85: 0.75858 | C85: 5.310960175 | D85: 1.381375747 | E85: 1.000000114 | F85: 0.0004766298344 | G85: 1 | H85: 0 | I85: 1434.446732 | J85: 1.570099194 | K85: 1.246250034 | L85: 0.6394783096 | M85: 1.000012685 | N85: 0.005036928603 | O85: 1 | P85: 0 | Q85: 1 | R85: 0 | S85: 1.000004282 | T85: 0.005754870219 | U85: 29.00560924 | V85: -133.058665 | W85: 46.94133496 | Y85: 1000000000 | Z85: 575443.6164 | AB85: 36.48552937 | AC85: -53.6092438 | AE85: 28.65758791 | AF85: -79.44942124 | AH85: 0 | AI85: 0 | AK85: 0 | AL85: 0
A86: 831.76 | B86: 0.83176 | C86: 5.80591584 | D86: 1.397695037 | E86: 1.000000137 | F86: 0.0005226101729 | G86: 1 | H86: 0 | I86: 1572.827342 | J86: 1.570160529 | K86: 1.290352371 | L86: 0.684109544 | M86: 1.000015251 | N86: 0.005522830247 | O86: 1 | P86: 0 | Q86: 1 | R86: 0 | S86: 1.000005149 | T86: 0.006310042515 | U86: 27.73375613 | V86: -131.497039 | W86: 48.50296102 | Y86: 1000000000 | Z86: 691824.6976 | AB86: 35.98763741 | AC86: -51.0834168 | AE86: 27.88362676 | AF86: -80.41362218 | AH86: 0 | AI86: 0 | AK86: 0 | AL86: 0
A87: 912.01 | B87: 0.91201 | C87: 6.350176479 | D87: 1.41266215 | E87: 1.000000164 | F87: 0.0005730327198 | G87: 1 | H87: 0 | I87: 1724.57706 | J87: 1.570216474 | K87: 1.34146291 | L87: 0.7295793937 | M87: 1.000018336 | N87: 0.006055672376 | O87: 1 | P87: 0 | Q87: 1 | R87: 0 | S87: 1.00000619 | T87: 0.006918851118 | U87: 26.49279517 | V87: -129.8150892 | W87: 50.18491085 | Y87: 1000000000 | Z87: 831762.2401 | AB87: 35.52498643 | AC87: -48.51192135 | AE87: 27.10531677 | AF87: -81.3031678 | AH87: 0 | AI87: 0 | AK87: 0 | AL87: 0
A88: 1000 | B88: 1 | C88: 6.948296547 | D88: 1.426374634 | E88: 1.000000197 | F88: 0.0006283184473 | G88: 1 | H88: 0 | I88: 1890.962831 | J88: 1.570267496 | K88: 1.400442617 | L88: 0.7755158923 | M88: 1.000022045 | N88: 0.006639902418 | O88: 1 | P88: 0 | Q88: 1 | R88: 0 | S88: 1.000007442 | T88: 0.007586379119 | U88: 25.28462659 | V88: -128.0402652 | W88: 51.95973479 | Y88: 1000000000 | Z88: 1000000 | AB88: 35.09867944 | AC88: -45.91635107 | AE88: 26.32345518 | AF88: -82.12391414 | AH88: 0 | AI88: 0 | AK88: 0 | AL88: 0
A89: 1096.5 | B89: 1.0965 | C89: 7.605518414 | D89: 1.438931027 | E89: 1.000000237 | F89: 0.0006889511591 | G89: 1 | H89: 0 | I89: 2073.440695 | J89: 1.570314037 | K89: 1.468233651 | L89: 0.821545365 | M89: 1.000026504 | N89: 0.007280631354 | O89: 1 | P89: 0 | Q89: 1 | R89: 0 | S89: 1.000008948 | T89: 0.008318468323 | U89: 24.10999018 | V89: -126.2002483 | W89: 53.7997517 | Y89: 1000000000 | Z89: 1202312.25 | AB89: 34.7090653 | AC89: -43.31843422 | AE89: 25.53843291 | AF89: -82.88181408 | AH89: 0 | AI89: 0 | AK89: 0 | AL89: 0
A90: 1202.3 | B90: 1.2023 | C90: 8.327228655 | D90: 1.450417832 | E90: 1.000000285 | F90: 0.0007554272249 | G90: 1 | H90: 0 | I90: 2273.504514 | J90: 1.570356477 | K90: 1.545799482 | L90: 0.8672651793 | M90: 1.000031866 | N90: 0.007983102408 | O90: 1 | P90: 0 | Q90: 1 | R90: 0 | S90: 1.000010758 | T90: 0.009121112352 | U90: 22.96957057 | V90: -124.3237009 | W90: 55.67629906 | Y90: 1000000000 | Z90: 1445525.29 | AB90: 34.35609436 | AC90: -40.7415621 | AE90: 24.75098425 | AF90: -83.58213884 | AH90: 0 | AI90: =IF(AH90>0,W90,0) -> 0 | AK90: 0 | AL90: 0
A91: 1318.3 | B91: 1.3183 | C91: 9.119570921 | D91: 1.460921099 | E91: 1.000000343 | F91: 0.0008283121287 | G91: 1 | H91: 0 | I91: 2492.856152 | J91: 1.57039518 | K91: 1.634182511 | L91: 0.9123019152 | M91: 1.000038311 | N91: 0.008753288434 | O91: 1 | P91: 0 | Q91: 1 | R91: 0 | S91: 1.000012934 | T91: 0.01000113946 | U91: 21.86293795 | V91: -122.4376707 | W91: 57.56232928 | Y91: 1000000000 | Z91: 1737914.89 | AB91: 34.03895843 | AC91: -38.20749316 | AE91: 23.96148755 | AF91: -84.23017757 | AH91: 0 | AI91: 0 | AK91: 0 | AL91: 0
A92: 1445.4 | B92: 1.4454 | C92: 9.988695123 | D92: 1.470515158 | E92: 1.000000412 | F92: 0.0009081713536 | G92: 1 | H92: 0 | I92: 2733.197477 | J92: 1.570430455 | K92: 1.734417337 | L92: 0.9562811029 | M92: 1.000046055 | N92: 0.009597161339 | O92: 1 | P92: 0 | Q92: 1 | R92: 0 | S92: 1.000015548 | T92: 0.01096537806 | U92: 20.78974665 | V92: -120.5685906 | W92: 59.43140939 | Y92: 1000000000 | Z92: 2089181.16 | AB92: 33.75647629 | AC92: -35.73804274 | AE92: 23.17077839 | AF92: -84.83054786 | AH92: 0 | AI92: 0 | AK92: 0 | AL92: 0
A93: 1584.9 | B93: 1.5849 | C93: 10.94349391 | D93: 1.479290183 | E93: 1.000000496 | F93: 0.000995821709 | G93: 1 | H93: 0 | I93: 2996.986738 | J93: 1.570462658 | K93: 1.847848818 | L93: 0.9989687168 | M93: 1.000055373 | N93: 0.01052334753 | O93: 1 | P93: 0 | Q93: 1 | R93: 0 | S93: 1.000018695 | T93: 0.01202369135 | U93: 19.74667466 | V93: -118.7360689 | W93: 61.26393105 | Y93: 1000000000 | Z93: 2511908.01 | AB93: 33.50637576 | AC93: -33.3471343 | AE93: 22.37780693 | AF93: -85.38893465 | AH93: 0 | AI93: 0 | AK93: 0 | AL93: 0
A94: 1737.8 | B94: 1.7378 | C94: 11.9908145 | D94: 1.48730218 | E94: 1.000000596 | F94: 0.001091891508 | G94: 1 | H94: 0 | I94: 3286.1149 | J94: 1.570492016 | K94: 1.975574393 | L94: 1.040044476 | M94: 1.000066572 | N94: 0.01153847991 | O94: 1 | P94: 0 | Q94: 1 | R94: 0 | S94: 1.000022476 | T94: 0.01318366688 | U94: 18.7332723 | V94: -116.9624571 | W94: 63.0375429 | Y94: 1000000000 | Z94: 3019948.84 | AB94: 33.28685905 | AC94: -31.05351152 | AE94: 21.58392128 | AF94: -85.90894558 | AH94: 0 | AI94: 0 | AK94: 0 | AL94: 0
A95: 1905.5 | B95: 1.9055 | C95: 13.14024792 | D95: 1.494620612 | E95: 1.000000717 | F95: 0.001197260387 | G95: 1 | H95: 0 | I95: 3603.229309 | J95: 1.570518798 | K95: 2.119007706 | L95: 1.079330192 | M95: 1.00008004 | N95: 0.0126518449 | O95: 1 | P95: 0 | Q95: 1 | R95: 0 | S95: 1.000027024 | T95: 0.01445592717 | U95: 17.7466192 | V95: -115.2630502 | W95: 64.73694978 | Y95: 1000000000 | Z95: 3630930.25 | AB95: 33.0953419 | AC95: -28.86793143 | AE95: 20.78878533 | AF95: -86.39511879 | AH95: 0 | AI95: 0 | AK95: 0 | AL95: 0
A96: 2089.3 | B96: 2.0893 | C96: 14.40070555 | D96: 1.501299355 | E96: 1.000000862 | F96: 0.001312745151 | G96: 1 | H96: 0 | I96: 3950.788217 | J96: 1.570543213 | K96: 2.279468851 | L96: 1.116646263 | M96: 1.000096225 | N96: 0.01387206211 | O96: 1 | P96: 0 | Q96: 1 | R96: 0 | S96: 1.000032489 | T96: 0.01585033656 | U96: 16.78501375 | V96: -113.6522498 | W96: 66.34775024 | Y96: 1000000000 | Z96: 4365174.49 | AB96: 32.92938689 | AC96: -26.80119019 | AE96: 19.9931349 | AF96: -86.85105957 | AH96: 0 | AI96: 0 | AK96: 0 | AL96: 0
A97: 2290.9 | B97: 2.2909 | C97: 15.7838464 | D97: 1.507397952 | E97: 1.000001036 | F97: 0.001439413926 | G97: 1 | H97: 0 | I97: 4332.006259 | J97: 1.570565487 | K97: 2.458617332 | L97: 1.151921652 | M97: 1.000115689 | N97: 0.01521040288 | O97: 1 | P97: 0 | Q97: 1 | R97: 0 | S97: 1.000039062 | T97: 0.01737979463 | U97: 15.84524664 | V97: -112.1388741 | W97: 67.86112587 | Y97: 1000000000 | Z97: 5248222.81 | AB97: 32.78625686 | AC97: -24.85801678 | AE97: 19.19649781 | AF97: -87.28085735 | AH97: 0 | AI97: 0 | AK97: 0 | AL97: 0
A98: 2511.9 | B98: 2.5119 | C98: 17.30064857 | D98: 1.512962791 | E98: 1.000001245 | F98: 0.001578272005 | G98: 1 | H98: 0 | I98: 4749.908976 | J98: 1.570585796 | K98: 2.658021235 | L98: 1.185083468 | M98: 1.000139085 | N98: 0.01667746962 | O98: 1 | P98: 0 | Q98: 1 | R98: 0 | S98: 1.000046963 | T98: 0.0190564432 | U98: 14.92541179 | V98: -110.7310131 | W98: 69.26898686 | Y98: 1000000000 | Z98: 6309641.61 | AB98: 32.66347959 | AC98: -23.04320509 | AE98: 18.39944023 | AF98: -87.68780805 | AH98: 0 | AI98: 0 | AK98: 0 | AL98: 0
A99: 2754.2 | B99: 2.7542 | C99: 18.96415271 | D99: 1.518040793 | E99: 1.000001497 | F99: 0.001730513168 | G99: 1 | H99: 0 | I99: 5208.089197 | J99: 1.570604318 | K99: 2.879513063 | L99: 1.21612631 | M99: 1.000167209 | N99: 0.01828584963 | O99: 1 | P99: 0 | Q99: 1 | R99: 0 | S99: 1.000056463 | T99: 0.02089470112 | U99: 14.02301564 | V99: -109.4331536 | W99: 70.56684645 | Y99: 1000000000 | Z99: 7585617.64 | AB99: 32.55858495 | AC99: -21.35779582 | AE99: 17.60193873 | AF99: -88.07535773 | AH99: 0 | AI99: 0 | AK99: 0 | AL99: 0
A100: 3020 | B100: 3.02 | C100: 20.78946355 | D100: 1.522676469 | E100: 1.0000018 | F100: 0.001897519683 | G100: 1 | H100: 0 | I100: 5710.707038 | J100: 1.570621217 | K100: 3.125202224 | L100: 1.245088695 | M100: 1.000201037 | N100: 0.02005011281 | O100: 1 | P100: 0 | Q100: 1 | R100: 0 | S100: 1.000067889 | T100: 0.02291126478 | U100: 13.13538056 | V100: -108.2473607 | W100: 71.75263927 | Y100: 1000000000 | Z100: 9120400 | AB100: 32.46924326 | AC100: -19.80042648 | AE100: 16.80364533 | AF100: -88.44693426 | AH100: 0 | AI100: 0 | AK100: 0 | AL100: 0
A101: 3311.3 | B101: 3.3113 | C101: 22.79031582 | D101: 1.526903949 | E101: 1.000002164 | F101: 0.002080548146 | G101: 1 | H101: 0 | I101: 6261.544426 | J101: 1.570636622 | K101: 3.397014922 | L101: 1.271993702 | M101: 1.000241686 | N101: 0.02198348997 | O101: 1 | P101: 0 | Q101: 1 | R101: 0 | S101: 1.000081622 | T101: 0.02512131511 | U101: 12.26132515 | V101: -107.1758309 | W101: 72.82416913 | Y101: 1000000000 | Z101: 10964707.69 | AB101: 32.39344517 | AC101: -18.37054009 | AE101: 16.00538801 | AF101: -88.80529078 | AH101: 0 | AI101: 0 | AK101: 0 | AL101: 0
A102: 3630.8 | B102: 3.6308 | C102: 24.98525512 | D102: 1.530762028 | E102: 1.000002602 | F102: 0.002281294961 | G102: 1 | H102: 0 | I102: 6865.706959 | J102: 1.570650675 | K102: 3.697531684 | L102: 1.296935189 | M102: 1.000290568 | N102: 0.02410384284 | O102: 1 | P102: 0 | Q102: 1 | R102: 0 | S102: 1.000098139 | T102: 0.02754534635 | U102: 11.39830518 | V102: -106.2175179 | W102: 73.78248212 | Y102: 1000000000 | Z102: 13182708.64 | AB102: 32.32923375 | AC102: -17.06379063 | AE102: 15.20657947 | AF102: -89.15372725 | AH102: 0 | AI102: 0 | AK102: 0 | AL102: 0
A103: 3981.1 | B103: 3.9811 | C103: 27.39214356 | D103: 1.534281395 | E103: 1.000003128 | F103: 0.002501393683 | G103: 1 | H103: 0 | I103: 7528.11114 | J103: 1.570663491 | K103: 4.029247611 | L103: 1.319989841 | M103: 1.00034933 | N103: 0.02642834925 | O103: 1 | P103: 0 | Q103: 1 | R103: 0 | S103: 1.000117998 | T103: 0.03020309743 | U103: 10.5450083 | V103: -105.3718144 | W103: 74.62818556 | Y103: 1000000000 | Z103: 15849157.21 | AB103: 32.27494938 | AC103: -15.87677512 | AE103: 14.40756695 | AF103: -89.49503932 | AH103: 0 | AI103: 0 | AK103: 0 | AL103: 0
A104: 4365.2 | B104: 4.3652 | C104: 30.03159402 | D104: 1.537491905 | E104: 1.000003761 | F104: 0.00274272917 | G104: 1 | H104: 0 | I104: 8254.429856 | J104: 1.57067518 | K104: 4.395041668 | L104: 1.341256824 | M104: 1.000419975 | N104: 0.02897681509 | O104: 1 | P104: 0 | Q104: 1 | R104: 0 | S104: 1.000141877 | T104: 0.03311734648 | U104: 9.699905343 | V104: -104.6370874 | W104: 75.36291262 | Y104: 1000000000 | Z104: 19054971.04 | AB104: 32.22909562 | AC104: -14.80495273 | AE104: 13.60831776 | AF104: -89.83213465 | AH104: 0 | AI104: 0 | AK104: 0 | AL104: 0
A105: 4786.3 | B105: 4.7863 | C105: 32.92559625 | D105: 1.540420148 | E105: 1.000004522 | F105: 0.003007311914 | G105: 1 | H105: 0 | I105: 9050.714187 | J105: 1.570685838 | K105: 4.797990912 | L105: 1.36083654 | M105: 1.00050489 | N105: 0.03177033851 | O105: 1 | P105: 0 | Q105: 1 | R105: 0 | S105: 1.000170588 | T105: 0.03631239487 | U105: 8.861833209 | V105: -104.0115994 | W105: 75.98840061 | Y105: 1000000000 | Z105: 22908667.69 | AB105: 32.1903715 | AC105: -13.84378545 | AE105: 12.80896974 | AF105: -90.16781394 | AH105: 0 | AI105: 0 | AK105: 0 | AL105: 0
A106: 5248.1 | B106: 5.2481 | C106: 36.09957852 | D106: 1.543091628 | E106: 1.000005437 | F106: 0.003297466526 | G106: 1 | H106: 0 | I106: 9923.960695 | J106: 1.570695561 | K106: 5.241659191 | L106: 1.378840374 | M106: 1.000606986 | N106: 0.03483328874 | O106: 1 | P106: 0 | Q106: 1 | R106: 0 | S106: 1.00020512 | T106: 0.03981634528 | U106: 8.029428789 | V106: -103.4933083 | W106: 76.50669165 | Y106: 1000000000 | Z106: 27542553.61 | AB106: 32.15762868 | AC106: -12.98829291 | AE106: 12.00930814 | AF106: -90.50501544 | AH106: 0 | AI106: 0 | AK106: 0 | AL106: 0
A107: 5370.3 | B107: 5.3703 | C107: 36.93950572 | D107: 1.543721731 | E107: 1.000005693 | F107: 0.003374246196 | G107: 1 | H107: 0 | I107: 10155.03632 | J107: 1.570697853 | K107: 5.359315738 | L107: 1.383105287 | M107: 1.000635573 | N107: 0.03564368955 | O107: 1 | P107: 0 | Q107: 1 | R107: 0 | S107: 1.000214791 | T107: 0.04074356698 | U107: 7.822202278 | V107: -103.3803397 | W107: 76.6196603 | Y107: 1000000000 | Z107: 28840122.09 | AB107: 32.1502629 | AC107: -12.7904953 | AE107: 11.80944742 | AF107: -90.5898444 | AH107: 0 | AI107: 0 | AK107: 0 | AL107: 0
A108: 5432.85 | B108: 5.43285 | C108: 37.3694412 | D108: 1.544033299 | E108: 1.000005826 | F108: 0.003413547067 | G108: 1 | H108: 0 | I108: 10273.31603 | J108: 1.570698987 | K108: 5.419576582 | L108: 1.385216679 | M108: 1.00065046 | N108: 0.03605848794 | O108: 1 | P108: 0 | Q108: 1 | R108: 0 | S108: 1.000219827 | T108: 0.04121818307 | U108: 7.718056932 | V108: -103.3259903 | W108: 76.6740097 | Y108: 1000000000 | Z108: 29515859.12 | AB108: 32.1466706 | AC108: -12.69335264 | AE108: 11.70889436 | AF108: -90.63263766 | AH108: 0 | AI108: 0 | AK108: 0 | AL108: 0
A109: 5495.4 | B109: 5.4954 | C109: 37.79938022 | D109: 1.54433778 | E109: 1.000005961 | F109: 0.003452847928 | G109: 1 | H109: 0 | I109: 10391.59574 | J109: 1.570700095 | K109: 5.479861054 | L109: 1.387281624 | M109: 1.000665519 | N109: 0.03647327393 | O109: 1 | P109: 0 | Q109: 1 | R109: 0 | S109: 1.000224922 | T109: 0.04169280123 | U109: 7.615173523 | V109: -103.2738939 | W109: 76.72610609 | Y109: 1000000000 | Z109: 30199421.16 | AB109: 32.14319178 | AC109: -12.59886896 | AE109: 11.60948978 | AF109: -90.67502495 | AH109: 0 | AI109: 0 | AK109: 0 | AL109: 0
A110: 5559.4 | B110: 5.5594 | C110: 38.23928941 | D110: 1.544642232 | E110: 1.000006101 | F110: 0.003493059829 | G110: 1 | H110: 0 | I110: 10512.61734 | J110: 1.570701203 | K110: 5.541566661 | L110: 1.389347927 | M110: 1.000681105 | N110: 0.03689766226 | O110: 1 | P110: 0 | Q110: 1 | R110: 0 | S110: 1.000230196 | T110: 0.04217842389 | U110: 7.511178998 | V110: -103.2228466 | W110: 76.77715342 | Y110: 1000000000 | Z110: 30906928.36 | AB110: 32.13974452 | AC110: -12.50485766 | AE110: 11.50894251 | AF110: -90.71798892 | AH110: 0 | AI110: 0 | AK110: 0 | AL110: 0
A111: 5623.4 | B111: 5.6234 | C111: 38.67920205 | D111: 1.544939758 | E111: 1.000006242 | F111: 0.003533271718 | G111: 1 | H111: 0 | I111: 10633.63894 | J111: 1.570702286 | K111: 5.603295407 | L111: 1.391368711 | M111: 1.000696872 | N111: 0.03732203729 | O111: 1 | P111: 0 | Q111: 1 | R111: 0 | S111: 1.000235531 | T111: 0.04266404877 | U111: 7.408441258 | V111: -103.1740084 | W111: 76.8259916 | Y111: 1000000000 | Z111: 31622627.56 | AB111: 32.13640574 | AC111: -12.41345217 | AE111: 11.40954355 | AF111: -90.76055623 | AH111: 0 | AI111: 0 | AK111: 0 | AL111: 0
A112: 5688.9 | B112: 5.6889 | C112: 39.12942862 | D112: 1.545237331 | E112: 1.000006388 | F112: 0.003574426062 | G112: 1 | H112: 0 | I112: 10757.49699 | J112: 1.570703368 | K112: 5.66649409 | L112: 1.393391262 | M112: 1.000713194 | N112: 0.03775634468 | O112: 1 | P112: 0 | Q112: 1 | R112: 0 | S112: 1.000241055 | T112: 0.0431610578 | U112: 7.304564839 | V112: -103.126239 | W112: 76.87376098 | Y112: 1000000000 | Z112: 32363583.21 | AB112: 32.13309602 | AC112: -12.32251456 | AE112: 11.30897685 | AF112: -90.80372446 | AH112: 0 | AI112: 0 | AK112: 0 | AL112: 0
A113: 5754.4 | B113: 5.7544 | C113: 39.57965857 | D113: 1.545528135 | E113: 1.000006536 | F113: 0.003615580394 | G113: 1 | H113: 0 | I113: 10881.35504 | J113: 1.570704426 | K113: 5.729715441 | L113: 1.395369187 | M113: 1.000729706 | N113: 0.03819063783 | O113: 1 | P113: 0 | Q113: 1 | R113: 0 | S113: 1.000246642 | T113: 0.04365806921 | U113: 7.201940868 | V113: -103.0806365 | W113: 76.91936348 | Y113: 1000000000 | Z113: 33113119.36 | AB113: 32.12989003 | AC113: -12.23413157 | AE113: 11.20955887 | AF113: -90.84650494 | AH113: 0 | AI113: 0 | AK113: 0 | AL113: 0
A114: 5821.4 | B114: 5.8214 | C114: 40.04020251 | D114: 1.545818831 | E114: 1.000006689 | F114: 0.003657677179 | G114: 1 | H114: 0 | I114: 11008.04953 | J114: 1.570705484 | K114: 5.79440729 | L114: 1.397347746 | M114: 1.000746791 | N114: 0.03863486171 | O114: 1 | P114: 0 | Q114: 1 | R114: 0 | S114: 1.000252425 | T114: 0.04416646505 | U114: 7.098230672 | V114: -103.0361589 | W114: 76.96384111 | Y114: 1000000000 | Z114: 33888697.96 | AB114: 32.12671315 | AC114: -12.1462813 | AE114: 11.10902555 | AF114: -90.88987759 | AH114: 0 | AI114: 0 | AK114: 0 | AL114: 0
A115: 5888.4 | B115: 5.8884 | C115: 40.50074976 | D115: 1.546102916 | E115: 1.000006844 | F115: 0.003699773951 | G115: 1 | H115: 0 | I115: 11134.74402 | J115: 1.570706518 | K115: 5.859121321 | L115: 1.399282605 | M115: 1.000764073 | N115: 0.03907907033 | O115: 1 | P115: 0 | Q115: 1 | R115: 0 | S115: 1.000258274 | T115: 0.04467486343 | U115: 6.995767465 | V115: -102.9938041 | W115: 77.00619587 | Y115: 1000000000 | Z115: 34673254.56 | AB115: 32.12363535 | AC115: -12.06093253 | AE115: 11.00964015 | AF115: -90.9328716 | AH115: 0 | AI115: 0 | AK115: 0 | AL115: 0
A116: 5957 | B116: 5.957 | C116: 40.97229846 | D116: 1.546387169 | E116: 1.000007005 | F116: 0.003742876005 | G116: 1 | H116: 0 | I116: 11264.46405 | J116: 1.570707552 | K116: 5.925402986 | L116: 1.401219873 | M116: 1.000781973 | N116: 0.03953387093 | O116: 1 | P116: 0 | Q116: 1 | R116: 0 | S116: 1.000264333 | T116: 0.04519540533 | U116: 6.892117705 | V116: -102.952566 | W116: 77.04743402 | Y116: 1000000000 | Z116: 35485849 | AB116: 32.1205821 | AC116: -11.97605263 | AE116: 10.90904364 | AF116: -90.97651335 | AH116: 0 | AI116: 0 | AK116: 0 | AL116: 0
A117: 6025.6 | B117: 6.0256 | C117: 41.4438504 | D117: 1.546664953 | E117: 1.000007167 | F117: 0.003785978045 | G117: 1 | H117: 0 | I117: 11394.18408 | J117: 1.570708563 | K117: 5.991706397 | L117: 1.403114274 | M117: 1.000800079 | N117: 0.03998865517 | O117: 1 | P117: 0 | Q117: 1 | R117: 0 | S117: 1.000270462 | T117: 0.04571594996 | U117: 6.789712028 | V117: -102.9134112 | W117: 77.08658875 | Y117: 1000000000 | Z117: 36307855.36 | AB117: 32.11762363 | AC117: -11.89362661 | AE117: 10.80959643 | AF117: -91.01978464 | AH117: 0 | AI117: 0 | AK117: 0 | AL117: 0
A118: 6095.8 | B118: 6.0958 | C118: 41.92640387 | D118: 1.546942747 | E118: 1.000007335 | F118: 0.003830085367 | G118: 1 | H118: 0 | I118: 11526.92966 | J118: 1.570709573 | K118: 6.059578011 | L118: 1.405009933 | M118: 1.000818823 | N118: 0.04045402949 | O118: 1 | P118: 0 | Q118: 1 | R118: 0 | S118: 1.000276807 | T118: 0.04624863843 | U118: 6.686174311 | V118: -102.8754299 | W118: 77.12457008 | Y118: 1000000000 | Z118: 37158777.64 | AB118: 32.11468987 | AC118: -11.81173523 | AE118: 10.70899247 | AF118: -91.06369469 | AH118: 0 | AI118: 0 | AK118: 0 | AL118: 0
A119: 6166 | B119: 6.166 | C119: 42.4089605 | D119: 1.547214219 | E119: 1.000007505 | F119: 0.003874192673 | G119: 1 | H119: 0 | I119: 11659.67523 | J119: 1.570710561 | K119: 6.127470918 | L119: 1.406863591 | M119: 1.000837783 | N119: 0.04091938627 | O119: 1 | P119: 0 | Q119: 1 | R119: 0 | S119: 1.000283225 | T119: 0.04678132981 | U119: 6.583876562 | V119: -102.8394907 | W119: 77.16050925 | Y119: 1000000000 | Z119: 38019556 | AB119: 32.11184666 | AC119: -11.73224804 | AE119: 10.60953793 | AF119: -91.10724271 | AH119: 0 | AI119: 0 | AK119: 0 | AL119: 0
A120: 6237.8 | B120: 6.2378 | C120: 42.90251874 | D120: 1.547485561 | E120: 1.000007681 | F120: 0.003919305258 | G120: 1 | H120: 0 | I120: 11795.44634 | J120: 1.570711548 | K120: 6.196932539 | L120: 1.408717474 | M120: 1.000857399 | N120: 0.04139533114 | O120: 1 | P120: 0 | Q120: 1 | R120: 0 | S120: 1.000289867 | T120: 0.04732616537 | U120: 6.480498616 | V120: -102.804776 | W120: 77.19522399 | Y120: 1000000000 | Z120: 38910148.84 | AB120: 32.1090281 | AC120: -11.65335453 | AE120: 10.50897855 | AF120: -91.15142149 | AH120: 0 | AI120: 0 | AK120: 0 | AL120: 0
A121: 6309.6 | B121: 6.3096 | C121: 43.39608006 | D121: 1.547750731 | E121: 1.000007858 | F121: 0.003964417828 | G121: 1 | H121: 0 | I121: 11931.21745 | J121: 1.570712513 | K121: 6.266414985 | L121: 1.410530252 | M121: 1.000877242 | N121: 0.04187125723 | O121: 1 | P121: 0 | Q121: 1 | R121: 0 | S121: 1.000296585 | T121: 0.04787100406 | U121: 6.378355414 | V121: -102.7720607 | W121: 77.22793935 | Y121: 1000000000 | Z121: 39811052.16 | AB121: 32.10629594 | AC121: -11.57681384 | AE121: 10.40956751 | AF121: -91.19524681 | AH121: 0 | AI121: 0 | AK121: 0 | AL121: 0
A122: 6383.05 | B122: 6.38305 | C122: 43.90098675 | D122: 1.548015825 | E122: 1.000008042 | F122: 0.00401056709 | G122: 1 | H122: 0 | I122: 12070.10865 | J122: 1.570713477 | K122: 6.337515008 | L122: 1.412343552 | M122: 1.000897776 | N122: 0.04235810071 | O122: 1 | P122: 0 | Q122: 1 | R122: 0 | S122: 1.000303538 | T122: 0.04842836669 | U122: 6.275111446 | V122: -102.7405947 | W122: 77.25940531 | Y122: 1000000000 | Z122: 40743327.3 | AB122: 32.10358635 | AC122: -11.50086873 | AE122: 10.30903313 | AF122: -91.23972596 | AH122: 0 | AI122: 0 | AK122: 0 | AL122: 0
A123: 6456.5 | B123: 6.4565 | C123: 44.40589646 | D123: 1.548274891 | E123: 1.000008229 | F123: 0.004056716335 | G123: 1 | H123: 0 | I123: 12208.99985 | J123: 1.57071442 | K123: 6.408635407 | L123: 1.414116612 | M123: 1.000918546 | N123: 0.0428449241 | O123: 1 | P123: 0 | Q123: 1 | R123: 0 | S123: 1.000310572 | T123: 0.04898573266 | U123: 6.173097639 | V123: -102.7110867 | W123: 77.28891325 | Y123: 1000000000 | Z123: 41686392.25 | AB123: 32.1009592 | AC123: -11.42722684 | AE123: 10.20964647 | AF123: -91.2838599 | AH123: 0 | AI123: 0 | AK123: 0 | AL123: 0
A124: 6531.7 | B124: 6.5317 | C124: 44.92283902 | D124: 1.548534096 | E124: 1.000008421 | F124: 0.004103965102 | G124: 1 | H124: 0 | I124: 12351.20024 | J124: 1.570715363 | K124: 6.48147071 | L124: 1.415891597 | M124: 1.000940058 | N124: 0.04334332536 | O124: 1 | P124: 0 | Q124: 1 | R124: 0 | S124: 1.000317857 | T124: 0.04955638179 | U124: 6.069896802 | V124: -102.6828379 | W124: 77.31716212 | Y124: 1000000000 | Z124: 42663104.89 | AB124: 32.098351 | AC124: -11.354138 | AE124: 10.10905383 | AF124: -91.32869989 | AH124: 0 | AI124: 0 | AK124: 0 | AL124: 0
A125: 6606.9 | B125: 6.6069 | C125: 45.43978454 | D125: 1.548787403 | E125: 1.000008616 | F125: 0.00415121385 | G125: 1 | H125: 0 | I125: 12493.40062 | J125: 1.570716285 | K125: 6.55432598 | L125: 1.417627127 | M125: 1.000961818 | N125: 0.04384170508 | O125: 1 | P125: 0 | Q125: 1 | R125: 0 | S125: 1.000325227 | T125: 0.05012703451 | U125: 5.967923716 | V125: -102.6565094 | W125: 77.34349056 | Y125: 1000000000 | Z125: 43651127.61 | AB125: 32.09582159 | AC125: -11.28330727 | AE125: 10.00961016 | AF125: -91.37320217 | AH125: 0 | AI125: 0 | AK125: 0 | AL125: 0
A126: 6683.85 | B126: 6.68385 | C126: 45.96876299 | D126: 1.549040708 | E126: 1.000008818 | F126: 0.004199562118 | G126: 1 | H126: 0 | I126: 12638.91019 | J126: 1.570717206 | K126: 6.628896668 | L126: 1.41936355 | M126: 1.000984342 | N126: 0.04435166016 | O126: 1 | P126: 0 | Q126: 1 | R126: 0 | S126: 1.000332856 | T126: 0.0507109708 | U126: 5.864817716 | V126: -102.6314911 | W126: 77.36850895 | Y126: 1000000000 | Z126: 44673850.82 | AB126: 32.09331115 | AC126: -11.21308867 | AE126: 9.909014598 | AF126: -91.41840238 | AH126: 0 | AI126: 0 | AK126: 0 | AL126: 0
A127: 6760.8 | B127: 6.7608 | C127: 46.49774432 | D127: 1.549288249 | E127: 1.000009022 | F127: 0.004247910367 | G127: 1 | H127: 0 | I127: 12784.41976 | J127: 1.570718107 | K127: 6.703486897 | L127: 1.421061335 | M127: 1.001007126 | N127: 0.04486159217 | O127: 1 | P127: 0 | Q127: 1 | R127: 0 | S127: 1.000340573 | T127: 0.05129491094 | U127: 5.76293585 | V127: -102.6083539 | W127: 77.39164609 | Y127: 1000000000 | Z127: 45708416.64 | AB127: 32.09087588 | AC127: -11.14508132 | AE127: 9.809568 | AF127: -91.46327259 | AH127: 0 | AI127: 0 | AK127: 0 | AL127: 0
A128: 6839.55 | B128: 6.83955 | C128: 47.03910237 | D128: 1.549535816 | E128: 1.000009234 | F128: 0.004297389548 | G128: 1 | H128: 0 | I128: 12933.33306 | J128: 1.570719007 | K128: 6.779841488 | L128: 1.42276015 | M128: 1.001030712 | N128: 0.04538342823 | O128: 1 | P128: 0 | Q128: 1 | R128: 0 | S128: 1.000348564 | T128: 0.05189251453 | U128: 5.659907542 | V128: -102.5865593 | W128: 77.41344069 | Y128: 1000000000 | Z128: 46779444.2 | AB128: 32.08845793 | AC128: -11.07769696 | AE128: 9.708957646 | AF128: -91.50886236 | AH128: 0 | AI128: 0 | AK128: 0 | AL128: 0
A129: 6918.3 | B129: 6.9183 | C129: 47.58046323 | D129: 1.54977775 | E129: 1.000009448 | F129: 0.004346868707 | G129: 1 | H129: 0 | I129: 13082.24636 | J129: 1.570719887 | K129: 6.85621521 | L129: 1.424421123 | M129: 1.001054571 | N129: 0.04590523956 | O129: 1 | P129: 0 | Q129: 1 | R129: 0 | S129: 1.000356647 | T129: 0.05249012223 | U129: 5.558100172 | V129: -102.5666078 | W129: 77.43339219 | Y129: 1000000000 | Z129: 47862874.89 | AB129: 32.08611169 | AC129: -11.01247822 | AE129: 9.609496513 | AF129: -91.55412959 | AH129: 0 | AI129: 0 | AK129: 0 | AL129: 0
A130: 6998.9 | B130: 6.9989 | C130: 48.1345446 | D130: 1.550019732 | E130: 1.000009669 | F130: 0.004397510213 | G130: 1 | H130: 0 | I130: 13234.65794 | J130: 1.570720768 | K130: 6.934402258 | L130: 1.426083225 | M130: 1.001079273 | N130: 0.04643928341 | O130: 1 | P130: 0 | Q130: 1 | R130: 0 | S130: 1.000365016 | T130: 0.05310177328 | U130: 5.455134909 | V130: -102.5480333 | W130: 77.45196669 | Y130: 1000000000 | Z130: 48984601.21 | AB130: 32.0837812 | AC130: -10.94789571 | AE130: 9.508861739 | AF130: -91.60013761 | AH130: 0 | AI130: 0 | AK130: 0 | AL130: 0
A131: 7079.5 | B131: 7.0795 | C131: 48.68862872 | D131: 1.550256206 | E131: 1.000009893 | F131: 0.004448151696 | G131: 1 | H131: 0 | I131: 13387.06953 | J131: 1.570721628 | K131: 7.012608036 | L131: 1.427708259 | M131: 1.001104261 | N131: 0.04697330076 | O131: 1 | P131: 0 | Q131: 1 | R131: 0 | S131: 1.000373483 | T131: 0.05371342875 | U131: 5.353387748 | V131: -102.5312647 | W131: 77.46873533 | Y131: 1000000000 | Z131: 50119320.25 | AB131: 32.08151913 | AC131: -10.88543435 | AE131: 9.409376653 | AF131: -91.64583032 | AH131: 0 | AI131: 0 | AK131: 0 | AL131: 0
A132: 7161.95 | B132: 7.16195 | C132: 49.2554334 | D132: 1.550492603 | E132: 1.000010125 | F132: 0.004499955522 | G132: 1 | H132: 0 | I132: 13542.97939 | J132: 1.570722488 | K132: 7.092627593 | L132: 1.429333508 | M132: 1.001130117 | N132: 0.04751954758 | O132: 1 | P132: 0 | Q132: 1 | R132: 0 | S132: 1.000382245 | T132: 0.05433912807 | U132: 5.250535188 | V132: -102.515918 | W132: 77.48408199 | Y132: 1000000000 | Z132: 51293527.8 | AB132: 32.07927267 | AC132: -10.82366134 | AE132: 9.308770554 | AF132: -91.69225667 | AH132: 0 | AI132: 0 | AK132: 0 | AL132: 0
A133: 7244.4 | B133: 7.2444 | C133: 49.82224078 | D133: 1.550723622 | E133: 1.000010359 | F133: 0.004551759323 | G133: 1 | H133: 0 | I133: 13698.88925 | J133: 1.570723328 | K133: 7.172665466 | L133: 1.43092249 | M133: 1.001156272 | N133: 0.04806576603 | O133: 1 | P133: 0 | Q133: 1 | R133: 0 | S133: 1.000391109 | T133: 0.05496483211 | U133: 5.14889674 | V133: -102.5023387 | W133: 77.49766133 | Y133: 1000000000 | Z133: 52481331.36 | AB133: 32.07709137 | AC133: -10.76396355 | AE133: 9.2093134 | AF133: -91.73837511 | AH133: 0 | AI133: 0 | AK133: 0 | AL133: 0
A134: 7328.75 | B134: 7.32875 | C134: 50.4021125 | D134: 1.550954587 | E134: 1.000010602 | F134: 0.00460475688 | G134: 1 | H134: 0 | I134: 13858.39195 | J134: 1.570724168 | K134: 7.254566077 | L134: 1.432511801 | M134: 1.001183339 | N134: 0.04862454197 | O134: 1 | P134: 0 | Q134: 1 | R134: 0 | S134: 1.000400283 | T134: 0.05560496 | U134: 5.046142301 | V134: -102.4902149 | W134: 77.50978512 | Y134: 1000000000 | Z134: 53710576.56 | AB134: 32.07492414 | AC134: -10.70496635 | AE134: 9.108726191 | AF134: -91.78524853 | AH134: 0 | AI134: 0 | AK134: 0 | AL134: 0
A135: 7413.1 | B135: 7.4131 | C135: 50.98198686 | D135: 1.551180298 | E135: 1.000010847 | F135: 0.004657754412 | G135: 1 | H135: 0 | I135: 14017.89464 | J135: 1.570724989 | K135: 7.336484603 | L135: 1.434065625 | M135: 1.001210718 | N135: 0.04918328753 | O135: 1 | P135: 0 | Q135: 1 | R135: 0 | S135: 1.000409564 | T135: 0.05624509294 | U135: 4.944598344 | V135: -102.4798208 | W135: 77.52017916 | Y135: 1000000000 | Z135: 54954051.61 | AB135: 32.07281898 | AC135: -10.64799964 | AE135: 9.009287399 | AF135: -91.8318212 | AH135: 0 | AI135: 0 | AK135: 0 | AL135: 0
A136: 7499.45 | B136: 7.49945 | C136: 51.57561308 | D136: 1.551406103 | E136: 1.000011102 | F136: 0.004712008526 | G136: 1 | H136: 0 | I136: 14181.17925 | J136: 1.570725811 | K136: 7.420363414 | L136: 1.435620749 | M136: 1.00123907 | N136: 0.04975524952 | O136: 1 | P136: 0 | Q136: 1 | R136: 0 | S136: 1.000419176 | T136: 0.05690040919 | U136: 4.841870484 | V136: -102.4709129 | W136: 77.52908713 | Y136: 1000000000 | Z136: 56241750.3 | AB136: 32.07072521 | AC136: -10.59171564 | AE136: 8.908653307 | AF136: -91.87919723 | AH136: 0 | AI136: 0 | AK136: 0 | AL136: 0
A137: 7585.8 | B137: 7.5858 | C137: 52.16924188 | D137: 1.55162677 | E137: 1.000011359 | F137: 0.004766262612 | G137: 1 | H137: 0 | I137: 14344.46387 | J137: 1.570726613 | K137: 7.50425977 | L137: 1.437141105 | M137: 1.00126775 | N137: 0.05032717893 | O137: 1 | P137: 0 | Q137: 1 | R137: 0 | S137: 1.000428899 | T137: 0.05755573087 | U137: 4.740351159 | V137: -102.4636999 | W137: 77.53630007 | Y137: 1000000000 | Z137: 57544361.64 | AB137: 32.0686906 | AC137: -10.53742079 | AE137: 8.80916859 | AF137: -91.92627914 | AH137: 0 | AI137: 0 | AK137: 0 | AL137: 0
A138: 7674.15 | B138: 7.67415 | C138: 52.77662261 | D138: 1.55184741 | E138: 1.000011625 | F138: 0.004821773279 | G138: 1 | H138: 0 | I138: 14511.53041 | J138: 1.570727416 | K138: 7.590116848 | L138: 1.438661884 | M138: 1.001297433 | N138: 0.050912321 | O138: 1 | P138: 0 | Q138: 1 | R138: 0 | S138: 1.000438964 | T138: 0.05822623648 | U138: 4.637701358 | V138: -102.4580162 | W138: 77.54198381 | Y138: 1000000000 | Z138: 58892578.22 | AB138: 32.06666725 | AC138: -10.48385871 | AE138: 8.708542142 | AF138: -91.97415748 | AH138: 0 | AI138: 0 | AK138: 0 | AL138: 0
A139: 7762.5 | B139: 7.7625 | C139: 53.38400585 | D139: 1.552063029 | E139: 1.000011894 | F139: 0.004877283915 | G139: 1 | H139: 0 | I139: 14678.59696 | J139: 1.5707282 | K139: 7.675991087 | L139: 1.44014864 | M139: 1.001327459 | N139: 0.05149742819 | O139: 1 | P139: 0 | Q139: 1 | R139: 0 | S139: 1.000449146 | T139: 0.05889674791 | U139: 4.53625695 | V139: -102.4539915 | W139: 77.54600851 | Y139: 1000000000 | Z139: 60256406.25 | AB139: 32.0647002 | AC139: -10.432243 | AE139: 8.609064782 | AF139: -92.02174849 | AH139: 0 | AI139: 0 | AK139: 0 | AL139: 0
A140: 7852.9 | B140: 7.8529 | C140: 54.00548482 | D140: 1.552278631 | E140: 1.000012173 | F140: 0.004934082543 | G140: 1 | H140: 0 | I140: 14849.53997 | J140: 1.570728985 | K140: 7.76387505 | L140: 1.441635847 | M140: 1.001358537 | N140: 0.05209607518 | O140: 1 | P140: 0 | Q140: 1 | R140: 0 | S140: 1.000459685 | T140: 0.05958282339 | U140: 4.433676531 | V140: -102.4515337 | W140: 77.54846632 | Y140: 1000000000 | Z140: 61668038.41 | AB140: 32.06274306 | AC140: -10.3813772 | AE140: 8.508441504 | AF140: -92.07015648 | AH140: 0 | AI140: 0 | AK140: 0 | AL140: 0
A141: 7943.3 | B141: 7.9433 | C141: =SQRT(1+(A141/pole1)^2) -> 54.62696624 | D141: =ATAN(A141/pole1) -> 1.552489327 | E141: =SQRT(1+(A141/Zero1)^2) -> 1.000012455 | F141: =ATAN(A141/Zero1) -> 0.00499088114 | G141: =IF(VIN_nom>Vout, 1, SQRT(1+(A141/z_RHP)^2)) -> 1 | H141: =IF(VIN_nom>Vout, 0, -ATAN(A141/z_RHP)) -> 0 | I141: =SQRT(1+(A141/Pole2)^2) -> 15020.48299 | J141: =ATAN(A141/Pole2) -> 1.570729751 | K141: =SQRT(1+(A141/Zero2)^2) -> 7.8517758 | L141: =ATAN(A141/Zero2) -> 1.443089759 | M141: =SQRT(1+(A141/pole4)^2) -> 1.001389973 | N141: =ATAN(A141/pole4) -> 0.0526946848 | O141: =IF(VOUT_setting=1,1,SQRT(1+(A141*zterm1)^2)) -> 1 | P141: =IF(VOUT_setting=1,0,ATAN(((A141*zterm1)))) -> 0 | Q141: 1 | R141: =IF(VOUT_setting=1,0,ATAN(A141*$Q$4/(1+Afbr-$Q$5*(A141)^2))) -> 0 | S141: =SQRT((1-(Z141/pterm2))^2+(A141/pterm1)^2) -> 1.000470347 | T141: =IF((ATAN((A141/pterm1)/(1-A141^2/pterm2))>0),ATAN((A141/pterm1)/(1-A141^2/pterm2)),PI()+ATAN((A141/pterm1)/(1-A141^2/pterm2))) -> 0.0602689051 | U141: =20*LOG10(((E141*K141*G141*O141)/(C141*I141*S141*M141*Q141))*Adc) -> 4.33229857 | V141: =((F141+L141+H141+P141)-(D141+J141+T141+N141+R141))*radconv -> -102.4506997 | W141: =IF(V141>0,V141,V141+180) -> 77.54930033 | Y141: =IF(U141<0,A141,1000000000) -> 1000000000 | Z141: =A141^2 -> 63096014.89 | AB141: =20*LOG10((K141/(I141*M141))*AEA) -> 32.06083948 | AC141: =(L141-(J141+N141))*radconv -> -10.33241592 | AE141: =20*LOG10((E141*G141/(C141*S141))*Acs*Am) -> 8.408967122 | AF141: =(F141+H141-(D141+T141))*radconv -> -92.11828375 | AH141: =SUM((U142<0)*(U141>0))*A141 -> 0 | AI141: 0 | AK141: 0 | AL141: 0
A142: 8035.8 | B142: =A142/1000 -> 8.0358 | C142: 55.26288718 | D142: 1.552700012 | E142: 1.000012746 | F142: 0.005048999139 | G142: 1 | H142: 0 | I142: 15195.39702 | J142: 1.570730517 | K142: 7.941735289 | L142: 1.444544127 | M142: 1.001422511 | N142: 0.05330716105 | O142: 1 | P142: 0 | Q142: 1 | R142: 0 | S142: 1.000481385 | T142: 0.06097093104 | U142: 4.229780547 | V142: -102.4514713 | W142: 77.54852869 | Y142: 1000000000 | Z142: 64574081.64 | AB142: 32.05894452 | AC142: -10.28422297 | AE142: 8.308344064 | AF142: -92.16724835 | AH142: 0 | AI142: 0 | AK142: =SUM((V143<-183)*(V142>-183))*A142 -> 0 | AL142: =IF(AK142>0,U142,0) -> 0
A143: 8128.3 | B143: 8.1283 | C143: 55.89881052 | D143: 1.552905904 | E143: 1.000013041 | F143: 0.005107117105 | G143: 1 | H143: 0 | I143: 15370.31106 | J143: 1.570731266 | K143: 8.031711199 | L143: 1.445965913 | M143: 1.001455425 | N143: 0.05391959727 | O143: 1 | P143: 0 | Q143: =IF(VOUT_setting=1,1,SQRT((1+Afbr-$Q$5*(A143)^2)^2+(A143*$Q$4)^2)) -> 1 | R143: 0 | S143: 1.000492551 | T143: 0.06167296365 | U143: 4.128462215 | V143: -102.4538322 | W143: 77.54616778 | Y143: 1000000000 | Z143: 66069260.89 | AB143: 32.05710048 | AC143: -10.23789356 | AE143: 8.208869771 | AF143: -92.21593866 | AH143: 0 | AI143: 0 | AK143: 0 | AL143: 0
A144: 8222.95 | B144: 8.22295 | C144: 56.54951717 | D144: 1.553111788 | E144: 1.000013347 | F144: 0.005166585884 | G144: 1 | H144: 0 | I144: 15549.29067 | J144: 1.570732015 | K144: 8.123794871 | L144: 1.447388142 | M144: 1.001489492 | N144: 0.05454622658 | O144: 1 | P144: 0 | Q144: 1 | R144: 0 | S144: 1.000504109 | T144: 0.06239132073 | U144: 4.026001148 | V144: -102.4578384 | W144: 77.54216158 | Y144: 1000000000 | Z144: 67616906.7 | AB144: 32.0552638 | AC144: -10.19235196 | AE144: 8.108245383 | AF144: -92.26548646 | AH144: 0 | AI144: 0 | AK144: 0 | AL144: 0
A145: 8270.275 | B145: 8.270275 | C145: 56.87487138 | D145: 1.553212963 | E145: 1.000013501 | F145: 0.00519632026 | G145: 1 | H145: 0 | I145: 15638.78047 | J145: 1.570732383 | K145: 8.169842765 | L145: 1.448087233 | M145: 1.001506673 | N145: 0.05485952519 | O145: 1 | P145: 0 | Q145: 1 | R145: 0 | S145: 1.000509939 | T145: 0.06275050194 | U145: 3.975221302 | V145: -102.4604281 | W145: 77.53957194 | Y145: 1000000000 | Z145: 68397448.58 | AB145: 32.05436375 | AC145: -10.17026876 | AE145: 8.058365582 | AF145: -92.2901593 | AH145: 0 | AI145: 0 | AK145: 0 | AL145: 0
A146: 8317.6 | B146: 8.3176 | C146: 57.20022617 | D146: 1.553312988 | E146: 1.000013656 | F146: 0.005226054627 | G146: 1 | H146: 0 | I146: 15728.27027 | J146: 1.570732747 | K146: 8.215894607 | L146: 1.448778487 | M146: 1.001523952 | N146: 0.05517281301 | O146: 1 | P146: 0 | Q146: 1 | R146: 0 | S146: 1.000515803 | T146: 0.06310968494 | U146: 3.924737136 | V146: -102.4634 | W146: 77.5366 | Y146: 1000000000 | Z146: 69182469.76 | AB146: 32.05347551 | AC146: -10.14863371 | AE146: 8.008769654 | AF146: -92.31476629 | AH146: 0 | AI146: 0 | AK146: 0 | AL146: 0
A147: 8366.05 | B147: 8.36605 | C147: 57.53331581 | D147: 1.553414218 | E147: 1.000013816 | F147: 0.005256495824 | G147: 1 | H147: 0 | I147: 15819.88741 | J147: 1.570733115 | K147: 8.263045205 | L147: 1.449478192 | M147: 1.001541745 | N147: 0.05549353702 | O147: 1 | P147: 0 | Q147: 1 | R147: 0 | S147: 1.000521841 | T147: 0.06347740823 | U147: 3.873355519 | V147: -102.466832 | W147: 77.53316798 | Y147: 1000000000 | Z147: 69990792.6 | AB147: 32.0525781 | AC147: -10.12694083 | AE147: 7.958285455 | AF147: -92.33989119 | AH147: 0 | AI147: 0 | AK147: 0 | AL147: 0
A148: 8414.5 | B148: 8.4145 | C148: 57.86640603 | D148: 1.553514283 | E148: 1.000013976 | F148: 0.005286937011 | G148: 1 | H148: 0 | I148: 15911.50455 | J148: 1.570733479 | K148: =SQRT(1+(A148/Zero2)^2) -> 8.310199802 | L148: =ATAN(A148/Zero2) -> 1.450169956 | M148: 1.00155964 | N148: 0.0558142496 | O148: 1 | P148: 0 | Q148: 1 | R148: 0 | S148: 1.000527914 | T148: 0.06384513343 | U148: 3.822276444 | V148: -102.4706514 | W148: 77.52934857 | Y148: 1000000000 | Z148: 70803810.25 | AB148: 32.05169246 | AC148: -10.105702 | AE148: 7.908092013 | AF148: -92.36494943 | AH148: 0 | AI148: 0 | AK148: 0 | AL148: 0
A149: 8462.95 | B149: 8.46295 | C149: 58.19949683 | D149: 1.553613202 | E149: 1.000014137 | F149: 0.005317378187 | G149: 1 | H149: 0 | I149: 16003.12168 | J149: 1.570733839 | K149: 8.357358331 | L149: 1.450853913 | M149: 1.001577638 | N149: 0.05613495069 | O149: 1 | P149: 0 | Q149: 1 | R149: 0 | S149: 1.000534023 | T149: 0.06421286053 | U149: 3.771496285 | V149: -102.4748517 | W149: 77.5251483 | Y149: 1000000000 | Z149: 71621522.7 | AB149: 32.05081833 | AC149: -10.08490955 | AE149: 7.858185987 | AF149: -92.38994215 | AH149: 0 | AI149: 0 | AK149: 0 | AL149: 0
A150: 8511.4 | B150: 8.5114 | C150: 58.53258819 | D150: 1.553710996 | E150: 1.0000143 | F150: 0.005347819355 | G150: 1 | H150: 0 | I150: 16094.73882 | J150: 1.570734195 | K150: 8.404520726 | L150: 1.451530195 | M150: 1.001595739 | N150: 0.05645564022 | O150: 1 | P150: 0 | Q150: 1 | R150: 0 | S150: 1.000540166 | T150: 0.06458058955 | U150: 3.721011481 | V150: -102.4794265 | W150: 77.52057352 | Y150: 1000000000 | Z150: 72443929.96 | AB150: 32.04995542 | AC150: -10.064556 | AE150: 7.808564096 | AF150: -92.41487048 | AH150: 0 | AI150: 0 | AK150: 0 | AL150: 0
A151: 8560.95 | B151: 8.56095 | C151: 58.87324256 | D151: 1.553809865 | E151: 1.000014467 | F151: 0.005378951642 | G151: 1 | H151: 0 | I151: 16188.43601 | J151: 1.570734554 | K151: 8.452757819 | L151: 1.452214025 | M151: 1.001614357 | N151: 0.05678359861 | O151: 1 | P151: 0 | Q151: 1 | R151: 0 | S151: 1.000546486 | T151: 0.06495666942 | U151: 3.669682328 | V151: -102.484486 | W151: 77.51551402 | Y151: 1000000000 | Z151: 73289864.9 | AB151: 32.04908424 | AC151: -10.04418666 | AE151: 7.758106122 | AF151: -92.44029931 | AH151: 0 | AI151: 0 | AK151: 0 | AL151: 0
A152: 8610.5 | B152: 8.6105 | C152: 59.21389751 | D152: 1.553907597 | E152: 1.000014635 | F152: 0.005410083919 | G152: 1 | H152: 0 | I152: 16282.13321 | J152: 1.57073491 | K152: 8.500998819 | L152: 1.452890094 | M152: 1.001633084 | N152: 0.05711154476 | O152: 1 | P152: 0 | Q152: 1 | R152: 0 | S152: 1.000552843 | T152: 0.06533275132 | U152: 3.618654764 | V152: -102.4899241 | W152: 77.51007586 | Y152: 1000000000 | Z152: 74140710.25 | AB152: 32.04822423 | AC152: -10.02426105 | AE152: 7.707938565 | AF152: -92.46566308 | AH152: 0 | AI152: 0 | AK152: 0 | AL152: 0
A153: 8660.05 | B153: 8.66005 | C153: 59.55455301 | D153: 1.55400421 | E153: 1.000014804 | F153: 0.005441216186 | G153: 1 | H153: 0 | I153: 16375.8304 | J153: 1.570735261 | K153: 8.54924366 | L153: 1.453558533 | M153: 1.001651918 | N153: 0.05743947862 | O153: 1 | P153: 0 | Q153: 1 | R153: 0 | S153: 1.000559237 | T153: 0.06570883527 | U153: 3.567925184 | V153: -102.4957346 | W153: 77.50426541 | Y153: 1000000000 | Z153: 74996466 | AB153: 32.04737513 | AC153: -10.00477167 | AE153: 7.658058091 | AF153: -92.49096291 | AH153: 0 | AI153: 0 | AK153: 0 | AL153: 0
A154: 8709.6 | B154: 8.7096 | C154: 59.89520907 | D154: 1.554099725 | E154: 1.000014973 | F154: 0.005472348442 | G154: 1 | H154: 0 | I154: 16469.5276 | J154: 1.570735609 | K154: 8.597492279 | L154: 1.45421947 | M154: 1.001670859 | N154: 0.05776740011 | O154: 1 | P154: 0 | Q154: 1 | R154: 0 | S154: 1.000565668 | T154: 0.06608492127 | U154: 3.517490046 | V154: -102.5019111 | W154: 77.49808891 | Y154: 1000000000 | Z154: 75857132.16 | AB154: 32.04653665 | AC154: -9.985711201 | AE154: 7.608461425 | AF154: -92.51619989 | AH154: 0 | AI154: =IF(AH154>0,W154,0) -> 0 | AK154: 0 | AL154: 0
A155: 8760.325 | B155: 8.760325 | C155: 60.2439438 | D155: 1.554196386 | E155: 1.000015148 | F155: 0.00550421894 | G155: 1 | H155: 0 | I155: 16565.44668 | J155: 1.57073596 | K155: 8.646888884 | L155: 1.45488844 | M155: 1.001690362 | N155: 0.05810308486 | O155: 1 | P155: 0 | Q155: 1 | R155: 0 | S155: 1.00057229 | T155: 0.0664699277 | U155: 3.466160283 | V155: -102.5086069 | W155: 77.49139312 | Y155: 1000000000 | Z155: 76743294.11 | AB155: 32.04568905 | AC155: -9.966635543 | AE155: 7.55797927 | AF155: -92.54197134 | AH155: 0 | AI155: 0 | AK155: 0 | AL155: 0
A156: 8811.05 | B156: 8.81105 | C156: 60.59267909 | D156: 1.554291934 | E156: 1.000015324 | F156: 0.005536089426 | G156: 1 | H156: 0 | I156: 16661.36575 | J156: 1.570736308 | K156: 8.696289315 | L156: 1.455549809 | M156: 1.001709977 | N156: 0.0584387565 | O156: 1 | P156: 0 | Q156: 1 | R156: 0 | S156: 1.00057895 | T156: 0.0668549363 | U156: 3.415131782 | V156: -102.5156735 | W156: 77.48432648 | Y156: 1000000000 | Z156: 77634602.1 | AB156: 32.04485204 | AC156: -9.947994353 | AE156: 7.507787771 | AF156: -92.56767916 | AH156: 0 | AI156: 0 | AK156: 0 | AL156: 0
A157: 8861.775 | B157: 8.861775 | C157: 60.94141493 | D157: 1.554386388 | E157: 1.000015501 | F157: 0.005567959901 | G157: 1 | H157: 0 | I157: 16757.28483 | J157: 1.570736651 | K157: 8.745693507 | L157: 1.456203706 | M157: 1.001729705 | N157: 0.05877441495 | O157: 1 | P157: 0 | Q157: 1 | R157: 0 | S157: 1.00058565 | T157: 0.06723994709 | U157: 3.364400941 | V157: -102.5231047 | W157: 77.47689526 | Y157: 1000000000 | Z157: 78531056.15 | AB157: 32.04402539 | AC157: -9.929780284 | AE157: 7.457883588 | AF157: -92.59332446 | AH157: 0 | AI157: 0 | AK157: 0 | AL157: 0
A158: 8912.5 | B158: 8.9125 | C158: 61.2901513 | D158: 1.554479768 | E158: 1.000015679 | F158: 0.005599830365 | G158: 1 | H158: 0 | I158: 16853.2039 | J158: 1.570736991 | K158: =SQRT(1+(A158/Zero2)^2) -> 8.795101396 | L158: =ATAN(A158/Zero2) -> 1.456850257 | M158: 1.001749547 | N158: 0.05911006015 | O158: 1 | P158: 0 | Q158: 1 | R158: 0 | S158: 1.000592388 | T158: 0.06762496009 | U158: 3.313964226 | V158: -102.5308944 | W158: 77.46910555 | Y158: 1000000000 | Z158: 79432656.25 | AB158: 32.04320882 | AC158: -9.911986153 | AE158: 7.408263441 | AF158: -92.61890829 | AH158: 0 | AI158: 0 | AK158: 0 | AL158: 0
A159: 8964.4 | B159: 8.9644 | C159: 61.64696639 | D159: 1.554574217 | E159: 1.000015862 | F159: 0.005632439068 | G159: 1 | H159: 0 | I159: 16951.34486 | J159: 1.570737334 | K159: 8.845657537 | L159: 1.457504309 | M159: 1.001769964 | N159: 0.05945346647 | O159: 1 | P159: 0 | Q159: 1 | R159: 0 | S159: 1.000599322 | T159: 0.06801889386 | U159: 3.262659993 | V159: -102.5392294 | W159: 77.46077061 | Y159: 1000000000 | Z159: 80360467.36 | AB159: 32.04238352 | AC159: -9.894207154 | AE159: 7.357784504 | AF159: -92.64502224 | AH159: 0 | AI159: 0 | AK159: 0 | AL159: 0
A160: 9016.3 | B160: 9.0163 | C160: 62.00378203 | D160: 1.554667579 | E160: 1.000016047 | F160: 0.005665047759 | G160: 1 | H160: 0 | I160: 17049.48582 | J160: 1.570737674 | K160: 8.89621742 | L160: 1.458150927 | M160: 1.0017905 | N160: 0.05979685875 | O160: 1 | P160: 0 | Q160: 1 | R160: 0 | S160: 1.000606297 | T160: 0.06841282997 | U160: 3.211656382 | V160: -102.5479271 | W160: 77.45207291 | Y160: 1000000000 | Z160: 81293665.69 | AB160: 32.04156827 | AC160: -9.876853065 | AE160: 7.307596143 | AF160: -92.67107403 | AH160: 0 | AI160: 0 | AK160: 0 | AL160: 0
A161: 9068.2 | B161: 9.0682 | C161: 62.3605982 | D161: 1.554759873 | E161: 1.000016232 | F161: 0.005697656438 | G161: 1 | H161: 0 | I161: 17147.62677 | J161: 1.57073801 | K161: 8.94678098 | L161: 1.458790236 | M161: 1.001811153 | N161: 0.06014023692 | O161: 1 | P161: 0 | Q161: 1 | R161: 0 | S161: 1.000613312 | T161: 0.06880676842 | U161: 3.160949808 | V161: -102.5569814 | W161: 77.44301856 | Y161: 1000000000 | Z161: 82232251.24 | AB161: 32.04076282 | AC161: -9.859916695 | AE161: 7.25769502 | AF161: -92.69706474 | AH161: 0 | AI161: 0 | AK161: 0 | AL161: 0
A162: 9120.1 | B162: 9.1201 | C162: 62.71741489 | D162: 1.554851116 | E162: 1.000016418 | F162: 0.005730265105 | G162: 1 | H162: 0 | I162: 17245.76773 | J162: 1.570738342 | K162: 8.997348156 | L162: 1.45942236 | M162: 1.001831925 | N162: 0.06048360088 | O162: 1 | P162: 0 | Q162: 1 | R162: 0 | S162: 1.000620368 | T162: 0.06920070922 | U162: 3.110536746 | V162: -102.5663864 | W162: 77.43361357 | Y162: 1000000000 | Z162: 83176224.01 | AB162: 32.03996692 | AC162: -9.843391013 | AE162: 7.208077855 | AF162: -92.72299542 | AH162: 0 | AI162: 0 | AK162: 0 | AL162: 0
A163: 9173.2 | B163: 9.1732 | C163: 63.08248222 | D163: 1.554943401 | E163: 1.00001661 | F163: 0.005763627717 | G163: 1 | H163: 0 | I163: 17346.17784 | J163: 1.570738677 | K163: 9.049088194 | L163: 1.460061787 | M163: 1.0018533 | N163: 0.06083488912 | O163: 1 | P163: 0 | Q163: 1 | R163: 0 | S163: 1.00062763 | T163: 0.06960376094 | U163: 3.059258228 | V163: -102.5763657 | W163: 77.42363431 | Y163: 1000000000 | Z163: 84147598.24 | AB163: 32.03916227 | AC163: -9.826901106 | AE163: 7.157603993 | AF163: -92.74946458 | AH163: 0 | AI163: 0 | AK163: 0 | AL163: 0
A164: 9226.3 | B164: 9.2263 | C164: 63.44755008 | D164: 1.555034624 | E164: 1.000016803 | F164: 0.005796990316 | G164: 1 | H164: 0 | I164: 17446.58796 | J164: 1.570739009 | K164: 9.10083189 | L164: 1.460693943 | M164: 1.001874798 | N164: 0.06118616233 | O164: 1 | P164: 0 | Q164: 1 | R164: 0 | S164: 1.000634933 | T164: 0.07000681516 | U164: 3.00827969 | V164: -102.5866997 | W164: 77.41330025 | Y164: 1000000000 | Z164: 85124611.69 | AB164: 32.03836712 | AC164: -9.810826702 | AE164: 7.107420603 | AF164: -92.77587304 | AH164: 0 | AI164: 0 | AK164: 0 | AL164: 0
A165: 9279.4 | B165: 9.2794 | C165: 63.81261846 | D165: 1.555124804 | E165: 1.000016997 | F165: 0.005830352903 | G165: 1 | H165: 0 | I165: 17546.99807 | J165: 1.570739337 | K165: 9.152579181 | L165: 1.461318951 | M165: 1.001896419 | N165: 0.06153742041 | O165: 1 | P165: 0 | Q165: 1 | R165: 0 | S165: 1.00064228 | T165: 0.07040987188 | U165: 2.957597559 | V165: -102.5973826 | W165: 77.40261739 | Y165: 1000000000 | Z165: 86107264.36 | AB165: 32.03758124 | AC165: -9.795160764 | AE165: 7.05752435 | AF165: -92.80222185 | AH165: 0 | AI165: 0 | AK165: 0 | AL165: 0
A166: 9332.5 | B166: 9.3325 | C166: 64.17768735 | D166: 1.555213957 | E166: 1.000017192 | F166: 0.005863715476 | G166: 1 | H166: 0 | I166: 17647.40818 | J166: 1.570739661 | K166: 9.204330008 | L166: 1.461936932 | M166: 1.001918164 | N166: 0.0618886633 | O166: 1 | P166: 0 | Q166: 1 | R166: 0 | S166: 1.000649669 | T166: 0.07081293112 | U166: 2.907208324 | V166: -102.6084084 | W166: 77.39159158 | Y166: 1000000000 | Z166: 87095556.25 | AB166: 32.0368044 | AC166: -9.779896411 | AE166: 7.007911955 | AF166: -92.82851201 | AH166: 0 | AI166: 0 | AK166: 0 | AL166: 0
A167: 9386.85 | B167: 9.38685 | C167: 64.55135067 | D167: 1.555304164 | E167: 1.000017393 | F167: 0.005897863407 | G167: 1 | H167: 0 | I167: 17750.182 | J167: 1.570739989 | K167: 9.257302673 | L167: 1.462562304 | M167: 1.00194055 | N167: 0.06224815878 | O167: 1 | P167: 0 | Q167: 1 | R167: 0 | S167: 1.000657276 | T167: 0.07122548121 | U167: 2.855932623 | V167: -102.620043 | W167: 77.37995704 | Y167: 1000000000 | Z167: 88112952.92 | AB167: 32.0360184 | AC167: -9.764681581 | AE167: 6.957422257 | AF167: -92.85536138 | AH167: 0 | AI167: 0 | AK167: 0 | AL167: 0
A168: 9441.2 | B168: 9.4412 | C168: 64.9250145 | D168: 1.555393334 | E168: 1.000017595 | F168: 0.005932011324 | G168: 1 | H168: 0 | I168: 17852.95581 | J168: 1.570740314 | K168: 9.310278918 | L168: 1.46318056 | M168: 1.001963064 | N168: 0.06260763815 | O168: 1 | P168: 0 | Q168: 1 | R168: 0 | S168: 1.000664927 | T168: 0.07163803397 | U168: 2.804956525 | V168: -102.6320248 | W168: 77.36797523 | Y168: 1000000000 | Z168: 89136257.44 | AB168: 32.03524139 | AC168: -9.749873363 | AE168: 6.907223166 | AF168: -92.8821514 | AH168: 0 | AI168: 0 | AK168: 0 | AL168: 0
A169: 9495.55 | B169: 9.49555 | C169: 65.29867885 | D169: 1.555481483 | E169: 1.000017798 | F169: 0.005966159228 | G169: 1 | H169: 0 | I169: 17955.72963 | J169: 1.570740634 | K169: 9.363258681 | L169: 1.46379182 | M169: 1.001985708 | N169: 0.06296710131 | O169: 1 | P169: 0 | Q169: 1 | R169: 0 | S169: 1.000672623 | T169: 0.07205058941 | U169: 2.754276464 | V169: -102.644348 | W169: 77.35565203 | Y169: 1000000000 | Z169: 90165469.8 | AB169: 32.03447315 | AC169: -9.735464861 | AE169: 6.857311343 | AF169: -92.90888311 | AH169: 0 | AI169: 0 | AK169: 0 | AL169: 0
A170: 9549.9 | B170: 9.5499 | C170: 65.67234369 | D170: 1.555568628 | E170: 1.000018002 | F170: 0.006000307118 | G170: 1 | H170: 0 | I170: 18058.50344 | J170: 1.570740951 | K170: 9.416241904 | L170: 1.464396201 | M170: 1.002008482 | N170: 0.06332654819 | O170: 1 | P170: 0 | Q170: 1 | R170: 0 | S170: 1.000680364 | T170: 0.07246314756 | U170: 2.703888936 | V170: -102.6570068 | W170: 77.34299316 | Y170: 1000000000 | Z170: 91200590.01 | AB170: 32.03371346 | AC170: -9.721449334 | AE170: 6.807683508 | AF170: -92.9355575 | AH170: 0 | AI170: 0 | AK170: 0 | AL170: 0
A171: 9605.525 | B171: 9.605525 | C171: 66.05477488 | D171: 1.555656797 | E171: 1.000018212 | F171: 0.00603525607 | G171: 1 | H171: 0 | I171: 18163.68823 | J171: 1.570741272 | K171: 9.470471584 | L171: 1.465007757 | M171: 1.002031924 | N171: 0.06369441038 | O171: 1 | P171: 0 | Q171: 1 | R171: 0 | S171: 1.000688332 | T171: 0.07288538675 | U171: 2.652618681 | V171: -102.6703044 | W171: 77.32969563 | Y171: 1000000000 | Z171: 92266110.53 | AB171: 32.03294457 | AC171: -9.707505047 | AE171: 6.757182144 | AF171: -92.96279932 | AH171: 0 | AI171: 0 | AK171: 0 | AL171: 0
A172: 9661.15 | B172: 9.66115 | C172: 66.43720657 | D172: 1.555743952 | E172: 1.000018424 | F172: 0.006070205008 | G172: 1 | H172: 0 | I172: 18268.87303 | J172: 1.570741589 | K172: 9.524704766 | L172: 1.46561235 | M172: 1.002055501 | N172: 0.06406225532 | O172: 1 | P172: 0 | Q172: 1 | R172: 0 | S172: 1.000696348 | T172: 0.07330762881 | U172: 2.601647618 | V172: -102.6839417 | W172: 77.31605828 | Y172: 1000000000 | Z172: 93337819.32 | AB172: 32.03218418 | AC172: -9.693958574 | AE172: 6.706971471 | AF172: -92.98998314 | AH172: 0 | AI172: 0 | AK172: 0 | AL172: 0
A173: 9716.775 | B173: 9.716775 | C173: 66.81963876 | D173: 1.555830108 | E173: 1.000018637 | F173: 0.006105153931 | G173: 1 | H173: 0 | I173: 18374.05782 | J173: 1.570741902 | K173: 9.57894139 | L173: 1.466210096 | M173: 1.002079214 | N173: 0.06443008289 | O173: 1 | P173: 0 | Q173: 1 | R173: 0 | S173: 1.00070441 | T173: 0.07372987374 | U173: 2.550972188 | V173: -102.6979131 | W173: 77.30208687 | Y173: 1000000000 | Z173: 94415716.4 | AB173: 32.03143207 | AC173: -9.680803162 | AE173: 6.657048149 | AF173: -93.01710997 | AH173: 0 | AI173: 0 | AK173: 0 | AL173: 0
A174: 9772.4 | B174: 9.7724 | C174: 67.20207144 | D174: 1.555915284 | E174: 1.000018851 | F174: 0.006140102839 | G174: 1 | H174: 0 | I174: 18479.24261 | J174: 1.570742212 | K174: 9.633181397 | L174: 1.466801111 | M174: 1.002103063 | N174: 0.06479789301 | O174: 1 | P174: 0 | Q174: 1 | R174: 0 | S174: 1.000712518 | T174: 0.07415212157 | U174: 2.500588895 | V174: -102.712213 | W174: 77.28778701 | Y174: 1000000000 | Z174: 95499801.76 | AB174: 32.03068803 | AC174: -9.668032205 | AE174: 6.607408895 | AF174: -93.04418078 | AH174: 0 | AI174: 0 | AK174: 0 | AL174: 0
A175: 9829.3 | B175: 9.8293 | C175: 67.59327049 | D175: 1.556001415 | E175: 1.000019071 | F175: 0.006175852808 | G175: 1 | H175: 0 | I175: 18586.83838 | J175: 1.570742525 | K175: 9.688668102 | L175: 1.467398826 | M175: 1.002127598 | N175: 0.06517411566 | O175: 1 | P175: 0 | Q175: 1 | R175: 0 | S175: 1.000720861 | T175: 0.0745840509 | U175: 2.449349428 | V175: -102.7271747 | W175: 77.2728253 | Y175: 1000000000 | Z175: 96615138.49 | AB175: 32.02993507 | AC175: -9.655359567 | AE175: 6.556922387 | AF175: -93.07181513 | AH175: 0 | AI175: 0 | AK175: 0 | AL175: 0
A176: 9886.2 | B176: 9.8862 | C176: 67.98447004 | D176: 1.556086555 | E176: 1.000019292 | F176: 0.006211602761 | G176: 1 | H176: 0 | I176: 18694.43415 | J176: 1.570742835 | K176: 9.744158228 | L176: 1.467989734 | M176: 1.002152275 | N176: 0.06555031984 | O176: 1 | P176: 0 | Q176: 1 | R176: 0 | S176: 1.000729253 | T176: 0.0750159833 | U176: 2.398408442 | V176: -102.7424686 | W176: 77.25753144 | Y176: 1000000000 | Z176: 97736950.44 | AB176: 32.02919013 | AC176: -9.6430757 | AE176: 6.506726348 | AF176: -93.09939286 | AH176: 0 | AI176: 0 | AK176: 0 | AL176: 0
A177: 9943.1 | B177: 9.9431 | C177: 68.37567007 | D177: 1.55617072 | E177: 1.000019515 | F177: 0.006247352698 | G177: 1 | H177: 0 | I177: 18802.02992 | J177: 1.570743141 | K177: 9.799651718 | L177: 1.46857395 | M177: 1.002177095 | N177: 0.06592650544 | O177: 1 | P177: 0 | Q177: 1 | R177: 0 | S177: 1.000737694 | T177: 0.07544791877 | U177: 2.347762391 | V177: -102.7580889 | W177: 77.24191105 | Y177: 1000000000 | Z177: 98865237.61 | AB177: 32.02845298 | AC177: -9.631173999 | AE177: 6.456817441 | AF177: -93.12691495 | AH177: 0 | AI177: 0 | AK177: 0 | AL177: 0
A178: 10000 | B178: 10 | C178: 68.76687059 | D178: 1.556253928 | E178: 1.000019739 | F178: 0.006283102619 | G178: 1 | H178: 0 | I178: 18909.62569 | J178: 1.570743444 | K178: 9.855148515 | L178: 1.469151586 | M178: 1.002202055 | N178: 0.06630267236 | O178: 1 | P178: 0 | Q178: 1 | R178: 0 | S178: 1.000746184 | T178: 0.07587985734 | U178: 2.297407793 | V178: -102.7740304 | W178: 77.22596964 | Y178: 1000000000 | Z178: 100000000 | AB178: 32.02772344 | AC178: -9.619648007 | AE178: 6.407192385 | AF178: -93.15438235 | AH178: 0 | AI178: 0 | AK178: 0 | AL178: 0
A179: 10058.25 | B179: 10.05825 | C179: 69.16735315 | D179: 1.556338135 | E179: 1.00001997 | F179: 0.00631970072 | G179: 1 | H179: 0 | I179: 19019.77426 | J179: 1.57074375 | K179: 9.911965387 | L179: 1.469736226 | M179: 1.002227756 | N179: 0.06668774468 | O179: 1 | P179: 0 | Q179: 1 | R179: 0 | S179: 1.000754926 | T179: 0.07632204725 | U179: 2.246156826 | V179: -102.7906769 | W179: 77.20932309 | Y179: 1000000000 | Z179: 101168393.1 | AB179: 32.02698426 | AC179: -9.608231147 | AE179: 6.356680602 | AF179: -93.18244576 | AH179: 0 | AI179: 0 | AK179: 0 | AL179: 0
A180: 10116.5 | B180: 10.1165 | C180: 69.56783619 | D180: 1.556421373 | E180: 1.000020202 | F180: 0.006356298804 | G180: 1 | H180: 0 | I180: 19129.92283 | J180: 1.570744053 | K180: 9.968785609 | L180: 1.470314202 | M180: 1.002253604 | N180: 0.0670727972 | O180: 1 | P180: 0 | Q180: 1 | R180: 0 | S180: 1.000763719 | T180: 0.07676424043 | U180: 2.195204115 | V180: -102.8076486 | W180: 77.19235139 | Y180: 1000000000 | Z180: 102343572.2 | AB180: 32.02625263 | AC180: -9.597194797 | AE180: 6.306459522 | AF180: -93.21045381 | AH180: 0 | AI180: 0 | AK180: 0 | AL180: 0
A181: 10174.75 | B181: 10.17475 | C181: 69.96831971 | D181: 1.556503658 | E181: 1.000020435 | F181: 0.006392896871 | G181: 1 | H181: 0 | I181: 19240.0714 | J181: 1.570744352 | K181: 10.02560912 | L181: 1.470885626 | M181: 1.002279601 | N181: 0.0674578298 | O181: 1 | P181: 0 | Q181: 1 | R181: 0 | S181: 1.000772564 | T181: 0.07720643692 | U181: 2.14454612 | V181: -102.8249399 | W181: 77.17506006 | Y181: 1000000000 | Z181: 103525537.6 | AB181: 32.02552835 | AC181: -9.586532483 | AE181: 6.256525804 | AF181: -93.23840746 | AH181: 0 | AI181: 0 | AK181: 0 | AL181: 0
A182: 10233 | B182: 10.233 | C182: 70.3688037 | D182: 1.556585006 | E182: 1.00002067 | F182: 0.006429494921 | G182: 1 | H182: 0 | I182: 19350.21997 | J182: 1.570744648 | K182: 10.08243587 | L182: 1.471450609 | M182: 1.002305747 | N182: 0.06784284237 | O182: 1 | P182: 0 | Q182: 1 | R182: 0 | S182: 1.00078146 | T182: 0.07764863672 | U182: 2.094179362 | V182: -102.8425455 | W182: 77.15745449 | Y182: 1000000000 | Z182: 104714289 | AB182: 32.02481123 | AC182: -9.576237878 | AE182: 6.206876164 | AF182: -93.26630764 | AH182: 0 | AI182: 0 | AK182: 0 | AL182: 0
A183: 10292.5 | B183: 10.2925 | C183: 70.77788224 | D183: 1.556667149 | E183: 1.000020911 | F183: 0.006466878319 | G183: 1 | H183: 0 | I183: 19462.73224 | J183: 1.570744947 | K183: 10.14048537 | L183: 1.472021179 | M183: 1.002332608 | N183: 0.06823609621 | O183: 1 | P183: 0 | Q183: 1 | R183: 0 | S183: 1.0007906 | T183: 0.07810032924 | U183: 2.043028898 | V183: -102.8608478 | W183: 77.13915218 | Y183: 1000000000 | Z183: 105935556.2 | AB183: 32.02408592 | AC183: -9.566095553 | AE183: 6.156451012 | AF183: -93.29475227 | AH183: 0 | AI183: 0 | AK183: 0 | AL183: 0
A184: 10352 | B184: 10.352 | C184: 71.18696126 | D184: 1.556748348 | E184: 1.000021153 | F184: 0.006504261699 | G184: 1 | H184: 0 | I184: 19575.24451 | J184: 1.570745242 | K184: 10.19853813 | L184: 1.472585253 | M184: 1.002359623 | N184: 0.06862932892 | O184: 1 | P184: 0 | Q184: 1 | R184: 0 | S184: 1.000799793 | T184: 0.07855202526 | U184: 1.992175164 | V184: -102.879467 | W184: 77.120533 | Y184: 1000000000 | Z184: 107163904 | AB184: 32.02336768 | AC184: -9.556323985 | AE184: 6.106315512 | AF184: -93.32314301 | AH184: 0 | AI184: 0 | AK184: 0 | AL184: 0
A185: 10411.5 | B185: 10.4115 | C185: 71.59604074 | D185: 1.55682862 | E185: 1.000021397 | F185: 0.006541645061 | G185: 1 | H185: 0 | I185: 19687.75679 | J185: 1.570745534 | K185: 10.25659409 | L185: 1.473142942 | M185: 1.002386793 | N185: 0.06902254037 | O185: 1 | P185: 0 | Q185: 1 | R185: 0 | S185: 1.00080904 | T185: 0.0790037248 | U185: 1.941614645 | V185: -102.8983977 | W185: 77.10160234 | Y185: 1000000000 | Z185: 108399332.2 | AB185: 32.02265634 | AC185: -9.54691687 | AE185: 6.056466341 | AF185: -93.35148079 | AH185: 0 | AI185: 0 | AK185: 0 | AL185: 0
A186: 10471 | B186: 10.471 | C186: 72.00512067 | D186: 1.556907979 | E186: 1.000021642 | F186: 0.006579028405 | G186: 1 | H186: 0 | I186: 19800.26906 | J186: 1.570745822 | K186: 10.31465321 | L186: 1.473694352 | M186: 1.002414118 | N186: 0.06941573044 | O186: 1 | P186: 0 | Q186: 1 | R186: 0 | S186: 1.000818341 | T186: 0.07945542788 | U186: 1.89134389 | V186: -102.9176346 | W186: 77.08236543 | Y186: 1000000000 | Z186: 109641841 | AB186: 32.02195169 | AC186: -9.537868047 | AE186: 6.006900231 | AF186: -93.37976652 | AH186: 0 | AI186: 0 | AK186: 0 | AL186: 0
A187: 10532 | B187: 10.532 | C187: 72.42451401 | D187: 1.556988408 | E187: 1.000021895 | F187: 0.006617354166 | G187: 1 | H187: 0 | I187: 19915.61778 | J187: 1.570746115 | K187: 10.37417923 | L187: 1.474253256 | M187: 1.002442293 | N187: 0.06981881055 | O187: 1 | P187: 0 | Q187: 1 | R187: 0 | S187: 1.000827932 | T187: 0.07991852213 | U187: 1.840103069 | V187: -102.937669 | W187: 77.06233103 | Y187: 1000000000 | Z187: 110923024 | AB187: 32.02123605 | AC187: -9.52895675 | AE187: 5.956375049 | AF187: -93.40871222 | AH187: 0 | AI187: 0 | AK187: 0 | AL187: 0
A188: 10593 | B188: 10.593 | C188: 72.84390781 | D188: 1.557067912 | E188: 1.000022149 | F188: 0.006655679909 | G188: 1 | H188: 0 | I188: 20030.96649 | J188: 1.570746404 | K188: 10.43370844 | L188: 1.474805783 | M188: 1.002470631 | N188: 0.07022186794 | O188: 1 | P188: 0 | Q188: 1 | R188: 0 | S188: 1.000837579 | T188: 0.08038162015 | U188: 1.789159654 | V188: -102.9580144 | W188: 77.04198557 | Y188: 1000000000 | Z188: 112211649 | AB188: 32.02052708 | AC188: -9.52040936 | AE188: 5.906140605 | AF188: -93.43760507 | AH188: 0 | AI188: 0 | AK188: 0 | AL188: 0
A189: 10654 | B189: 10.654 | C189: 73.26330207 | D189: 1.557146505 | E189: 1.000022405 | F189: 0.006694005631 | G189: 1 | H189: 0 | I189: 20146.31521 | J189: 1.57074669 | K189: 10.49324081 | L189: 1.47535204 | M189: 1.002499132 | N189: 0.07062490248 | O189: 1 | P189: 0 | Q189: 1 | R189: 0 | S189: 1.000847282 | T189: 0.08084472195 | U189: 1.738510119 | V189: -102.9786657 | W189: 77.02133434 | Y189: 1000000000 | Z189: 113507716 | AB189: 32.0198246 | AC189: -9.512219672 | AE189: 5.856193556 | AF189: -93.46644599 | AH189: 0 | AI189: 0 | AK189: 0 | AL189: 0
A190: 10715 | B190: 10.715 | C190: 73.68269677 | D190: 1.557224203 | E190: 1.000022663 | F190: 0.006732331334 | G190: 1 | H190: 0 | I190: 20261.66392 | J190: 1.570746973 | K190: 10.55277627 | L190: 1.475892134 | M190: 1.002527796 | N190: 0.07102791403 | O190: 1 | P190: 0 | Q190: 1 | R190: 0 | S190: 1.000857042 | T190: 0.08130782755 | U190: 1.688151002 | V190: -102.9996175 | W190: 77.00038251 | Y190: 1000000000 | Z190: 114811225 | AB190: 32.01912842 | AC190: -9.504381621 | AE190: 5.806530617 | AF190: -93.49523587 | AH190: 0 | AI190: 0 | AK190: 0 | AL190: 0
A191: 10777.5 | B191: 10.7775 | C191: 74.11240492 | D191: 1.5573029 | E191: 1.000022928 | F191: 0.006771599452 | G191: 1 | H191: 0 | I191: 20379.84908 | J191: 1.570747259 | K191: 10.61377888 | L191: 1.476439224 | M191: 1.002557333 | N191: 0.07144081174 | O191: 1 | P191: 0 | Q191: 1 | R191: 0 | S191: 1.000867101 | T191: 0.08178232496 | U191: 1.636851206 | V191: -103.021391 | W191: 76.97860899 | Y191: 1000000000 | Z191: 116154506.2 | AB191: 32.01842148 | AC191: -9.496709345 | AE191: 5.755937756 | AF191: -93.52468166 | AH191: 0 | AI191: 0 | AK191: 0 | AL191: 0
A192: 10840 | B192: 10.84 | C192: 74.54211352 | D192: 1.557380689 | E192: 1.000023194 | F192: 0.006810867549 | G192: 1 | H192: 0 | I192: 20498.03424 | J192: 1.570747542 | K192: 10.67478463 | L192: 1.476980062 | M192: 1.002587041 | N192: 0.07185368504 | O192: 1 | P192: 0 | Q192: 1 | R192: 0 | S192: 1.000877218 | T192: 0.08225682642 | U192: 1.58584912 | V192: -103.0434695 | W192: 76.95653054 | Y192: 1000000000 | Z192: 117505600 | AB192: 32.01772081 | AC192: -9.489393754 | AE192: 5.705636346 | AF192: -93.5540757 | AH192: 0 | AI192: 0 | AK192: 0 | AL192: 0
A193: 10902.5 | B193: 10.9025 | C193: 74.97182256 | D193: 1.557457587 | E193: 1.000023463 | F193: 0.006850135625 | G193: 1 | H193: 0 | I193: 20616.21941 | J193: 1.570747821 | K193: 10.73579346 | L193: 1.477514752 | M193: 1.00261692 | N193: 0.07226653381 | O193: 1 | P193: 0 | Q193: 1 | R193: 0 | S193: 1.000887395 | T193: 0.08273133193 | U193: 1.535141215 | V193: -103.0658476 | W193: 76.93415236 | Y193: 1000000000 | Z193: 118864506.2 | AB193: 32.01702622 | AC193: -9.482428753 | AE193: 5.655623031 | AF193: -93.58341889 | AH193: 0 | AI193: 0 | AK193: 0 | AL193: 0
A194: 10965 | B194: 10.965 | C194: 75.40153204 | D194: 1.557533608 | E194: 1.000023732 | F194: 0.00688940368 | G194: 1 | H194: 0 | I194: 20734.40457 | J194: 1.570748098 | K194: 10.79680533 | L194: 1.4780434 | M194: 1.00264697 | N194: 0.0726793579 | O194: 1 | P194: 0 | Q194: 1 | R194: 0 | S194: 1.000897632 | T194: 0.08320584153 | U194: 1.484724021 | V194: -103.0885205 | W194: 76.91147952 | Y194: 1000000000 | Z194: 120231225 | AB194: 32.01633754 | AC194: -9.475808385 | AE194: 5.605894513 | AF194: -93.61271209 | AH194: 0 | AI194: 0 | AK194: 0 | AL194: 0
A195: 11028.75 | B195: 11.02875 | C195: 75.83983616 | D195: 1.557610262 | E195: 1.000024009 | F195: 0.006929457074 | G195: 1 | H195: 0 | I195: 20854.95343 | J195: 1.570748377 | K195: 10.85904051 | L195: 1.478576501 | M195: 1.002677797 | N195: 0.07310041291 | O195: 1 | P195: 0 | Q195: 1 | R195: 0 | S195: 1.000908133 | T195: 0.08368984555 | U195: 1.433594441 | V195: -103.1119452 | W195: 76.88805484 | Y195: 1000000000 | Z195: 121633326.6 | AB195: 32.01564101 | AC195: -9.469404609 | AE195: 5.555461461 | AF195: -93.64254055 | AH195: 0 | AI195: 0 | AK195: 0 | AL195: 0
A196: 11092.5 | B196: 11.0925 | C196: 76.27814072 | D196: 1.557686035 | E196: 1.000024288 | F196: 0.006969510446 | G196: 1 | H196: 0 | I196: 20975.50229 | J196: 1.570748652 | K196: 10.92127874 | L196: 1.479103526 | M196: 1.002708802 | N196: 0.07352144195 | O196: 1 | P196: 0 | Q196: 1 | R196: 0 | S196: 1.000918697 | T196: 0.08417385387 | U196: 1.382760222 | V196: -103.1356661 | W196: 76.86433393 | Y196: 1000000000 | Z196: 123043556.2 | AB196: 32.0149503 | AC196: -9.463347288 | AE196: 5.505317959 | AF196: -93.67231878 | AH196: 0 | AI196: 0 | AK196: 0 | AL196: 0
A197: 11156.25 | B197: 11.15625 | C197: 76.71644571 | D197: 1.557760943 | E197: 1.000024567 | F197: 0.007009563795 | G197: 1 | H197: 0 | I197: 21096.05116 | J197: 1.570748925 | K197: 10.98351997 | L197: 1.479624578 | M197: 1.002739984 | N197: 0.07394244489 | O197: 1 | P197: 0 | Q197: 1 | R197: 0 | S197: 1.000929322 | T197: 0.08465786651 | U197: 1.332217875 | V197: -103.1596782 | W197: 76.84032183 | Y197: 1000000000 | Z197: 124461914.1 | AB197: 32.01426522 | AC197: -9.457630513 | AE197: 5.455460684 | AF197: -93.70204766 | AH197: 0 | AI197: 0 | AK197: 0 | AL197: 0
A198: 11220 | B198: 11.22 | C198: 77.15475112 | D198: 1.557834999 | E198: 1.000024849 | F198: 0.007049617122 | G198: 1 | H198: 0 | I198: 21216.60002 | J198: 1.570749194 | K198: 11.04576414 | L198: 1.480139757 | M198: 1.002771344 | N198: 0.07436342156 | O198: 1 | P198: 0 | Q198: 1 | R198: 0 | S198: 1.000940009 | T198: 0.08514188349 | U198: 1.281963971 | V198: -103.1839765 | W198: 76.81602347 | Y198: 1000000000 | Z198: 125888400 | AB198: 32.01358563 | AC198: -9.452248511 | AE198: 5.405886369 | AF198: -93.73172802 | AH198: 0 | AI198: 0 | AK198: 0 | AL198: 0
A199: 11285.5 | B199: 11.2855 | C199: 77.60508889 | D199: 1.557910217 | E199: 1.00002514 | F199: 0.007090769929 | G199: 1 | H199: 0 | I199: 21340.45807 | J199: 1.570749467 | K199: 11.10972 | L199: 1.480663066 | M199: 1.002803751 | N199: 0.07479592696 | O199: 1 | P199: 0 | Q199: 1 | R199: 0 | S199: 1.000951054 | T199: 0.08563919176 | U199: 1.230627439 | V199: -103.209235 | W199: 76.79076501 | Y199: 1000000000 | Z199: 127362510.2 | AB199: 32.01289294 | AC199: -9.447061518 | AE199: 5.355242535 | AF199: -93.76217347 | AH199: 0 | AI199: 0 | AK199: 0 | AL199: 0
A200: 11351 | B200: 11.351 | C200: 78.05542709 | D200: 1.557984567 | E200: 1.000025433 | F200: 0.007131922711 | G200: 1 | H200: 0 | I200: 21464.31612 | J200: 1.570749738 | K200: 11.17367887 | L200: 1.481180385 | M200: 1.002836344 | N200: 0.07522840432 | O200: 1 | P200: 0 | Q200: 1 | R200: 0 | S200: 1.000962164 | T200: 0.08613650466 | U200: 1.179588261 | V200: -103.2347855 | W200: 76.76521455 | Y200: 1000000000 | Z200: 128845201 | AB200: 32.0122057 | AC200: -9.442215984 | AE200: 5.304890597 | AF200: -93.79256947 | AH200: 0 | AI200: 0 | AK200: 0 | AL200: 0
A201: 11416.5 | B201: 11.4165 | C201: 78.50576571 | D201: 1.558058064 | E201: 1.000025727 | F201: 0.00717307547 | G201: 1 | H201: 0 | I201: 21588.17416 | J201: 1.570750005 | K201: 11.23764069 | L201: 1.481691814 | M201: 1.002869126 | N201: 0.07566085349 | O201: 1 | P201: 0 | Q201: 1 | R201: 0 | S201: 1.000973339 | T201: 0.08663382223 | U201: 1.128842914 | V201: -103.2606229 | W201: 76.73937708 | Y201: 1000000000 | Z201: 130336472.2 | AB201: 32.01152375 | AC201: -9.437706057 | AE201: 5.254827193 | AF201: -93.82291686 | AH201: 0 | AI201: 0 | AK201: 0 | AL201: 0
A202: 11482 | B202: 11.482 | C202: 78.95610476 | D202: 1.558130723 | E202: 1.000026023 | F202: 0.007214228204 | G202: 1 | H202: 0 | I202: 21712.03221 | J202: 1.570750269 | K202: 11.30160542 | L202: 1.482197455 | M202: 1.002902094 | N202: 0.0760932743 | O202: 1 | P202: 0 | Q202: 1 | R202: 0 | S202: 1.000984579 | T202: 0.08713114449 | U202: 1.078387936 | V202: -103.2867425 | W202: 76.7132575 | Y202: 1000000000 | Z202: 131836324 | AB202: 32.01084695 | AC202: -9.433526019 | AE202: 5.205049015 | AF202: -93.85321648 | AH202: 0 | AI202: 0 | AK202: 0 | AL202: 0
... 436 more rows

Sheet Variable Management (hidden)
A1: EXCEL Variables Names/Calculations
B2: Input from user =
B3: Output =
B4: Constant
A5: Variable Name | B5: Value | C5: STD Units | E5: Notes | I5: Iteration
A6: Step 1: Operational Specs
A7: VIN_min | B7: ='Design Regulator'!E6 -> 33 | C7: V | D7: Minimum input voltage | I7: 1
A8: VIN_nom | B8: ='Design Regulator'!E7 -> 33 | C8: V | D8: Nominal input voltage | K8: =CHOOSE(SCH_MODE, "Efficiency vs. IOUT (Ch1)", "Efficiency vs. IOUT - 2 Ph", "Efficiency vs. IOUT - 3 Ph", "Efficiency vs. IOUT - 4 Ph") -> Efficiency vs. IOUT (Ch1) | L8: 1 | N8: DITHER Enabled | O8: 1 | T8: Dual Outputs | U8: 1 | W8: FPWM | X8: 1 | Z8: Internal Compensation | AA8: 1 | AC8: =CHOOSE(SCH_MODE, "Bode Plot (Ch1)", "Bode Plot - 2 Ph", "Bode Plot - 3 Ph", "Bode Plot - 4 Ph") -> Bode Plot (Ch1) | AD8: 1
A9: VIN_max | B9: ='Design Regulator'!E8 -> 51 | C9: V | D9: Maximum input voltage | F9: =CHOOSE(GPN_setting,80,80,80,65,65,45) -> 80 | G9: IC max voltage | K9: =IF(MODE=1, "Efficiency vs. IOUT (Ch2)", "N/A - Do Not Use") -> Efficiency vs. IOUT (Ch2) | L9: 2 | N9: DITHER Disabled | O9: 2 | T9: Single Output – 2 Phases | U9: 2 | W9: PFM | X9: 2 | Z9: External Compensation | AA9: 2 | AC9: =IF(MODE=1, "Bode Plot (Ch2)", "N/A - Do Not Use") -> Bode Plot (Ch2) | AD9: 2
K10: PLOT_TYPE | L10: 1 | N10: DITHER Yes/No | O10: 2 | P10: 1 = Yes, 2 = No | T10: Single Output – 3 Phases | U10: 3 | W10: FPWM/PFM | X10: 1 | Z10: COMP_TYPE | AA10: 2 | AC10: BODE_PLOT_TYPE | AD10: 1
A11: Vout | B11: ='Design Regulator'!E9 -> 20 | C11: V | D11: Output voltage - channel 1 | T11: Single Output – 4 Phases | U11: 4
A12: Iout | B12: ='Design Regulator'!E10 -> 0.4 | C12: A | D12: Output current - channel 1 | F12: =CHOOSE(GPN_setting,8,6,4,10,6,10) -> 8 | G12: IC max current | I12: 1 | T12: Single/Dual Yes/No | U12: 1
I13: 1 | K13: Adjustable | L13: 1 | N13: 3.3V | O13: 1 | T13: MODE (Single/Dual), DUAL = 1, SINGLE = 2 | U13: =IF(U12=1, 1, 2) -> 1 | W13: BIAS connected to ext. power supply | X13: 1 | Z13: UVLO Divider | AA13: 1
A14: Rout | B14: =Vout/Iout -> 50 | C14: W | D14: Load resistance - Channel 1 | K14: 5V | L14: 2 | N14: 5V | O14: 2 | T14: SINGLE OUTPUT (1 = YES) | U14: =IF(U12=1, 2, 1) -> 2 | W14: BIAS connected to VOUT | X14: 2 | Z14: No UVLO Divider | AA14: 2
K15: 3.3V | L15: 3 | N15: Adjustable | O15: 3 | T15: Number of Phases | U15: =SCH_MODE -> 1 | W15: BIAS connected to GND | X15: 3 | Z15: UVLO_TYPE | AA15: 1
A16: Pout | B16: =Vout*Iout -> 8 | C16: W | D16: Output power | K16: 12V | L16: 4 | N16: Ch2 Output Setting | O16: =IF(Vout2=3.3, 1, IF(Vout2=5, 2, 3)) -> 3 | W16: Ext_VCC | X16: 2
K17: Output Voltage Setting | L17: =IF(Vout=3.3, 3, IF(Vout=5, 2, IF(Vout=12,4,1))) -> 1 | W17: BIAS pin connection | X17: =IF(AND(VOUT_setting=3,Ext_VCC=1),"Connect the BIAS pin to an external bias supply from 5V to 30V.", IF(AND(VOUT_setting=3,Ext_VCC=2), "The BIAS pin cannot be connected to VOUT. Connect BIAS pin to an external bias supply from 5V to 30V.", IF(AND(VOUT_setting=2,Ext_VCC=2),"Connect the BIAS pin to VOUT", IF(AND(VOUT_setting=2,Ext_VCC=1),"Connect the BIAS pin to an external bias supply from 5V to 30V.",IF(AND(VOUT_setting=4,Ext_VCC=2),"Connect the BIAS pin to VOUT",IF(AND(VOUT_setting=4,Ext_VCC=1),"Connect the BIAS pin to an external bias supply from 10V to 30V.",IF(AND(VOUT_setting=1,Ext_VCC=2),"Connect the BIAS pin to VOUT. If VOUT < 5V, connect the BIAS pin to an external bias supply from 10V to 30V.", IF(AND(VOUT_setting=1,Ext_VCC=1),"Connect the BIAS pin to an external bias supply from 10V to 30V.","")))))))) -> Connect the BIAS pin to VOUT. If VOUT < 5V, connect the BIAS pin to an external bias supply from 10V to 30V.
A18: Efficiency | B18: 0.9 | D18: Estimate of efficiency
A19: Pin | B19: =Pout/Efficiency -> 8.888888889 | C19: W | D19: Calculate input power assuming finite efficiency
A21: Iin_Vinmin | B21: =Pin/VIN_min -> 0.2693602694 | C21: A | L21: =Vout -> 20
A22: Iin_Vinnom | B22: =Pin/VIN_nom -> 0.2693602694 | C22: A | D22: Input currents at min, nom, max Vin | H22: =AND(OSC=1, OR(Fsw/1000>2530, Fsw/1000<1800)) -> FALSE
A23: Iin_Vinmax | B23: =Pin/VIN_max -> 0.174291939 | C23: A | H23: =AND(OSC=2, OR(Fsw/1000>500, Fsw/1000<300)) -> FALSE
H24: =OR(H22,H23) -> FALSE
A25: OSC setting | B25: =CHOOSE(OSC, 2200, 440) ->  | C25: kHz | L25: SetVout_IntComp_nEN | M25: 1
A26: Fsw | B26: ='Design Regulator'!E11*1000 -> 433000 | C26: Hz | D26: Nominal switching frequency - determines RT resistor (SYNCIN must be 80-120% of this) | L26: SetVout_IntComp_EN | M26: 2 | O26: LM70880/-Q1 | P26: 1
A27: RT resistor to AGND | B27: =((1000000000/Fsw)-53)/45+0.1 -> 50.2437516 | C27: kΩ | L27: SetVout_ExtComp_nEN | M27: 3 | O27: LM70860/-Q1 | P27: 2
C28: kΩ | I28: 1 | L28: SetVout_ExtComp_EN | M28: 4 | O28: LM70840/-Q1 | P28: 3
A29: Tsw | B29: =1/Fsw -> 2.309468822e-06 | C29: sec | D29: Switching period | L29: AdjVout_IntComp_nEN | M29: 5 | O29: LM706A0/-Q1 | P29: 4
A30: Vref | B30: 0.8 | C30: V | D30: Reference voltage | L30: AdjVout_IntComp_EN | M30: 6 | O30: LM70660 | P30: 5
A31: Rt | B31: ='Standard Value Calculator'!S12/1000 -> 49.9 | C31: kΩ | D31: Frequency set resistor | F31: =IF(OR((Fsw=440000),(Fsw=2200000)),"N/A",Rfadj/1000) -> 0.0499 | L31: AdjVout_ExtComp_nEN | M31: 7 | O31: LM704A0-Q1 | P31: 6
L32: AdjVout_ExtComp_EN | M32: 8 | O32: GPN setting | P32: 1
A33: Step 2: Buck Inductor | B33: Channel 1 | L33: SetVout_IntComp_nEN_BIAS_GND | M33: 9
A34: Don1 | B34: =Vout/VIN_nom -> 0.6060606061 | F34: Ideal Duty Cycle at VIN(nom) | L34: SetVout_IntComp_EN_BIAS_GND | M34: 10
A35: Doff1 | B35: =1-34:34 -> 0.3939393939 | F35: Ideal 1- Duty Cycle at VIN(nom) | L35: SetVout_ExtComp_nEN_BIAS_GND | M35: 11
L36: SetVout_ExtComp_EN_BIAS_GND | M36: 12
A37: D_Vinmin | B37: =Vout/VIN_min -> 0.6060606061 | L37: AdjVout_IntComp_nEN_BIAS_GND | M37: 13
A38: D_Vinnom | B38: =Vout/VIN_nom -> 0.6060606061 | L38: AdjVout_IntComp_EN_BIAS_GND | M38: 14
A39: D_Vinmax | B39: =Vout/VIN_max -> 0.3921568627 | L39: AdjVout_ExtComp_nEN_BIAS_GND | M39: 15
L40: AdjVout_ExtComp_EN_BIAS_GND | M40: 16
A41: L_Vinnom | B41: =(VIN_nom-Vout)*D1_Vinnom/(Fsw*(Iout/Number_of_Phases)*0.35) -> 0.0001299701069 | C41: H | F41: Calculated inductance for 35% ripple at VIN(nom) | L41: PRE_schematic setting | M41: =IF(OR(Vout=3.3,Vout=5,Vout=12),CHOOSE(COMP_TYPE,IF(UVLO_TYPE=2,1,2),IF(UVLO_TYPE=2,3,4)),CHOOSE(COMP_TYPE,IF(UVLO_TYPE=2,5,6),IF(UVLO_TYPE=2,7,8))) -> 8
A42: L_slopecomp | B42: =1000*Vout*Rs/40/Fsw -> 4.503464203e-05 | C42: H | F42: Calculated inductance based on one times inductor downslope | L42: Schematic_setting | M42: =IF(Ext_VCC=3, PRE_schematic_setting+8, PRE_schematic_setting) -> 8
A44: Lopt | B44: =MAX(B41,B42) -> 0.0001299701069 | C44: H | F44: Slope comp
A46: Lo | B46: ='Design Regulator'!E28/1000000 -> 4.7e-05 | C46: H | F46: Chosen inductance
A47: Rdcr | B47: ='Design Regulator'!E29/1000 -> 0.1 | C47: W | F47: Chosen inductor DCR
A49: Don2 | B49: =(Vout+Iout*(Rdcr+Rs))/(Vin+Iout*Rs) -> 0.6074582924
A50: Doff2 | B50: =1-_Don2 -> 0.3925417076
A52: D_Vinmin_2 | B52: =CHOOSE(MODE, (Vout+Iout*(Rdcr+Rs))/(VIN_min+Iout*Rs), (Vout+Iout/Number_of_Phases*(Rdcr+Rs))/(VIN_min+Iout/Number_of_Phases*Rs)) -> 0.6074582924 | F52: Duty cycles adjusted for DCR/shunt voltage drops
A53: D_Vinnom_2 | B53: =CHOOSE(MODE, (Vout+Iout*(Rdcr+Rs))/(VIN_nom+Iout*Rs), (Vout+Iout/Number_of_Phases*(Rdcr+Rs))/(VIN_nom+Iout/Number_of_Phases*Rs)) -> 0.6074582924 | F53: need to include RDS(on) later
A54: D_Vinmax_2 | B54: =CHOOSE(MODE, (Vout+Iout*(Rdcr+Rs))/(VIN_max+Iout*Rs), (Vout+Iout/Number_of_Phases*(Rdcr+Rs))/(VIN_max+Iout/Number_of_Phases*Rs)) -> 0.3931268083
A56: Iripple_Vinmin | B56: =(VIN_min-Vout)*D1_Vinmin_2/(Fsw*Lf) -> 0.3880378262 | C56: A
A57: Iripple_Vinnom | B57: =(VIN_nom-Vout)*D1_Vinnom_2/(Fsw*Lf) -> 0.3880378262 | C57: A
A58: Iripple_Vinmax | B58: =(VIN_max-Vout)*D1_Vinmax_2/(Fsw*Lf) -> 0.5988369641 | C58: A
A60: Ishunt_rms_Vinmin | B60: =SQRT((Iout/Number_of_Phases)^2+(Iripple_Vinmin^2)/12) -> 0.415388709 | C60: A
A61: Ishunt_rms_Vinnom | B61: =SQRT((Iout/Number_of_Phases)^2+(Iripple_Vinnom^2)/12) -> 0.415388709 | C61: A
A62: Ishunt_rms_Vinmax | B62: =SQRT((Iout/Number_of_Phases)^2+(Iripple_Vinmax^2)/12) -> 0.4357565939 | C62: A
A63: Max shunt power loss at full load | B63: =B61^2*Rs -> 0.006729363402 | C63: W | F63: Note this is power loss at full load - not loss near OCP!
A65: Max inductor ripple current | B65: =MAX(B56:B58) -> 0.5988369641 | C65: A | F65: Ripple current at Vin(max)
B67: =B56/(Iout/Number_of_Phases) -> 0.9700945656
A68: % ripple current | B68: =B57/(Iout/Number_of_Phases) -> 0.9700945656
B69: =B58/(Iout/Number_of_Phases) -> 1.49709241
A71: Inductor copper temerature | B71: 100 | C71: °C
A72: DCR at hot | B72: =Rdcr*(1+0.0039*(B71-25)) -> 0.12925 | C72: W
A75: Step 3: Sense Resistors, Slope Comp, Current Limit
A77: Ilimit_DC | B77: ='Design Regulator'!E17 -> 1.2 | C77: A | F77: Chosen OCP level - based on output current
A79: Ilimit_inductor_Vinmin | B79: =CHOOSE(MODE, Ilimit_DC+Iripple_Vinmin/2, Ilimit_DC/Number_of_Phases+Iripple_Vinmin/2) -> 1.394018913 | C79: A | F79: Peak inductor current at current limit inception
A80: Ilimit_inductor_Vinnom | B80: =CHOOSE(MODE, Ilimit_DC+Iripple_Vinnom/2, Ilimit_DC/Number_of_Phases+Iripple_Vinnom/2) -> 1.394018913 | C80: A
A81: Ilimit_inductor_Vinmax | B81: =CHOOSE(MODE, Ilimit_DC+Iripple_Vinmax/2, Ilimit_DC/Number_of_Phases+Iripple_Vinmax/2) -> 1.499418482 | C81: A
A84: CS threshold_min | B84: 0.05 | C84: V
A85: CS threshold | B85: 0.056 | C85: V
A86: CS threshold_max | B86: 0.062 | C86: V
A88: Shunt required to get OCP at VIN(min) | B88: =Buck_CS_threshold/B79 -> 0.0401716214 | C88: W
A89: Shunt required to get OCP at VIN(nom) | B89: =Buck_CS_threshold/B80 -> 0.0401716214 | C89: W
A90: Shunt required to get OCP at VIN(max) | B90: =Buck_CS_threshold/B81 -> 0.03734781228 | C90: W
A92: Rs_ideal | B92: =B89 -> 0.0401716214 | C92: W | F92: Ideal Rs for the required OCP -- based on 73mV CL threshold
A93: Rs | B93: ='Design Regulator'!E19/1000 -> 0.039 | C93: W | F93: Selected (starndard value) current limit sense resistor
A95: Current limit - peak | B95: =Buck_CS_threshold_max/Rs -> 1.58974359 | C95: A | F95: Peak inductor current limit = min sat current
A97: Iout_OCP_Vinmin | B97: =Number_of_Phases*(Buck_CS_threshold/Rs-Iripple_Vinmin/2) -> 1.241878523 | C97: A | F97: Current limit setpoints (i.e. IOUT) after standard components are selected
A98: Iout_OCP_Vinnom | B98: =Number_of_Phases*(Buck_CS_threshold/Rs-Iripple_Vinnom/2) -> 1.241878523 | C98: A
A99: Iout_OCP_Vinmax | B99: =Number_of_Phases*(Buck_CS_threshold/Rs-Iripple_Vinmax/2) -> 1.136478954 | C99: A
A101: Irms_OCP_Vinmin | B101: =SQRT((Iout_OCP_Vinmin/Number_of_Phases)^2+(Iripple_Vinmin^2)/12) -> 1.246920224 | C101: A
A102: Irms_OCP_Vinnom | B102: =SQRT((Iout_OCP_Vinnom/Number_of_Phases)^2+(Iripple_Vinnom^2)/12) -> 1.246920224 | C102: A
A103: Irms_OCP_Vinmax | B103: =SQRT((Iout_OCP_Vinmax/Number_of_Phases)^2+(Iripple_Vinmax^2)/12) -> 1.149551313 | C103: A
A105: Pshunt_Vinmin | B105: =B101^2*Rs -> 0.06063759175 | C105: W | F105: Max power dissipations in shunt
A106: Pshunt_Vinnom | B106: =B102^2*Rs -> 0.06063759175 | C106: W
A107: Pshunt_Vinmax | B107: =B103^2*Rs -> 0.05153726065 | C107: W
A110: Step 4: Output Capacitor
A111: Icoutrms_VINmin | B111: =Iripple_Vinmin/SQRT(12) -> 0.1120168717 | C111: A | F111: Output Cap RMS current
A112: Icoutrms_VINnom | B112: =Iripple_Vinnom/SQRT(12) -> 0.1120168717 | C112: A
A113: Icoutrms_VINmax | B113: =Iripple_Vinmax/SQRT(12) -> 0.1728693412 | C113: A
A114: Max Cout rms current | B114: =MAX(B111:B113) -> 0.1728693412 | C114: A
A116: Vripple1 | B116: ='Design Regulator'!E34/1000 -> 0.01 | C116: V | F116: Output voltage ripple spec(pk-pk)
A118: Output Ripple Spec (pk-pk) | B118: =Vo1_ripple*1000 -> 10 | C118: mV | F118: Vout ripple spec at Vin(nom)
A120: Coutmin | B120: =Iripple_Vinnom/(Fsw*8*Vo1_ripple) -> 1.120201577e-05 | C120: F | F120: Minimum output capacitnace | H120: =Vo2_ripple -> 0 | I120: 1
A121: Reported Coutmin | B121: =IF(Cout_min*1000000<2, 2.2,Cout_min*1000000) -> 11.20201577 | C121: uF
A122: Cout | B122: ='Design Regulator'!E37/1000000 -> 5e-05 | C122: F | F122: Chosen output capacitance | I122: 1
A123: Resrmax | B123: =SQRT((Vo1_ripple/Iripple_Vinnom)^2-(1/(Fsw*Cout*8))^2) -> 0.02511558955 | C123: W | F123: Max ESR before ripple exceeds Vripple1 | I123: 1
A124: Cout_min_loadoff | B124: =Lf*((Load_Step/100)*Iout)^2/((Vout+Vo1_ripple)^2-Vout^2)*1000000 -> 18.79530117 | C124: uF | D124: =IF(Load_Step=0, Cout_min*1000000, Cout_min_loadoff) -> 18.79530117
A125: Total COUT with stead-state+load step | B125: =Lf*((Load_Step/100)*Iout)^2/((Vout+Vo1_ripple)^2-Vout^2)*1000000 + (Cout_min*1000000) -> 29.99731694 | C125: uF
A128: Reported Cout ESR max | B128: =IF(OR(CoutEsrMax>0.3, CoutEsrMax<0, (ISERROR(CoutEsrMax))), "N/A", CoutEsrMax*1000) -> 25.11558955 | C128: mΩ
A129: CoutEsr | B129: ='Design Regulator'!E39/1000 -> 0.002 | C129: W | F129: Chosen ESR | I129: 1 | K129: =ISERROR(CoutEsrMax) -> FALSE | L129: =ISERROR(B128) -> FALSE
A130: Vripple | B130: =Iripple_Vinnom*SQRT(Cout_ESR^2+(1/(8*Fsw*Cout))^2) -> 0.002371012381 | C130: Vp-p | L130: =OR(CoutEsrMax>0.3,CoutEsrMax<0) -> FALSE
K131: =OR(TRUE, FALSE, TRUE) -> TRUE
A132: Step 5: Input Capacitor
K133: Two channels operating at full load
A134: Icinrms_VINmin | B134: =SQRT(D1_Vinmin_2*(Iout^2*(1-D1_Vinmin_2)+Iripple_Vinmin^2/12)) -> 0.2139501979 | C134: A | D134: =D1_Vinmax -> 0.3921568627 | F134: Calculate input cap rms current with one output unloaded | K134: =SQRT(Iout^2*D1_Vinmin*(1-D1_Vinmin)+Iout2^2*D2_Vinmin*(1-D2_Vinmin)-2*Iout*Iout2*D1_Vinmin*D2_Vinmin) ->  | L134: A | M134: =SQRT(Iout^2*D1_Vinmin*(1-D1_Vinmin)+Iout2^2*D2_Vinmin*(1-D2_Vinmin)-2*Iout*Iout2*(0.5-D2_Vinmin*(1-D1_Vinmin))) ->  | N134: A
A135: Icinrms_VINnom | B135: =SQRT(D1_Vinnom_2*(Iout^2*(1-D1_Vinnom_2)+Iripple_Vinnom^2/12)) -> 0.2139501979 | C135: A | D135: =D1_Vinmin -> 0.6060606061 | K135: =SQRT(Iout^2*D1_Vinnom*(1-D1_Vinnom)+Iout2^2*D2_Vinnom*(1-D2_Vinnom)-2*Iout*Iout2*D1_Vinnom*D2_Vinnom) ->  | L135: A
A136: Icinrms_VINmax | B136: =SQRT(D1_Vinmax_2*(Iout^2*(1-D1_Vinmax_2)+Iripple_Vinmax^2/12)) -> 0.2234292412 | C136: A | K136: =SQRT(Iout^2*D1_Vinmax*(1-D1_Vinmax)+Iout2^2*D2_Vinmax*(1-D2_Vinmax)-2*Iout*Iout2*D1_Vinmax*D2_Vinmax) ->  | L136: A
A137: Icinrms - multiphase | B137: =Iout*SQRT((D1_Vinmin-F139/Number_of_Phases)*((F139+1)/Number_of_Phases-D1_Vinmin)) -> 0.1954486727 | C137: A | K137: =MAX(K134:K136) ->  | L137: A
A138: Max Cin rms current | B138: =MAX(B134:B136) -> 0.2234292412 | C138: A | F138: =Number_of_Phases*D1_Vinnom -> 0.6060606061 | G138: N*D
F139: =FLOOR(Number_of_Phases*D1_Vinnom,1) -> 0 | G139: floor(N*D)
A140: Icinrms - multiphase - max | B140: =Iout/2/Number_of_Phases -> 0.2 | C140: A
A141: Final result | B141: =IF(D1_Vinmin<0.5, B138, B140) -> 0.2 | C141: A | D141: …report this
A143: Vinripple1 | B143: ='Design Regulator'!E44/1000 -> 0.005 | C143: Vp-p | F143: Input voltage ripple spec (pk-pk)
A145: Cinmin_Vinmin | B145: =Iout/Number_of_Phases*D1_Vinmin*(1-D1_Vinmin)/(Vinripple1*Fsw) -> 4.411106658e-05 | C145: F
A146: Cinmin_Vinnom | B146: =Iout/Number_of_Phases*D1_Vinnom*(1-D1_Vinnom)/(Vinripple1*Fsw) -> 4.411106658e-05 | C146: F
A147: Cinmin_Vinmax | B147: =Iout/Number_of_Phases*D1_Vinmax*(1-D1_Vinmax)/(Vinripple1*Fsw) -> 4.404062037e-05 | C147: F | F147: Calculate cap at Vinmax and 50% duty cycle (Vin = 2*Vout)
A149: Cinmin_50%D | B149: =Iout*0.5*(1-0.5)/(Vinripple1*Fsw) -> 4.618937644e-05 | C149: F | F149: Buck 50% typically worst case
A150: Cinmin | B150: =IF(D1_Vinmin<0.5, B145,B149) -> 4.618937644e-05 | C150: F | D150: =(VIN_min+VIN_max)/2 -> 42
A151: Reported Cinmin | B151: =IF(Cinmin*1000000<2.2, 2.2,Cinmin*1000000) -> 46.18937644 | C151: uF | D151: =2*Vout -> 40 | F151: …report this
A153: Cin | B153: ='Design Regulator'!E46/1000000 -> 5e-05 | C153: F | F153: Input capacitance
A154: CinEsrMax_Vinmax | B154: =-(Iout/Number_of_Phases*D1_Vinmax*(1-D1_Vinmax)/(Cin*Fsw)-Vinripple1)/(Iout/Number_of_Phases+Iripple_Vinmax/2) -> 0.0008520477774 | C154: W
A155: CinEsrMax_50%D | B155: =-(Iout/Number_of_Phases*0.5*(1-0.5)/(Cin*Fsw)-Vinripple1)/(Iout/Number_of_Phases+Iripple_Vinmax/2) -> 0.0005448274037 | C155: W | F155: Calculate ESR at Vinmax and 50% duty cycle (Vin = 2*Vout)
A156: CinEsrMax | B156: =IF(VIN_max<2*Vout, B154,B155) -> 0.0005448274037 | C156: W
A157: Reported Cin ESR max | B157: =IF(OR(CinEsrMax>0.3, CinEsrMax<0), "N/A",CinEsrMax*1000) -> 0.5448274037 | C157: mΩ | F157: …report this
A158: RCinEsr | B158: ='Design Regulator'!E48/1000 -> 0.001 | C158: W | F158: Input capacitance series resistance (ESR)
A160: Vinripple2_Vinmin | B160: =Iout/Number_of_Phases*D1_Vinmin_2*(1-D1_Vinmin_2)/(Cin*Fsw)+(Iout/Number_of_Phases +Iripple_Vinmin/2)*RCinEsr -> 0.004999611807 | C160: Vp-p
A161: Vinripple2_Vinnom | B161: =Iout/Number_of_Phases*D1_Vinnom_2*(1-D1_Vinnom_2)/(Cin*Fsw)+(Iout/Number_of_Phases +Iripple_Vinnom/2)*RCinEsr -> 0.004999611807 | C161: Vp-p
A162: Vinripple2_Vinmax | B162: =Iout/Number_of_Phases*D1_Vinmax_2*(1-D1_Vinmax_2)/(Cin*Fsw)+(Iout/Number_of_Phases +Iripple_Vinmax/2)*RCinEsr -> 0.005107328337 | C162: Vp-p
A163: Vinripple2_50%D | B163: =Iout/Number_of_Phases*0.5*(1-0.5)/(Cin*Fsw)+(Iout/Number_of_Phases +Iripple_Vinmax/2)*RCinEsr -> 0.005318356126 | C163: Vp-p | F163: Calculate ripple at Vinmax and 50% duty cycle (Vin = 2*Vout)
A164: Vinripple2 | B164: =IF(D1_Vinmin<0.5, B160,B163) -> 0.005318356126 | C164: Vp-p | F164: …report highest of these
B166: =Iout*D1_Vinmax_2*(1-D1_Vinmax_2)/(Cin*Fsw) -> 0.004407909855 | C166: Vp-p
A168: Step 6a: Soft Start
A169: Tss | B169: ='Design Regulator'!E53/1000 -> 0 | C169: s | D169: Soft-start time
A170: Iss | B170: =Cout*Vout/Tss ->  | C170: A | D170: Load cap current during soft start
A171: Css | B171: =0.000022*Tss/1.2 -> 0 | C171: F
A172: Css_u | B172: ='Standard Value Calculator'!B4 -> 0 | C172: F
A174: Step 6b: Other Components - Dither, Hiccup, DEMB, MODE
A175: Tres | B175: ='Design Regulator'!E56/1000 -> 0.0117 | C175: s | D175: Hiccup time
A176: Cres | B176: =0.00002*Tres/1.2 -> 1.95e-07 | C176: F
A177: Cres_u | B177: ='Standard Value Calculator'!G4 -> 1.8e-07 | C177: F
A179: RPG1/2 | B179: 100 | C179: kΩ
A180: RFB1/2 | C180: W | E180: Tie to VDDA or AGND for 3.3V/5V output, respectively.
A181: R_MODE | C181: W | E181: Tie to VDDA or AGND for Single/Dual operation, respectively.
A182: R_DEMB | C182: W | E182: Tie to VDDA or AGND for FPWM/DEM, respectively.
A184: Enable Hysteresis Current | B184: 1e-05 | C184: A | E184: 10 µA Hysteresis Current
A185: Turn ON Voltage | B185: ='Design Regulator'!E55 -> 13
A186: Rising EN Voltage | B186: 1
A188: Upper FB resistor | B188: ='Design Regulator'!E57*1000 -> 237000 | C188: W | D188: ='Design Regulator'!E57*1000 -> 237000
A189: Lower FB resister | B189: =(B186/(B185-B186))*B188 -> 19750 | C189: W | D189: =(B186/(B185-B186))*D188 -> 19750
A190: Standard upper FB resistor | B190: ='Standard Value Calculator'!S40 -> 237 | C190: kΩ
A191: Standard lower FB resistor | B191: ='Standard Value Calculator'!S41 -> 19.6 | C191: kΩ
A193: Dither Modulation Frequency | B193: ='Design Regulator'!E59*1000 -> 29400 | C193: Hz
A194: Cdither_calculated | B194: =10*10^-6/Fdither/0.12 -> 2.83446712e-09 | C194: F
A195: Cdither_stdvalue | B195: ='Standard Value Calculator'!S21 -> 2.7e-09 | C195: F
A198: Step 7: Compensation
A199: Pi | B199: 3.14159265 | D199: p
A200: CS Amp Gain | B200: 10
A201: Ri | B201: =Rs*CSAmp_gain -> 0.39 | C201: W | F201: Current Sense effective resistance = shunt resistor Rs * CS amp gain
A202: gm | B202: =IF(COMP_TYPE=1,0.00003,0.0012) -> 0.0012 | C202: S | F202: Error Amp Transconductance
A204: Se_ext | B204: =B208/Ri*1000 -> 444102.5641 | C204: A/s | F204: Slope Comp Slope - referred to inductor current
A205: Sn | B205: =(Vin-Vout)/Lf -> 276595.7447 | C205: A/s | F205: On-time Slope
A206: Sf | B206: =Vout/Lf -> 425531.9149 | C206: A/s | F206: Off-time Slope
A208: Se_int | B208: =Fsw*0.0004 -> 173.2 | C208: mV/μs | F208: Slope Comp Slope - referred to IC
A209: Sn_int | B209: =Sn*Ri/1000 -> 107.8723404 | C209: mV/μs | F209: etc
A210: Sf_int | B210: =Sf*Ri/1000 -> 165.9574468 | C210: mV/μs | F210: etc
A212: mc_buck | B212: =1+Se_ext/Sn -> 2.605601578 | F212: mc = 1 + Se/Sn for peak current-mode buck
A213: k_buck | B213: =mc_buck*(1-D1_Vinnom_2) -> 1.022807293 | F213: mc*(1-d)
A215: mc | B215: =1+Se_ext/Sn -> 2.605601578
A216: k | B216: =mc_buck*(1-D1_Vinnom_2) -> 1.022807293
A217: Q | B217: =1/Pi/(k-0.5) -> 0.6088474492 | F217: 1/(Pi*(k-0.5)) | H217: Q = 2/Pi = 0.636 gives ideal one-cycle damping
A219: Error Amp (EA)
A220: GBW | B220: 6 | C220: MHz | F220: EA gain-bandwidth product
A221: Cbw | B221: =gm/(2*Pi*GBW*1000000) -> 3.183098865e-11 | C221: F | F221: EA effective bandwidth limiting capacitance = gm/(2*Pi*GBW)
A222: RoEA | B222: 64000000 | C222: W | F222: EA output resistance
A223: AEA | B223: =gm*RoEA -> 76800 | C223: V/V | F223: EA DC gain = gm*RoEA
A224: Afb | B224: =IF(VOUT_setting=1,Vref/Vout,SQRT((1+(Fcross*zterm1)^2)/((1+Afbr-pterm4*(Fcross)^2)^2+(Fcross*pterm3)^2))) -> 0.04 | C224: V/V | F224: Feedback gain from Vout to FB
A225: Acs | B225: =1/Ri -> 2.564102564 | F225: Acs = 1/Ri
A226: Am_buck | B226: =(Ro/Number_of_Phases)/Ri/((1+Ro/Number_of_Phases*(k-0.5)/(Fsw*Lf))) -> 56.12015446
A227: Am | B227: =(Ro*Number_of_Phases)/Ri/((1+Ro*Number_of_Phases*(k-0.5)/(Fsw*Lf))) -> 56.12015446 | F227: Buck modulator gain
A229: Scaling factor to calculate Rcomp - buck | B229: =2*Pi*Ri/gm -> 2042.035223 | F229: 2*Pi*Ri/gm -- scaling factor to calculate Rcomp given desired buck crossover frequency
A230: DC Gain is Adc = AEA*Afb*Am
A232: Ro | B232: =Rout -> 50 | C232: W | F232: Output Resistance
A234: Fp_load_buck | B234: =1/(2*Pi*Ro*Cout)+(k-0.5)/(2*Pi*Fsw*Lf*Cout/Number_of_Phases) -> 145.4342391 | C234: Hz | F234: Buck dominant pole frequency -- note slope comp influence
A235: Fp_dominant | B235: =Fload_u -> 145.4342391 | C235: Hz
B236: =Cbw -> 3.183098865e-11
A237: Fp_EA | B237: =1/(2*Pi*(RoEA+Rcea1_u)*Cc1ea_u) -> 0.5288311983 | C237: Hz | F237: Error Amp LF pole -- related to amplifier ouptut resistance and comp cap
A238: Fp_HF | B238: =1/(2*Pi*Rcea1_u*(Cc2ea_u+Cbw)) -> 150602.4096 | C238: Hz | F238: Error Amp HF pole cancels zero related to Output Cap ESR
A239: Fesr | B239: =1/(2*Pi*Cout*Cout_ESR) -> 1591549.433 | C239: Hz | F239: Cout ESR zero frequency
A240: F_mod | B240: =Fsw/2 -> 216500 | C240: Hz | F240: Zero-order sample-and-hold effects of current-mode control modeled as pole at Fsw/2
D241: Internal Comp Crossover
A242: Desired Crossover Frequency | B242: =CHOOSE(COMP_TYPE,Fcross_Ch2,'Design Regulator'!E65*1000) -> 10000 | C242: Hz | D242: =Fsw/50 -> 8660
A243: Rcea1 | B243: =Fcross*Cout/Number_of_Phases*2*Pi*Ri/(gm*Afb) -> 25525.44028 | C243: W | F243: This component will largely determine the crossover frequency | K243: =Fcross/Fp_dominant/(gm*Afb*Am) -> 25525.44028
A244: Cc1ea, Cc3ea | B244: =10/(Rcea1*Fcross*2*Pi) -> 6.235149777e-09 | C244: F | F244: This along with Rcea1 will set a zero at Fcrossover/5 to optimize phase margin
A245: Cc2ea, Cc4ea | B245: =MAX(1/(Rcea1*2*Pi*Fesr)-Cbw, 1/(Rcea1*2*Pi*(Fsw/2))-Cbw) -> -3.031220632e-12 | C245: F | F245: This along with Rcea1 places a pole at the output cap ESR zero
A247: =CHOOSE(COMP_TYPE,"Internal Compensation","External Compensation") -> External Compensation
A248: Chosen Compensation Components from the standard value sheet | D248: Internal Values
A249: Rcea1_u | B249: =CHOOSE(COMP_TYPE,D249,'Design Regulator'!D72*1000) -> 33200 | C249: W | D249: 400000 | G249: =1/(Rcea1*2*Pi*(Fsw/2))-Cbw -> -3.031220632e-12
A250: Cc1ea_u | B250: =CHOOSE(COMP_TYPE,Cc3ea_u,'Design Regulator'!D73*0.000000001) -> 4.7e-09 | C250: F | D250: =50*0.000000000001 -> 5e-11
A251: Cc2ea_u | B251: =CHOOSE(COMP_TYPE,Cc4ea_u,'Design Regulator'!D74*0.000000000001) -> 0 | C251: F | D251: =0.000000000001 -> 1e-12
A253: Resulting Pole/Zero Locations | F253: =Cout -> 5e-05 | G253: =Cout_ESR -> 0.002
... 162 more rows

Sheet Schematic Management (hidden)
N1: 3.3V or 5V fixed (FB1/2)
A2: =IF(MODE=1, CHOOSE(SCH_SETTING, "SCH_SetVout_IntComp_nEN","SCH_SetVout_IntComp_EN","SCH_SetVout_ExtComp_nEN","SCH_SetVout_ExtComp_EN","SCH_AdjVout_IntComp_nEN","SCH_AdjVout_IntComp_EN","SCH_AdjVout_ExtComp_nEN","SCH_AdjVout_ExtComp_EN", "SCH_SetVout_IntComp_nEN_BIAS_GND","SCH_SetVout_IntComp_EN_BIAS_GND","SCH_SetVout_ExtComp_nEN_BIAS_GND","SCH_SetVout_ExtComp_EN_BIAS_GND","SCH_AdjVout_IntComp_nEN_BIAS_GND","SCH_AdjVout_IntComp_EN_BIAS_GND","SCH_AdjVout_ExtComp_nEN_BIAS_GND","SCH_AdjVout_ExtComp_EN_BIAS_GND", "")) -> SCH_AdjVout_ExtComp_EN | J2: With/without dither (DITH) | N2: With/without VOUT connected to VCCX
J3: FPWM or DEM (DEMB)
J4: Shunt or inductor DCR current sensing

Sheet Efficiency Plot Management (hidden)
A2: =IF(PLOT_TYPE=1, "EFF_Ch1", "EFF_Ch2") -> EFF_Ch1

Sheet Standard Value Calculator (hidden)
A2: Capacitors | B2: Css | C2: Cc1ea | D2: Cc2ea | E2: Cout | F2: Cin | G2: Cres | H2: Cdither | I2: Cc3ea | J2: Cc4ea | K2: Cin_Passive | L2: Cdamp_Pssv | M2: Cinj_AEF | N2: Cdamp_AEF
A3: Inputs | B3: =Css -> 0 | C3: =Cc1ea -> 6.235149777e-09 | D3: =Cc2ea -> -3.031220632e-12 | E3: =Cout -> 5e-05 | F3: =Cin -> 5e-05 | G3: =Cres -> 1.95e-07 | H3: =Cdither_init -> 2.83446712e-09 | I3: =Cc3ea -> 0 | J3: =Cc4ea -> 0 | K3: ='Variable Management'!B294*0.000001 ->  | L3: =K3*4 ->  | M3: =Cinj_AEF*0.000001 ->  | N3: ='Variable Management'!B297*0.000001 ->  | Q3: Resistors | R3: inputs | S3: Standard Result
A4: Standard Result | B4: =SUM(B6:B158)/1000000000000 -> 0 | C4: =IF(C3="OPEN","OPEN",SUM(C6:C158)/1000000000000) -> 6.8e-09 | D4: =SUM(D6:D158)/1000000000000 -> 0 | E4: =SUM(E6:E158)/1000000000000 -> 4.7e-05 | F4: =SUM(F6:F158)/1000000000000 -> 4.7e-05 | G4: =SUM(G6:G158)/1000000000000 -> 1.8e-07 | H4: =IF(H3="OPEN","OPEN",SUM(H6:H158)/1000000000000) -> 2.7e-09 | I4: 0 | J4: 0 | Q4: Rt | R4: =Rfadj -> 49.9 | S4: =IF(R4>(INT(0.5+100*POWER(10,IF(96*(LOG(R4)-INT(LOG(R4)))-ROUND(96*(LOG(R4)-INT(LOG(R4))),0)<0,ROUND(96*(LOG(R4)-INT(LOG(R4))),0)-1,ROUND(96*(LOG(R4)-INT(LOG(R4))),0))/96))*POWER(10,INT(LOG(R4))-2)+INT(0.5+100*POWER(10,(IF(96*(LOG(R4)-INT(LOG(R4)))-ROUND(96*(LOG(R4)-INT(LOG(R4))),0)<0,ROUND(96*(LOG(R4)-INT(LOG(R4))),0)-1,ROUND(96*(LOG(R4)-INT(LOG(R4))),0))+1)/96))*POWER(10,INT(LOG(R4))-2))/2,INT(0.5+100*POWER(10,(IF(96*(LOG(R4)-INT(LOG(R4)))-ROUND(96*(LOG(R4)-INT(LOG(R4))),0)<0,ROUND(96*(LOG(R4)-INT(LOG(R4))),0)-1,ROUND(96*(LOG(R4)-INT(LOG(R4))),0))+1)/96))*POWER(10,INT(LOG(R4))-2),INT(0.5+100*POWER(10,IF(96*(LOG(R4)-INT(LOG(R4)))-ROUND(96*(LOG(R4)-INT(LOG(R4))),0)<0,ROUND(96*(LOG(R4)-INT(LOG(R4))),0)-1,ROUND(96*(LOG(R4)-INT(LOG(R4))),0))/96))*POWER(10,INT(LOG(R4))-2)) -> 49.9 | T4: Ω
A5: (pF)
A6: 0.47 | B6: =IF(IF((B$3*10^12-$A7)*(B$3*10^12-$A6)*-1<0,0,1)*IF(ABS(B$3*10^12-$A7)>(B$3*10^12-$A6),$A6,$A7)=B7,0,IF((B$3*10^12-$A7)*(B$3*10^12-$A6)*-1<0,0,1)*IF(ABS(B$3*10^12-$A7)>(B$3*10^12-$A6),$A6,$A7)) -> 0 | C6: 0 | D6: 0 | E6: 0 | F6: 0 | G6: 0 | H6: 0 | I6: 0 | J6: 0
A7: 0.56 | B7: =IF(IF((B$3*10^12-$A8)*(B$3*10^12-$A7)*-1<0,0,1)*IF(ABS(B$3*10^12-$A8)>(B$3*10^12-$A7),$A7,$A8)=B8,0,IF((B$3*10^12-$A8)*(B$3*10^12-$A7)*-1<0,0,1)*IF(ABS(B$3*10^12-$A8)>(B$3*10^12-$A7),$A7,$A8)) -> 0 | C7: =IF(IF((C$3*10^12-$A8)*(C$3*10^12-$A7)*-1<0,0,1)*IF(ABS(C$3*10^12-$A8)>(C$3*10^12-$A7),$A7,$A8)=C8,0,IF((C$3*10^12-$A8)*(C$3*10^12-$A7)*-1<0,0,1)*IF(ABS(C$3*10^12-$A8)>(C$3*10^12-$A7),$A7,$A8)) -> 0 | D7: =IF(IF((D$3*10^12-$A8)*(D$3*10^12-$A7)*-1<0,0,1)*IF(ABS(D$3*10^12-$A8)>(D$3*10^12-$A7),$A7,$A8)=D8,0,IF((D$3*10^12-$A8)*(D$3*10^12-$A7)*-1<0,0,1)*IF(ABS(D$3*10^12-$A8)>(D$3*10^12-$A7),$A7,$A8)) -> 0 | E7: =IF(IF((E$3*10^12-$A8)*(E$3*10^12-$A7)*-1<0,0,1)*IF(ABS(E$3*10^12-$A8)>(E$3*10^12-$A7),$A7,$A8)=E8,0,IF((E$3*10^12-$A8)*(E$3*10^12-$A7)*-1<0,0,1)*IF(ABS(E$3*10^12-$A8)>(E$3*10^12-$A7),$A7,$A8)) -> 0 | F7: =IF(IF((F$3*10^12-$A8)*(F$3*10^12-$A7)*-1<0,0,1)*IF(ABS(F$3*10^12-$A8)>(F$3*10^12-$A7),$A7,$A8)=F8,0,IF((F$3*10^12-$A8)*(F$3*10^12-$A7)*-1<0,0,1)*IF(ABS(F$3*10^12-$A8)>(F$3*10^12-$A7),$A7,$A8)) -> 0 | G7: =IF(IF((G$3*10^12-$A8)*(G$3*10^12-$A7)*-1<0,0,1)*IF(ABS(G$3*10^12-$A8)>(G$3*10^12-$A7),$A7,$A8)=G8,0,IF((G$3*10^12-$A8)*(G$3*10^12-$A7)*-1<0,0,1)*IF(ABS(G$3*10^12-$A8)>(G$3*10^12-$A7),$A7,$A8)) -> 0 | H7: 0 | I7: 0 | J7: 0 | K7: =IF(IF((K$3*10^12-$A8)*(K$3*10^12-$A7)*-1<0,0,1)*IF(ABS(K$3*10^12-$A8)>(K$3*10^12-$A7),$A7,$A8)=K8,0,IF((K$3*10^12-$A8)*(K$3*10^12-$A7)*-1<0,0,1)*IF(ABS(K$3*10^12-$A8)>(K$3*10^12-$A7),$A7,$A8)) ->  | Q7: Rc1ea | R7: =Rcea1 -> 25525.44028 | S7: =IF(R7>(INT(0.5+100*POWER(10,IF(96*(LOG(R7)-INT(LOG(R7)))-ROUND(96*(LOG(R7)-INT(LOG(R7))),0)<0,ROUND(96*(LOG(R7)-INT(LOG(R7))),0)-1,ROUND(96*(LOG(R7)-INT(LOG(R7))),0))/96))*POWER(10,INT(LOG(R7))-2)+INT(0.5+100*POWER(10,(IF(96*(LOG(R7)-INT(LOG(R7)))-ROUND(96*(LOG(R7)-INT(LOG(R7))),0)<0,ROUND(96*(LOG(R7)-INT(LOG(R7))),0)-1,ROUND(96*(LOG(R7)-INT(LOG(R7))),0))+1)/96))*POWER(10,INT(LOG(R7))-2))/2,INT(0.5+100*POWER(10,(IF(96*(LOG(R7)-INT(LOG(R7)))-ROUND(96*(LOG(R7)-INT(LOG(R7))),0)<0,ROUND(96*(LOG(R7)-INT(LOG(R7))),0)-1,ROUND(96*(LOG(R7)-INT(LOG(R7))),0))+1)/96))*POWER(10,INT(LOG(R7))-2),INT(0.5+100*POWER(10,IF(96*(LOG(R7)-INT(LOG(R7)))-ROUND(96*(LOG(R7)-INT(LOG(R7))),0)<0,ROUND(96*(LOG(R7)-INT(LOG(R7))),0)-1,ROUND(96*(LOG(R7)-INT(LOG(R7))),0))/96))*POWER(10,INT(LOG(R7))-2)) -> 25500 | T7: Ω
A8: 0.68 | B8: 0 | C8: 0 | D8: 0 | E8: 0 | F8: 0 | G8: 0 | H8: 0 | I8: 0 | J8: 0 | Q8: Rc1ea | R8: =Rcea2 -> 0 | S8: =IF(R8>(INT(0.5+100*POWER(10,IF(96*(LOG(R8)-INT(LOG(R8)))-ROUND(96*(LOG(R8)-INT(LOG(R8))),0)<0,ROUND(96*(LOG(R8)-INT(LOG(R8))),0)-1,ROUND(96*(LOG(R8)-INT(LOG(R8))),0))/96))*POWER(10,INT(LOG(R8))-2)+INT(0.5+100*POWER(10,(IF(96*(LOG(R8)-INT(LOG(R8)))-ROUND(96*(LOG(R8)-INT(LOG(R8))),0)<0,ROUND(96*(LOG(R8)-INT(LOG(R8))),0)-1,ROUND(96*(LOG(R8)-INT(LOG(R8))),0))+1)/96))*POWER(10,INT(LOG(R8))-2))/2,INT(0.5+100*POWER(10,(IF(96*(LOG(R8)-INT(LOG(R8)))-ROUND(96*(LOG(R8)-INT(LOG(R8))),0)<0,ROUND(96*(LOG(R8)-INT(LOG(R8))),0)-1,ROUND(96*(LOG(R8)-INT(LOG(R8))),0))+1)/96))*POWER(10,INT(LOG(R8))-2),INT(0.5+100*POWER(10,IF(96*(LOG(R8)-INT(LOG(R8)))-ROUND(96*(LOG(R8)-INT(LOG(R8))),0)<0,ROUND(96*(LOG(R8)-INT(LOG(R8))),0)-1,ROUND(96*(LOG(R8)-INT(LOG(R8))),0))/96))*POWER(10,INT(LOG(R8))-2)) ->  | T8: Ω
A9: 0.82 | B9: 0 | C9: 0 | D9: 0 | E9: 0 | F9: 0 | G9: 0 | H9: 0 | I9: 0 | J9: 0
A10: 1 | B10: 0 | C10: 0 | D10: 0 | E10: 0 | F10: 0 | G10: 0 | H10: 0 | I10: 0 | J10: 0 | Q10: Rfb1 | R10: =Rfb1_ -> 274000 | S10: =IF(R10>(INT(0.5+100*POWER(10,IF(96*(LOG(R10)-INT(LOG(R10)))-ROUND(96*(LOG(R10)-INT(LOG(R10))),0)<0,ROUND(96*(LOG(R10)-INT(LOG(R10))),0)-1,ROUND(96*(LOG(R10)-INT(LOG(R10))),0))/96))*POWER(10,INT(LOG(R10))-2)+INT(0.5+100*POWER(10,(IF(96*(LOG(R10)-INT(LOG(R10)))-ROUND(96*(LOG(R10)-INT(LOG(R10))),0)<0,ROUND(96*(LOG(R10)-INT(LOG(R10))),0)-1,ROUND(96*(LOG(R10)-INT(LOG(R10))),0))+1)/96))*POWER(10,INT(LOG(R10))-2))/2,INT(0.5+100*POWER(10,(IF(96*(LOG(R10)-INT(LOG(R10)))-ROUND(96*(LOG(R10)-INT(LOG(R10))),0)<0,ROUND(96*(LOG(R10)-INT(LOG(R10))),0)-1,ROUND(96*(LOG(R10)-INT(LOG(R10))),0))+1)/96))*POWER(10,INT(LOG(R10))-2),INT(0.5+100*POWER(10,IF(96*(LOG(R10)-INT(LOG(R10)))-ROUND(96*(LOG(R10)-INT(LOG(R10))),0)<0,ROUND(96*(LOG(R10)-INT(LOG(R10))),0)-1,ROUND(96*(LOG(R10)-INT(LOG(R10))),0))/96))*POWER(10,INT(LOG(R10))-2)) -> 274000 | T10: Ω
A11: 1.2 | B11: 0 | C11: 0 | D11: 0 | E11: 0 | F11: 0 | G11: 0 | H11: 0 | I11: 0 | J11: 0 | M11: =IF(IF((M$3*10^12-$A12)*(M$3*10^12-$A11)*-1<0,0,1)*IF(ABS(M$3*10^12-$A12)>(M$3*10^12-$A11),$A11,$A12)=M12,0,IF((M$3*10^12-$A12)*(M$3*10^12-$A11)*-1<0,0,1)*IF(ABS(M$3*10^12-$A12)>(M$3*10^12-$A11),$A11,$A12)) ->  | Q11: Rfb2 | R11: =Rfb2_ -> 11416.66667 | S11: =IF(R11="OPEN","OPEN",IF(R11>(INT(0.5+100*POWER(10,IF(96*(LOG(R11)-INT(LOG(R11)))-ROUND(96*(LOG(R11)-INT(LOG(R11))),0)<0,ROUND(96*(LOG(R11)-INT(LOG(R11))),0)-1,ROUND(96*(LOG(R11)-INT(LOG(R11))),0))/96))*POWER(10,INT(LOG(R11))-2)+INT(0.5+100*POWER(10,(IF(96*(LOG(R11)-INT(LOG(R11)))-ROUND(96*(LOG(R11)-INT(LOG(R11))),0)<0,ROUND(96*(LOG(R11)-INT(LOG(R11))),0)-1,ROUND(96*(LOG(R11)-INT(LOG(R11))),0))+1)/96))*POWER(10,INT(LOG(R11))-2))/2,INT(0.5+100*POWER(10,(IF(96*(LOG(R11)-INT(LOG(R11)))-ROUND(96*(LOG(R11)-INT(LOG(R11))),0)<0,ROUND(96*(LOG(R11)-INT(LOG(R11))),0)-1,ROUND(96*(LOG(R11)-INT(LOG(R11))),0))+1)/96))*POWER(10,INT(LOG(R11))-2),INT(0.5+100*POWER(10,IF(96*(LOG(R11)-INT(LOG(R11)))-ROUND(96*(LOG(R11)-INT(LOG(R11))),0)<0,ROUND(96*(LOG(R11)-INT(LOG(R11))),0)-1,ROUND(96*(LOG(R11)-INT(LOG(R11))),0))/96))*POWER(10,INT(LOG(R11))-2))) -> 11500 | T11: Ω
A12: 1.5 | B12: 0 | C12: 0 | D12: 0 | E12: 0 | F12: 0 | G12: 0 | H12: 0 | I12: 0 | J12: 0 | Q12: Rt1 | R12: ='Variable Management'!B27*1000 -> 50243.7516 | S12: =IF(R12>(INT(0.5+100*POWER(10,IF(96*(LOG(R12)-INT(LOG(R12)))-ROUND(96*(LOG(R12)-INT(LOG(R12))),0)<0,ROUND(96*(LOG(R12)-INT(LOG(R12))),0)-1,ROUND(96*(LOG(R12)-INT(LOG(R12))),0))/96))*POWER(10,INT(LOG(R12))-2)+INT(0.5+100*POWER(10,(IF(96*(LOG(R12)-INT(LOG(R12)))-ROUND(96*(LOG(R12)-INT(LOG(R12))),0)<0,ROUND(96*(LOG(R12)-INT(LOG(R12))),0)-1,ROUND(96*(LOG(R12)-INT(LOG(R12))),0))+1)/96))*POWER(10,INT(LOG(R12))-2))/2,INT(0.5+100*POWER(10,(IF(96*(LOG(R12)-INT(LOG(R12)))-ROUND(96*(LOG(R12)-INT(LOG(R12))),0)<0,ROUND(96*(LOG(R12)-INT(LOG(R12))),0)-1,ROUND(96*(LOG(R12)-INT(LOG(R12))),0))+1)/96))*POWER(10,INT(LOG(R12))-2),INT(0.5+100*POWER(10,IF(96*(LOG(R12)-INT(LOG(R12)))-ROUND(96*(LOG(R12)-INT(LOG(R12))),0)<0,ROUND(96*(LOG(R12)-INT(LOG(R12))),0)-1,ROUND(96*(LOG(R12)-INT(LOG(R12))),0))/96))*POWER(10,INT(LOG(R12))-2)) -> 49900 | T12: Ω
A13: 1.8 | B13: 0 | C13: 0 | D13: 0 | E13: 0 | F13: 0 | G13: 0 | H13: 0 | I13: 0 | J13: 0 | Q13: Rd | R13: ='Variable Management'!B28*1000 -> 0 | S13: =IF(R13="OPEN","OPEN",IF(R13>(INT(0.5+100*POWER(10,IF(96*(LOG(R13)-INT(LOG(R13)))-ROUND(96*(LOG(R13)-INT(LOG(R13))),0)<0,ROUND(96*(LOG(R13)-INT(LOG(R13))),0)-1,ROUND(96*(LOG(R13)-INT(LOG(R13))),0))/96))*POWER(10,INT(LOG(R13))-2)+INT(0.5+100*POWER(10,(IF(96*(LOG(R13)-INT(LOG(R13)))-ROUND(96*(LOG(R13)-INT(LOG(R13))),0)<0,ROUND(96*(LOG(R13)-INT(LOG(R13))),0)-1,ROUND(96*(LOG(R13)-INT(LOG(R13))),0))+1)/96))*POWER(10,INT(LOG(R13))-2))/2,INT(0.5+100*POWER(10,(IF(96*(LOG(R13)-INT(LOG(R13)))-ROUND(96*(LOG(R13)-INT(LOG(R13))),0)<0,ROUND(96*(LOG(R13)-INT(LOG(R13))),0)-1,ROUND(96*(LOG(R13)-INT(LOG(R13))),0))+1)/96))*POWER(10,INT(LOG(R13))-2),INT(0.5+100*POWER(10,IF(96*(LOG(R13)-INT(LOG(R13)))-ROUND(96*(LOG(R13)-INT(LOG(R13))),0)<0,ROUND(96*(LOG(R13)-INT(LOG(R13))),0)-1,ROUND(96*(LOG(R13)-INT(LOG(R13))),0))/96))*POWER(10,INT(LOG(R13))-2))) ->  | T13: Ω
A14: 2.2 | B14: =IF(IF((B$3*10^12-$A15)*(B$3*10^12-$A14)*-1<0,0,1)*IF(ABS(B$3*10^12-$A15)>(B$3*10^12-$A14),$A14,$A15)=B15,0,IF((B$3*10^12-$A15)*(B$3*10^12-$A14)*-1<0,0,1)*IF(ABS(B$3*10^12-$A15)>(B$3*10^12-$A14),$A14,$A15)) -> 0 | C14: 0 | D14: 0 | E14: 0 | F14: 0 | G14: 0 | H14: 0 | I14: 0 | J14: 0 | Q14: Rd_AEF | R14: ='Variable Management'!B303 -> 0 | S14: =IF(R14="OPEN","OPEN",IF(R14>(INT(0.5+100*POWER(10,IF(96*(LOG(R14)-INT(LOG(R14)))-ROUND(96*(LOG(R14)-INT(LOG(R14))),0)<0,ROUND(96*(LOG(R14)-INT(LOG(R14))),0)-1,ROUND(96*(LOG(R14)-INT(LOG(R14))),0))/96))*POWER(10,INT(LOG(R14))-2)+INT(0.5+100*POWER(10,(IF(96*(LOG(R14)-INT(LOG(R14)))-ROUND(96*(LOG(R14)-INT(LOG(R14))),0)<0,ROUND(96*(LOG(R14)-INT(LOG(R14))),0)-1,ROUND(96*(LOG(R14)-INT(LOG(R14))),0))+1)/96))*POWER(10,INT(LOG(R14))-2))/2,INT(0.5+100*POWER(10,(IF(96*(LOG(R14)-INT(LOG(R14)))-ROUND(96*(LOG(R14)-INT(LOG(R14))),0)<0,ROUND(96*(LOG(R14)-INT(LOG(R14))),0)-1,ROUND(96*(LOG(R14)-INT(LOG(R14))),0))+1)/96))*POWER(10,INT(LOG(R14))-2),INT(0.5+100*POWER(10,IF(96*(LOG(R14)-INT(LOG(R14)))-ROUND(96*(LOG(R14)-INT(LOG(R14))),0)<0,ROUND(96*(LOG(R14)-INT(LOG(R14))),0)-1,ROUND(96*(LOG(R14)-INT(LOG(R14))),0))/96))*POWER(10,INT(LOG(R14))-2))) ->  | T14: Ω
A15: 2.7 | B15: 0 | C15: 0 | D15: 0 | E15: 0 | F15: 0 | G15: 0 | H15: 0 | I15: 0 | J15: 0 | K15: =IF(IF((K$3*10^12-$A16)*(K$3*10^12-$A15)*-1<0,0,1)*IF(ABS(K$3*10^12-$A16)>(K$3*10^12-$A15),$A15,$A16)=K16,0,IF((K$3*10^12-$A16)*(K$3*10^12-$A15)*-1<0,0,1)*IF(ABS(K$3*10^12-$A16)>(K$3*10^12-$A15),$A15,$A16)) -> 
A16: 3.3 | B16: 0 | C16: 0 | D16: 0 | E16: 0 | F16: 0 | G16: 0 | H16: 0 | I16: 0 | J16: 0 | Q16: Rs | R16: =Rs_ideal*1000 -> 40.1716214 | S16: =IF(R16=0,0,IF(R16>(INT(0.5+100*POWER(10,IF(96*(LOG(R16)-INT(LOG(R16)))-ROUND(96*(LOG(R16)-INT(LOG(R16))),0)<0,ROUND(96*(LOG(R16)-INT(LOG(R16))),0)-1,ROUND(96*(LOG(R16)-INT(LOG(R16))),0))/96))*POWER(10,INT(LOG(R16))-2)+INT(0.5+100*POWER(10,(IF(96*(LOG(R16)-INT(LOG(R16)))-ROUND(96*(LOG(R16)-INT(LOG(R16))),0)<0,ROUND(96*(LOG(R16)-INT(LOG(R16))),0)-1,ROUND(96*(LOG(R16)-INT(LOG(R16))),0))+1)/96))*POWER(10,INT(LOG(R16))-2))/2,INT(0.5+100*POWER(10,(IF(96*(LOG(R16)-INT(LOG(R16)))-ROUND(96*(LOG(R16)-INT(LOG(R16))),0)<0,ROUND(96*(LOG(R16)-INT(LOG(R16))),0)-1,ROUND(96*(LOG(R16)-INT(LOG(R16))),0))+1)/96))*POWER(10,INT(LOG(R16))-2),INT(0.5+100*POWER(10,IF(96*(LOG(R16)-INT(LOG(R16)))-ROUND(96*(LOG(R16)-INT(LOG(R16))),0)<0,ROUND(96*(LOG(R16)-INT(LOG(R16))),0)-1,ROUND(96*(LOG(R16)-INT(LOG(R16))),0))/96))*POWER(10,INT(LOG(R16))-2))) -> 40.2 | T16: mΩ
A17: 3.9 | B17: 0 | C17: 0 | D17: 0 | E17: 0 | F17: 0 | G17: 0 | H17: 0 | I17: 0 | J17: 0 | Q17: Cres | R17: =Cres -> 1.95e-07 | S17: =G4*1000000000000 -> 180000 | T17: pF
A18: 4.7 | B18: 0 | C18: 0 | D18: 0 | E18: 0 | F18: 0 | G18: 0 | H18: 0 | I18: 0 | J18: 0
A19: 5.6 | B19: 0 | C19: 0 | D19: 0 | E19: 0 | F19: 0 | G19: 0 | H19: 0 | I19: 0 | J19: 0
A20: 6.8 | B20: 0 | C20: 0 | D20: 0 | E20: 0 | F20: 0 | G20: 0 | H20: 0 | I20: 0 | J20: 0
A21: 8.2 | B21: 0 | C21: 0 | D21: 0 | E21: 0 | F21: 0 | G21: 0 | H21: 0 | I21: 0 | J21: 0 | Q21: Cdither | R21: =Cdither_init -> 2.83446712e-09 | S21: =H4 -> 2.7e-09
A22: 10 | B22: 0 | C22: 0 | D22: 0 | E22: 0 | F22: 0 | G22: 0 | H22: 0 | I22: 0 | J22: 0 | K22: =IF(IF((K$3*10^12-$A23)*(K$3*10^12-$A22)*-1<0,0,1)*IF(ABS(K$3*10^12-$A23)>(K$3*10^12-$A22),$A22,$A23)=K23,0,IF((K$3*10^12-$A23)*(K$3*10^12-$A22)*-1<0,0,1)*IF(ABS(K$3*10^12-$A23)>(K$3*10^12-$A22),$A22,$A23)) -> 
A23: 12 | B23: 0 | C23: 0 | D23: 0 | E23: 0 | F23: 0 | G23: 0 | H23: 0 | I23: 0 | J23: 0 | Q23: Cin_Passive | R23: =K4 ->  | S23: =R23*1000000 ->  | T23: uF
A24: 15 | B24: 0 | C24: 0 | D24: 0 | E24: 0 | F24: 0 | G24: 0 | H24: 0 | I24: 0 | J24: 0 | Q24: Cinj_AEF | R24: =Cinj_AEF ->  | S24: =M4*1000000 ->  | T24: uF
A25: 18 | B25: 0 | C25: 0 | D25: 0 | E25: 0 | F25: 0 | G25: 0 | H25: 0 | I25: 0 | J25: 0 | Q25: Cdamp_AEF | R25: ='Variable Management'!B297 ->  | S25: =N4*1000000 ->  | T25: uF
A26: 22 | B26: 0 | C26: 0 | D26: 0 | E26: 0 | F26: 0 | G26: 0 | H26: 0 | I26: 0 | J26: 0 | Q26: Rdamp_AEF | R26: ='Variable Management'!B298 ->  | S26: =IF(R26="OPEN","OPEN",IF(R26>(INT(0.5+100*POWER(10,IF(96*(LOG(R26)-INT(LOG(R26)))-ROUND(96*(LOG(R26)-INT(LOG(R26))),0)<0,ROUND(96*(LOG(R26)-INT(LOG(R26))),0)-1,ROUND(96*(LOG(R26)-INT(LOG(R26))),0))/96))*POWER(10,INT(LOG(R26))-2)+INT(0.5+100*POWER(10,(IF(96*(LOG(R26)-INT(LOG(R26)))-ROUND(96*(LOG(R26)-INT(LOG(R26))),0)<0,ROUND(96*(LOG(R26)-INT(LOG(R26))),0)-1,ROUND(96*(LOG(R26)-INT(LOG(R26))),0))+1)/96))*POWER(10,INT(LOG(R26))-2))/2,INT(0.5+100*POWER(10,(IF(96*(LOG(R26)-INT(LOG(R26)))-ROUND(96*(LOG(R26)-INT(LOG(R26))),0)<0,ROUND(96*(LOG(R26)-INT(LOG(R26))),0)-1,ROUND(96*(LOG(R26)-INT(LOG(R26))),0))+1)/96))*POWER(10,INT(LOG(R26))-2),INT(0.5+100*POWER(10,IF(96*(LOG(R26)-INT(LOG(R26)))-ROUND(96*(LOG(R26)-INT(LOG(R26))),0)<0,ROUND(96*(LOG(R26)-INT(LOG(R26))),0)-1,ROUND(96*(LOG(R26)-INT(LOG(R26))),0))/96))*POWER(10,INT(LOG(R26))-2))) ->  | T26: Ω
A27: 27 | B27: 0 | C27: 0 | D27: 0 | E27: 0 | F27: 0 | G27: 0 | H27: 0 | I27: 0 | J27: 0 | M27: =IF(IF((M$3*10^12-$A28)*(M$3*10^12-$A27)*-1<0,0,1)*IF(ABS(M$3*10^12-$A28)>(M$3*10^12-$A27),$A27,$A28)=M28,0,IF((M$3*10^12-$A28)*(M$3*10^12-$A27)*-1<0,0,1)*IF(ABS(M$3*10^12-$A28)>(M$3*10^12-$A27),$A27,$A28)) ->  | Q27: Rdamp_Passive | R27: =SQRT(L_infilterStd/K4) ->  | S27: =IF(R27="OPEN","OPEN",IF(R27>(INT(0.5+100*POWER(10,IF(96*(LOG(R27)-INT(LOG(R27)))-ROUND(96*(LOG(R27)-INT(LOG(R27))),0)<0,ROUND(96*(LOG(R27)-INT(LOG(R27))),0)-1,ROUND(96*(LOG(R27)-INT(LOG(R27))),0))/96))*POWER(10,INT(LOG(R27))-2)+INT(0.5+100*POWER(10,(IF(96*(LOG(R27)-INT(LOG(R27)))-ROUND(96*(LOG(R27)-INT(LOG(R27))),0)<0,ROUND(96*(LOG(R27)-INT(LOG(R27))),0)-1,ROUND(96*(LOG(R27)-INT(LOG(R27))),0))+1)/96))*POWER(10,INT(LOG(R27))-2))/2,INT(0.5+100*POWER(10,(IF(96*(LOG(R27)-INT(LOG(R27)))-ROUND(96*(LOG(R27)-INT(LOG(R27))),0)<0,ROUND(96*(LOG(R27)-INT(LOG(R27))),0)-1,ROUND(96*(LOG(R27)-INT(LOG(R27))),0))+1)/96))*POWER(10,INT(LOG(R27))-2),INT(0.5+100*POWER(10,IF(96*(LOG(R27)-INT(LOG(R27)))-ROUND(96*(LOG(R27)-INT(LOG(R27))),0)<0,ROUND(96*(LOG(R27)-INT(LOG(R27))),0)-1,ROUND(96*(LOG(R27)-INT(LOG(R27))),0))/96))*POWER(10,INT(LOG(R27))-2))) ->  | T27: Ω
A28: 33 | B28: 0 | C28: 0 | D28: 0 | E28: 0 | F28: 0 | G28: 0 | H28: 0 | I28: 0 | J28: 0 | Q28: Cdamp_Passive | R28: =L4 ->  | S28: =R28*1000000 ->  | T28: uF
A29: 39 | B29: 0 | C29: 0 | D29: 0 | E29: 0 | F29: 0 | G29: 0 | H29: 0 | I29: 0 | J29: 0
A30: 47 | B30: 0 | C30: 0 | D30: 0 | E30: 0 | F30: 0 | G30: 0 | H30: 0 | I30: 0 | J30: 0
A31: 56 | B31: 0 | C31: 0 | D31: 0 | E31: 0 | F31: 0 | G31: 0 | H31: 0 | I31: 0 | J31: 0
A32: 68 | B32: 0 | C32: 0 | D32: 0 | E32: 0 | F32: 0 | G32: 0 | H32: 0 | I32: 0 | J32: 0 | Q32: Rc1 | R32: =S7/1000&" kΩ" -> 25,5 kΩ | S32: =S7/1000 -> 25.5 | T32: kΩ
A33: 82 | B33: 0 | C33: 0 | D33: 0 | E33: 0 | F33: 0 | G33: 0 | H33: 0 | I33: 0 | J33: 0 | Q33: Cc1 | R33: =C4*1000000000&" nF" -> 6,8 nF | S33: =C4*1000000000 -> 6.8 | T33: nF
A34: =A22*10 -> 100 | B34: 0 | C34: 0 | D34: 0 | E34: 0 | F34: 0 | G34: 0 | H34: 0 | I34: 0 | J34: 0 | Q34: Cc2 | R34: =D4*1000000000000&" pF" -> 0 pF | S34: =D4*1000000000000 -> 0 | T34: pF
A35: =A23*10 -> 120 | B35: 0 | C35: 0 | D35: 0 | E35: 0 | F35: 0 | G35: 0 | H35: 0 | I35: 0 | J35: 0
A36: 150 | B36: 0 | C36: 0 | D36: 0 | E36: 0 | F36: 0 | G36: 0 | H36: 0 | I36: 0 | J36: 0 | Q36: Rc2 | R36: =S8/1000&" kΩ" ->  | S36: =S8/1000 ->  | T36: kΩ
A37: 180 | B37: 0 | C37: 0 | D37: 0 | E37: 0 | F37: 0 | G37: 0 | H37: 0 | I37: 0 | J37: 0 | Q37: Cc3 | R37: =I4*1000000000&" nF" -> 0 nF | S37: =I4*1000000000 -> 0 | T37: nF
A38: 220 | B38: 0 | C38: 0 | D38: 0 | E38: 0 | F38: 0 | G38: 0 | H38: 0 | I38: 0 | J38: 0 | Q38: Cc4 | R38: =J4*1000000000000&" pF" -> 0 pF | S38: =J4*1000000000000 -> 0 | T38: pF
A39: 270 | B39: 0 | C39: =IF(IF((C$3*10^12-$A40)*(C$3*10^12-$A39)*-1<0,0,1)*IF(ABS(C$3*10^12-$A40)>(C$3*10^12-$A39),$A39,$A40)=C40,0,IF((C$3*10^12-$A40)*(C$3*10^12-$A39)*-1<0,0,1)*IF(ABS(C$3*10^12-$A40)>(C$3*10^12-$A39),$A39,$A40)) -> 0 | D39: 0 | E39: 0 | F39: 0 | G39: 0 | H39: 0 | I39: 0 | J39: 0
A40: 330 | B40: 0 | C40: 0 | D40: 0 | E40: 0 | F40: 0 | G40: 0 | H40: 0 | I40: 0 | J40: 0 | Q40: Rent | R40: ='Variable Management'!B188/1000 -> 237 | S40: =IF(R40>(INT(0.5+100*POWER(10,IF(96*(LOG(R40)-INT(LOG(R40)))-ROUND(96*(LOG(R40)-INT(LOG(R40))),0)<0,ROUND(96*(LOG(R40)-INT(LOG(R40))),0)-1,ROUND(96*(LOG(R40)-INT(LOG(R40))),0))/96))*POWER(10,INT(LOG(R40))-2)+INT(0.5+100*POWER(10,(IF(96*(LOG(R40)-INT(LOG(R40)))-ROUND(96*(LOG(R40)-INT(LOG(R40))),0)<0,ROUND(96*(LOG(R40)-INT(LOG(R40))),0)-1,ROUND(96*(LOG(R40)-INT(LOG(R40))),0))+1)/96))*POWER(10,INT(LOG(R40))-2))/2,INT(0.5+100*POWER(10,(IF(96*(LOG(R40)-INT(LOG(R40)))-ROUND(96*(LOG(R40)-INT(LOG(R40))),0)<0,ROUND(96*(LOG(R40)-INT(LOG(R40))),0)-1,ROUND(96*(LOG(R40)-INT(LOG(R40))),0))+1)/96))*POWER(10,INT(LOG(R40))-2),INT(0.5+100*POWER(10,IF(96*(LOG(R40)-INT(LOG(R40)))-ROUND(96*(LOG(R40)-INT(LOG(R40))),0)<0,ROUND(96*(LOG(R40)-INT(LOG(R40))),0)-1,ROUND(96*(LOG(R40)-INT(LOG(R40))),0))/96))*POWER(10,INT(LOG(R40))-2)) -> 237 | T40: kΩ
A41: 390 | B41: 0 | C41: 0 | D41: 0 | E41: 0 | F41: 0 | G41: 0 | H41: 0 | I41: 0 | J41: 0 | Q41: Renb | R41: ='Variable Management'!B189/1000 -> 19.75 | S41: =IF(R41>(INT(0.5+100*POWER(10,IF(96*(LOG(R41)-INT(LOG(R41)))-ROUND(96*(LOG(R41)-INT(LOG(R41))),0)<0,ROUND(96*(LOG(R41)-INT(LOG(R41))),0)-1,ROUND(96*(LOG(R41)-INT(LOG(R41))),0))/96))*POWER(10,INT(LOG(R41))-2)+INT(0.5+100*POWER(10,(IF(96*(LOG(R41)-INT(LOG(R41)))-ROUND(96*(LOG(R41)-INT(LOG(R41))),0)<0,ROUND(96*(LOG(R41)-INT(LOG(R41))),0)-1,ROUND(96*(LOG(R41)-INT(LOG(R41))),0))+1)/96))*POWER(10,INT(LOG(R41))-2))/2,INT(0.5+100*POWER(10,(IF(96*(LOG(R41)-INT(LOG(R41)))-ROUND(96*(LOG(R41)-INT(LOG(R41))),0)<0,ROUND(96*(LOG(R41)-INT(LOG(R41))),0)-1,ROUND(96*(LOG(R41)-INT(LOG(R41))),0))+1)/96))*POWER(10,INT(LOG(R41))-2),INT(0.5+100*POWER(10,IF(96*(LOG(R41)-INT(LOG(R41)))-ROUND(96*(LOG(R41)-INT(LOG(R41))),0)<0,ROUND(96*(LOG(R41)-INT(LOG(R41))),0)-1,ROUND(96*(LOG(R41)-INT(LOG(R41))),0))/96))*POWER(10,INT(LOG(R41))-2)) -> 19.6 | T41: kΩ
A42: 470 | B42: 0 | C42: 0 | D42: 0 | E42: 0 | F42: 0 | G42: 0 | H42: 0 | I42: 0 | J42: 0
A43: 560 | B43: 0 | C43: 0 | D43: 0 | E43: 0 | F43: 0 | G43: 0 | H43: 0 | I43: 0 | J43: 0 | M43: =IF(IF((M$3*10^12-$A44)*(M$3*10^12-$A43)*-1<0,0,1)*IF(ABS(M$3*10^12-$A44)>(M$3*10^12-$A43),$A43,$A44)=M44,0,IF((M$3*10^12-$A44)*(M$3*10^12-$A43)*-1<0,0,1)*IF(ABS(M$3*10^12-$A44)>(M$3*10^12-$A43),$A43,$A44)) -> 
A44: 680 | B44: 0 | C44: 0 | D44: 0 | E44: 0 | F44: 0 | G44: 0 | H44: 0 | I44: 0 | J44: 0
A45: =A33*10 -> 820 | B45: 0 | C45: 0 | D45: 0 | E45: 0 | F45: 0 | G45: 0 | H45: 0 | I45: 0 | J45: 0
A46: 1000 | B46: 0 | C46: 0 | D46: 0 | E46: 0 | F46: 0 | G46: 0 | H46: 0 | I46: 0 | J46: 0
A47: 1200 | B47: 0 | C47: 0 | D47: 0 | E47: 0 | F47: 0 | G47: 0 | H47: 0 | I47: 0 | J47: 0
A48: 1500 | B48: 0 | C48: 0 | D48: 0 | E48: 0 | F48: 0 | G48: 0 | H48: 0 | I48: 0 | J48: 0
A49: 1800 | B49: 0 | C49: 0 | D49: 0 | E49: 0 | F49: 0 | G49: 0 | H49: 0 | I49: 0 | J49: 0
A50: 2200 | B50: 0 | C50: 0 | D50: 0 | E50: 0 | F50: 0 | G50: 0 | H50: 0 | I50: 0 | J50: 0
A51: 2700 | B51: 0 | C51: 0 | D51: 0 | E51: 0 | F51: 0 | G51: 0 | H51: 2700 | I51: 0 | J51: 0
A52: 3300 | B52: 0 | C52: 0 | D52: 0 | E52: 0 | F52: 0 | G52: 0 | H52: 0 | I52: 0 | J52: 0
A53: 3900 | B53: 0 | C53: 0 | D53: 0 | E53: 0 | F53: 0 | G53: 0 | H53: 0 | I53: 0 | J53: 0
A54: 4700 | B54: 0 | C54: 0 | D54: 0 | E54: 0 | F54: 0 | G54: 0 | H54: 0 | I54: 0 | J54: 0
A55: 5600 | B55: 0 | C55: 6800 | D55: 0 | E55: 0 | F55: 0 | G55: 0 | H55: 0 | I55: 0 | J55: 0
A56: 6800 | B56: 0 | C56: 0 | D56: 0 | E56: 0 | F56: 0 | G56: 0 | H56: 0 | I56: 0 | J56: 0
A57: 8200 | B57: 0 | C57: 0 | D57: 0 | E57: 0 | F57: 0 | G57: 0 | H57: 0 | I57: 0 | J57: 0
A58: 10000 | B58: 0 | C58: 0 | D58: 0 | E58: 0 | F58: 0 | G58: 0 | H58: 0 | I58: 0 | J58: 0
A59: 12000 | B59: 0 | C59: 0 | D59: 0 | E59: 0 | F59: 0 | G59: 0 | H59: 0 | I59: 0 | J59: 0 | M59: =IF(IF((M$3*10^12-$A60)*(M$3*10^12-$A59)*-1<0,0,1)*IF(ABS(M$3*10^12-$A60)>(M$3*10^12-$A59),$A59,$A60)=M60,0,IF((M$3*10^12-$A60)*(M$3*10^12-$A59)*-1<0,0,1)*IF(ABS(M$3*10^12-$A60)>(M$3*10^12-$A59),$A59,$A60)) -> 
A60: 15000 | B60: 0 | C60: 0 | D60: 0 | E60: 0 | F60: 0 | G60: 0 | H60: 0 | I60: 0 | J60: 0
A61: 18000 | B61: 0 | C61: 0 | D61: 0 | E61: 0 | F61: 0 | G61: 0 | H61: 0 | I61: 0 | J61: 0
A62: 22000 | B62: 0 | C62: 0 | D62: 0 | E62: 0 | F62: 0 | G62: 0 | H62: 0 | I62: 0 | J62: 0
A63: 27000 | B63: 0 | C63: 0 | D63: 0 | E63: 0 | F63: 0 | G63: 0 | H63: 0 | I63: 0 | J63: 0
A64: 33000 | B64: 0 | C64: 0 | D64: 0 | E64: 0 | F64: 0 | G64: 0 | H64: 0 | I64: 0 | J64: 0
